Workbook

Sheet RelicConfig
A1: ID[csknu] | B1: pos[csn] | C1: difficult[csn] | D1: layer[csn] | E1: type[csn] | F1: runetA[sna] | G1: runetB[sna] | H1: runetC[sna] | I1: show[cna] | J1: reward[csna] | K1: random[csna]
A2: 遗迹ID | B2: 关卡坐标 | C2: 难度 | D2: 层数 | E2: 关卡类型 | F2: 符文库1 | G2: 符文库2 | H2: 符文库3 | I2: 掉落展示 | J2: 必掉奖励 | K2: 随机掉落
A3: 10001 | B3: 1 | C3: 1 | D3: 1 | E3: 1 | F3: 10200^99^10201^99^10202^99^10203^99^10204^98^10205^98^10206^98^10207^98^10208^98^10209^98^10210^98^10211^98^10212^98^10213^98^10214^98^10215^98^10216^98^10217^98^10218^98^10219^98^10220^98^10221^98^10222^98^10223^98^10224^98^10225^98^10226^98^10227^98^10228^98^10229^98^10230^98^10231^98^10232^98^10233^98^10234^98^10235^98^10236^98^10237^98^10238^98^10239^98^10240^98^10241^98^10242^98^10243^98^10244^98^10245^98^10246^98^10247^98^10248^98^10249^98^10250^98^10300^98^10301^98^10302^98^10303^98^10304^98^10305^98^10306^98^10307^98^10308^98^10309^98^10310^98^10311^98^10312^98^10313^98^10314^98^10315^98^10316^98^10317^98^10318^98^10319^98^10320^98^10321^98^10322^98^10323^98^10324^98^10325^98^10326^98^10327^98^10328^98^10329^98^10330^98^10331^98^10332^98^10333^98^10334^98^10335^98^10336^98^10337^98^10338^98^10339^98^10340^98^10341^98^10342^98^10343^98^10344^98^10345^98^10346^98^10347^98^10348^98^10349^98^10350^98 | G3: 10100^197^10101^197^10102^197^10103^197^10104^196^10105^196^10106^196^10107^196^10108^196^10109^196^10110^196^10111^196^10112^196^10113^196^10114^196^10115^196^10116^196^10117^196^10118^196^10119^196^10120^196^10121^196^10122^196^10123^196^10124^196^10125^196^10126^196^10127^196^10128^196^10129^196^10130^196^10131^196^10132^196^10133^196^10134^196^10135^196^10136^196^10137^196^10138^196^10139^196^10140^196^10141^196^10142^196^10143^196^10144^196^10145^196^10146^196^10147^196^10148^196^10149^196^10150^196 | H3: 10400^99^10401^99^10402^99^10403^99^10404^98^10405^98^10406^98^10407^98^10408^98^10409^98^10410^98^10411^98^10412^98^10413^98^10414^98^10415^98^10416^98^10417^98^10418^98^10419^98^10420^98^10421^98^10422^98^10423^98^10424^98^10425^98^10426^98^10427^98^10428^98^10429^98^10430^98^10431^98^10432^98^10433^98^10434^98^10435^98^10436^98^10437^98^10438^98^10439^98^10440^98^10441^98^10442^98^10443^98^10444^98^10445^98^10446^98^10447^98^10448^98^10449^98^10450^98^10500^98^10501^98^10502^98^10503^98^10504^98^10505^98^10506^98^10507^98^10508^98^10509^98^10510^98^10511^98^10512^98^10513^98^10514^98^10515^98^10516^98^10517^98^10518^98^10519^98^10520^98^10521^98^10522^98^10523^98^10524^98^10525^98^10526^98^10527^98^10528^98^10529^98^10530^98^10531^98^10532^98^10533^98^10534^98^10535^98^10536^98^10537^98^10538^98^10539^98^10540^98^10541^98^10542^98^10543^98^10544^98^10545^98^10546^98^10547^98^10548^98^10549^98^10550^98 | I3: 0 | J3: 110006^10|110005^5 | K3: 80001
A4: 10002 | B4: 2 | C4: 1 | D4: 1 | E4: 1 | F4: 10200^99^10201^99^10202^99^10203^99^10204^98^10205^98^10206^98^10207^98^10208^98^10209^98^10210^98^10211^98^10212^98^10213^98^10214^98^10215^98^10216^98^10217^98^10218^98^10219^98^10220^98^10221^98^10222^98^10223^98^10224^98^10225^98^10226^98^10227^98^10228^98^10229^98^10230^98^10231^98^10232^98^10233^98^10234^98^10235^98^10236^98^10237^98^10238^98^10239^98^10240^98^10241^98^10242^98^10243^98^10244^98^10245^98^10246^98^10247^98^10248^98^10249^98^10250^98^10300^98^10301^98^10302^98^10303^98^10304^98^10305^98^10306^98^10307^98^10308^98^10309^98^10310^98^10311^98^10312^98^10313^98^10314^98^10315^98^10316^98^10317^98^10318^98^10319^98^10320^98^10321^98^10322^98^10323^98^10324^98^10325^98^10326^98^10327^98^10328^98^10329^98^10330^98^10331^98^10332^98^10333^98^10334^98^10335^98^10336^98^10337^98^10338^98^10339^98^10340^98^10341^98^10342^98^10343^98^10344^98^10345^98^10346^98^10347^98^10348^98^10349^98^10350^98 | G4: 10100^197^10101^197^10102^197^10103^197^10104^196^10105^196^10106^196^10107^196^10108^196^10109^196^10110^196^10111^196^10112^196^10113^196^10114^196^10115^196^10116^196^10117^196^10118^196^10119^196^10120^196^10121^196^10122^196^10123^196^10124^196^10125^196^10126^196^10127^196^10128^196^10129^196^10130^196^10131^196^10132^196^10133^196^10134^196^10135^196^10136^196^10137^196^10138^196^10139^196^10140^196^10141^196^10142^196^10143^196^10144^196^10145^196^10146^196^10147^196^10148^196^10149^196^10150^196 | H4: 10400^99^10401^99^10402^99^10403^99^10404^98^10405^98^10406^98^10407^98^10408^98^10409^98^10410^98^10411^98^10412^98^10413^98^10414^98^10415^98^10416^98^10417^98^10418^98^10419^98^10420^98^10421^98^10422^98^10423^98^10424^98^10425^98^10426^98^10427^98^10428^98^10429^98^10430^98^10431^98^10432^98^10433^98^10434^98^10435^98^10436^98^10437^98^10438^98^10439^98^10440^98^10441^98^10442^98^10443^98^10444^98^10445^98^10446^98^10447^98^10448^98^10449^98^10450^98^10500^98^10501^98^10502^98^10503^98^10504^98^10505^98^10506^98^10507^98^10508^98^10509^98^10510^98^10511^98^10512^98^10513^98^10514^98^10515^98^10516^98^10517^98^10518^98^10519^98^10520^98^10521^98^10522^98^10523^98^10524^98^10525^98^10526^98^10527^98^10528^98^10529^98^10530^98^10531^98^10532^98^10533^98^10534^98^10535^98^10536^98^10537^98^10538^98^10539^98^10540^98^10541^98^10542^98^10543^98^10544^98^10545^98^10546^98^10547^98^10548^98^10549^98^10550^98 | I4: 0 | J4: 110006^10|110005^5 | K4: 80001
A5: 10003 | B5: 3 | C5: 1 | D5: 1 | E5: 2 | F5: 10200^99^10201^99^10202^99^10203^99^10204^98^10205^98^10206^98^10207^98^10208^98^10209^98^10210^98^10211^98^10212^98^10213^98^10214^98^10215^98^10216^98^10217^98^10218^98^10219^98^10220^98^10221^98^10222^98^10223^98^10224^98^10225^98^10226^98^10227^98^10228^98^10229^98^10230^98^10231^98^10232^98^10233^98^10234^98^10235^98^10236^98^10237^98^10238^98^10239^98^10240^98^10241^98^10242^98^10243^98^10244^98^10245^98^10246^98^10247^98^10248^98^10249^98^10250^98^10300^98^10301^98^10302^98^10303^98^10304^98^10305^98^10306^98^10307^98^10308^98^10309^98^10310^98^10311^98^10312^98^10313^98^10314^98^10315^98^10316^98^10317^98^10318^98^10319^98^10320^98^10321^98^10322^98^10323^98^10324^98^10325^98^10326^98^10327^98^10328^98^10329^98^10330^98^10331^98^10332^98^10333^98^10334^98^10335^98^10336^98^10337^98^10338^98^10339^98^10340^98^10341^98^10342^98^10343^98^10344^98^10345^98^10346^98^10347^98^10348^98^10349^98^10350^98 | G5: 10100^197^10101^197^10102^197^10103^197^10104^196^10105^196^10106^196^10107^196^10108^196^10109^196^10110^196^10111^196^10112^196^10113^196^10114^196^10115^196^10116^196^10117^196^10118^196^10119^196^10120^196^10121^196^10122^196^10123^196^10124^196^10125^196^10126^196^10127^196^10128^196^10129^196^10130^196^10131^196^10132^196^10133^196^10134^196^10135^196^10136^196^10137^196^10138^196^10139^196^10140^196^10141^196^10142^196^10143^196^10144^196^10145^196^10146^196^10147^196^10148^196^10149^196^10150^196 | H5: 10400^99^10401^99^10402^99^10403^99^10404^98^10405^98^10406^98^10407^98^10408^98^10409^98^10410^98^10411^98^10412^98^10413^98^10414^98^10415^98^10416^98^10417^98^10418^98^10419^98^10420^98^10421^98^10422^98^10423^98^10424^98^10425^98^10426^98^10427^98^10428^98^10429^98^10430^98^10431^98^10432^98^10433^98^10434^98^10435^98^10436^98^10437^98^10438^98^10439^98^10440^98^10441^98^10442^98^10443^98^10444^98^10445^98^10446^98^10447^98^10448^98^10449^98^10450^98^10500^98^10501^98^10502^98^10503^98^10504^98^10505^98^10506^98^10507^98^10508^98^10509^98^10510^98^10511^98^10512^98^10513^98^10514^98^10515^98^10516^98^10517^98^10518^98^10519^98^10520^98^10521^98^10522^98^10523^98^10524^98^10525^98^10526^98^10527^98^10528^98^10529^98^10530^98^10531^98^10532^98^10533^98^10534^98^10535^98^10536^98^10537^98^10538^98^10539^98^10540^98^10541^98^10542^98^10543^98^10544^98^10545^98^10546^98^10547^98^10548^98^10549^98^10550^98 | I5: 0 | J5: 110006^50|110005^5 | K5: 80001
A6: 10004 | B6: 4 | C6: 1 | D6: 1 | E6: 3 | F6: 0 | G6: 0 | H6: 0 | I6: 110006^50|100001^5000|110005^10 | J6: 110006^50|100001^5000|110005^10 | K6: 0
A7: 10005 | B7: 5 | C7: 1 | D7: 1 | E7: 4 | F7: 0 | G7: 0 | H7: 0 | I7: 0 | J7: 0 | K7: 0
A8: 10006 | B8: 6 | C8: 1 | D8: 1 | E8: 3 | F8: 0 | G8: 0 | H8: 0 | I8: 110006^50|100001^5000|110005^10 | J8: 110006^50|100001^5000|110005^10 | K8: 0
A9: 10007 | B9: 7 | C9: 1 | D9: 1 | E9: 5 | F9: 0 | G9: 0 | H9: 0 | I9: 0 | J9: 130001^50 | K9: 0
A10: 10008 | B10: 8 | C10: 1 | D10: 1 | E10: 6 | F10: 0 | G10: 0 | H10: 0 | I10: 0 | J10: 0 | K10: 80013
A11: 10009 | B11: 9 | C11: 1 | D11: 1 | E11: 2 | F11: 10200^99^10201^99^10202^99^10203^99^10204^98^10205^98^10206^98^10207^98^10208^98^10209^98^10210^98^10211^98^10212^98^10213^98^10214^98^10215^98^10216^98^10217^98^10218^98^10219^98^10220^98^10221^98^10222^98^10223^98^10224^98^10225^98^10226^98^10227^98^10228^98^10229^98^10230^98^10231^98^10232^98^10233^98^10234^98^10235^98^10236^98^10237^98^10238^98^10239^98^10240^98^10241^98^10242^98^10243^98^10244^98^10245^98^10246^98^10247^98^10248^98^10249^98^10250^98^10300^98^10301^98^10302^98^10303^98^10304^98^10305^98^10306^98^10307^98^10308^98^10309^98^10310^98^10311^98^10312^98^10313^98^10314^98^10315^98^10316^98^10317^98^10318^98^10319^98^10320^98^10321^98^10322^98^10323^98^10324^98^10325^98^10326^98^10327^98^10328^98^10329^98^10330^98^10331^98^10332^98^10333^98^10334^98^10335^98^10336^98^10337^98^10338^98^10339^98^10340^98^10341^98^10342^98^10343^98^10344^98^10345^98^10346^98^10347^98^10348^98^10349^98^10350^98 | G11: 10100^197^10101^197^10102^197^10103^197^10104^196^10105^196^10106^196^10107^196^10108^196^10109^196^10110^196^10111^196^10112^196^10113^196^10114^196^10115^196^10116^196^10117^196^10118^196^10119^196^10120^196^10121^196^10122^196^10123^196^10124^196^10125^196^10126^196^10127^196^10128^196^10129^196^10130^196^10131^196^10132^196^10133^196^10134^196^10135^196^10136^196^10137^196^10138^196^10139^196^10140^196^10141^196^10142^196^10143^196^10144^196^10145^196^10146^196^10147^196^10148^196^10149^196^10150^196 | H11: 10400^99^10401^99^10402^99^10403^99^10404^98^10405^98^10406^98^10407^98^10408^98^10409^98^10410^98^10411^98^10412^98^10413^98^10414^98^10415^98^10416^98^10417^98^10418^98^10419^98^10420^98^10421^98^10422^98^10423^98^10424^98^10425^98^10426^98^10427^98^10428^98^10429^98^10430^98^10431^98^10432^98^10433^98^10434^98^10435^98^10436^98^10437^98^10438^98^10439^98^10440^98^10441^98^10442^98^10443^98^10444^98^10445^98^10446^98^10447^98^10448^98^10449^98^10450^98^10500^98^10501^98^10502^98^10503^98^10504^98^10505^98^10506^98^10507^98^10508^98^10509^98^10510^98^10511^98^10512^98^10513^98^10514^98^10515^98^10516^98^10517^98^10518^98^10519^98^10520^98^10521^98^10522^98^10523^98^10524^98^10525^98^10526^98^10527^98^10528^98^10529^98^10530^98^10531^98^10532^98^10533^98^10534^98^10535^98^10536^98^10537^98^10538^98^10539^98^10540^98^10541^98^10542^98^10543^98^10544^98^10545^98^10546^98^10547^98^10548^98^10549^98^10550^98 | I11: 0 | J11: 110006^50|110005^5 | K11: 80001
A12: 10010 | B12: 10 | C12: 1 | D12: 1 | E12: 1 | F12: 10200^99^10201^99^10202^99^10203^99^10204^98^10205^98^10206^98^10207^98^10208^98^10209^98^10210^98^10211^98^10212^98^10213^98^10214^98^10215^98^10216^98^10217^98^10218^98^10219^98^10220^98^10221^98^10222^98^10223^98^10224^98^10225^98^10226^98^10227^98^10228^98^10229^98^10230^98^10231^98^10232^98^10233^98^10234^98^10235^98^10236^98^10237^98^10238^98^10239^98^10240^98^10241^98^10242^98^10243^98^10244^98^10245^98^10246^98^10247^98^10248^98^10249^98^10250^98^10300^98^10301^98^10302^98^10303^98^10304^98^10305^98^10306^98^10307^98^10308^98^10309^98^10310^98^10311^98^10312^98^10313^98^10314^98^10315^98^10316^98^10317^98^10318^98^10319^98^10320^98^10321^98^10322^98^10323^98^10324^98^10325^98^10326^98^10327^98^10328^98^10329^98^10330^98^10331^98^10332^98^10333^98^10334^98^10335^98^10336^98^10337^98^10338^98^10339^98^10340^98^10341^98^10342^98^10343^98^10344^98^10345^98^10346^98^10347^98^10348^98^10349^98^10350^98 | G12: 10100^197^10101^197^10102^197^10103^197^10104^196^10105^196^10106^196^10107^196^10108^196^10109^196^10110^196^10111^196^10112^196^10113^196^10114^196^10115^196^10116^196^10117^196^10118^196^10119^196^10120^196^10121^196^10122^196^10123^196^10124^196^10125^196^10126^196^10127^196^10128^196^10129^196^10130^196^10131^196^10132^196^10133^196^10134^196^10135^196^10136^196^10137^196^10138^196^10139^196^10140^196^10141^196^10142^196^10143^196^10144^196^10145^196^10146^196^10147^196^10148^196^10149^196^10150^196 | H12: 10400^99^10401^99^10402^99^10403^99^10404^98^10405^98^10406^98^10407^98^10408^98^10409^98^10410^98^10411^98^10412^98^10413^98^10414^98^10415^98^10416^98^10417^98^10418^98^10419^98^10420^98^10421^98^10422^98^10423^98^10424^98^10425^98^10426^98^10427^98^10428^98^10429^98^10430^98^10431^98^10432^98^10433^98^10434^98^10435^98^10436^98^10437^98^10438^98^10439^98^10440^98^10441^98^10442^98^10443^98^10444^98^10445^98^10446^98^10447^98^10448^98^10449^98^10450^98^10500^98^10501^98^10502^98^10503^98^10504^98^10505^98^10506^98^10507^98^10508^98^10509^98^10510^98^10511^98^10512^98^10513^98^10514^98^10515^98^10516^98^10517^98^10518^98^10519^98^10520^98^10521^98^10522^98^10523^98^10524^98^10525^98^10526^98^10527^98^10528^98^10529^98^10530^98^10531^98^10532^98^10533^98^10534^98^10535^98^10536^98^10537^98^10538^98^10539^98^10540^98^10541^98^10542^98^10543^98^10544^98^10545^98^10546^98^10547^98^10548^98^10549^98^10550^98 | I12: 0 | J12: 110006^10|110005^5 | K12: 80001
A13: 10011 | B13: 11 | C13: 1 | D13: 1 | E13: 7 | F13: 10200^99^10201^99^10202^99^10203^99^10204^98^10205^98^10206^98^10207^98^10208^98^10209^98^10210^98^10211^98^10212^98^10213^98^10214^98^10215^98^10216^98^10217^98^10218^98^10219^98^10220^98^10221^98^10222^98^10223^98^10224^98^10225^98^10226^98^10227^98^10228^98^10229^98^10230^98^10231^98^10232^98^10233^98^10234^98^10235^98^10236^98^10237^98^10238^98^10239^98^10240^98^10241^98^10242^98^10243^98^10244^98^10245^98^10246^98^10247^98^10248^98^10249^98^10250^98^10300^98^10301^98^10302^98^10303^98^10304^98^10305^98^10306^98^10307^98^10308^98^10309^98^10310^98^10311^98^10312^98^10313^98^10314^98^10315^98^10316^98^10317^98^10318^98^10319^98^10320^98^10321^98^10322^98^10323^98^10324^98^10325^98^10326^98^10327^98^10328^98^10329^98^10330^98^10331^98^10332^98^10333^98^10334^98^10335^98^10336^98^10337^98^10338^98^10339^98^10340^98^10341^98^10342^98^10343^98^10344^98^10345^98^10346^98^10347^98^10348^98^10349^98^10350^98 | G13: 10100^197^10101^197^10102^197^10103^197^10104^196^10105^196^10106^196^10107^196^10108^196^10109^196^10110^196^10111^196^10112^196^10113^196^10114^196^10115^196^10116^196^10117^196^10118^196^10119^196^10120^196^10121^196^10122^196^10123^196^10124^196^10125^196^10126^196^10127^196^10128^196^10129^196^10130^196^10131^196^10132^196^10133^196^10134^196^10135^196^10136^196^10137^196^10138^196^10139^196^10140^196^10141^196^10142^196^10143^196^10144^196^10145^196^10146^196^10147^196^10148^196^10149^196^10150^196 | H13: 10400^99^10401^99^10402^99^10403^99^10404^98^10405^98^10406^98^10407^98^10408^98^10409^98^10410^98^10411^98^10412^98^10413^98^10414^98^10415^98^10416^98^10417^98^10418^98^10419^98^10420^98^10421^98^10422^98^10423^98^10424^98^10425^98^10426^98^10427^98^10428^98^10429^98^10430^98^10431^98^10432^98^10433^98^10434^98^10435^98^10436^98^10437^98^10438^98^10439^98^10440^98^10441^98^10442^98^10443^98^10444^98^10445^98^10446^98^10447^98^10448^98^10449^98^10450^98^10500^98^10501^98^10502^98^10503^98^10504^98^10505^98^10506^98^10507^98^10508^98^10509^98^10510^98^10511^98^10512^98^10513^98^10514^98^10515^98^10516^98^10517^98^10518^98^10519^98^10520^98^10521^98^10522^98^10523^98^10524^98^10525^98^10526^98^10527^98^10528^98^10529^98^10530^98^10531^98^10532^98^10533^98^10534^98^10535^98^10536^98^10537^98^10538^98^10539^98^10540^98^10541^98^10542^98^10543^98^10544^98^10545^98^10546^98^10547^98^10548^98^10549^98^10550^98 | I13: 0 | J13: 110006^90|110005^20 | K13: 80007
A14: 10101 | B14: 1 | C14: 1 | D14: 2 | E14: 1 | F14: 10200^99^10201^99^10202^99^10203^99^10204^98^10205^98^10206^98^10207^98^10208^98^10209^98^10210^98^10211^98^10212^98^10213^98^10214^98^10215^98^10216^98^10217^98^10218^98^10219^98^10220^98^10221^98^10222^98^10223^98^10224^98^10225^98^10226^98^10227^98^10228^98^10229^98^10230^98^10231^98^10232^98^10233^98^10234^98^10235^98^10236^98^10237^98^10238^98^10239^98^10240^98^10241^98^10242^98^10243^98^10244^98^10245^98^10246^98^10247^98^10248^98^10249^98^10250^98^10300^98^10301^98^10302^98^10303^98^10304^98^10305^98^10306^98^10307^98^10308^98^10309^98^10310^98^10311^98^10312^98^10313^98^10314^98^10315^98^10316^98^10317^98^10318^98^10319^98^10320^98^10321^98^10322^98^10323^98^10324^98^10325^98^10326^98^10327^98^10328^98^10329^98^10330^98^10331^98^10332^98^10333^98^10334^98^10335^98^10336^98^10337^98^10338^98^10339^98^10340^98^10341^98^10342^98^10343^98^10344^98^10345^98^10346^98^10347^98^10348^98^10349^98^10350^98 | G14: 10100^197^10101^197^10102^197^10103^197^10104^196^10105^196^10106^196^10107^196^10108^196^10109^196^10110^196^10111^196^10112^196^10113^196^10114^196^10115^196^10116^196^10117^196^10118^196^10119^196^10120^196^10121^196^10122^196^10123^196^10124^196^10125^196^10126^196^10127^196^10128^196^10129^196^10130^196^10131^196^10132^196^10133^196^10134^196^10135^196^10136^196^10137^196^10138^196^10139^196^10140^196^10141^196^10142^196^10143^196^10144^196^10145^196^10146^196^10147^196^10148^196^10149^196^10150^196 | H14: 10400^99^10401^99^10402^99^10403^99^10404^98^10405^98^10406^98^10407^98^10408^98^10409^98^10410^98^10411^98^10412^98^10413^98^10414^98^10415^98^10416^98^10417^98^10418^98^10419^98^10420^98^10421^98^10422^98^10423^98^10424^98^10425^98^10426^98^10427^98^10428^98^10429^98^10430^98^10431^98^10432^98^10433^98^10434^98^10435^98^10436^98^10437^98^10438^98^10439^98^10440^98^10441^98^10442^98^10443^98^10444^98^10445^98^10446^98^10447^98^10448^98^10449^98^10450^98^10500^98^10501^98^10502^98^10503^98^10504^98^10505^98^10506^98^10507^98^10508^98^10509^98^10510^98^10511^98^10512^98^10513^98^10514^98^10515^98^10516^98^10517^98^10518^98^10519^98^10520^98^10521^98^10522^98^10523^98^10524^98^10525^98^10526^98^10527^98^10528^98^10529^98^10530^98^10531^98^10532^98^10533^98^10534^98^10535^98^10536^98^10537^98^10538^98^10539^98^10540^98^10541^98^10542^98^10543^98^10544^98^10545^98^10546^98^10547^98^10548^98^10549^98^10550^98 | I14: 0 | J14: 110006^10|110005^5 | K14: 80001
A15: 10102 | B15: 2 | C15: 1 | D15: 2 | E15: 1 | F15: 10200^99^10201^99^10202^99^10203^99^10204^98^10205^98^10206^98^10207^98^10208^98^10209^98^10210^98^10211^98^10212^98^10213^98^10214^98^10215^98^10216^98^10217^98^10218^98^10219^98^10220^98^10221^98^10222^98^10223^98^10224^98^10225^98^10226^98^10227^98^10228^98^10229^98^10230^98^10231^98^10232^98^10233^98^10234^98^10235^98^10236^98^10237^98^10238^98^10239^98^10240^98^10241^98^10242^98^10243^98^10244^98^10245^98^10246^98^10247^98^10248^98^10249^98^10250^98^10300^98^10301^98^10302^98^10303^98^10304^98^10305^98^10306^98^10307^98^10308^98^10309^98^10310^98^10311^98^10312^98^10313^98^10314^98^10315^98^10316^98^10317^98^10318^98^10319^98^10320^98^10321^98^10322^98^10323^98^10324^98^10325^98^10326^98^10327^98^10328^98^10329^98^10330^98^10331^98^10332^98^10333^98^10334^98^10335^98^10336^98^10337^98^10338^98^10339^98^10340^98^10341^98^10342^98^10343^98^10344^98^10345^98^10346^98^10347^98^10348^98^10349^98^10350^98 | G15: 10100^197^10101^197^10102^197^10103^197^10104^196^10105^196^10106^196^10107^196^10108^196^10109^196^10110^196^10111^196^10112^196^10113^196^10114^196^10115^196^10116^196^10117^196^10118^196^10119^196^10120^196^10121^196^10122^196^10123^196^10124^196^10125^196^10126^196^10127^196^10128^196^10129^196^10130^196^10131^196^10132^196^10133^196^10134^196^10135^196^10136^196^10137^196^10138^196^10139^196^10140^196^10141^196^10142^196^10143^196^10144^196^10145^196^10146^196^10147^196^10148^196^10149^196^10150^196 | H15: 10400^99^10401^99^10402^99^10403^99^10404^98^10405^98^10406^98^10407^98^10408^98^10409^98^10410^98^10411^98^10412^98^10413^98^10414^98^10415^98^10416^98^10417^98^10418^98^10419^98^10420^98^10421^98^10422^98^10423^98^10424^98^10425^98^10426^98^10427^98^10428^98^10429^98^10430^98^10431^98^10432^98^10433^98^10434^98^10435^98^10436^98^10437^98^10438^98^10439^98^10440^98^10441^98^10442^98^10443^98^10444^98^10445^98^10446^98^10447^98^10448^98^10449^98^10450^98^10500^98^10501^98^10502^98^10503^98^10504^98^10505^98^10506^98^10507^98^10508^98^10509^98^10510^98^10511^98^10512^98^10513^98^10514^98^10515^98^10516^98^10517^98^10518^98^10519^98^10520^98^10521^98^10522^98^10523^98^10524^98^10525^98^10526^98^10527^98^10528^98^10529^98^10530^98^10531^98^10532^98^10533^98^10534^98^10535^98^10536^98^10537^98^10538^98^10539^98^10540^98^10541^98^10542^98^10543^98^10544^98^10545^98^10546^98^10547^98^10548^98^10549^98^10550^98 | I15: 0 | J15: 110006^10|110005^5 | K15: 80001
A16: 10103 | B16: 3 | C16: 1 | D16: 2 | E16: 2 | F16: 10200^99^10201^99^10202^99^10203^99^10204^98^10205^98^10206^98^10207^98^10208^98^10209^98^10210^98^10211^98^10212^98^10213^98^10214^98^10215^98^10216^98^10217^98^10218^98^10219^98^10220^98^10221^98^10222^98^10223^98^10224^98^10225^98^10226^98^10227^98^10228^98^10229^98^10230^98^10231^98^10232^98^10233^98^10234^98^10235^98^10236^98^10237^98^10238^98^10239^98^10240^98^10241^98^10242^98^10243^98^10244^98^10245^98^10246^98^10247^98^10248^98^10249^98^10250^98^10300^98^10301^98^10302^98^10303^98^10304^98^10305^98^10306^98^10307^98^10308^98^10309^98^10310^98^10311^98^10312^98^10313^98^10314^98^10315^98^10316^98^10317^98^10318^98^10319^98^10320^98^10321^98^10322^98^10323^98^10324^98^10325^98^10326^98^10327^98^10328^98^10329^98^10330^98^10331^98^10332^98^10333^98^10334^98^10335^98^10336^98^10337^98^10338^98^10339^98^10340^98^10341^98^10342^98^10343^98^10344^98^10345^98^10346^98^10347^98^10348^98^10349^98^10350^98 | G16: 10100^197^10101^197^10102^197^10103^197^10104^196^10105^196^10106^196^10107^196^10108^196^10109^196^10110^196^10111^196^10112^196^10113^196^10114^196^10115^196^10116^196^10117^196^10118^196^10119^196^10120^196^10121^196^10122^196^10123^196^10124^196^10125^196^10126^196^10127^196^10128^196^10129^196^10130^196^10131^196^10132^196^10133^196^10134^196^10135^196^10136^196^10137^196^10138^196^10139^196^10140^196^10141^196^10142^196^10143^196^10144^196^10145^196^10146^196^10147^196^10148^196^10149^196^10150^196 | H16: 10400^99^10401^99^10402^99^10403^99^10404^98^10405^98^10406^98^10407^98^10408^98^10409^98^10410^98^10411^98^10412^98^10413^98^10414^98^10415^98^10416^98^10417^98^10418^98^10419^98^10420^98^10421^98^10422^98^10423^98^10424^98^10425^98^10426^98^10427^98^10428^98^10429^98^10430^98^10431^98^10432^98^10433^98^10434^98^10435^98^10436^98^10437^98^10438^98^10439^98^10440^98^10441^98^10442^98^10443^98^10444^98^10445^98^10446^98^10447^98^10448^98^10449^98^10450^98^10500^98^10501^98^10502^98^10503^98^10504^98^10505^98^10506^98^10507^98^10508^98^10509^98^10510^98^10511^98^10512^98^10513^98^10514^98^10515^98^10516^98^10517^98^10518^98^10519^98^10520^98^10521^98^10522^98^10523^98^10524^98^10525^98^10526^98^10527^98^10528^98^10529^98^10530^98^10531^98^10532^98^10533^98^10534^98^10535^98^10536^98^10537^98^10538^98^10539^98^10540^98^10541^98^10542^98^10543^98^10544^98^10545^98^10546^98^10547^98^10548^98^10549^98^10550^98 | I16: 0 | J16: 110006^50|110005^5 | K16: 80001
A17: 10104 | B17: 4 | C17: 1 | D17: 2 | E17: 3 | F17: 0 | G17: 0 | H17: 0 | I17: 110006^50|100001^5000|110005^10 | J17: 110006^50|100001^5000|110005^10 | K17: 0
A18: 10105 | B18: 5 | C18: 1 | D18: 2 | E18: 4 | F18: 0 | G18: 0 | H18: 0 | I18: 0 | J18: 0 | K18: 0
A19: 10106 | B19: 6 | C19: 1 | D19: 2 | E19: 3 | F19: 0 | G19: 0 | H19: 0 | I19: 110006^50|100001^5000|110005^10 | J19: 110006^50|100001^5000|110005^10 | K19: 0
A20: 10107 | B20: 7 | C20: 1 | D20: 2 | E20: 5 | F20: 0 | G20: 0 | H20: 0 | I20: 0 | J20: 130001^50 | K20: 0
A21: 10108 | B21: 8 | C21: 1 | D21: 2 | E21: 6 | F21: 0 | G21: 0 | H21: 0 | I21: 0 | J21: 0 | K21: 80013
A22: 10109 | B22: 9 | C22: 1 | D22: 2 | E22: 2 | F22: 10200^99^10201^99^10202^99^10203^99^10204^98^10205^98^10206^98^10207^98^10208^98^10209^98^10210^98^10211^98^10212^98^10213^98^10214^98^10215^98^10216^98^10217^98^10218^98^10219^98^10220^98^10221^98^10222^98^10223^98^10224^98^10225^98^10226^98^10227^98^10228^98^10229^98^10230^98^10231^98^10232^98^10233^98^10234^98^10235^98^10236^98^10237^98^10238^98^10239^98^10240^98^10241^98^10242^98^10243^98^10244^98^10245^98^10246^98^10247^98^10248^98^10249^98^10250^98^10300^98^10301^98^10302^98^10303^98^10304^98^10305^98^10306^98^10307^98^10308^98^10309^98^10310^98^10311^98^10312^98^10313^98^10314^98^10315^98^10316^98^10317^98^10318^98^10319^98^10320^98^10321^98^10322^98^10323^98^10324^98^10325^98^10326^98^10327^98^10328^98^10329^98^10330^98^10331^98^10332^98^10333^98^10334^98^10335^98^10336^98^10337^98^10338^98^10339^98^10340^98^10341^98^10342^98^10343^98^10344^98^10345^98^10346^98^10347^98^10348^98^10349^98^10350^98 | G22: 10100^197^10101^197^10102^197^10103^197^10104^196^10105^196^10106^196^10107^196^10108^196^10109^196^10110^196^10111^196^10112^196^10113^196^10114^196^10115^196^10116^196^10117^196^10118^196^10119^196^10120^196^10121^196^10122^196^10123^196^10124^196^10125^196^10126^196^10127^196^10128^196^10129^196^10130^196^10131^196^10132^196^10133^196^10134^196^10135^196^10136^196^10137^196^10138^196^10139^196^10140^196^10141^196^10142^196^10143^196^10144^196^10145^196^10146^196^10147^196^10148^196^10149^196^10150^196 | H22: 10400^99^10401^99^10402^99^10403^99^10404^98^10405^98^10406^98^10407^98^10408^98^10409^98^10410^98^10411^98^10412^98^10413^98^10414^98^10415^98^10416^98^10417^98^10418^98^10419^98^10420^98^10421^98^10422^98^10423^98^10424^98^10425^98^10426^98^10427^98^10428^98^10429^98^10430^98^10431^98^10432^98^10433^98^10434^98^10435^98^10436^98^10437^98^10438^98^10439^98^10440^98^10441^98^10442^98^10443^98^10444^98^10445^98^10446^98^10447^98^10448^98^10449^98^10450^98^10500^98^10501^98^10502^98^10503^98^10504^98^10505^98^10506^98^10507^98^10508^98^10509^98^10510^98^10511^98^10512^98^10513^98^10514^98^10515^98^10516^98^10517^98^10518^98^10519^98^10520^98^10521^98^10522^98^10523^98^10524^98^10525^98^10526^98^10527^98^10528^98^10529^98^10530^98^10531^98^10532^98^10533^98^10534^98^10535^98^10536^98^10537^98^10538^98^10539^98^10540^98^10541^98^10542^98^10543^98^10544^98^10545^98^10546^98^10547^98^10548^98^10549^98^10550^98 | I22: 0 | J22: 110006^50|110005^5 | K22: 80001
A23: 10110 | B23: 10 | C23: 1 | D23: 2 | E23: 1 | F23: 10200^99^10201^99^10202^99^10203^99^10204^98^10205^98^10206^98^10207^98^10208^98^10209^98^10210^98^10211^98^10212^98^10213^98^10214^98^10215^98^10216^98^10217^98^10218^98^10219^98^10220^98^10221^98^10222^98^10223^98^10224^98^10225^98^10226^98^10227^98^10228^98^10229^98^10230^98^10231^98^10232^98^10233^98^10234^98^10235^98^10236^98^10237^98^10238^98^10239^98^10240^98^10241^98^10242^98^10243^98^10244^98^10245^98^10246^98^10247^98^10248^98^10249^98^10250^98^10300^98^10301^98^10302^98^10303^98^10304^98^10305^98^10306^98^10307^98^10308^98^10309^98^10310^98^10311^98^10312^98^10313^98^10314^98^10315^98^10316^98^10317^98^10318^98^10319^98^10320^98^10321^98^10322^98^10323^98^10324^98^10325^98^10326^98^10327^98^10328^98^10329^98^10330^98^10331^98^10332^98^10333^98^10334^98^10335^98^10336^98^10337^98^10338^98^10339^98^10340^98^10341^98^10342^98^10343^98^10344^98^10345^98^10346^98^10347^98^10348^98^10349^98^10350^98 | G23: 10100^197^10101^197^10102^197^10103^197^10104^196^10105^196^10106^196^10107^196^10108^196^10109^196^10110^196^10111^196^10112^196^10113^196^10114^196^10115^196^10116^196^10117^196^10118^196^10119^196^10120^196^10121^196^10122^196^10123^196^10124^196^10125^196^10126^196^10127^196^10128^196^10129^196^10130^196^10131^196^10132^196^10133^196^10134^196^10135^196^10136^196^10137^196^10138^196^10139^196^10140^196^10141^196^10142^196^10143^196^10144^196^10145^196^10146^196^10147^196^10148^196^10149^196^10150^196 | H23: 10400^99^10401^99^10402^99^10403^99^10404^98^10405^98^10406^98^10407^98^10408^98^10409^98^10410^98^10411^98^10412^98^10413^98^10414^98^10415^98^10416^98^10417^98^10418^98^10419^98^10420^98^10421^98^10422^98^10423^98^10424^98^10425^98^10426^98^10427^98^10428^98^10429^98^10430^98^10431^98^10432^98^10433^98^10434^98^10435^98^10436^98^10437^98^10438^98^10439^98^10440^98^10441^98^10442^98^10443^98^10444^98^10445^98^10446^98^10447^98^10448^98^10449^98^10450^98^10500^98^10501^98^10502^98^10503^98^10504^98^10505^98^10506^98^10507^98^10508^98^10509^98^10510^98^10511^98^10512^98^10513^98^10514^98^10515^98^10516^98^10517^98^10518^98^10519^98^10520^98^10521^98^10522^98^10523^98^10524^98^10525^98^10526^98^10527^98^10528^98^10529^98^10530^98^10531^98^10532^98^10533^98^10534^98^10535^98^10536^98^10537^98^10538^98^10539^98^10540^98^10541^98^10542^98^10543^98^10544^98^10545^98^10546^98^10547^98^10548^98^10549^98^10550^98 | I23: 0 | J23: 110006^10|110005^5 | K23: 80001
A24: 10111 | B24: 11 | C24: 1 | D24: 2 | E24: 7 | F24: 10200^99^10201^99^10202^99^10203^99^10204^98^10205^98^10206^98^10207^98^10208^98^10209^98^10210^98^10211^98^10212^98^10213^98^10214^98^10215^98^10216^98^10217^98^10218^98^10219^98^10220^98^10221^98^10222^98^10223^98^10224^98^10225^98^10226^98^10227^98^10228^98^10229^98^10230^98^10231^98^10232^98^10233^98^10234^98^10235^98^10236^98^10237^98^10238^98^10239^98^10240^98^10241^98^10242^98^10243^98^10244^98^10245^98^10246^98^10247^98^10248^98^10249^98^10250^98^10300^98^10301^98^10302^98^10303^98^10304^98^10305^98^10306^98^10307^98^10308^98^10309^98^10310^98^10311^98^10312^98^10313^98^10314^98^10315^98^10316^98^10317^98^10318^98^10319^98^10320^98^10321^98^10322^98^10323^98^10324^98^10325^98^10326^98^10327^98^10328^98^10329^98^10330^98^10331^98^10332^98^10333^98^10334^98^10335^98^10336^98^10337^98^10338^98^10339^98^10340^98^10341^98^10342^98^10343^98^10344^98^10345^98^10346^98^10347^98^10348^98^10349^98^10350^98 | G24: 10100^197^10101^197^10102^197^10103^197^10104^196^10105^196^10106^196^10107^196^10108^196^10109^196^10110^196^10111^196^10112^196^10113^196^10114^196^10115^196^10116^196^10117^196^10118^196^10119^196^10120^196^10121^196^10122^196^10123^196^10124^196^10125^196^10126^196^10127^196^10128^196^10129^196^10130^196^10131^196^10132^196^10133^196^10134^196^10135^196^10136^196^10137^196^10138^196^10139^196^10140^196^10141^196^10142^196^10143^196^10144^196^10145^196^10146^196^10147^196^10148^196^10149^196^10150^196 | H24: 10400^99^10401^99^10402^99^10403^99^10404^98^10405^98^10406^98^10407^98^10408^98^10409^98^10410^98^10411^98^10412^98^10413^98^10414^98^10415^98^10416^98^10417^98^10418^98^10419^98^10420^98^10421^98^10422^98^10423^98^10424^98^10425^98^10426^98^10427^98^10428^98^10429^98^10430^98^10431^98^10432^98^10433^98^10434^98^10435^98^10436^98^10437^98^10438^98^10439^98^10440^98^10441^98^10442^98^10443^98^10444^98^10445^98^10446^98^10447^98^10448^98^10449^98^10450^98^10500^98^10501^98^10502^98^10503^98^10504^98^10505^98^10506^98^10507^98^10508^98^10509^98^10510^98^10511^98^10512^98^10513^98^10514^98^10515^98^10516^98^10517^98^10518^98^10519^98^10520^98^10521^98^10522^98^10523^98^10524^98^10525^98^10526^98^10527^98^10528^98^10529^98^10530^98^10531^98^10532^98^10533^98^10534^98^10535^98^10536^98^10537^98^10538^98^10539^98^10540^98^10541^98^10542^98^10543^98^10544^98^10545^98^10546^98^10547^98^10548^98^10549^98^10550^98 | I24: 0 | J24: 110006^90|110005^20 | K24: 80007
A25: 10201 | B25: 1 | C25: 1 | D25: 3 | E25: 1 | F25: 10200^99^10201^99^10202^99^10203^99^10204^98^10205^98^10206^98^10207^98^10208^98^10209^98^10210^98^10211^98^10212^98^10213^98^10214^98^10215^98^10216^98^10217^98^10218^98^10219^98^10220^98^10221^98^10222^98^10223^98^10224^98^10225^98^10226^98^10227^98^10228^98^10229^98^10230^98^10231^98^10232^98^10233^98^10234^98^10235^98^10236^98^10237^98^10238^98^10239^98^10240^98^10241^98^10242^98^10243^98^10244^98^10245^98^10246^98^10247^98^10248^98^10249^98^10250^98^10300^98^10301^98^10302^98^10303^98^10304^98^10305^98^10306^98^10307^98^10308^98^10309^98^10310^98^10311^98^10312^98^10313^98^10314^98^10315^98^10316^98^10317^98^10318^98^10319^98^10320^98^10321^98^10322^98^10323^98^10324^98^10325^98^10326^98^10327^98^10328^98^10329^98^10330^98^10331^98^10332^98^10333^98^10334^98^10335^98^10336^98^10337^98^10338^98^10339^98^10340^98^10341^98^10342^98^10343^98^10344^98^10345^98^10346^98^10347^98^10348^98^10349^98^10350^98 | G25: 10100^197^10101^197^10102^197^10103^197^10104^196^10105^196^10106^196^10107^196^10108^196^10109^196^10110^196^10111^196^10112^196^10113^196^10114^196^10115^196^10116^196^10117^196^10118^196^10119^196^10120^196^10121^196^10122^196^10123^196^10124^196^10125^196^10126^196^10127^196^10128^196^10129^196^10130^196^10131^196^10132^196^10133^196^10134^196^10135^196^10136^196^10137^196^10138^196^10139^196^10140^196^10141^196^10142^196^10143^196^10144^196^10145^196^10146^196^10147^196^10148^196^10149^196^10150^196 | H25: 10400^99^10401^99^10402^99^10403^99^10404^98^10405^98^10406^98^10407^98^10408^98^10409^98^10410^98^10411^98^10412^98^10413^98^10414^98^10415^98^10416^98^10417^98^10418^98^10419^98^10420^98^10421^98^10422^98^10423^98^10424^98^10425^98^10426^98^10427^98^10428^98^10429^98^10430^98^10431^98^10432^98^10433^98^10434^98^10435^98^10436^98^10437^98^10438^98^10439^98^10440^98^10441^98^10442^98^10443^98^10444^98^10445^98^10446^98^10447^98^10448^98^10449^98^10450^98^10500^98^10501^98^10502^98^10503^98^10504^98^10505^98^10506^98^10507^98^10508^98^10509^98^10510^98^10511^98^10512^98^10513^98^10514^98^10515^98^10516^98^10517^98^10518^98^10519^98^10520^98^10521^98^10522^98^10523^98^10524^98^10525^98^10526^98^10527^98^10528^98^10529^98^10530^98^10531^98^10532^98^10533^98^10534^98^10535^98^10536^98^10537^98^10538^98^10539^98^10540^98^10541^98^10542^98^10543^98^10544^98^10545^98^10546^98^10547^98^10548^98^10549^98^10550^98 | I25: 0 | J25: 110006^10|110005^5 | K25: 80001
A26: 10202 | B26: 2 | C26: 1 | D26: 3 | E26: 1 | F26: 10200^99^10201^99^10202^99^10203^99^10204^98^10205^98^10206^98^10207^98^10208^98^10209^98^10210^98^10211^98^10212^98^10213^98^10214^98^10215^98^10216^98^10217^98^10218^98^10219^98^10220^98^10221^98^10222^98^10223^98^10224^98^10225^98^10226^98^10227^98^10228^98^10229^98^10230^98^10231^98^10232^98^10233^98^10234^98^10235^98^10236^98^10237^98^10238^98^10239^98^10240^98^10241^98^10242^98^10243^98^10244^98^10245^98^10246^98^10247^98^10248^98^10249^98^10250^98^10300^98^10301^98^10302^98^10303^98^10304^98^10305^98^10306^98^10307^98^10308^98^10309^98^10310^98^10311^98^10312^98^10313^98^10314^98^10315^98^10316^98^10317^98^10318^98^10319^98^10320^98^10321^98^10322^98^10323^98^10324^98^10325^98^10326^98^10327^98^10328^98^10329^98^10330^98^10331^98^10332^98^10333^98^10334^98^10335^98^10336^98^10337^98^10338^98^10339^98^10340^98^10341^98^10342^98^10343^98^10344^98^10345^98^10346^98^10347^98^10348^98^10349^98^10350^98 | G26: 10100^197^10101^197^10102^197^10103^197^10104^196^10105^196^10106^196^10107^196^10108^196^10109^196^10110^196^10111^196^10112^196^10113^196^10114^196^10115^196^10116^196^10117^196^10118^196^10119^196^10120^196^10121^196^10122^196^10123^196^10124^196^10125^196^10126^196^10127^196^10128^196^10129^196^10130^196^10131^196^10132^196^10133^196^10134^196^10135^196^10136^196^10137^196^10138^196^10139^196^10140^196^10141^196^10142^196^10143^196^10144^196^10145^196^10146^196^10147^196^10148^196^10149^196^10150^196 | H26: 10400^99^10401^99^10402^99^10403^99^10404^98^10405^98^10406^98^10407^98^10408^98^10409^98^10410^98^10411^98^10412^98^10413^98^10414^98^10415^98^10416^98^10417^98^10418^98^10419^98^10420^98^10421^98^10422^98^10423^98^10424^98^10425^98^10426^98^10427^98^10428^98^10429^98^10430^98^10431^98^10432^98^10433^98^10434^98^10435^98^10436^98^10437^98^10438^98^10439^98^10440^98^10441^98^10442^98^10443^98^10444^98^10445^98^10446^98^10447^98^10448^98^10449^98^10450^98^10500^98^10501^98^10502^98^10503^98^10504^98^10505^98^10506^98^10507^98^10508^98^10509^98^10510^98^10511^98^10512^98^10513^98^10514^98^10515^98^10516^98^10517^98^10518^98^10519^98^10520^98^10521^98^10522^98^10523^98^10524^98^10525^98^10526^98^10527^98^10528^98^10529^98^10530^98^10531^98^10532^98^10533^98^10534^98^10535^98^10536^98^10537^98^10538^98^10539^98^10540^98^10541^98^10542^98^10543^98^10544^98^10545^98^10546^98^10547^98^10548^98^10549^98^10550^98 | I26: 0 | J26: 110006^10|110005^5 | K26: 80001
A27: 10203 | B27: 3 | C27: 1 | D27: 3 | E27: 2 | F27: 10200^99^10201^99^10202^99^10203^99^10204^98^10205^98^10206^98^10207^98^10208^98^10209^98^10210^98^10211^98^10212^98^10213^98^10214^98^10215^98^10216^98^10217^98^10218^98^10219^98^10220^98^10221^98^10222^98^10223^98^10224^98^10225^98^10226^98^10227^98^10228^98^10229^98^10230^98^10231^98^10232^98^10233^98^10234^98^10235^98^10236^98^10237^98^10238^98^10239^98^10240^98^10241^98^10242^98^10243^98^10244^98^10245^98^10246^98^10247^98^10248^98^10249^98^10250^98^10300^98^10301^98^10302^98^10303^98^10304^98^10305^98^10306^98^10307^98^10308^98^10309^98^10310^98^10311^98^10312^98^10313^98^10314^98^10315^98^10316^98^10317^98^10318^98^10319^98^10320^98^10321^98^10322^98^10323^98^10324^98^10325^98^10326^98^10327^98^10328^98^10329^98^10330^98^10331^98^10332^98^10333^98^10334^98^10335^98^10336^98^10337^98^10338^98^10339^98^10340^98^10341^98^10342^98^10343^98^10344^98^10345^98^10346^98^10347^98^10348^98^10349^98^10350^98 | G27: 10100^197^10101^197^10102^197^10103^197^10104^196^10105^196^10106^196^10107^196^10108^196^10109^196^10110^196^10111^196^10112^196^10113^196^10114^196^10115^196^10116^196^10117^196^10118^196^10119^196^10120^196^10121^196^10122^196^10123^196^10124^196^10125^196^10126^196^10127^196^10128^196^10129^196^10130^196^10131^196^10132^196^10133^196^10134^196^10135^196^10136^196^10137^196^10138^196^10139^196^10140^196^10141^196^10142^196^10143^196^10144^196^10145^196^10146^196^10147^196^10148^196^10149^196^10150^196 | H27: 10400^99^10401^99^10402^99^10403^99^10404^98^10405^98^10406^98^10407^98^10408^98^10409^98^10410^98^10411^98^10412^98^10413^98^10414^98^10415^98^10416^98^10417^98^10418^98^10419^98^10420^98^10421^98^10422^98^10423^98^10424^98^10425^98^10426^98^10427^98^10428^98^10429^98^10430^98^10431^98^10432^98^10433^98^10434^98^10435^98^10436^98^10437^98^10438^98^10439^98^10440^98^10441^98^10442^98^10443^98^10444^98^10445^98^10446^98^10447^98^10448^98^10449^98^10450^98^10500^98^10501^98^10502^98^10503^98^10504^98^10505^98^10506^98^10507^98^10508^98^10509^98^10510^98^10511^98^10512^98^10513^98^10514^98^10515^98^10516^98^10517^98^10518^98^10519^98^10520^98^10521^98^10522^98^10523^98^10524^98^10525^98^10526^98^10527^98^10528^98^10529^98^10530^98^10531^98^10532^98^10533^98^10534^98^10535^98^10536^98^10537^98^10538^98^10539^98^10540^98^10541^98^10542^98^10543^98^10544^98^10545^98^10546^98^10547^98^10548^98^10549^98^10550^98 | I27: 0 | J27: 110006^50|110005^5 | K27: 80001
A28: 10204 | B28: 4 | C28: 1 | D28: 3 | E28: 3 | F28: 0 | G28: 0 | H28: 0 | I28: 110006^50|100001^5000|110005^10 | J28: 110006^50|100001^5000|110005^10 | K28: 0
A29: 10205 | B29: 5 | C29: 1 | D29: 3 | E29: 4 | F29: 0 | G29: 0 | H29: 0 | I29: 0 | J29: 0 | K29: 0
A30: 10206 | B30: 6 | C30: 1 | D30: 3 | E30: 3 | F30: 0 | G30: 0 | H30: 0 | I30: 110006^50|100001^5000|110005^10 | J30: 110006^50|100001^5000|110005^10 | K30: 0
A31: 10207 | B31: 7 | C31: 1 | D31: 3 | E31: 5 | F31: 0 | G31: 0 | H31: 0 | I31: 0 | J31: 130001^50 | K31: 0
A32: 10208 | B32: 8 | C32: 1 | D32: 3 | E32: 6 | F32: 0 | G32: 0 | H32: 0 | I32: 0 | J32: 0 | K32: 80013
A33: 10209 | B33: 9 | C33: 1 | D33: 3 | E33: 2 | F33: 10200^99^10201^99^10202^99^10203^99^10204^98^10205^98^10206^98^10207^98^10208^98^10209^98^10210^98^10211^98^10212^98^10213^98^10214^98^10215^98^10216^98^10217^98^10218^98^10219^98^10220^98^10221^98^10222^98^10223^98^10224^98^10225^98^10226^98^10227^98^10228^98^10229^98^10230^98^10231^98^10232^98^10233^98^10234^98^10235^98^10236^98^10237^98^10238^98^10239^98^10240^98^10241^98^10242^98^10243^98^10244^98^10245^98^10246^98^10247^98^10248^98^10249^98^10250^98^10300^98^10301^98^10302^98^10303^98^10304^98^10305^98^10306^98^10307^98^10308^98^10309^98^10310^98^10311^98^10312^98^10313^98^10314^98^10315^98^10316^98^10317^98^10318^98^10319^98^10320^98^10321^98^10322^98^10323^98^10324^98^10325^98^10326^98^10327^98^10328^98^10329^98^10330^98^10331^98^10332^98^10333^98^10334^98^10335^98^10336^98^10337^98^10338^98^10339^98^10340^98^10341^98^10342^98^10343^98^10344^98^10345^98^10346^98^10347^98^10348^98^10349^98^10350^98 | G33: 10100^197^10101^197^10102^197^10103^197^10104^196^10105^196^10106^196^10107^196^10108^196^10109^196^10110^196^10111^196^10112^196^10113^196^10114^196^10115^196^10116^196^10117^196^10118^196^10119^196^10120^196^10121^196^10122^196^10123^196^10124^196^10125^196^10126^196^10127^196^10128^196^10129^196^10130^196^10131^196^10132^196^10133^196^10134^196^10135^196^10136^196^10137^196^10138^196^10139^196^10140^196^10141^196^10142^196^10143^196^10144^196^10145^196^10146^196^10147^196^10148^196^10149^196^10150^196 | H33: 10400^99^10401^99^10402^99^10403^99^10404^98^10405^98^10406^98^10407^98^10408^98^10409^98^10410^98^10411^98^10412^98^10413^98^10414^98^10415^98^10416^98^10417^98^10418^98^10419^98^10420^98^10421^98^10422^98^10423^98^10424^98^10425^98^10426^98^10427^98^10428^98^10429^98^10430^98^10431^98^10432^98^10433^98^10434^98^10435^98^10436^98^10437^98^10438^98^10439^98^10440^98^10441^98^10442^98^10443^98^10444^98^10445^98^10446^98^10447^98^10448^98^10449^98^10450^98^10500^98^10501^98^10502^98^10503^98^10504^98^10505^98^10506^98^10507^98^10508^98^10509^98^10510^98^10511^98^10512^98^10513^98^10514^98^10515^98^10516^98^10517^98^10518^98^10519^98^10520^98^10521^98^10522^98^10523^98^10524^98^10525^98^10526^98^10527^98^10528^98^10529^98^10530^98^10531^98^10532^98^10533^98^10534^98^10535^98^10536^98^10537^98^10538^98^10539^98^10540^98^10541^98^10542^98^10543^98^10544^98^10545^98^10546^98^10547^98^10548^98^10549^98^10550^98 | I33: 0 | J33: 110006^50|110005^5 | K33: 80001
A34: 10210 | B34: 10 | C34: 1 | D34: 3 | E34: 1 | F34: 10200^99^10201^99^10202^99^10203^99^10204^98^10205^98^10206^98^10207^98^10208^98^10209^98^10210^98^10211^98^10212^98^10213^98^10214^98^10215^98^10216^98^10217^98^10218^98^10219^98^10220^98^10221^98^10222^98^10223^98^10224^98^10225^98^10226^98^10227^98^10228^98^10229^98^10230^98^10231^98^10232^98^10233^98^10234^98^10235^98^10236^98^10237^98^10238^98^10239^98^10240^98^10241^98^10242^98^10243^98^10244^98^10245^98^10246^98^10247^98^10248^98^10249^98^10250^98^10300^98^10301^98^10302^98^10303^98^10304^98^10305^98^10306^98^10307^98^10308^98^10309^98^10310^98^10311^98^10312^98^10313^98^10314^98^10315^98^10316^98^10317^98^10318^98^10319^98^10320^98^10321^98^10322^98^10323^98^10324^98^10325^98^10326^98^10327^98^10328^98^10329^98^10330^98^10331^98^10332^98^10333^98^10334^98^10335^98^10336^98^10337^98^10338^98^10339^98^10340^98^10341^98^10342^98^10343^98^10344^98^10345^98^10346^98^10347^98^10348^98^10349^98^10350^98 | G34: 10100^197^10101^197^10102^197^10103^197^10104^196^10105^196^10106^196^10107^196^10108^196^10109^196^10110^196^10111^196^10112^196^10113^196^10114^196^10115^196^10116^196^10117^196^10118^196^10119^196^10120^196^10121^196^10122^196^10123^196^10124^196^10125^196^10126^196^10127^196^10128^196^10129^196^10130^196^10131^196^10132^196^10133^196^10134^196^10135^196^10136^196^10137^196^10138^196^10139^196^10140^196^10141^196^10142^196^10143^196^10144^196^10145^196^10146^196^10147^196^10148^196^10149^196^10150^196 | H34: 10400^99^10401^99^10402^99^10403^99^10404^98^10405^98^10406^98^10407^98^10408^98^10409^98^10410^98^10411^98^10412^98^10413^98^10414^98^10415^98^10416^98^10417^98^10418^98^10419^98^10420^98^10421^98^10422^98^10423^98^10424^98^10425^98^10426^98^10427^98^10428^98^10429^98^10430^98^10431^98^10432^98^10433^98^10434^98^10435^98^10436^98^10437^98^10438^98^10439^98^10440^98^10441^98^10442^98^10443^98^10444^98^10445^98^10446^98^10447^98^10448^98^10449^98^10450^98^10500^98^10501^98^10502^98^10503^98^10504^98^10505^98^10506^98^10507^98^10508^98^10509^98^10510^98^10511^98^10512^98^10513^98^10514^98^10515^98^10516^98^10517^98^10518^98^10519^98^10520^98^10521^98^10522^98^10523^98^10524^98^10525^98^10526^98^10527^98^10528^98^10529^98^10530^98^10531^98^10532^98^10533^98^10534^98^10535^98^10536^98^10537^98^10538^98^10539^98^10540^98^10541^98^10542^98^10543^98^10544^98^10545^98^10546^98^10547^98^10548^98^10549^98^10550^98 | I34: 0 | J34: 110006^10|110005^5 | K34: 80001
A35: 10211 | B35: 11 | C35: 1 | D35: 3 | E35: 7 | F35: 10200^99^10201^99^10202^99^10203^99^10204^98^10205^98^10206^98^10207^98^10208^98^10209^98^10210^98^10211^98^10212^98^10213^98^10214^98^10215^98^10216^98^10217^98^10218^98^10219^98^10220^98^10221^98^10222^98^10223^98^10224^98^10225^98^10226^98^10227^98^10228^98^10229^98^10230^98^10231^98^10232^98^10233^98^10234^98^10235^98^10236^98^10237^98^10238^98^10239^98^10240^98^10241^98^10242^98^10243^98^10244^98^10245^98^10246^98^10247^98^10248^98^10249^98^10250^98^10300^98^10301^98^10302^98^10303^98^10304^98^10305^98^10306^98^10307^98^10308^98^10309^98^10310^98^10311^98^10312^98^10313^98^10314^98^10315^98^10316^98^10317^98^10318^98^10319^98^10320^98^10321^98^10322^98^10323^98^10324^98^10325^98^10326^98^10327^98^10328^98^10329^98^10330^98^10331^98^10332^98^10333^98^10334^98^10335^98^10336^98^10337^98^10338^98^10339^98^10340^98^10341^98^10342^98^10343^98^10344^98^10345^98^10346^98^10347^98^10348^98^10349^98^10350^98 | G35: 10100^197^10101^197^10102^197^10103^197^10104^196^10105^196^10106^196^10107^196^10108^196^10109^196^10110^196^10111^196^10112^196^10113^196^10114^196^10115^196^10116^196^10117^196^10118^196^10119^196^10120^196^10121^196^10122^196^10123^196^10124^196^10125^196^10126^196^10127^196^10128^196^10129^196^10130^196^10131^196^10132^196^10133^196^10134^196^10135^196^10136^196^10137^196^10138^196^10139^196^10140^196^10141^196^10142^196^10143^196^10144^196^10145^196^10146^196^10147^196^10148^196^10149^196^10150^196 | H35: 10400^99^10401^99^10402^99^10403^99^10404^98^10405^98^10406^98^10407^98^10408^98^10409^98^10410^98^10411^98^10412^98^10413^98^10414^98^10415^98^10416^98^10417^98^10418^98^10419^98^10420^98^10421^98^10422^98^10423^98^10424^98^10425^98^10426^98^10427^98^10428^98^10429^98^10430^98^10431^98^10432^98^10433^98^10434^98^10435^98^10436^98^10437^98^10438^98^10439^98^10440^98^10441^98^10442^98^10443^98^10444^98^10445^98^10446^98^10447^98^10448^98^10449^98^10450^98^10500^98^10501^98^10502^98^10503^98^10504^98^10505^98^10506^98^10507^98^10508^98^10509^98^10510^98^10511^98^10512^98^10513^98^10514^98^10515^98^10516^98^10517^98^10518^98^10519^98^10520^98^10521^98^10522^98^10523^98^10524^98^10525^98^10526^98^10527^98^10528^98^10529^98^10530^98^10531^98^10532^98^10533^98^10534^98^10535^98^10536^98^10537^98^10538^98^10539^98^10540^98^10541^98^10542^98^10543^98^10544^98^10545^98^10546^98^10547^98^10548^98^10549^98^10550^98 | I35: 0 | J35: 110006^90|110005^20 | K35: 80007
A36: 20001 | B36: 1 | C36: 2 | D36: 1 | E36: 1 | F36: 10200^99^10201^99^10202^99^10203^99^10204^98^10205^98^10206^98^10207^98^10208^98^10209^98^10210^98^10211^98^10212^98^10213^98^10214^98^10215^98^10216^98^10217^98^10218^98^10219^98^10220^98^10221^98^10222^98^10223^98^10224^98^10225^98^10226^98^10227^98^10228^98^10229^98^10230^98^10231^98^10232^98^10233^98^10234^98^10235^98^10236^98^10237^98^10238^98^10239^98^10240^98^10241^98^10242^98^10243^98^10244^98^10245^98^10246^98^10247^98^10248^98^10249^98^10250^98^10300^98^10301^98^10302^98^10303^98^10304^98^10305^98^10306^98^10307^98^10308^98^10309^98^10310^98^10311^98^10312^98^10313^98^10314^98^10315^98^10316^98^10317^98^10318^98^10319^98^10320^98^10321^98^10322^98^10323^98^10324^98^10325^98^10326^98^10327^98^10328^98^10329^98^10330^98^10331^98^10332^98^10333^98^10334^98^10335^98^10336^98^10337^98^10338^98^10339^98^10340^98^10341^98^10342^98^10343^98^10344^98^10345^98^10346^98^10347^98^10348^98^10349^98^10350^98 | G36: 10100^197^10101^197^10102^197^10103^197^10104^196^10105^196^10106^196^10107^196^10108^196^10109^196^10110^196^10111^196^10112^196^10113^196^10114^196^10115^196^10116^196^10117^196^10118^196^10119^196^10120^196^10121^196^10122^196^10123^196^10124^196^10125^196^10126^196^10127^196^10128^196^10129^196^10130^196^10131^196^10132^196^10133^196^10134^196^10135^196^10136^196^10137^196^10138^196^10139^196^10140^196^10141^196^10142^196^10143^196^10144^196^10145^196^10146^196^10147^196^10148^196^10149^196^10150^196 | H36: 10400^99^10401^99^10402^99^10403^99^10404^98^10405^98^10406^98^10407^98^10408^98^10409^98^10410^98^10411^98^10412^98^10413^98^10414^98^10415^98^10416^98^10417^98^10418^98^10419^98^10420^98^10421^98^10422^98^10423^98^10424^98^10425^98^10426^98^10427^98^10428^98^10429^98^10430^98^10431^98^10432^98^10433^98^10434^98^10435^98^10436^98^10437^98^10438^98^10439^98^10440^98^10441^98^10442^98^10443^98^10444^98^10445^98^10446^98^10447^98^10448^98^10449^98^10450^98^10500^98^10501^98^10502^98^10503^98^10504^98^10505^98^10506^98^10507^98^10508^98^10509^98^10510^98^10511^98^10512^98^10513^98^10514^98^10515^98^10516^98^10517^98^10518^98^10519^98^10520^98^10521^98^10522^98^10523^98^10524^98^10525^98^10526^98^10527^98^10528^98^10529^98^10530^98^10531^98^10532^98^10533^98^10534^98^10535^98^10536^98^10537^98^10538^98^10539^98^10540^98^10541^98^10542^98^10543^98^10544^98^10545^98^10546^98^10547^98^10548^98^10549^98^10550^98 | I36: 0 | J36: 110006^15|110005^5 | K36: 80002
A37: 20002 | B37: 2 | C37: 2 | D37: 1 | E37: 1 | F37: 10200^99^10201^99^10202^99^10203^99^10204^98^10205^98^10206^98^10207^98^10208^98^10209^98^10210^98^10211^98^10212^98^10213^98^10214^98^10215^98^10216^98^10217^98^10218^98^10219^98^10220^98^10221^98^10222^98^10223^98^10224^98^10225^98^10226^98^10227^98^10228^98^10229^98^10230^98^10231^98^10232^98^10233^98^10234^98^10235^98^10236^98^10237^98^10238^98^10239^98^10240^98^10241^98^10242^98^10243^98^10244^98^10245^98^10246^98^10247^98^10248^98^10249^98^10250^98^10300^98^10301^98^10302^98^10303^98^10304^98^10305^98^10306^98^10307^98^10308^98^10309^98^10310^98^10311^98^10312^98^10313^98^10314^98^10315^98^10316^98^10317^98^10318^98^10319^98^10320^98^10321^98^10322^98^10323^98^10324^98^10325^98^10326^98^10327^98^10328^98^10329^98^10330^98^10331^98^10332^98^10333^98^10334^98^10335^98^10336^98^10337^98^10338^98^10339^98^10340^98^10341^98^10342^98^10343^98^10344^98^10345^98^10346^98^10347^98^10348^98^10349^98^10350^98 | G37: 10100^197^10101^197^10102^197^10103^197^10104^196^10105^196^10106^196^10107^196^10108^196^10109^196^10110^196^10111^196^10112^196^10113^196^10114^196^10115^196^10116^196^10117^196^10118^196^10119^196^10120^196^10121^196^10122^196^10123^196^10124^196^10125^196^10126^196^10127^196^10128^196^10129^196^10130^196^10131^196^10132^196^10133^196^10134^196^10135^196^10136^196^10137^196^10138^196^10139^196^10140^196^10141^196^10142^196^10143^196^10144^196^10145^196^10146^196^10147^196^10148^196^10149^196^10150^196 | H37: 10400^99^10401^99^10402^99^10403^99^10404^98^10405^98^10406^98^10407^98^10408^98^10409^98^10410^98^10411^98^10412^98^10413^98^10414^98^10415^98^10416^98^10417^98^10418^98^10419^98^10420^98^10421^98^10422^98^10423^98^10424^98^10425^98^10426^98^10427^98^10428^98^10429^98^10430^98^10431^98^10432^98^10433^98^10434^98^10435^98^10436^98^10437^98^10438^98^10439^98^10440^98^10441^98^10442^98^10443^98^10444^98^10445^98^10446^98^10447^98^10448^98^10449^98^10450^98^10500^98^10501^98^10502^98^10503^98^10504^98^10505^98^10506^98^10507^98^10508^98^10509^98^10510^98^10511^98^10512^98^10513^98^10514^98^10515^98^10516^98^10517^98^10518^98^10519^98^10520^98^10521^98^10522^98^10523^98^10524^98^10525^98^10526^98^10527^98^10528^98^10529^98^10530^98^10531^98^10532^98^10533^98^10534^98^10535^98^10536^98^10537^98^10538^98^10539^98^10540^98^10541^98^10542^98^10543^98^10544^98^10545^98^10546^98^10547^98^10548^98^10549^98^10550^98 | I37: 0 | J37: 110006^15|110005^5 | K37: 80002
A38: 20003 | B38: 3 | C38: 2 | D38: 1 | E38: 2 | F38: 10200^99^10201^99^10202^99^10203^99^10204^98^10205^98^10206^98^10207^98^10208^98^10209^98^10210^98^10211^98^10212^98^10213^98^10214^98^10215^98^10216^98^10217^98^10218^98^10219^98^10220^98^10221^98^10222^98^10223^98^10224^98^10225^98^10226^98^10227^98^10228^98^10229^98^10230^98^10231^98^10232^98^10233^98^10234^98^10235^98^10236^98^10237^98^10238^98^10239^98^10240^98^10241^98^10242^98^10243^98^10244^98^10245^98^10246^98^10247^98^10248^98^10249^98^10250^98^10300^98^10301^98^10302^98^10303^98^10304^98^10305^98^10306^98^10307^98^10308^98^10309^98^10310^98^10311^98^10312^98^10313^98^10314^98^10315^98^10316^98^10317^98^10318^98^10319^98^10320^98^10321^98^10322^98^10323^98^10324^98^10325^98^10326^98^10327^98^10328^98^10329^98^10330^98^10331^98^10332^98^10333^98^10334^98^10335^98^10336^98^10337^98^10338^98^10339^98^10340^98^10341^98^10342^98^10343^98^10344^98^10345^98^10346^98^10347^98^10348^98^10349^98^10350^98 | G38: 10100^197^10101^197^10102^197^10103^197^10104^196^10105^196^10106^196^10107^196^10108^196^10109^196^10110^196^10111^196^10112^196^10113^196^10114^196^10115^196^10116^196^10117^196^10118^196^10119^196^10120^196^10121^196^10122^196^10123^196^10124^196^10125^196^10126^196^10127^196^10128^196^10129^196^10130^196^10131^196^10132^196^10133^196^10134^196^10135^196^10136^196^10137^196^10138^196^10139^196^10140^196^10141^196^10142^196^10143^196^10144^196^10145^196^10146^196^10147^196^10148^196^10149^196^10150^196 | H38: 10400^99^10401^99^10402^99^10403^99^10404^98^10405^98^10406^98^10407^98^10408^98^10409^98^10410^98^10411^98^10412^98^10413^98^10414^98^10415^98^10416^98^10417^98^10418^98^10419^98^10420^98^10421^98^10422^98^10423^98^10424^98^10425^98^10426^98^10427^98^10428^98^10429^98^10430^98^10431^98^10432^98^10433^98^10434^98^10435^98^10436^98^10437^98^10438^98^10439^98^10440^98^10441^98^10442^98^10443^98^10444^98^10445^98^10446^98^10447^98^10448^98^10449^98^10450^98^10500^98^10501^98^10502^98^10503^98^10504^98^10505^98^10506^98^10507^98^10508^98^10509^98^10510^98^10511^98^10512^98^10513^98^10514^98^10515^98^10516^98^10517^98^10518^98^10519^98^10520^98^10521^98^10522^98^10523^98^10524^98^10525^98^10526^98^10527^98^10528^98^10529^98^10530^98^10531^98^10532^98^10533^98^10534^98^10535^98^10536^98^10537^98^10538^98^10539^98^10540^98^10541^98^10542^98^10543^98^10544^98^10545^98^10546^98^10547^98^10548^98^10549^98^10550^98 | I38: 0 | J38: 110006^65|110005^5 | K38: 80002
A39: 20004 | B39: 4 | C39: 2 | D39: 1 | E39: 3 | F39: 0 | G39: 0 | H39: 0 | I39: 110006^70|100001^8000|110005^10 | J39: 110006^70|100001^8000|110005^10 | K39: 0
A40: 20005 | B40: 5 | C40: 2 | D40: 1 | E40: 4 | F40: 0 | G40: 0 | H40: 0 | I40: 0 | J40: 0 | K40: 0
A41: 20006 | B41: 6 | C41: 2 | D41: 1 | E41: 3 | F41: 0 | G41: 0 | H41: 0 | I41: 110006^70|100001^8000|110005^10 | J41: 110006^70|100001^8000|110005^10 | K41: 0
A42: 20007 | B42: 7 | C42: 2 | D42: 1 | E42: 5 | F42: 0 | G42: 0 | H42: 0 | I42: 0 | J42: 130001^80 | K42: 0
A43: 20008 | B43: 8 | C43: 2 | D43: 1 | E43: 6 | F43: 0 | G43: 0 | H43: 0 | I43: 0 | J43: 0 | K43: 80014
A44: 20009 | B44: 9 | C44: 2 | D44: 1 | E44: 2 | F44: 10200^99^10201^99^10202^99^10203^99^10204^98^10205^98^10206^98^10207^98^10208^98^10209^98^10210^98^10211^98^10212^98^10213^98^10214^98^10215^98^10216^98^10217^98^10218^98^10219^98^10220^98^10221^98^10222^98^10223^98^10224^98^10225^98^10226^98^10227^98^10228^98^10229^98^10230^98^10231^98^10232^98^10233^98^10234^98^10235^98^10236^98^10237^98^10238^98^10239^98^10240^98^10241^98^10242^98^10243^98^10244^98^10245^98^10246^98^10247^98^10248^98^10249^98^10250^98^10300^98^10301^98^10302^98^10303^98^10304^98^10305^98^10306^98^10307^98^10308^98^10309^98^10310^98^10311^98^10312^98^10313^98^10314^98^10315^98^10316^98^10317^98^10318^98^10319^98^10320^98^10321^98^10322^98^10323^98^10324^98^10325^98^10326^98^10327^98^10328^98^10329^98^10330^98^10331^98^10332^98^10333^98^10334^98^10335^98^10336^98^10337^98^10338^98^10339^98^10340^98^10341^98^10342^98^10343^98^10344^98^10345^98^10346^98^10347^98^10348^98^10349^98^10350^98 | G44: 10100^197^10101^197^10102^197^10103^197^10104^196^10105^196^10106^196^10107^196^10108^196^10109^196^10110^196^10111^196^10112^196^10113^196^10114^196^10115^196^10116^196^10117^196^10118^196^10119^196^10120^196^10121^196^10122^196^10123^196^10124^196^10125^196^10126^196^10127^196^10128^196^10129^196^10130^196^10131^196^10132^196^10133^196^10134^196^10135^196^10136^196^10137^196^10138^196^10139^196^10140^196^10141^196^10142^196^10143^196^10144^196^10145^196^10146^196^10147^196^10148^196^10149^196^10150^196 | H44: 10400^99^10401^99^10402^99^10403^99^10404^98^10405^98^10406^98^10407^98^10408^98^10409^98^10410^98^10411^98^10412^98^10413^98^10414^98^10415^98^10416^98^10417^98^10418^98^10419^98^10420^98^10421^98^10422^98^10423^98^10424^98^10425^98^10426^98^10427^98^10428^98^10429^98^10430^98^10431^98^10432^98^10433^98^10434^98^10435^98^10436^98^10437^98^10438^98^10439^98^10440^98^10441^98^10442^98^10443^98^10444^98^10445^98^10446^98^10447^98^10448^98^10449^98^10450^98^10500^98^10501^98^10502^98^10503^98^10504^98^10505^98^10506^98^10507^98^10508^98^10509^98^10510^98^10511^98^10512^98^10513^98^10514^98^10515^98^10516^98^10517^98^10518^98^10519^98^10520^98^10521^98^10522^98^10523^98^10524^98^10525^98^10526^98^10527^98^10528^98^10529^98^10530^98^10531^98^10532^98^10533^98^10534^98^10535^98^10536^98^10537^98^10538^98^10539^98^10540^98^10541^98^10542^98^10543^98^10544^98^10545^98^10546^98^10547^98^10548^98^10549^98^10550^98 | I44: 0 | J44: 110006^65|110005^5 | K44: 80002
A45: 20010 | B45: 10 | C45: 2 | D45: 1 | E45: 1 | F45: 10200^99^10201^99^10202^99^10203^99^10204^98^10205^98^10206^98^10207^98^10208^98^10209^98^10210^98^10211^98^10212^98^10213^98^10214^98^10215^98^10216^98^10217^98^10218^98^10219^98^10220^98^10221^98^10222^98^10223^98^10224^98^10225^98^10226^98^10227^98^10228^98^10229^98^10230^98^10231^98^10232^98^10233^98^10234^98^10235^98^10236^98^10237^98^10238^98^10239^98^10240^98^10241^98^10242^98^10243^98^10244^98^10245^98^10246^98^10247^98^10248^98^10249^98^10250^98^10300^98^10301^98^10302^98^10303^98^10304^98^10305^98^10306^98^10307^98^10308^98^10309^98^10310^98^10311^98^10312^98^10313^98^10314^98^10315^98^10316^98^10317^98^10318^98^10319^98^10320^98^10321^98^10322^98^10323^98^10324^98^10325^98^10326^98^10327^98^10328^98^10329^98^10330^98^10331^98^10332^98^10333^98^10334^98^10335^98^10336^98^10337^98^10338^98^10339^98^10340^98^10341^98^10342^98^10343^98^10344^98^10345^98^10346^98^10347^98^10348^98^10349^98^10350^98 | G45: 10100^197^10101^197^10102^197^10103^197^10104^196^10105^196^10106^196^10107^196^10108^196^10109^196^10110^196^10111^196^10112^196^10113^196^10114^196^10115^196^10116^196^10117^196^10118^196^10119^196^10120^196^10121^196^10122^196^10123^196^10124^196^10125^196^10126^196^10127^196^10128^196^10129^196^10130^196^10131^196^10132^196^10133^196^10134^196^10135^196^10136^196^10137^196^10138^196^10139^196^10140^196^10141^196^10142^196^10143^196^10144^196^10145^196^10146^196^10147^196^10148^196^10149^196^10150^196 | H45: 10400^99^10401^99^10402^99^10403^99^10404^98^10405^98^10406^98^10407^98^10408^98^10409^98^10410^98^10411^98^10412^98^10413^98^10414^98^10415^98^10416^98^10417^98^10418^98^10419^98^10420^98^10421^98^10422^98^10423^98^10424^98^10425^98^10426^98^10427^98^10428^98^10429^98^10430^98^10431^98^10432^98^10433^98^10434^98^10435^98^10436^98^10437^98^10438^98^10439^98^10440^98^10441^98^10442^98^10443^98^10444^98^10445^98^10446^98^10447^98^10448^98^10449^98^10450^98^10500^98^10501^98^10502^98^10503^98^10504^98^10505^98^10506^98^10507^98^10508^98^10509^98^10510^98^10511^98^10512^98^10513^98^10514^98^10515^98^10516^98^10517^98^10518^98^10519^98^10520^98^10521^98^10522^98^10523^98^10524^98^10525^98^10526^98^10527^98^10528^98^10529^98^10530^98^10531^98^10532^98^10533^98^10534^98^10535^98^10536^98^10537^98^10538^98^10539^98^10540^98^10541^98^10542^98^10543^98^10544^98^10545^98^10546^98^10547^98^10548^98^10549^98^10550^98 | I45: 0 | J45: 110006^15|110005^5 | K45: 80002
A46: 20011 | B46: 11 | C46: 2 | D46: 1 | E46: 7 | F46: 10200^99^10201^99^10202^99^10203^99^10204^98^10205^98^10206^98^10207^98^10208^98^10209^98^10210^98^10211^98^10212^98^10213^98^10214^98^10215^98^10216^98^10217^98^10218^98^10219^98^10220^98^10221^98^10222^98^10223^98^10224^98^10225^98^10226^98^10227^98^10228^98^10229^98^10230^98^10231^98^10232^98^10233^98^10234^98^10235^98^10236^98^10237^98^10238^98^10239^98^10240^98^10241^98^10242^98^10243^98^10244^98^10245^98^10246^98^10247^98^10248^98^10249^98^10250^98^10300^98^10301^98^10302^98^10303^98^10304^98^10305^98^10306^98^10307^98^10308^98^10309^98^10310^98^10311^98^10312^98^10313^98^10314^98^10315^98^10316^98^10317^98^10318^98^10319^98^10320^98^10321^98^10322^98^10323^98^10324^98^10325^98^10326^98^10327^98^10328^98^10329^98^10330^98^10331^98^10332^98^10333^98^10334^98^10335^98^10336^98^10337^98^10338^98^10339^98^10340^98^10341^98^10342^98^10343^98^10344^98^10345^98^10346^98^10347^98^10348^98^10349^98^10350^98 | G46: 10100^197^10101^197^10102^197^10103^197^10104^196^10105^196^10106^196^10107^196^10108^196^10109^196^10110^196^10111^196^10112^196^10113^196^10114^196^10115^196^10116^196^10117^196^10118^196^10119^196^10120^196^10121^196^10122^196^10123^196^10124^196^10125^196^10126^196^10127^196^10128^196^10129^196^10130^196^10131^196^10132^196^10133^196^10134^196^10135^196^10136^196^10137^196^10138^196^10139^196^10140^196^10141^196^10142^196^10143^196^10144^196^10145^196^10146^196^10147^196^10148^196^10149^196^10150^196 | H46: 10400^99^10401^99^10402^99^10403^99^10404^98^10405^98^10406^98^10407^98^10408^98^10409^98^10410^98^10411^98^10412^98^10413^98^10414^98^10415^98^10416^98^10417^98^10418^98^10419^98^10420^98^10421^98^10422^98^10423^98^10424^98^10425^98^10426^98^10427^98^10428^98^10429^98^10430^98^10431^98^10432^98^10433^98^10434^98^10435^98^10436^98^10437^98^10438^98^10439^98^10440^98^10441^98^10442^98^10443^98^10444^98^10445^98^10446^98^10447^98^10448^98^10449^98^10450^98^10500^98^10501^98^10502^98^10503^98^10504^98^10505^98^10506^98^10507^98^10508^98^10509^98^10510^98^10511^98^10512^98^10513^98^10514^98^10515^98^10516^98^10517^98^10518^98^10519^98^10520^98^10521^98^10522^98^10523^98^10524^98^10525^98^10526^98^10527^98^10528^98^10529^98^10530^98^10531^98^10532^98^10533^98^10534^98^10535^98^10536^98^10537^98^10538^98^10539^98^10540^98^10541^98^10542^98^10543^98^10544^98^10545^98^10546^98^10547^98^10548^98^10549^98^10550^98 | I46: 0 | J46: 110006^145|110005^20 | K46: 80008
A47: 20101 | B47: 1 | C47: 2 | D47: 2 | E47: 1 | F47: 10200^99^10201^99^10202^99^10203^99^10204^98^10205^98^10206^98^10207^98^10208^98^10209^98^10210^98^10211^98^10212^98^10213^98^10214^98^10215^98^10216^98^10217^98^10218^98^10219^98^10220^98^10221^98^10222^98^10223^98^10224^98^10225^98^10226^98^10227^98^10228^98^10229^98^10230^98^10231^98^10232^98^10233^98^10234^98^10235^98^10236^98^10237^98^10238^98^10239^98^10240^98^10241^98^10242^98^10243^98^10244^98^10245^98^10246^98^10247^98^10248^98^10249^98^10250^98^10300^98^10301^98^10302^98^10303^98^10304^98^10305^98^10306^98^10307^98^10308^98^10309^98^10310^98^10311^98^10312^98^10313^98^10314^98^10315^98^10316^98^10317^98^10318^98^10319^98^10320^98^10321^98^10322^98^10323^98^10324^98^10325^98^10326^98^10327^98^10328^98^10329^98^10330^98^10331^98^10332^98^10333^98^10334^98^10335^98^10336^98^10337^98^10338^98^10339^98^10340^98^10341^98^10342^98^10343^98^10344^98^10345^98^10346^98^10347^98^10348^98^10349^98^10350^98 | G47: 10100^197^10101^197^10102^197^10103^197^10104^196^10105^196^10106^196^10107^196^10108^196^10109^196^10110^196^10111^196^10112^196^10113^196^10114^196^10115^196^10116^196^10117^196^10118^196^10119^196^10120^196^10121^196^10122^196^10123^196^10124^196^10125^196^10126^196^10127^196^10128^196^10129^196^10130^196^10131^196^10132^196^10133^196^10134^196^10135^196^10136^196^10137^196^10138^196^10139^196^10140^196^10141^196^10142^196^10143^196^10144^196^10145^196^10146^196^10147^196^10148^196^10149^196^10150^196 | H47: 10400^99^10401^99^10402^99^10403^99^10404^98^10405^98^10406^98^10407^98^10408^98^10409^98^10410^98^10411^98^10412^98^10413^98^10414^98^10415^98^10416^98^10417^98^10418^98^10419^98^10420^98^10421^98^10422^98^10423^98^10424^98^10425^98^10426^98^10427^98^10428^98^10429^98^10430^98^10431^98^10432^98^10433^98^10434^98^10435^98^10436^98^10437^98^10438^98^10439^98^10440^98^10441^98^10442^98^10443^98^10444^98^10445^98^10446^98^10447^98^10448^98^10449^98^10450^98^10500^98^10501^98^10502^98^10503^98^10504^98^10505^98^10506^98^10507^98^10508^98^10509^98^10510^98^10511^98^10512^98^10513^98^10514^98^10515^98^10516^98^10517^98^10518^98^10519^98^10520^98^10521^98^10522^98^10523^98^10524^98^10525^98^10526^98^10527^98^10528^98^10529^98^10530^98^10531^98^10532^98^10533^98^10534^98^10535^98^10536^98^10537^98^10538^98^10539^98^10540^98^10541^98^10542^98^10543^98^10544^98^10545^98^10546^98^10547^98^10548^98^10549^98^10550^98 | I47: 0 | J47: 110006^15|110005^5 | K47: 80002
A48: 20102 | B48: 2 | C48: 2 | D48: 2 | E48: 1 | F48: 10200^99^10201^99^10202^99^10203^99^10204^98^10205^98^10206^98^10207^98^10208^98^10209^98^10210^98^10211^98^10212^98^10213^98^10214^98^10215^98^10216^98^10217^98^10218^98^10219^98^10220^98^10221^98^10222^98^10223^98^10224^98^10225^98^10226^98^10227^98^10228^98^10229^98^10230^98^10231^98^10232^98^10233^98^10234^98^10235^98^10236^98^10237^98^10238^98^10239^98^10240^98^10241^98^10242^98^10243^98^10244^98^10245^98^10246^98^10247^98^10248^98^10249^98^10250^98^10300^98^10301^98^10302^98^10303^98^10304^98^10305^98^10306^98^10307^98^10308^98^10309^98^10310^98^10311^98^10312^98^10313^98^10314^98^10315^98^10316^98^10317^98^10318^98^10319^98^10320^98^10321^98^10322^98^10323^98^10324^98^10325^98^10326^98^10327^98^10328^98^10329^98^10330^98^10331^98^10332^98^10333^98^10334^98^10335^98^10336^98^10337^98^10338^98^10339^98^10340^98^10341^98^10342^98^10343^98^10344^98^10345^98^10346^98^10347^98^10348^98^10349^98^10350^98 | G48: 10100^197^10101^197^10102^197^10103^197^10104^196^10105^196^10106^196^10107^196^10108^196^10109^196^10110^196^10111^196^10112^196^10113^196^10114^196^10115^196^10116^196^10117^196^10118^196^10119^196^10120^196^10121^196^10122^196^10123^196^10124^196^10125^196^10126^196^10127^196^10128^196^10129^196^10130^196^10131^196^10132^196^10133^196^10134^196^10135^196^10136^196^10137^196^10138^196^10139^196^10140^196^10141^196^10142^196^10143^196^10144^196^10145^196^10146^196^10147^196^10148^196^10149^196^10150^196 | H48: 10400^99^10401^99^10402^99^10403^99^10404^98^10405^98^10406^98^10407^98^10408^98^10409^98^10410^98^10411^98^10412^98^10413^98^10414^98^10415^98^10416^98^10417^98^10418^98^10419^98^10420^98^10421^98^10422^98^10423^98^10424^98^10425^98^10426^98^10427^98^10428^98^10429^98^10430^98^10431^98^10432^98^10433^98^10434^98^10435^98^10436^98^10437^98^10438^98^10439^98^10440^98^10441^98^10442^98^10443^98^10444^98^10445^98^10446^98^10447^98^10448^98^10449^98^10450^98^10500^98^10501^98^10502^98^10503^98^10504^98^10505^98^10506^98^10507^98^10508^98^10509^98^10510^98^10511^98^10512^98^10513^98^10514^98^10515^98^10516^98^10517^98^10518^98^10519^98^10520^98^10521^98^10522^98^10523^98^10524^98^10525^98^10526^98^10527^98^10528^98^10529^98^10530^98^10531^98^10532^98^10533^98^10534^98^10535^98^10536^98^10537^98^10538^98^10539^98^10540^98^10541^98^10542^98^10543^98^10544^98^10545^98^10546^98^10547^98^10548^98^10549^98^10550^98 | I48: 0 | J48: 110006^15|110005^5 | K48: 80002
A49: 20103 | B49: 3 | C49: 2 | D49: 2 | E49: 2 | F49: 10200^99^10201^99^10202^99^10203^99^10204^98^10205^98^10206^98^10207^98^10208^98^10209^98^10210^98^10211^98^10212^98^10213^98^10214^98^10215^98^10216^98^10217^98^10218^98^10219^98^10220^98^10221^98^10222^98^10223^98^10224^98^10225^98^10226^98^10227^98^10228^98^10229^98^10230^98^10231^98^10232^98^10233^98^10234^98^10235^98^10236^98^10237^98^10238^98^10239^98^10240^98^10241^98^10242^98^10243^98^10244^98^10245^98^10246^98^10247^98^10248^98^10249^98^10250^98^10300^98^10301^98^10302^98^10303^98^10304^98^10305^98^10306^98^10307^98^10308^98^10309^98^10310^98^10311^98^10312^98^10313^98^10314^98^10315^98^10316^98^10317^98^10318^98^10319^98^10320^98^10321^98^10322^98^10323^98^10324^98^10325^98^10326^98^10327^98^10328^98^10329^98^10330^98^10331^98^10332^98^10333^98^10334^98^10335^98^10336^98^10337^98^10338^98^10339^98^10340^98^10341^98^10342^98^10343^98^10344^98^10345^98^10346^98^10347^98^10348^98^10349^98^10350^98 | G49: 10100^197^10101^197^10102^197^10103^197^10104^196^10105^196^10106^196^10107^196^10108^196^10109^196^10110^196^10111^196^10112^196^10113^196^10114^196^10115^196^10116^196^10117^196^10118^196^10119^196^10120^196^10121^196^10122^196^10123^196^10124^196^10125^196^10126^196^10127^196^10128^196^10129^196^10130^196^10131^196^10132^196^10133^196^10134^196^10135^196^10136^196^10137^196^10138^196^10139^196^10140^196^10141^196^10142^196^10143^196^10144^196^10145^196^10146^196^10147^196^10148^196^10149^196^10150^196 | H49: 10400^99^10401^99^10402^99^10403^99^10404^98^10405^98^10406^98^10407^98^10408^98^10409^98^10410^98^10411^98^10412^98^10413^98^10414^98^10415^98^10416^98^10417^98^10418^98^10419^98^10420^98^10421^98^10422^98^10423^98^10424^98^10425^98^10426^98^10427^98^10428^98^10429^98^10430^98^10431^98^10432^98^10433^98^10434^98^10435^98^10436^98^10437^98^10438^98^10439^98^10440^98^10441^98^10442^98^10443^98^10444^98^10445^98^10446^98^10447^98^10448^98^10449^98^10450^98^10500^98^10501^98^10502^98^10503^98^10504^98^10505^98^10506^98^10507^98^10508^98^10509^98^10510^98^10511^98^10512^98^10513^98^10514^98^10515^98^10516^98^10517^98^10518^98^10519^98^10520^98^10521^98^10522^98^10523^98^10524^98^10525^98^10526^98^10527^98^10528^98^10529^98^10530^98^10531^98^10532^98^10533^98^10534^98^10535^98^10536^98^10537^98^10538^98^10539^98^10540^98^10541^98^10542^98^10543^98^10544^98^10545^98^10546^98^10547^98^10548^98^10549^98^10550^98 | I49: 0 | J49: 110006^65|110005^5 | K49: 80002
A50: 20104 | B50: 4 | C50: 2 | D50: 2 | E50: 3 | F50: 0 | G50: 0 | H50: 0 | I50: 110006^70|100001^8000|110005^10 | J50: 110006^70|100001^8000|110005^10 | K50: 0
A51: 20105 | B51: 5 | C51: 2 | D51: 2 | E51: 4 | F51: 0 | G51: 0 | H51: 0 | I51: 0 | J51: 0 | K51: 0
A52: 20106 | B52: 6 | C52: 2 | D52: 2 | E52: 3 | F52: 0 | G52: 0 | H52: 0 | I52: 110006^70|100001^8000|110005^10 | J52: 110006^70|100001^8000|110005^10 | K52: 0
A53: 20107 | B53: 7 | C53: 2 | D53: 2 | E53: 5 | F53: 0 | G53: 0 | H53: 0 | I53: 0 | J53: 130001^80 | K53: 0
A54: 20108 | B54: 8 | C54: 2 | D54: 2 | E54: 6 | F54: 0 | G54: 0 | H54: 0 | I54: 0 | J54: 0 | K54: 80014
A55: 20109 | B55: 9 | C55: 2 | D55: 2 | E55: 2 | F55: 10200^99^10201^99^10202^99^10203^99^10204^98^10205^98^10206^98^10207^98^10208^98^10209^98^10210^98^10211^98^10212^98^10213^98^10214^98^10215^98^10216^98^10217^98^10218^98^10219^98^10220^98^10221^98^10222^98^10223^98^10224^98^10225^98^10226^98^10227^98^10228^98^10229^98^10230^98^10231^98^10232^98^10233^98^10234^98^10235^98^10236^98^10237^98^10238^98^10239^98^10240^98^10241^98^10242^98^10243^98^10244^98^10245^98^10246^98^10247^98^10248^98^10249^98^10250^98^10300^98^10301^98^10302^98^10303^98^10304^98^10305^98^10306^98^10307^98^10308^98^10309^98^10310^98^10311^98^10312^98^10313^98^10314^98^10315^98^10316^98^10317^98^10318^98^10319^98^10320^98^10321^98^10322^98^10323^98^10324^98^10325^98^10326^98^10327^98^10328^98^10329^98^10330^98^10331^98^10332^98^10333^98^10334^98^10335^98^10336^98^10337^98^10338^98^10339^98^10340^98^10341^98^10342^98^10343^98^10344^98^10345^98^10346^98^10347^98^10348^98^10349^98^10350^98 | G55: 10100^197^10101^197^10102^197^10103^197^10104^196^10105^196^10106^196^10107^196^10108^196^10109^196^10110^196^10111^196^10112^196^10113^196^10114^196^10115^196^10116^196^10117^196^10118^196^10119^196^10120^196^10121^196^10122^196^10123^196^10124^196^10125^196^10126^196^10127^196^10128^196^10129^196^10130^196^10131^196^10132^196^10133^196^10134^196^10135^196^10136^196^10137^196^10138^196^10139^196^10140^196^10141^196^10142^196^10143^196^10144^196^10145^196^10146^196^10147^196^10148^196^10149^196^10150^196 | H55: 10400^99^10401^99^10402^99^10403^99^10404^98^10405^98^10406^98^10407^98^10408^98^10409^98^10410^98^10411^98^10412^98^10413^98^10414^98^10415^98^10416^98^10417^98^10418^98^10419^98^10420^98^10421^98^10422^98^10423^98^10424^98^10425^98^10426^98^10427^98^10428^98^10429^98^10430^98^10431^98^10432^98^10433^98^10434^98^10435^98^10436^98^10437^98^10438^98^10439^98^10440^98^10441^98^10442^98^10443^98^10444^98^10445^98^10446^98^10447^98^10448^98^10449^98^10450^98^10500^98^10501^98^10502^98^10503^98^10504^98^10505^98^10506^98^10507^98^10508^98^10509^98^10510^98^10511^98^10512^98^10513^98^10514^98^10515^98^10516^98^10517^98^10518^98^10519^98^10520^98^10521^98^10522^98^10523^98^10524^98^10525^98^10526^98^10527^98^10528^98^10529^98^10530^98^10531^98^10532^98^10533^98^10534^98^10535^98^10536^98^10537^98^10538^98^10539^98^10540^98^10541^98^10542^98^10543^98^10544^98^10545^98^10546^98^10547^98^10548^98^10549^98^10550^98 | I55: 0 | J55: 110006^65|110005^5 | K55: 80002
A56: 20110 | B56: 10 | C56: 2 | D56: 2 | E56: 1 | F56: 10200^99^10201^99^10202^99^10203^99^10204^98^10205^98^10206^98^10207^98^10208^98^10209^98^10210^98^10211^98^10212^98^10213^98^10214^98^10215^98^10216^98^10217^98^10218^98^10219^98^10220^98^10221^98^10222^98^10223^98^10224^98^10225^98^10226^98^10227^98^10228^98^10229^98^10230^98^10231^98^10232^98^10233^98^10234^98^10235^98^10236^98^10237^98^10238^98^10239^98^10240^98^10241^98^10242^98^10243^98^10244^98^10245^98^10246^98^10247^98^10248^98^10249^98^10250^98^10300^98^10301^98^10302^98^10303^98^10304^98^10305^98^10306^98^10307^98^10308^98^10309^98^10310^98^10311^98^10312^98^10313^98^10314^98^10315^98^10316^98^10317^98^10318^98^10319^98^10320^98^10321^98^10322^98^10323^98^10324^98^10325^98^10326^98^10327^98^10328^98^10329^98^10330^98^10331^98^10332^98^10333^98^10334^98^10335^98^10336^98^10337^98^10338^98^10339^98^10340^98^10341^98^10342^98^10343^98^10344^98^10345^98^10346^98^10347^98^10348^98^10349^98^10350^98 | G56: 10100^197^10101^197^10102^197^10103^197^10104^196^10105^196^10106^196^10107^196^10108^196^10109^196^10110^196^10111^196^10112^196^10113^196^10114^196^10115^196^10116^196^10117^196^10118^196^10119^196^10120^196^10121^196^10122^196^10123^196^10124^196^10125^196^10126^196^10127^196^10128^196^10129^196^10130^196^10131^196^10132^196^10133^196^10134^196^10135^196^10136^196^10137^196^10138^196^10139^196^10140^196^10141^196^10142^196^10143^196^10144^196^10145^196^10146^196^10147^196^10148^196^10149^196^10150^196 | H56: 10400^99^10401^99^10402^99^10403^99^10404^98^10405^98^10406^98^10407^98^10408^98^10409^98^10410^98^10411^98^10412^98^10413^98^10414^98^10415^98^10416^98^10417^98^10418^98^10419^98^10420^98^10421^98^10422^98^10423^98^10424^98^10425^98^10426^98^10427^98^10428^98^10429^98^10430^98^10431^98^10432^98^10433^98^10434^98^10435^98^10436^98^10437^98^10438^98^10439^98^10440^98^10441^98^10442^98^10443^98^10444^98^10445^98^10446^98^10447^98^10448^98^10449^98^10450^98^10500^98^10501^98^10502^98^10503^98^10504^98^10505^98^10506^98^10507^98^10508^98^10509^98^10510^98^10511^98^10512^98^10513^98^10514^98^10515^98^10516^98^10517^98^10518^98^10519^98^10520^98^10521^98^10522^98^10523^98^10524^98^10525^98^10526^98^10527^98^10528^98^10529^98^10530^98^10531^98^10532^98^10533^98^10534^98^10535^98^10536^98^10537^98^10538^98^10539^98^10540^98^10541^98^10542^98^10543^98^10544^98^10545^98^10546^98^10547^98^10548^98^10549^98^10550^98 | I56: 0 | J56: 110006^15|110005^5 | K56: 80002
A57: 20111 | B57: 11 | C57: 2 | D57: 2 | E57: 7 | F57: 10200^99^10201^99^10202^99^10203^99^10204^98^10205^98^10206^98^10207^98^10208^98^10209^98^10210^98^10211^98^10212^98^10213^98^10214^98^10215^98^10216^98^10217^98^10218^98^10219^98^10220^98^10221^98^10222^98^10223^98^10224^98^10225^98^10226^98^10227^98^10228^98^10229^98^10230^98^10231^98^10232^98^10233^98^10234^98^10235^98^10236^98^10237^98^10238^98^10239^98^10240^98^10241^98^10242^98^10243^98^10244^98^10245^98^10246^98^10247^98^10248^98^10249^98^10250^98^10300^98^10301^98^10302^98^10303^98^10304^98^10305^98^10306^98^10307^98^10308^98^10309^98^10310^98^10311^98^10312^98^10313^98^10314^98^10315^98^10316^98^10317^98^10318^98^10319^98^10320^98^10321^98^10322^98^10323^98^10324^98^10325^98^10326^98^10327^98^10328^98^10329^98^10330^98^10331^98^10332^98^10333^98^10334^98^10335^98^10336^98^10337^98^10338^98^10339^98^10340^98^10341^98^10342^98^10343^98^10344^98^10345^98^10346^98^10347^98^10348^98^10349^98^10350^98 | G57: 10100^197^10101^197^10102^197^10103^197^10104^196^10105^196^10106^196^10107^196^10108^196^10109^196^10110^196^10111^196^10112^196^10113^196^10114^196^10115^196^10116^196^10117^196^10118^196^10119^196^10120^196^10121^196^10122^196^10123^196^10124^196^10125^196^10126^196^10127^196^10128^196^10129^196^10130^196^10131^196^10132^196^10133^196^10134^196^10135^196^10136^196^10137^196^10138^196^10139^196^10140^196^10141^196^10142^196^10143^196^10144^196^10145^196^10146^196^10147^196^10148^196^10149^196^10150^196 | H57: 10400^99^10401^99^10402^99^10403^99^10404^98^10405^98^10406^98^10407^98^10408^98^10409^98^10410^98^10411^98^10412^98^10413^98^10414^98^10415^98^10416^98^10417^98^10418^98^10419^98^10420^98^10421^98^10422^98^10423^98^10424^98^10425^98^10426^98^10427^98^10428^98^10429^98^10430^98^10431^98^10432^98^10433^98^10434^98^10435^98^10436^98^10437^98^10438^98^10439^98^10440^98^10441^98^10442^98^10443^98^10444^98^10445^98^10446^98^10447^98^10448^98^10449^98^10450^98^10500^98^10501^98^10502^98^10503^98^10504^98^10505^98^10506^98^10507^98^10508^98^10509^98^10510^98^10511^98^10512^98^10513^98^10514^98^10515^98^10516^98^10517^98^10518^98^10519^98^10520^98^10521^98^10522^98^10523^98^10524^98^10525^98^10526^98^10527^98^10528^98^10529^98^10530^98^10531^98^10532^98^10533^98^10534^98^10535^98^10536^98^10537^98^10538^98^10539^98^10540^98^10541^98^10542^98^10543^98^10544^98^10545^98^10546^98^10547^98^10548^98^10549^98^10550^98 | I57: 0 | J57: 110006^145|110005^20 | K57: 80008
A58: 20201 | B58: 1 | C58: 2 | D58: 3 | E58: 1 | F58: 10200^99^10201^99^10202^99^10203^99^10204^98^10205^98^10206^98^10207^98^10208^98^10209^98^10210^98^10211^98^10212^98^10213^98^10214^98^10215^98^10216^98^10217^98^10218^98^10219^98^10220^98^10221^98^10222^98^10223^98^10224^98^10225^98^10226^98^10227^98^10228^98^10229^98^10230^98^10231^98^10232^98^10233^98^10234^98^10235^98^10236^98^10237^98^10238^98^10239^98^10240^98^10241^98^10242^98^10243^98^10244^98^10245^98^10246^98^10247^98^10248^98^10249^98^10250^98^10300^98^10301^98^10302^98^10303^98^10304^98^10305^98^10306^98^10307^98^10308^98^10309^98^10310^98^10311^98^10312^98^10313^98^10314^98^10315^98^10316^98^10317^98^10318^98^10319^98^10320^98^10321^98^10322^98^10323^98^10324^98^10325^98^10326^98^10327^98^10328^98^10329^98^10330^98^10331^98^10332^98^10333^98^10334^98^10335^98^10336^98^10337^98^10338^98^10339^98^10340^98^10341^98^10342^98^10343^98^10344^98^10345^98^10346^98^10347^98^10348^98^10349^98^10350^98 | G58: 10100^197^10101^197^10102^197^10103^197^10104^196^10105^196^10106^196^10107^196^10108^196^10109^196^10110^196^10111^196^10112^196^10113^196^10114^196^10115^196^10116^196^10117^196^10118^196^10119^196^10120^196^10121^196^10122^196^10123^196^10124^196^10125^196^10126^196^10127^196^10128^196^10129^196^10130^196^10131^196^10132^196^10133^196^10134^196^10135^196^10136^196^10137^196^10138^196^10139^196^10140^196^10141^196^10142^196^10143^196^10144^196^10145^196^10146^196^10147^196^10148^196^10149^196^10150^196 | H58: 10400^99^10401^99^10402^99^10403^99^10404^98^10405^98^10406^98^10407^98^10408^98^10409^98^10410^98^10411^98^10412^98^10413^98^10414^98^10415^98^10416^98^10417^98^10418^98^10419^98^10420^98^10421^98^10422^98^10423^98^10424^98^10425^98^10426^98^10427^98^10428^98^10429^98^10430^98^10431^98^10432^98^10433^98^10434^98^10435^98^10436^98^10437^98^10438^98^10439^98^10440^98^10441^98^10442^98^10443^98^10444^98^10445^98^10446^98^10447^98^10448^98^10449^98^10450^98^10500^98^10501^98^10502^98^10503^98^10504^98^10505^98^10506^98^10507^98^10508^98^10509^98^10510^98^10511^98^10512^98^10513^98^10514^98^10515^98^10516^98^10517^98^10518^98^10519^98^10520^98^10521^98^10522^98^10523^98^10524^98^10525^98^10526^98^10527^98^10528^98^10529^98^10530^98^10531^98^10532^98^10533^98^10534^98^10535^98^10536^98^10537^98^10538^98^10539^98^10540^98^10541^98^10542^98^10543^98^10544^98^10545^98^10546^98^10547^98^10548^98^10549^98^10550^98 | I58: 0 | J58: 110006^15|110005^5 | K58: 80002
A59: 20202 | B59: 2 | C59: 2 | D59: 3 | E59: 1 | F59: 10200^99^10201^99^10202^99^10203^99^10204^98^10205^98^10206^98^10207^98^10208^98^10209^98^10210^98^10211^98^10212^98^10213^98^10214^98^10215^98^10216^98^10217^98^10218^98^10219^98^10220^98^10221^98^10222^98^10223^98^10224^98^10225^98^10226^98^10227^98^10228^98^10229^98^10230^98^10231^98^10232^98^10233^98^10234^98^10235^98^10236^98^10237^98^10238^98^10239^98^10240^98^10241^98^10242^98^10243^98^10244^98^10245^98^10246^98^10247^98^10248^98^10249^98^10250^98^10300^98^10301^98^10302^98^10303^98^10304^98^10305^98^10306^98^10307^98^10308^98^10309^98^10310^98^10311^98^10312^98^10313^98^10314^98^10315^98^10316^98^10317^98^10318^98^10319^98^10320^98^10321^98^10322^98^10323^98^10324^98^10325^98^10326^98^10327^98^10328^98^10329^98^10330^98^10331^98^10332^98^10333^98^10334^98^10335^98^10336^98^10337^98^10338^98^10339^98^10340^98^10341^98^10342^98^10343^98^10344^98^10345^98^10346^98^10347^98^10348^98^10349^98^10350^98 | G59: 10100^197^10101^197^10102^197^10103^197^10104^196^10105^196^10106^196^10107^196^10108^196^10109^196^10110^196^10111^196^10112^196^10113^196^10114^196^10115^196^10116^196^10117^196^10118^196^10119^196^10120^196^10121^196^10122^196^10123^196^10124^196^10125^196^10126^196^10127^196^10128^196^10129^196^10130^196^10131^196^10132^196^10133^196^10134^196^10135^196^10136^196^10137^196^10138^196^10139^196^10140^196^10141^196^10142^196^10143^196^10144^196^10145^196^10146^196^10147^196^10148^196^10149^196^10150^196 | H59: 10400^99^10401^99^10402^99^10403^99^10404^98^10405^98^10406^98^10407^98^10408^98^10409^98^10410^98^10411^98^10412^98^10413^98^10414^98^10415^98^10416^98^10417^98^10418^98^10419^98^10420^98^10421^98^10422^98^10423^98^10424^98^10425^98^10426^98^10427^98^10428^98^10429^98^10430^98^10431^98^10432^98^10433^98^10434^98^10435^98^10436^98^10437^98^10438^98^10439^98^10440^98^10441^98^10442^98^10443^98^10444^98^10445^98^10446^98^10447^98^10448^98^10449^98^10450^98^10500^98^10501^98^10502^98^10503^98^10504^98^10505^98^10506^98^10507^98^10508^98^10509^98^10510^98^10511^98^10512^98^10513^98^10514^98^10515^98^10516^98^10517^98^10518^98^10519^98^10520^98^10521^98^10522^98^10523^98^10524^98^10525^98^10526^98^10527^98^10528^98^10529^98^10530^98^10531^98^10532^98^10533^98^10534^98^10535^98^10536^98^10537^98^10538^98^10539^98^10540^98^10541^98^10542^98^10543^98^10544^98^10545^98^10546^98^10547^98^10548^98^10549^98^10550^98 | I59: 0 | J59: 110006^15|110005^5 | K59: 80002
A60: 20203 | B60: 3 | C60: 2 | D60: 3 | E60: 2 | F60: 10200^99^10201^99^10202^99^10203^99^10204^98^10205^98^10206^98^10207^98^10208^98^10209^98^10210^98^10211^98^10212^98^10213^98^10214^98^10215^98^10216^98^10217^98^10218^98^10219^98^10220^98^10221^98^10222^98^10223^98^10224^98^10225^98^10226^98^10227^98^10228^98^10229^98^10230^98^10231^98^10232^98^10233^98^10234^98^10235^98^10236^98^10237^98^10238^98^10239^98^10240^98^10241^98^10242^98^10243^98^10244^98^10245^98^10246^98^10247^98^10248^98^10249^98^10250^98^10300^98^10301^98^10302^98^10303^98^10304^98^10305^98^10306^98^10307^98^10308^98^10309^98^10310^98^10311^98^10312^98^10313^98^10314^98^10315^98^10316^98^10317^98^10318^98^10319^98^10320^98^10321^98^10322^98^10323^98^10324^98^10325^98^10326^98^10327^98^10328^98^10329^98^10330^98^10331^98^10332^98^10333^98^10334^98^10335^98^10336^98^10337^98^10338^98^10339^98^10340^98^10341^98^10342^98^10343^98^10344^98^10345^98^10346^98^10347^98^10348^98^10349^98^10350^98 | G60: 10100^197^10101^197^10102^197^10103^197^10104^196^10105^196^10106^196^10107^196^10108^196^10109^196^10110^196^10111^196^10112^196^10113^196^10114^196^10115^196^10116^196^10117^196^10118^196^10119^196^10120^196^10121^196^10122^196^10123^196^10124^196^10125^196^10126^196^10127^196^10128^196^10129^196^10130^196^10131^196^10132^196^10133^196^10134^196^10135^196^10136^196^10137^196^10138^196^10139^196^10140^196^10141^196^10142^196^10143^196^10144^196^10145^196^10146^196^10147^196^10148^196^10149^196^10150^196 | H60: 10400^99^10401^99^10402^99^10403^99^10404^98^10405^98^10406^98^10407^98^10408^98^10409^98^10410^98^10411^98^10412^98^10413^98^10414^98^10415^98^10416^98^10417^98^10418^98^10419^98^10420^98^10421^98^10422^98^10423^98^10424^98^10425^98^10426^98^10427^98^10428^98^10429^98^10430^98^10431^98^10432^98^10433^98^10434^98^10435^98^10436^98^10437^98^10438^98^10439^98^10440^98^10441^98^10442^98^10443^98^10444^98^10445^98^10446^98^10447^98^10448^98^10449^98^10450^98^10500^98^10501^98^10502^98^10503^98^10504^98^10505^98^10506^98^10507^98^10508^98^10509^98^10510^98^10511^98^10512^98^10513^98^10514^98^10515^98^10516^98^10517^98^10518^98^10519^98^10520^98^10521^98^10522^98^10523^98^10524^98^10525^98^10526^98^10527^98^10528^98^10529^98^10530^98^10531^98^10532^98^10533^98^10534^98^10535^98^10536^98^10537^98^10538^98^10539^98^10540^98^10541^98^10542^98^10543^98^10544^98^10545^98^10546^98^10547^98^10548^98^10549^98^10550^98 | I60: 0 | J60: 110006^65|110005^5 | K60: 80002
A61: 20204 | B61: 4 | C61: 2 | D61: 3 | E61: 3 | F61: 0 | G61: 0 | H61: 0 | I61: 110006^70|100001^8000|110005^10 | J61: 110006^70|100001^8000|110005^10 | K61: 0
A62: 20205 | B62: 5 | C62: 2 | D62: 3 | E62: 4 | F62: 0 | G62: 0 | H62: 0 | I62: 0 | J62: 0 | K62: 0
A63: 20206 | B63: 6 | C63: 2 | D63: 3 | E63: 3 | F63: 0 | G63: 0 | H63: 0 | I63: 110006^70|100001^8000|110005^10 | J63: 110006^70|100001^8000|110005^10 | K63: 0
A64: 20207 | B64: 7 | C64: 2 | D64: 3 | E64: 5 | F64: 0 | G64: 0 | H64: 0 | I64: 0 | J64: 130001^80 | K64: 0
A65: 20208 | B65: 8 | C65: 2 | D65: 3 | E65: 6 | F65: 0 | G65: 0 | H65: 0 | I65: 0 | J65: 0 | K65: 80014
A66: 20209 | B66: 9 | C66: 2 | D66: 3 | E66: 2 | F66: 10200^99^10201^99^10202^99^10203^99^10204^98^10205^98^10206^98^10207^98^10208^98^10209^98^10210^98^10211^98^10212^98^10213^98^10214^98^10215^98^10216^98^10217^98^10218^98^10219^98^10220^98^10221^98^10222^98^10223^98^10224^98^10225^98^10226^98^10227^98^10228^98^10229^98^10230^98^10231^98^10232^98^10233^98^10234^98^10235^98^10236^98^10237^98^10238^98^10239^98^10240^98^10241^98^10242^98^10243^98^10244^98^10245^98^10246^98^10247^98^10248^98^10249^98^10250^98^10300^98^10301^98^10302^98^10303^98^10304^98^10305^98^10306^98^10307^98^10308^98^10309^98^10310^98^10311^98^10312^98^10313^98^10314^98^10315^98^10316^98^10317^98^10318^98^10319^98^10320^98^10321^98^10322^98^10323^98^10324^98^10325^98^10326^98^10327^98^10328^98^10329^98^10330^98^10331^98^10332^98^10333^98^10334^98^10335^98^10336^98^10337^98^10338^98^10339^98^10340^98^10341^98^10342^98^10343^98^10344^98^10345^98^10346^98^10347^98^10348^98^10349^98^10350^98 | G66: 10100^197^10101^197^10102^197^10103^197^10104^196^10105^196^10106^196^10107^196^10108^196^10109^196^10110^196^10111^196^10112^196^10113^196^10114^196^10115^196^10116^196^10117^196^10118^196^10119^196^10120^196^10121^196^10122^196^10123^196^10124^196^10125^196^10126^196^10127^196^10128^196^10129^196^10130^196^10131^196^10132^196^10133^196^10134^196^10135^196^10136^196^10137^196^10138^196^10139^196^10140^196^10141^196^10142^196^10143^196^10144^196^10145^196^10146^196^10147^196^10148^196^10149^196^10150^196 | H66: 10400^99^10401^99^10402^99^10403^99^10404^98^10405^98^10406^98^10407^98^10408^98^10409^98^10410^98^10411^98^10412^98^10413^98^10414^98^10415^98^10416^98^10417^98^10418^98^10419^98^10420^98^10421^98^10422^98^10423^98^10424^98^10425^98^10426^98^10427^98^10428^98^10429^98^10430^98^10431^98^10432^98^10433^98^10434^98^10435^98^10436^98^10437^98^10438^98^10439^98^10440^98^10441^98^10442^98^10443^98^10444^98^10445^98^10446^98^10447^98^10448^98^10449^98^10450^98^10500^98^10501^98^10502^98^10503^98^10504^98^10505^98^10506^98^10507^98^10508^98^10509^98^10510^98^10511^98^10512^98^10513^98^10514^98^10515^98^10516^98^10517^98^10518^98^10519^98^10520^98^10521^98^10522^98^10523^98^10524^98^10525^98^10526^98^10527^98^10528^98^10529^98^10530^98^10531^98^10532^98^10533^98^10534^98^10535^98^10536^98^10537^98^10538^98^10539^98^10540^98^10541^98^10542^98^10543^98^10544^98^10545^98^10546^98^10547^98^10548^98^10549^98^10550^98 | I66: 0 | J66: 110006^65|110005^5 | K66: 80002
A67: 20210 | B67: 10 | C67: 2 | D67: 3 | E67: 1 | F67: 10200^99^10201^99^10202^99^10203^99^10204^98^10205^98^10206^98^10207^98^10208^98^10209^98^10210^98^10211^98^10212^98^10213^98^10214^98^10215^98^10216^98^10217^98^10218^98^10219^98^10220^98^10221^98^10222^98^10223^98^10224^98^10225^98^10226^98^10227^98^10228^98^10229^98^10230^98^10231^98^10232^98^10233^98^10234^98^10235^98^10236^98^10237^98^10238^98^10239^98^10240^98^10241^98^10242^98^10243^98^10244^98^10245^98^10246^98^10247^98^10248^98^10249^98^10250^98^10300^98^10301^98^10302^98^10303^98^10304^98^10305^98^10306^98^10307^98^10308^98^10309^98^10310^98^10311^98^10312^98^10313^98^10314^98^10315^98^10316^98^10317^98^10318^98^10319^98^10320^98^10321^98^10322^98^10323^98^10324^98^10325^98^10326^98^10327^98^10328^98^10329^98^10330^98^10331^98^10332^98^10333^98^10334^98^10335^98^10336^98^10337^98^10338^98^10339^98^10340^98^10341^98^10342^98^10343^98^10344^98^10345^98^10346^98^10347^98^10348^98^10349^98^10350^98 | G67: 10100^197^10101^197^10102^197^10103^197^10104^196^10105^196^10106^196^10107^196^10108^196^10109^196^10110^196^10111^196^10112^196^10113^196^10114^196^10115^196^10116^196^10117^196^10118^196^10119^196^10120^196^10121^196^10122^196^10123^196^10124^196^10125^196^10126^196^10127^196^10128^196^10129^196^10130^196^10131^196^10132^196^10133^196^10134^196^10135^196^10136^196^10137^196^10138^196^10139^196^10140^196^10141^196^10142^196^10143^196^10144^196^10145^196^10146^196^10147^196^10148^196^10149^196^10150^196 | H67: 10400^99^10401^99^10402^99^10403^99^10404^98^10405^98^10406^98^10407^98^10408^98^10409^98^10410^98^10411^98^10412^98^10413^98^10414^98^10415^98^10416^98^10417^98^10418^98^10419^98^10420^98^10421^98^10422^98^10423^98^10424^98^10425^98^10426^98^10427^98^10428^98^10429^98^10430^98^10431^98^10432^98^10433^98^10434^98^10435^98^10436^98^10437^98^10438^98^10439^98^10440^98^10441^98^10442^98^10443^98^10444^98^10445^98^10446^98^10447^98^10448^98^10449^98^10450^98^10500^98^10501^98^10502^98^10503^98^10504^98^10505^98^10506^98^10507^98^10508^98^10509^98^10510^98^10511^98^10512^98^10513^98^10514^98^10515^98^10516^98^10517^98^10518^98^10519^98^10520^98^10521^98^10522^98^10523^98^10524^98^10525^98^10526^98^10527^98^10528^98^10529^98^10530^98^10531^98^10532^98^10533^98^10534^98^10535^98^10536^98^10537^98^10538^98^10539^98^10540^98^10541^98^10542^98^10543^98^10544^98^10545^98^10546^98^10547^98^10548^98^10549^98^10550^98 | I67: 0 | J67: 110006^15|110005^5 | K67: 80002
A68: 20211 | B68: 11 | C68: 2 | D68: 3 | E68: 7 | F68: 10200^99^10201^99^10202^99^10203^99^10204^98^10205^98^10206^98^10207^98^10208^98^10209^98^10210^98^10211^98^10212^98^10213^98^10214^98^10215^98^10216^98^10217^98^10218^98^10219^98^10220^98^10221^98^10222^98^10223^98^10224^98^10225^98^10226^98^10227^98^10228^98^10229^98^10230^98^10231^98^10232^98^10233^98^10234^98^10235^98^10236^98^10237^98^10238^98^10239^98^10240^98^10241^98^10242^98^10243^98^10244^98^10245^98^10246^98^10247^98^10248^98^10249^98^10250^98^10300^98^10301^98^10302^98^10303^98^10304^98^10305^98^10306^98^10307^98^10308^98^10309^98^10310^98^10311^98^10312^98^10313^98^10314^98^10315^98^10316^98^10317^98^10318^98^10319^98^10320^98^10321^98^10322^98^10323^98^10324^98^10325^98^10326^98^10327^98^10328^98^10329^98^10330^98^10331^98^10332^98^10333^98^10334^98^10335^98^10336^98^10337^98^10338^98^10339^98^10340^98^10341^98^10342^98^10343^98^10344^98^10345^98^10346^98^10347^98^10348^98^10349^98^10350^98 | G68: 10100^197^10101^197^10102^197^10103^197^10104^196^10105^196^10106^196^10107^196^10108^196^10109^196^10110^196^10111^196^10112^196^10113^196^10114^196^10115^196^10116^196^10117^196^10118^196^10119^196^10120^196^10121^196^10122^196^10123^196^10124^196^10125^196^10126^196^10127^196^10128^196^10129^196^10130^196^10131^196^10132^196^10133^196^10134^196^10135^196^10136^196^10137^196^10138^196^10139^196^10140^196^10141^196^10142^196^10143^196^10144^196^10145^196^10146^196^10147^196^10148^196^10149^196^10150^196 | H68: 10400^99^10401^99^10402^99^10403^99^10404^98^10405^98^10406^98^10407^98^10408^98^10409^98^10410^98^10411^98^10412^98^10413^98^10414^98^10415^98^10416^98^10417^98^10418^98^10419^98^10420^98^10421^98^10422^98^10423^98^10424^98^10425^98^10426^98^10427^98^10428^98^10429^98^10430^98^10431^98^10432^98^10433^98^10434^98^10435^98^10436^98^10437^98^10438^98^10439^98^10440^98^10441^98^10442^98^10443^98^10444^98^10445^98^10446^98^10447^98^10448^98^10449^98^10450^98^10500^98^10501^98^10502^98^10503^98^10504^98^10505^98^10506^98^10507^98^10508^98^10509^98^10510^98^10511^98^10512^98^10513^98^10514^98^10515^98^10516^98^10517^98^10518^98^10519^98^10520^98^10521^98^10522^98^10523^98^10524^98^10525^98^10526^98^10527^98^10528^98^10529^98^10530^98^10531^98^10532^98^10533^98^10534^98^10535^98^10536^98^10537^98^10538^98^10539^98^10540^98^10541^98^10542^98^10543^98^10544^98^10545^98^10546^98^10547^98^10548^98^10549^98^10550^98 | I68: 0 | J68: 110006^145|110005^20 | K68: 80008
A69: 30001 | B69: 1 | C69: 3 | D69: 1 | E69: 1 | F69: 10200^99^10201^99^10202^99^10203^99^10204^98^10205^98^10206^98^10207^98^10208^98^10209^98^10210^98^10211^98^10212^98^10213^98^10214^98^10215^98^10216^98^10217^98^10218^98^10219^98^10220^98^10221^98^10222^98^10223^98^10224^98^10225^98^10226^98^10227^98^10228^98^10229^98^10230^98^10231^98^10232^98^10233^98^10234^98^10235^98^10236^98^10237^98^10238^98^10239^98^10240^98^10241^98^10242^98^10243^98^10244^98^10245^98^10246^98^10247^98^10248^98^10249^98^10250^98^10300^98^10301^98^10302^98^10303^98^10304^98^10305^98^10306^98^10307^98^10308^98^10309^98^10310^98^10311^98^10312^98^10313^98^10314^98^10315^98^10316^98^10317^98^10318^98^10319^98^10320^98^10321^98^10322^98^10323^98^10324^98^10325^98^10326^98^10327^98^10328^98^10329^98^10330^98^10331^98^10332^98^10333^98^10334^98^10335^98^10336^98^10337^98^10338^98^10339^98^10340^98^10341^98^10342^98^10343^98^10344^98^10345^98^10346^98^10347^98^10348^98^10349^98^10350^98 | G69: 10100^197^10101^197^10102^197^10103^197^10104^196^10105^196^10106^196^10107^196^10108^196^10109^196^10110^196^10111^196^10112^196^10113^196^10114^196^10115^196^10116^196^10117^196^10118^196^10119^196^10120^196^10121^196^10122^196^10123^196^10124^196^10125^196^10126^196^10127^196^10128^196^10129^196^10130^196^10131^196^10132^196^10133^196^10134^196^10135^196^10136^196^10137^196^10138^196^10139^196^10140^196^10141^196^10142^196^10143^196^10144^196^10145^196^10146^196^10147^196^10148^196^10149^196^10150^196 | H69: 10400^99^10401^99^10402^99^10403^99^10404^98^10405^98^10406^98^10407^98^10408^98^10409^98^10410^98^10411^98^10412^98^10413^98^10414^98^10415^98^10416^98^10417^98^10418^98^10419^98^10420^98^10421^98^10422^98^10423^98^10424^98^10425^98^10426^98^10427^98^10428^98^10429^98^10430^98^10431^98^10432^98^10433^98^10434^98^10435^98^10436^98^10437^98^10438^98^10439^98^10440^98^10441^98^10442^98^10443^98^10444^98^10445^98^10446^98^10447^98^10448^98^10449^98^10450^98^10500^98^10501^98^10502^98^10503^98^10504^98^10505^98^10506^98^10507^98^10508^98^10509^98^10510^98^10511^98^10512^98^10513^98^10514^98^10515^98^10516^98^10517^98^10518^98^10519^98^10520^98^10521^98^10522^98^10523^98^10524^98^10525^98^10526^98^10527^98^10528^98^10529^98^10530^98^10531^98^10532^98^10533^98^10534^98^10535^98^10536^98^10537^98^10538^98^10539^98^10540^98^10541^98^10542^98^10543^98^10544^98^10545^98^10546^98^10547^98^10548^98^10549^98^10550^98 | I69: 0 | J69: 110006^20|110005^5 | K69: 80003
A70: 30002 | B70: 2 | C70: 3 | D70: 1 | E70: 1 | F70: 10200^99^10201^99^10202^99^10203^99^10204^98^10205^98^10206^98^10207^98^10208^98^10209^98^10210^98^10211^98^10212^98^10213^98^10214^98^10215^98^10216^98^10217^98^10218^98^10219^98^10220^98^10221^98^10222^98^10223^98^10224^98^10225^98^10226^98^10227^98^10228^98^10229^98^10230^98^10231^98^10232^98^10233^98^10234^98^10235^98^10236^98^10237^98^10238^98^10239^98^10240^98^10241^98^10242^98^10243^98^10244^98^10245^98^10246^98^10247^98^10248^98^10249^98^10250^98^10300^98^10301^98^10302^98^10303^98^10304^98^10305^98^10306^98^10307^98^10308^98^10309^98^10310^98^10311^98^10312^98^10313^98^10314^98^10315^98^10316^98^10317^98^10318^98^10319^98^10320^98^10321^98^10322^98^10323^98^10324^98^10325^98^10326^98^10327^98^10328^98^10329^98^10330^98^10331^98^10332^98^10333^98^10334^98^10335^98^10336^98^10337^98^10338^98^10339^98^10340^98^10341^98^10342^98^10343^98^10344^98^10345^98^10346^98^10347^98^10348^98^10349^98^10350^98 | G70: 10100^197^10101^197^10102^197^10103^197^10104^196^10105^196^10106^196^10107^196^10108^196^10109^196^10110^196^10111^196^10112^196^10113^196^10114^196^10115^196^10116^196^10117^196^10118^196^10119^196^10120^196^10121^196^10122^196^10123^196^10124^196^10125^196^10126^196^10127^196^10128^196^10129^196^10130^196^10131^196^10132^196^10133^196^10134^196^10135^196^10136^196^10137^196^10138^196^10139^196^10140^196^10141^196^10142^196^10143^196^10144^196^10145^196^10146^196^10147^196^10148^196^10149^196^10150^196 | H70: 10400^99^10401^99^10402^99^10403^99^10404^98^10405^98^10406^98^10407^98^10408^98^10409^98^10410^98^10411^98^10412^98^10413^98^10414^98^10415^98^10416^98^10417^98^10418^98^10419^98^10420^98^10421^98^10422^98^10423^98^10424^98^10425^98^10426^98^10427^98^10428^98^10429^98^10430^98^10431^98^10432^98^10433^98^10434^98^10435^98^10436^98^10437^98^10438^98^10439^98^10440^98^10441^98^10442^98^10443^98^10444^98^10445^98^10446^98^10447^98^10448^98^10449^98^10450^98^10500^98^10501^98^10502^98^10503^98^10504^98^10505^98^10506^98^10507^98^10508^98^10509^98^10510^98^10511^98^10512^98^10513^98^10514^98^10515^98^10516^98^10517^98^10518^98^10519^98^10520^98^10521^98^10522^98^10523^98^10524^98^10525^98^10526^98^10527^98^10528^98^10529^98^10530^98^10531^98^10532^98^10533^98^10534^98^10535^98^10536^98^10537^98^10538^98^10539^98^10540^98^10541^98^10542^98^10543^98^10544^98^10545^98^10546^98^10547^98^10548^98^10549^98^10550^98 | I70: 0 | J70: 110006^20|110005^5 | K70: 80003
A71: 30003 | B71: 3 | C71: 3 | D71: 1 | E71: 2 | F71: 10200^99^10201^99^10202^99^10203^99^10204^98^10205^98^10206^98^10207^98^10208^98^10209^98^10210^98^10211^98^10212^98^10213^98^10214^98^10215^98^10216^98^10217^98^10218^98^10219^98^10220^98^10221^98^10222^98^10223^98^10224^98^10225^98^10226^98^10227^98^10228^98^10229^98^10230^98^10231^98^10232^98^10233^98^10234^98^10235^98^10236^98^10237^98^10238^98^10239^98^10240^98^10241^98^10242^98^10243^98^10244^98^10245^98^10246^98^10247^98^10248^98^10249^98^10250^98^10300^98^10301^98^10302^98^10303^98^10304^98^10305^98^10306^98^10307^98^10308^98^10309^98^10310^98^10311^98^10312^98^10313^98^10314^98^10315^98^10316^98^10317^98^10318^98^10319^98^10320^98^10321^98^10322^98^10323^98^10324^98^10325^98^10326^98^10327^98^10328^98^10329^98^10330^98^10331^98^10332^98^10333^98^10334^98^10335^98^10336^98^10337^98^10338^98^10339^98^10340^98^10341^98^10342^98^10343^98^10344^98^10345^98^10346^98^10347^98^10348^98^10349^98^10350^98 | G71: 10100^197^10101^197^10102^197^10103^197^10104^196^10105^196^10106^196^10107^196^10108^196^10109^196^10110^196^10111^196^10112^196^10113^196^10114^196^10115^196^10116^196^10117^196^10118^196^10119^196^10120^196^10121^196^10122^196^10123^196^10124^196^10125^196^10126^196^10127^196^10128^196^10129^196^10130^196^10131^196^10132^196^10133^196^10134^196^10135^196^10136^196^10137^196^10138^196^10139^196^10140^196^10141^196^10142^196^10143^196^10144^196^10145^196^10146^196^10147^196^10148^196^10149^196^10150^196 | H71: 10400^99^10401^99^10402^99^10403^99^10404^98^10405^98^10406^98^10407^98^10408^98^10409^98^10410^98^10411^98^10412^98^10413^98^10414^98^10415^98^10416^98^10417^98^10418^98^10419^98^10420^98^10421^98^10422^98^10423^98^10424^98^10425^98^10426^98^10427^98^10428^98^10429^98^10430^98^10431^98^10432^98^10433^98^10434^98^10435^98^10436^98^10437^98^10438^98^10439^98^10440^98^10441^98^10442^98^10443^98^10444^98^10445^98^10446^98^10447^98^10448^98^10449^98^10450^98^10500^98^10501^98^10502^98^10503^98^10504^98^10505^98^10506^98^10507^98^10508^98^10509^98^10510^98^10511^98^10512^98^10513^98^10514^98^10515^98^10516^98^10517^98^10518^98^10519^98^10520^98^10521^98^10522^98^10523^98^10524^98^10525^98^10526^98^10527^98^10528^98^10529^98^10530^98^10531^98^10532^98^10533^98^10534^98^10535^98^10536^98^10537^98^10538^98^10539^98^10540^98^10541^98^10542^98^10543^98^10544^98^10545^98^10546^98^10547^98^10548^98^10549^98^10550^98 | I71: 0 | J71: 110006^80|110005^5 | K71: 80003
A72: 30004 | B72: 4 | C72: 3 | D72: 1 | E72: 3 | F72: 0 | G72: 0 | H72: 0 | I72: 110006^90|100001^12000|110005^10 | J72: 110006^90|100001^12000|110005^10 | K72: 0
A73: 30005 | B73: 5 | C73: 3 | D73: 1 | E73: 4 | F73: 0 | G73: 0 | H73: 0 | I73: 0 | J73: 0 | K73: 0
A74: 30006 | B74: 6 | C74: 3 | D74: 1 | E74: 3 | F74: 0 | G74: 0 | H74: 0 | I74: 110006^90|100001^12000|110005^10 | J74: 110006^90|100001^12000|110005^10 | K74: 0
A75: 30007 | B75: 7 | C75: 3 | D75: 1 | E75: 5 | F75: 0 | G75: 0 | H75: 0 | I75: 0 | J75: 130001^110 | K75: 0
A76: 30008 | B76: 8 | C76: 3 | D76: 1 | E76: 6 | F76: 0 | G76: 0 | H76: 0 | I76: 0 | J76: 0 | K76: 80015
A77: 30009 | B77: 9 | C77: 3 | D77: 1 | E77: 2 | F77: 10200^99^10201^99^10202^99^10203^99^10204^98^10205^98^10206^98^10207^98^10208^98^10209^98^10210^98^10211^98^10212^98^10213^98^10214^98^10215^98^10216^98^10217^98^10218^98^10219^98^10220^98^10221^98^10222^98^10223^98^10224^98^10225^98^10226^98^10227^98^10228^98^10229^98^10230^98^10231^98^10232^98^10233^98^10234^98^10235^98^10236^98^10237^98^10238^98^10239^98^10240^98^10241^98^10242^98^10243^98^10244^98^10245^98^10246^98^10247^98^10248^98^10249^98^10250^98^10300^98^10301^98^10302^98^10303^98^10304^98^10305^98^10306^98^10307^98^10308^98^10309^98^10310^98^10311^98^10312^98^10313^98^10314^98^10315^98^10316^98^10317^98^10318^98^10319^98^10320^98^10321^98^10322^98^10323^98^10324^98^10325^98^10326^98^10327^98^10328^98^10329^98^10330^98^10331^98^10332^98^10333^98^10334^98^10335^98^10336^98^10337^98^10338^98^10339^98^10340^98^10341^98^10342^98^10343^98^10344^98^10345^98^10346^98^10347^98^10348^98^10349^98^10350^98 | G77: 10100^197^10101^197^10102^197^10103^197^10104^196^10105^196^10106^196^10107^196^10108^196^10109^196^10110^196^10111^196^10112^196^10113^196^10114^196^10115^196^10116^196^10117^196^10118^196^10119^196^10120^196^10121^196^10122^196^10123^196^10124^196^10125^196^10126^196^10127^196^10128^196^10129^196^10130^196^10131^196^10132^196^10133^196^10134^196^10135^196^10136^196^10137^196^10138^196^10139^196^10140^196^10141^196^10142^196^10143^196^10144^196^10145^196^10146^196^10147^196^10148^196^10149^196^10150^196 | H77: 10400^99^10401^99^10402^99^10403^99^10404^98^10405^98^10406^98^10407^98^10408^98^10409^98^10410^98^10411^98^10412^98^10413^98^10414^98^10415^98^10416^98^10417^98^10418^98^10419^98^10420^98^10421^98^10422^98^10423^98^10424^98^10425^98^10426^98^10427^98^10428^98^10429^98^10430^98^10431^98^10432^98^10433^98^10434^98^10435^98^10436^98^10437^98^10438^98^10439^98^10440^98^10441^98^10442^98^10443^98^10444^98^10445^98^10446^98^10447^98^10448^98^10449^98^10450^98^10500^98^10501^98^10502^98^10503^98^10504^98^10505^98^10506^98^10507^98^10508^98^10509^98^10510^98^10511^98^10512^98^10513^98^10514^98^10515^98^10516^98^10517^98^10518^98^10519^98^10520^98^10521^98^10522^98^10523^98^10524^98^10525^98^10526^98^10527^98^10528^98^10529^98^10530^98^10531^98^10532^98^10533^98^10534^98^10535^98^10536^98^10537^98^10538^98^10539^98^10540^98^10541^98^10542^98^10543^98^10544^98^10545^98^10546^98^10547^98^10548^98^10549^98^10550^98 | I77: 0 | J77: 110006^80|110005^5 | K77: 80003
A78: 30010 | B78: 10 | C78: 3 | D78: 1 | E78: 1 | F78: 10200^99^10201^99^10202^99^10203^99^10204^98^10205^98^10206^98^10207^98^10208^98^10209^98^10210^98^10211^98^10212^98^10213^98^10214^98^10215^98^10216^98^10217^98^10218^98^10219^98^10220^98^10221^98^10222^98^10223^98^10224^98^10225^98^10226^98^10227^98^10228^98^10229^98^10230^98^10231^98^10232^98^10233^98^10234^98^10235^98^10236^98^10237^98^10238^98^10239^98^10240^98^10241^98^10242^98^10243^98^10244^98^10245^98^10246^98^10247^98^10248^98^10249^98^10250^98^10300^98^10301^98^10302^98^10303^98^10304^98^10305^98^10306^98^10307^98^10308^98^10309^98^10310^98^10311^98^10312^98^10313^98^10314^98^10315^98^10316^98^10317^98^10318^98^10319^98^10320^98^10321^98^10322^98^10323^98^10324^98^10325^98^10326^98^10327^98^10328^98^10329^98^10330^98^10331^98^10332^98^10333^98^10334^98^10335^98^10336^98^10337^98^10338^98^10339^98^10340^98^10341^98^10342^98^10343^98^10344^98^10345^98^10346^98^10347^98^10348^98^10349^98^10350^98 | G78: 10100^197^10101^197^10102^197^10103^197^10104^196^10105^196^10106^196^10107^196^10108^196^10109^196^10110^196^10111^196^10112^196^10113^196^10114^196^10115^196^10116^196^10117^196^10118^196^10119^196^10120^196^10121^196^10122^196^10123^196^10124^196^10125^196^10126^196^10127^196^10128^196^10129^196^10130^196^10131^196^10132^196^10133^196^10134^196^10135^196^10136^196^10137^196^10138^196^10139^196^10140^196^10141^196^10142^196^10143^196^10144^196^10145^196^10146^196^10147^196^10148^196^10149^196^10150^196 | H78: 10400^99^10401^99^10402^99^10403^99^10404^98^10405^98^10406^98^10407^98^10408^98^10409^98^10410^98^10411^98^10412^98^10413^98^10414^98^10415^98^10416^98^10417^98^10418^98^10419^98^10420^98^10421^98^10422^98^10423^98^10424^98^10425^98^10426^98^10427^98^10428^98^10429^98^10430^98^10431^98^10432^98^10433^98^10434^98^10435^98^10436^98^10437^98^10438^98^10439^98^10440^98^10441^98^10442^98^10443^98^10444^98^10445^98^10446^98^10447^98^10448^98^10449^98^10450^98^10500^98^10501^98^10502^98^10503^98^10504^98^10505^98^10506^98^10507^98^10508^98^10509^98^10510^98^10511^98^10512^98^10513^98^10514^98^10515^98^10516^98^10517^98^10518^98^10519^98^10520^98^10521^98^10522^98^10523^98^10524^98^10525^98^10526^98^10527^98^10528^98^10529^98^10530^98^10531^98^10532^98^10533^98^10534^98^10535^98^10536^98^10537^98^10538^98^10539^98^10540^98^10541^98^10542^98^10543^98^10544^98^10545^98^10546^98^10547^98^10548^98^10549^98^10550^98 | I78: 0 | J78: 110006^20|110005^5 | K78: 80003
A79: 30011 | B79: 11 | C79: 3 | D79: 1 | E79: 7 | F79: 10200^99^10201^99^10202^99^10203^99^10204^98^10205^98^10206^98^10207^98^10208^98^10209^98^10210^98^10211^98^10212^98^10213^98^10214^98^10215^98^10216^98^10217^98^10218^98^10219^98^10220^98^10221^98^10222^98^10223^98^10224^98^10225^98^10226^98^10227^98^10228^98^10229^98^10230^98^10231^98^10232^98^10233^98^10234^98^10235^98^10236^98^10237^98^10238^98^10239^98^10240^98^10241^98^10242^98^10243^98^10244^98^10245^98^10246^98^10247^98^10248^98^10249^98^10250^98^10300^98^10301^98^10302^98^10303^98^10304^98^10305^98^10306^98^10307^98^10308^98^10309^98^10310^98^10311^98^10312^98^10313^98^10314^98^10315^98^10316^98^10317^98^10318^98^10319^98^10320^98^10321^98^10322^98^10323^98^10324^98^10325^98^10326^98^10327^98^10328^98^10329^98^10330^98^10331^98^10332^98^10333^98^10334^98^10335^98^10336^98^10337^98^10338^98^10339^98^10340^98^10341^98^10342^98^10343^98^10344^98^10345^98^10346^98^10347^98^10348^98^10349^98^10350^98 | G79: 10100^197^10101^197^10102^197^10103^197^10104^196^10105^196^10106^196^10107^196^10108^196^10109^196^10110^196^10111^196^10112^196^10113^196^10114^196^10115^196^10116^196^10117^196^10118^196^10119^196^10120^196^10121^196^10122^196^10123^196^10124^196^10125^196^10126^196^10127^196^10128^196^10129^196^10130^196^10131^196^10132^196^10133^196^10134^196^10135^196^10136^196^10137^196^10138^196^10139^196^10140^196^10141^196^10142^196^10143^196^10144^196^10145^196^10146^196^10147^196^10148^196^10149^196^10150^196 | H79: 10400^99^10401^99^10402^99^10403^99^10404^98^10405^98^10406^98^10407^98^10408^98^10409^98^10410^98^10411^98^10412^98^10413^98^10414^98^10415^98^10416^98^10417^98^10418^98^10419^98^10420^98^10421^98^10422^98^10423^98^10424^98^10425^98^10426^98^10427^98^10428^98^10429^98^10430^98^10431^98^10432^98^10433^98^10434^98^10435^98^10436^98^10437^98^10438^98^10439^98^10440^98^10441^98^10442^98^10443^98^10444^98^10445^98^10446^98^10447^98^10448^98^10449^98^10450^98^10500^98^10501^98^10502^98^10503^98^10504^98^10505^98^10506^98^10507^98^10508^98^10509^98^10510^98^10511^98^10512^98^10513^98^10514^98^10515^98^10516^98^10517^98^10518^98^10519^98^10520^98^10521^98^10522^98^10523^98^10524^98^10525^98^10526^98^10527^98^10528^98^10529^98^10530^98^10531^98^10532^98^10533^98^10534^98^10535^98^10536^98^10537^98^10538^98^10539^98^10540^98^10541^98^10542^98^10543^98^10544^98^10545^98^10546^98^10547^98^10548^98^10549^98^10550^98 | I79: 0 | J79: 110006^225|110005^20 | K79: 80009
A80: 30101 | B80: 1 | C80: 3 | D80: 2 | E80: 1 | F80: 10200^99^10201^99^10202^99^10203^99^10204^98^10205^98^10206^98^10207^98^10208^98^10209^98^10210^98^10211^98^10212^98^10213^98^10214^98^10215^98^10216^98^10217^98^10218^98^10219^98^10220^98^10221^98^10222^98^10223^98^10224^98^10225^98^10226^98^10227^98^10228^98^10229^98^10230^98^10231^98^10232^98^10233^98^10234^98^10235^98^10236^98^10237^98^10238^98^10239^98^10240^98^10241^98^10242^98^10243^98^10244^98^10245^98^10246^98^10247^98^10248^98^10249^98^10250^98^10300^98^10301^98^10302^98^10303^98^10304^98^10305^98^10306^98^10307^98^10308^98^10309^98^10310^98^10311^98^10312^98^10313^98^10314^98^10315^98^10316^98^10317^98^10318^98^10319^98^10320^98^10321^98^10322^98^10323^98^10324^98^10325^98^10326^98^10327^98^10328^98^10329^98^10330^98^10331^98^10332^98^10333^98^10334^98^10335^98^10336^98^10337^98^10338^98^10339^98^10340^98^10341^98^10342^98^10343^98^10344^98^10345^98^10346^98^10347^98^10348^98^10349^98^10350^98 | G80: 10100^197^10101^197^10102^197^10103^197^10104^196^10105^196^10106^196^10107^196^10108^196^10109^196^10110^196^10111^196^10112^196^10113^196^10114^196^10115^196^10116^196^10117^196^10118^196^10119^196^10120^196^10121^196^10122^196^10123^196^10124^196^10125^196^10126^196^10127^196^10128^196^10129^196^10130^196^10131^196^10132^196^10133^196^10134^196^10135^196^10136^196^10137^196^10138^196^10139^196^10140^196^10141^196^10142^196^10143^196^10144^196^10145^196^10146^196^10147^196^10148^196^10149^196^10150^196 | H80: 10400^99^10401^99^10402^99^10403^99^10404^98^10405^98^10406^98^10407^98^10408^98^10409^98^10410^98^10411^98^10412^98^10413^98^10414^98^10415^98^10416^98^10417^98^10418^98^10419^98^10420^98^10421^98^10422^98^10423^98^10424^98^10425^98^10426^98^10427^98^10428^98^10429^98^10430^98^10431^98^10432^98^10433^98^10434^98^10435^98^10436^98^10437^98^10438^98^10439^98^10440^98^10441^98^10442^98^10443^98^10444^98^10445^98^10446^98^10447^98^10448^98^10449^98^10450^98^10500^98^10501^98^10502^98^10503^98^10504^98^10505^98^10506^98^10507^98^10508^98^10509^98^10510^98^10511^98^10512^98^10513^98^10514^98^10515^98^10516^98^10517^98^10518^98^10519^98^10520^98^10521^98^10522^98^10523^98^10524^98^10525^98^10526^98^10527^98^10528^98^10529^98^10530^98^10531^98^10532^98^10533^98^10534^98^10535^98^10536^98^10537^98^10538^98^10539^98^10540^98^10541^98^10542^98^10543^98^10544^98^10545^98^10546^98^10547^98^10548^98^10549^98^10550^98 | I80: 0 | J80: 110006^20|110005^5 | K80: 80003
A81: 30102 | B81: 2 | C81: 3 | D81: 2 | E81: 1 | F81: 10200^99^10201^99^10202^99^10203^99^10204^98^10205^98^10206^98^10207^98^10208^98^10209^98^10210^98^10211^98^10212^98^10213^98^10214^98^10215^98^10216^98^10217^98^10218^98^10219^98^10220^98^10221^98^10222^98^10223^98^10224^98^10225^98^10226^98^10227^98^10228^98^10229^98^10230^98^10231^98^10232^98^10233^98^10234^98^10235^98^10236^98^10237^98^10238^98^10239^98^10240^98^10241^98^10242^98^10243^98^10244^98^10245^98^10246^98^10247^98^10248^98^10249^98^10250^98^10300^98^10301^98^10302^98^10303^98^10304^98^10305^98^10306^98^10307^98^10308^98^10309^98^10310^98^10311^98^10312^98^10313^98^10314^98^10315^98^10316^98^10317^98^10318^98^10319^98^10320^98^10321^98^10322^98^10323^98^10324^98^10325^98^10326^98^10327^98^10328^98^10329^98^10330^98^10331^98^10332^98^10333^98^10334^98^10335^98^10336^98^10337^98^10338^98^10339^98^10340^98^10341^98^10342^98^10343^98^10344^98^10345^98^10346^98^10347^98^10348^98^10349^98^10350^98 | G81: 10100^197^10101^197^10102^197^10103^197^10104^196^10105^196^10106^196^10107^196^10108^196^10109^196^10110^196^10111^196^10112^196^10113^196^10114^196^10115^196^10116^196^10117^196^10118^196^10119^196^10120^196^10121^196^10122^196^10123^196^10124^196^10125^196^10126^196^10127^196^10128^196^10129^196^10130^196^10131^196^10132^196^10133^196^10134^196^10135^196^10136^196^10137^196^10138^196^10139^196^10140^196^10141^196^10142^196^10143^196^10144^196^10145^196^10146^196^10147^196^10148^196^10149^196^10150^196 | H81: 10400^99^10401^99^10402^99^10403^99^10404^98^10405^98^10406^98^10407^98^10408^98^10409^98^10410^98^10411^98^10412^98^10413^98^10414^98^10415^98^10416^98^10417^98^10418^98^10419^98^10420^98^10421^98^10422^98^10423^98^10424^98^10425^98^10426^98^10427^98^10428^98^10429^98^10430^98^10431^98^10432^98^10433^98^10434^98^10435^98^10436^98^10437^98^10438^98^10439^98^10440^98^10441^98^10442^98^10443^98^10444^98^10445^98^10446^98^10447^98^10448^98^10449^98^10450^98^10500^98^10501^98^10502^98^10503^98^10504^98^10505^98^10506^98^10507^98^10508^98^10509^98^10510^98^10511^98^10512^98^10513^98^10514^98^10515^98^10516^98^10517^98^10518^98^10519^98^10520^98^10521^98^10522^98^10523^98^10524^98^10525^98^10526^98^10527^98^10528^98^10529^98^10530^98^10531^98^10532^98^10533^98^10534^98^10535^98^10536^98^10537^98^10538^98^10539^98^10540^98^10541^98^10542^98^10543^98^10544^98^10545^98^10546^98^10547^98^10548^98^10549^98^10550^98 | I81: 0 | J81: 110006^20|110005^5 | K81: 80003
A82: 30103 | B82: 3 | C82: 3 | D82: 2 | E82: 2 | F82: 10200^99^10201^99^10202^99^10203^99^10204^98^10205^98^10206^98^10207^98^10208^98^10209^98^10210^98^10211^98^10212^98^10213^98^10214^98^10215^98^10216^98^10217^98^10218^98^10219^98^10220^98^10221^98^10222^98^10223^98^10224^98^10225^98^10226^98^10227^98^10228^98^10229^98^10230^98^10231^98^10232^98^10233^98^10234^98^10235^98^10236^98^10237^98^10238^98^10239^98^10240^98^10241^98^10242^98^10243^98^10244^98^10245^98^10246^98^10247^98^10248^98^10249^98^10250^98^10300^98^10301^98^10302^98^10303^98^10304^98^10305^98^10306^98^10307^98^10308^98^10309^98^10310^98^10311^98^10312^98^10313^98^10314^98^10315^98^10316^98^10317^98^10318^98^10319^98^10320^98^10321^98^10322^98^10323^98^10324^98^10325^98^10326^98^10327^98^10328^98^10329^98^10330^98^10331^98^10332^98^10333^98^10334^98^10335^98^10336^98^10337^98^10338^98^10339^98^10340^98^10341^98^10342^98^10343^98^10344^98^10345^98^10346^98^10347^98^10348^98^10349^98^10350^98 | G82: 10100^197^10101^197^10102^197^10103^197^10104^196^10105^196^10106^196^10107^196^10108^196^10109^196^10110^196^10111^196^10112^196^10113^196^10114^196^10115^196^10116^196^10117^196^10118^196^10119^196^10120^196^10121^196^10122^196^10123^196^10124^196^10125^196^10126^196^10127^196^10128^196^10129^196^10130^196^10131^196^10132^196^10133^196^10134^196^10135^196^10136^196^10137^196^10138^196^10139^196^10140^196^10141^196^10142^196^10143^196^10144^196^10145^196^10146^196^10147^196^10148^196^10149^196^10150^196 | H82: 10400^99^10401^99^10402^99^10403^99^10404^98^10405^98^10406^98^10407^98^10408^98^10409^98^10410^98^10411^98^10412^98^10413^98^10414^98^10415^98^10416^98^10417^98^10418^98^10419^98^10420^98^10421^98^10422^98^10423^98^10424^98^10425^98^10426^98^10427^98^10428^98^10429^98^10430^98^10431^98^10432^98^10433^98^10434^98^10435^98^10436^98^10437^98^10438^98^10439^98^10440^98^10441^98^10442^98^10443^98^10444^98^10445^98^10446^98^10447^98^10448^98^10449^98^10450^98^10500^98^10501^98^10502^98^10503^98^10504^98^10505^98^10506^98^10507^98^10508^98^10509^98^10510^98^10511^98^10512^98^10513^98^10514^98^10515^98^10516^98^10517^98^10518^98^10519^98^10520^98^10521^98^10522^98^10523^98^10524^98^10525^98^10526^98^10527^98^10528^98^10529^98^10530^98^10531^98^10532^98^10533^98^10534^98^10535^98^10536^98^10537^98^10538^98^10539^98^10540^98^10541^98^10542^98^10543^98^10544^98^10545^98^10546^98^10547^98^10548^98^10549^98^10550^98 | I82: 0 | J82: 110006^80|110005^5 | K82: 80003
A83: 30104 | B83: 4 | C83: 3 | D83: 2 | E83: 3 | F83: 0 | G83: 0 | H83: 0 | I83: 110006^90|100001^12000|110005^10 | J83: 110006^90|100001^12000|110005^10 | K83: 0
A84: 30105 | B84: 5 | C84: 3 | D84: 2 | E84: 4 | F84: 0 | G84: 0 | H84: 0 | I84: 0 | J84: 0 | K84: 0
A85: 30106 | B85: 6 | C85: 3 | D85: 2 | E85: 3 | F85: 0 | G85: 0 | H85: 0 | I85: 110006^90|100001^12000|110005^10 | J85: 110006^90|100001^12000|110005^10 | K85: 0
A86: 30107 | B86: 7 | C86: 3 | D86: 2 | E86: 5 | F86: 0 | G86: 0 | H86: 0 | I86: 0 | J86: 130001^110 | K86: 0
A87: 30108 | B87: 8 | C87: 3 | D87: 2 | E87: 6 | F87: 0 | G87: 0 | H87: 0 | I87: 0 | J87: 0 | K87: 80015
A88: 30109 | B88: 9 | C88: 3 | D88: 2 | E88: 2 | F88: 10200^99^10201^99^10202^99^10203^99^10204^98^10205^98^10206^98^10207^98^10208^98^10209^98^10210^98^10211^98^10212^98^10213^98^10214^98^10215^98^10216^98^10217^98^10218^98^10219^98^10220^98^10221^98^10222^98^10223^98^10224^98^10225^98^10226^98^10227^98^10228^98^10229^98^10230^98^10231^98^10232^98^10233^98^10234^98^10235^98^10236^98^10237^98^10238^98^10239^98^10240^98^10241^98^10242^98^10243^98^10244^98^10245^98^10246^98^10247^98^10248^98^10249^98^10250^98^10300^98^10301^98^10302^98^10303^98^10304^98^10305^98^10306^98^10307^98^10308^98^10309^98^10310^98^10311^98^10312^98^10313^98^10314^98^10315^98^10316^98^10317^98^10318^98^10319^98^10320^98^10321^98^10322^98^10323^98^10324^98^10325^98^10326^98^10327^98^10328^98^10329^98^10330^98^10331^98^10332^98^10333^98^10334^98^10335^98^10336^98^10337^98^10338^98^10339^98^10340^98^10341^98^10342^98^10343^98^10344^98^10345^98^10346^98^10347^98^10348^98^10349^98^10350^98 | G88: 10100^197^10101^197^10102^197^10103^197^10104^196^10105^196^10106^196^10107^196^10108^196^10109^196^10110^196^10111^196^10112^196^10113^196^10114^196^10115^196^10116^196^10117^196^10118^196^10119^196^10120^196^10121^196^10122^196^10123^196^10124^196^10125^196^10126^196^10127^196^10128^196^10129^196^10130^196^10131^196^10132^196^10133^196^10134^196^10135^196^10136^196^10137^196^10138^196^10139^196^10140^196^10141^196^10142^196^10143^196^10144^196^10145^196^10146^196^10147^196^10148^196^10149^196^10150^196 | H88: 10400^99^10401^99^10402^99^10403^99^10404^98^10405^98^10406^98^10407^98^10408^98^10409^98^10410^98^10411^98^10412^98^10413^98^10414^98^10415^98^10416^98^10417^98^10418^98^10419^98^10420^98^10421^98^10422^98^10423^98^10424^98^10425^98^10426^98^10427^98^10428^98^10429^98^10430^98^10431^98^10432^98^10433^98^10434^98^10435^98^10436^98^10437^98^10438^98^10439^98^10440^98^10441^98^10442^98^10443^98^10444^98^10445^98^10446^98^10447^98^10448^98^10449^98^10450^98^10500^98^10501^98^10502^98^10503^98^10504^98^10505^98^10506^98^10507^98^10508^98^10509^98^10510^98^10511^98^10512^98^10513^98^10514^98^10515^98^10516^98^10517^98^10518^98^10519^98^10520^98^10521^98^10522^98^10523^98^10524^98^10525^98^10526^98^10527^98^10528^98^10529^98^10530^98^10531^98^10532^98^10533^98^10534^98^10535^98^10536^98^10537^98^10538^98^10539^98^10540^98^10541^98^10542^98^10543^98^10544^98^10545^98^10546^98^10547^98^10548^98^10549^98^10550^98 | I88: 0 | J88: 110006^80|110005^5 | K88: 80003
A89: 30110 | B89: 10 | C89: 3 | D89: 2 | E89: 1 | F89: 10200^99^10201^99^10202^99^10203^99^10204^98^10205^98^10206^98^10207^98^10208^98^10209^98^10210^98^10211^98^10212^98^10213^98^10214^98^10215^98^10216^98^10217^98^10218^98^10219^98^10220^98^10221^98^10222^98^10223^98^10224^98^10225^98^10226^98^10227^98^10228^98^10229^98^10230^98^10231^98^10232^98^10233^98^10234^98^10235^98^10236^98^10237^98^10238^98^10239^98^10240^98^10241^98^10242^98^10243^98^10244^98^10245^98^10246^98^10247^98^10248^98^10249^98^10250^98^10300^98^10301^98^10302^98^10303^98^10304^98^10305^98^10306^98^10307^98^10308^98^10309^98^10310^98^10311^98^10312^98^10313^98^10314^98^10315^98^10316^98^10317^98^10318^98^10319^98^10320^98^10321^98^10322^98^10323^98^10324^98^10325^98^10326^98^10327^98^10328^98^10329^98^10330^98^10331^98^10332^98^10333^98^10334^98^10335^98^10336^98^10337^98^10338^98^10339^98^10340^98^10341^98^10342^98^10343^98^10344^98^10345^98^10346^98^10347^98^10348^98^10349^98^10350^98 | G89: 10100^197^10101^197^10102^197^10103^197^10104^196^10105^196^10106^196^10107^196^10108^196^10109^196^10110^196^10111^196^10112^196^10113^196^10114^196^10115^196^10116^196^10117^196^10118^196^10119^196^10120^196^10121^196^10122^196^10123^196^10124^196^10125^196^10126^196^10127^196^10128^196^10129^196^10130^196^10131^196^10132^196^10133^196^10134^196^10135^196^10136^196^10137^196^10138^196^10139^196^10140^196^10141^196^10142^196^10143^196^10144^196^10145^196^10146^196^10147^196^10148^196^10149^196^10150^196 | H89: 10400^99^10401^99^10402^99^10403^99^10404^98^10405^98^10406^98^10407^98^10408^98^10409^98^10410^98^10411^98^10412^98^10413^98^10414^98^10415^98^10416^98^10417^98^10418^98^10419^98^10420^98^10421^98^10422^98^10423^98^10424^98^10425^98^10426^98^10427^98^10428^98^10429^98^10430^98^10431^98^10432^98^10433^98^10434^98^10435^98^10436^98^10437^98^10438^98^10439^98^10440^98^10441^98^10442^98^10443^98^10444^98^10445^98^10446^98^10447^98^10448^98^10449^98^10450^98^10500^98^10501^98^10502^98^10503^98^10504^98^10505^98^10506^98^10507^98^10508^98^10509^98^10510^98^10511^98^10512^98^10513^98^10514^98^10515^98^10516^98^10517^98^10518^98^10519^98^10520^98^10521^98^10522^98^10523^98^10524^98^10525^98^10526^98^10527^98^10528^98^10529^98^10530^98^10531^98^10532^98^10533^98^10534^98^10535^98^10536^98^10537^98^10538^98^10539^98^10540^98^10541^98^10542^98^10543^98^10544^98^10545^98^10546^98^10547^98^10548^98^10549^98^10550^98 | I89: 0 | J89: 110006^20|110005^5 | K89: 80003
A90: 30111 | B90: 11 | C90: 3 | D90: 2 | E90: 7 | F90: 10200^99^10201^99^10202^99^10203^99^10204^98^10205^98^10206^98^10207^98^10208^98^10209^98^10210^98^10211^98^10212^98^10213^98^10214^98^10215^98^10216^98^10217^98^10218^98^10219^98^10220^98^10221^98^10222^98^10223^98^10224^98^10225^98^10226^98^10227^98^10228^98^10229^98^10230^98^10231^98^10232^98^10233^98^10234^98^10235^98^10236^98^10237^98^10238^98^10239^98^10240^98^10241^98^10242^98^10243^98^10244^98^10245^98^10246^98^10247^98^10248^98^10249^98^10250^98^10300^98^10301^98^10302^98^10303^98^10304^98^10305^98^10306^98^10307^98^10308^98^10309^98^10310^98^10311^98^10312^98^10313^98^10314^98^10315^98^10316^98^10317^98^10318^98^10319^98^10320^98^10321^98^10322^98^10323^98^10324^98^10325^98^10326^98^10327^98^10328^98^10329^98^10330^98^10331^98^10332^98^10333^98^10334^98^10335^98^10336^98^10337^98^10338^98^10339^98^10340^98^10341^98^10342^98^10343^98^10344^98^10345^98^10346^98^10347^98^10348^98^10349^98^10350^98 | G90: 10100^197^10101^197^10102^197^10103^197^10104^196^10105^196^10106^196^10107^196^10108^196^10109^196^10110^196^10111^196^10112^196^10113^196^10114^196^10115^196^10116^196^10117^196^10118^196^10119^196^10120^196^10121^196^10122^196^10123^196^10124^196^10125^196^10126^196^10127^196^10128^196^10129^196^10130^196^10131^196^10132^196^10133^196^10134^196^10135^196^10136^196^10137^196^10138^196^10139^196^10140^196^10141^196^10142^196^10143^196^10144^196^10145^196^10146^196^10147^196^10148^196^10149^196^10150^196 | H90: 10400^99^10401^99^10402^99^10403^99^10404^98^10405^98^10406^98^10407^98^10408^98^10409^98^10410^98^10411^98^10412^98^10413^98^10414^98^10415^98^10416^98^10417^98^10418^98^10419^98^10420^98^10421^98^10422^98^10423^98^10424^98^10425^98^10426^98^10427^98^10428^98^10429^98^10430^98^10431^98^10432^98^10433^98^10434^98^10435^98^10436^98^10437^98^10438^98^10439^98^10440^98^10441^98^10442^98^10443^98^10444^98^10445^98^10446^98^10447^98^10448^98^10449^98^10450^98^10500^98^10501^98^10502^98^10503^98^10504^98^10505^98^10506^98^10507^98^10508^98^10509^98^10510^98^10511^98^10512^98^10513^98^10514^98^10515^98^10516^98^10517^98^10518^98^10519^98^10520^98^10521^98^10522^98^10523^98^10524^98^10525^98^10526^98^10527^98^10528^98^10529^98^10530^98^10531^98^10532^98^10533^98^10534^98^10535^98^10536^98^10537^98^10538^98^10539^98^10540^98^10541^98^10542^98^10543^98^10544^98^10545^98^10546^98^10547^98^10548^98^10549^98^10550^98 | I90: 0 | J90: 110006^225|110005^20 | K90: 80009
A91: 30201 | B91: 1 | C91: 3 | D91: 3 | E91: 1 | F91: 10200^99^10201^99^10202^99^10203^99^10204^98^10205^98^10206^98^10207^98^10208^98^10209^98^10210^98^10211^98^10212^98^10213^98^10214^98^10215^98^10216^98^10217^98^10218^98^10219^98^10220^98^10221^98^10222^98^10223^98^10224^98^10225^98^10226^98^10227^98^10228^98^10229^98^10230^98^10231^98^10232^98^10233^98^10234^98^10235^98^10236^98^10237^98^10238^98^10239^98^10240^98^10241^98^10242^98^10243^98^10244^98^10245^98^10246^98^10247^98^10248^98^10249^98^10250^98^10300^98^10301^98^10302^98^10303^98^10304^98^10305^98^10306^98^10307^98^10308^98^10309^98^10310^98^10311^98^10312^98^10313^98^10314^98^10315^98^10316^98^10317^98^10318^98^10319^98^10320^98^10321^98^10322^98^10323^98^10324^98^10325^98^10326^98^10327^98^10328^98^10329^98^10330^98^10331^98^10332^98^10333^98^10334^98^10335^98^10336^98^10337^98^10338^98^10339^98^10340^98^10341^98^10342^98^10343^98^10344^98^10345^98^10346^98^10347^98^10348^98^10349^98^10350^98 | G91: 10100^197^10101^197^10102^197^10103^197^10104^196^10105^196^10106^196^10107^196^10108^196^10109^196^10110^196^10111^196^10112^196^10113^196^10114^196^10115^196^10116^196^10117^196^10118^196^10119^196^10120^196^10121^196^10122^196^10123^196^10124^196^10125^196^10126^196^10127^196^10128^196^10129^196^10130^196^10131^196^10132^196^10133^196^10134^196^10135^196^10136^196^10137^196^10138^196^10139^196^10140^196^10141^196^10142^196^10143^196^10144^196^10145^196^10146^196^10147^196^10148^196^10149^196^10150^196 | H91: 10400^99^10401^99^10402^99^10403^99^10404^98^10405^98^10406^98^10407^98^10408^98^10409^98^10410^98^10411^98^10412^98^10413^98^10414^98^10415^98^10416^98^10417^98^10418^98^10419^98^10420^98^10421^98^10422^98^10423^98^10424^98^10425^98^10426^98^10427^98^10428^98^10429^98^10430^98^10431^98^10432^98^10433^98^10434^98^10435^98^10436^98^10437^98^10438^98^10439^98^10440^98^10441^98^10442^98^10443^98^10444^98^10445^98^10446^98^10447^98^10448^98^10449^98^10450^98^10500^98^10501^98^10502^98^10503^98^10504^98^10505^98^10506^98^10507^98^10508^98^10509^98^10510^98^10511^98^10512^98^10513^98^10514^98^10515^98^10516^98^10517^98^10518^98^10519^98^10520^98^10521^98^10522^98^10523^98^10524^98^10525^98^10526^98^10527^98^10528^98^10529^98^10530^98^10531^98^10532^98^10533^98^10534^98^10535^98^10536^98^10537^98^10538^98^10539^98^10540^98^10541^98^10542^98^10543^98^10544^98^10545^98^10546^98^10547^98^10548^98^10549^98^10550^98 | I91: 0 | J91: 110006^20|110005^5 | K91: 80003
A92: 30202 | B92: 2 | C92: 3 | D92: 3 | E92: 1 | F92: 10200^99^10201^99^10202^99^10203^99^10204^98^10205^98^10206^98^10207^98^10208^98^10209^98^10210^98^10211^98^10212^98^10213^98^10214^98^10215^98^10216^98^10217^98^10218^98^10219^98^10220^98^10221^98^10222^98^10223^98^10224^98^10225^98^10226^98^10227^98^10228^98^10229^98^10230^98^10231^98^10232^98^10233^98^10234^98^10235^98^10236^98^10237^98^10238^98^10239^98^10240^98^10241^98^10242^98^10243^98^10244^98^10245^98^10246^98^10247^98^10248^98^10249^98^10250^98^10300^98^10301^98^10302^98^10303^98^10304^98^10305^98^10306^98^10307^98^10308^98^10309^98^10310^98^10311^98^10312^98^10313^98^10314^98^10315^98^10316^98^10317^98^10318^98^10319^98^10320^98^10321^98^10322^98^10323^98^10324^98^10325^98^10326^98^10327^98^10328^98^10329^98^10330^98^10331^98^10332^98^10333^98^10334^98^10335^98^10336^98^10337^98^10338^98^10339^98^10340^98^10341^98^10342^98^10343^98^10344^98^10345^98^10346^98^10347^98^10348^98^10349^98^10350^98 | G92: 10100^197^10101^197^10102^197^10103^197^10104^196^10105^196^10106^196^10107^196^10108^196^10109^196^10110^196^10111^196^10112^196^10113^196^10114^196^10115^196^10116^196^10117^196^10118^196^10119^196^10120^196^10121^196^10122^196^10123^196^10124^196^10125^196^10126^196^10127^196^10128^196^10129^196^10130^196^10131^196^10132^196^10133^196^10134^196^10135^196^10136^196^10137^196^10138^196^10139^196^10140^196^10141^196^10142^196^10143^196^10144^196^10145^196^10146^196^10147^196^10148^196^10149^196^10150^196 | H92: 10400^99^10401^99^10402^99^10403^99^10404^98^10405^98^10406^98^10407^98^10408^98^10409^98^10410^98^10411^98^10412^98^10413^98^10414^98^10415^98^10416^98^10417^98^10418^98^10419^98^10420^98^10421^98^10422^98^10423^98^10424^98^10425^98^10426^98^10427^98^10428^98^10429^98^10430^98^10431^98^10432^98^10433^98^10434^98^10435^98^10436^98^10437^98^10438^98^10439^98^10440^98^10441^98^10442^98^10443^98^10444^98^10445^98^10446^98^10447^98^10448^98^10449^98^10450^98^10500^98^10501^98^10502^98^10503^98^10504^98^10505^98^10506^98^10507^98^10508^98^10509^98^10510^98^10511^98^10512^98^10513^98^10514^98^10515^98^10516^98^10517^98^10518^98^10519^98^10520^98^10521^98^10522^98^10523^98^10524^98^10525^98^10526^98^10527^98^10528^98^10529^98^10530^98^10531^98^10532^98^10533^98^10534^98^10535^98^10536^98^10537^98^10538^98^10539^98^10540^98^10541^98^10542^98^10543^98^10544^98^10545^98^10546^98^10547^98^10548^98^10549^98^10550^98 | I92: 0 | J92: 110006^20|110005^5 | K92: 80003
A93: 30203 | B93: 3 | C93: 3 | D93: 3 | E93: 2 | F93: 10200^99^10201^99^10202^99^10203^99^10204^98^10205^98^10206^98^10207^98^10208^98^10209^98^10210^98^10211^98^10212^98^10213^98^10214^98^10215^98^10216^98^10217^98^10218^98^10219^98^10220^98^10221^98^10222^98^10223^98^10224^98^10225^98^10226^98^10227^98^10228^98^10229^98^10230^98^10231^98^10232^98^10233^98^10234^98^10235^98^10236^98^10237^98^10238^98^10239^98^10240^98^10241^98^10242^98^10243^98^10244^98^10245^98^10246^98^10247^98^10248^98^10249^98^10250^98^10300^98^10301^98^10302^98^10303^98^10304^98^10305^98^10306^98^10307^98^10308^98^10309^98^10310^98^10311^98^10312^98^10313^98^10314^98^10315^98^10316^98^10317^98^10318^98^10319^98^10320^98^10321^98^10322^98^10323^98^10324^98^10325^98^10326^98^10327^98^10328^98^10329^98^10330^98^10331^98^10332^98^10333^98^10334^98^10335^98^10336^98^10337^98^10338^98^10339^98^10340^98^10341^98^10342^98^10343^98^10344^98^10345^98^10346^98^10347^98^10348^98^10349^98^10350^98 | G93: 10100^197^10101^197^10102^197^10103^197^10104^196^10105^196^10106^196^10107^196^10108^196^10109^196^10110^196^10111^196^10112^196^10113^196^10114^196^10115^196^10116^196^10117^196^10118^196^10119^196^10120^196^10121^196^10122^196^10123^196^10124^196^10125^196^10126^196^10127^196^10128^196^10129^196^10130^196^10131^196^10132^196^10133^196^10134^196^10135^196^10136^196^10137^196^10138^196^10139^196^10140^196^10141^196^10142^196^10143^196^10144^196^10145^196^10146^196^10147^196^10148^196^10149^196^10150^196 | H93: 10400^99^10401^99^10402^99^10403^99^10404^98^10405^98^10406^98^10407^98^10408^98^10409^98^10410^98^10411^98^10412^98^10413^98^10414^98^10415^98^10416^98^10417^98^10418^98^10419^98^10420^98^10421^98^10422^98^10423^98^10424^98^10425^98^10426^98^10427^98^10428^98^10429^98^10430^98^10431^98^10432^98^10433^98^10434^98^10435^98^10436^98^10437^98^10438^98^10439^98^10440^98^10441^98^10442^98^10443^98^10444^98^10445^98^10446^98^10447^98^10448^98^10449^98^10450^98^10500^98^10501^98^10502^98^10503^98^10504^98^10505^98^10506^98^10507^98^10508^98^10509^98^10510^98^10511^98^10512^98^10513^98^10514^98^10515^98^10516^98^10517^98^10518^98^10519^98^10520^98^10521^98^10522^98^10523^98^10524^98^10525^98^10526^98^10527^98^10528^98^10529^98^10530^98^10531^98^10532^98^10533^98^10534^98^10535^98^10536^98^10537^98^10538^98^10539^98^10540^98^10541^98^10542^98^10543^98^10544^98^10545^98^10546^98^10547^98^10548^98^10549^98^10550^98 | I93: 0 | J93: 110006^80|110005^5 | K93: 80003
A94: 30204 | B94: 4 | C94: 3 | D94: 3 | E94: 3 | F94: 0 | G94: 0 | H94: 0 | I94: 110006^90|100001^12000|110005^10 | J94: 110006^90|100001^12000|110005^10 | K94: 0
A95: 30205 | B95: 5 | C95: 3 | D95: 3 | E95: 4 | F95: 0 | G95: 0 | H95: 0 | I95: 0 | J95: 0 | K95: 0
A96: 30206 | B96: 6 | C96: 3 | D96: 3 | E96: 3 | F96: 0 | G96: 0 | H96: 0 | I96: 110006^90|100001^12000|110005^10 | J96: 110006^90|100001^12000|110005^10 | K96: 0
A97: 30207 | B97: 7 | C97: 3 | D97: 3 | E97: 5 | F97: 0 | G97: 0 | H97: 0 | I97: 0 | J97: 130001^110 | K97: 0
A98: 30208 | B98: 8 | C98: 3 | D98: 3 | E98: 6 | F98: 0 | G98: 0 | H98: 0 | I98: 0 | J98: 0 | K98: 80015
A99: 30209 | B99: 9 | C99: 3 | D99: 3 | E99: 2 | F99: 10200^99^10201^99^10202^99^10203^99^10204^98^10205^98^10206^98^10207^98^10208^98^10209^98^10210^98^10211^98^10212^98^10213^98^10214^98^10215^98^10216^98^10217^98^10218^98^10219^98^10220^98^10221^98^10222^98^10223^98^10224^98^10225^98^10226^98^10227^98^10228^98^10229^98^10230^98^10231^98^10232^98^10233^98^10234^98^10235^98^10236^98^10237^98^10238^98^10239^98^10240^98^10241^98^10242^98^10243^98^10244^98^10245^98^10246^98^10247^98^10248^98^10249^98^10250^98^10300^98^10301^98^10302^98^10303^98^10304^98^10305^98^10306^98^10307^98^10308^98^10309^98^10310^98^10311^98^10312^98^10313^98^10314^98^10315^98^10316^98^10317^98^10318^98^10319^98^10320^98^10321^98^10322^98^10323^98^10324^98^10325^98^10326^98^10327^98^10328^98^10329^98^10330^98^10331^98^10332^98^10333^98^10334^98^10335^98^10336^98^10337^98^10338^98^10339^98^10340^98^10341^98^10342^98^10343^98^10344^98^10345^98^10346^98^10347^98^10348^98^10349^98^10350^98 | G99: 10100^197^10101^197^10102^197^10103^197^10104^196^10105^196^10106^196^10107^196^10108^196^10109^196^10110^196^10111^196^10112^196^10113^196^10114^196^10115^196^10116^196^10117^196^10118^196^10119^196^10120^196^10121^196^10122^196^10123^196^10124^196^10125^196^10126^196^10127^196^10128^196^10129^196^10130^196^10131^196^10132^196^10133^196^10134^196^10135^196^10136^196^10137^196^10138^196^10139^196^10140^196^10141^196^10142^196^10143^196^10144^196^10145^196^10146^196^10147^196^10148^196^10149^196^10150^196 | H99: 10400^99^10401^99^10402^99^10403^99^10404^98^10405^98^10406^98^10407^98^10408^98^10409^98^10410^98^10411^98^10412^98^10413^98^10414^98^10415^98^10416^98^10417^98^10418^98^10419^98^10420^98^10421^98^10422^98^10423^98^10424^98^10425^98^10426^98^10427^98^10428^98^10429^98^10430^98^10431^98^10432^98^10433^98^10434^98^10435^98^10436^98^10437^98^10438^98^10439^98^10440^98^10441^98^10442^98^10443^98^10444^98^10445^98^10446^98^10447^98^10448^98^10449^98^10450^98^10500^98^10501^98^10502^98^10503^98^10504^98^10505^98^10506^98^10507^98^10508^98^10509^98^10510^98^10511^98^10512^98^10513^98^10514^98^10515^98^10516^98^10517^98^10518^98^10519^98^10520^98^10521^98^10522^98^10523^98^10524^98^10525^98^10526^98^10527^98^10528^98^10529^98^10530^98^10531^98^10532^98^10533^98^10534^98^10535^98^10536^98^10537^98^10538^98^10539^98^10540^98^10541^98^10542^98^10543^98^10544^98^10545^98^10546^98^10547^98^10548^98^10549^98^10550^98 | I99: 0 | J99: 110006^80|110005^5 | K99: 80003
A100: 30210 | B100: 10 | C100: 3 | D100: 3 | E100: 1 | F100: 10200^99^10201^99^10202^99^10203^99^10204^98^10205^98^10206^98^10207^98^10208^98^10209^98^10210^98^10211^98^10212^98^10213^98^10214^98^10215^98^10216^98^10217^98^10218^98^10219^98^10220^98^10221^98^10222^98^10223^98^10224^98^10225^98^10226^98^10227^98^10228^98^10229^98^10230^98^10231^98^10232^98^10233^98^10234^98^10235^98^10236^98^10237^98^10238^98^10239^98^10240^98^10241^98^10242^98^10243^98^10244^98^10245^98^10246^98^10247^98^10248^98^10249^98^10250^98^10300^98^10301^98^10302^98^10303^98^10304^98^10305^98^10306^98^10307^98^10308^98^10309^98^10310^98^10311^98^10312^98^10313^98^10314^98^10315^98^10316^98^10317^98^10318^98^10319^98^10320^98^10321^98^10322^98^10323^98^10324^98^10325^98^10326^98^10327^98^10328^98^10329^98^10330^98^10331^98^10332^98^10333^98^10334^98^10335^98^10336^98^10337^98^10338^98^10339^98^10340^98^10341^98^10342^98^10343^98^10344^98^10345^98^10346^98^10347^98^10348^98^10349^98^10350^98 | G100: 10100^197^10101^197^10102^197^10103^197^10104^196^10105^196^10106^196^10107^196^10108^196^10109^196^10110^196^10111^196^10112^196^10113^196^10114^196^10115^196^10116^196^10117^196^10118^196^10119^196^10120^196^10121^196^10122^196^10123^196^10124^196^10125^196^10126^196^10127^196^10128^196^10129^196^10130^196^10131^196^10132^196^10133^196^10134^196^10135^196^10136^196^10137^196^10138^196^10139^196^10140^196^10141^196^10142^196^10143^196^10144^196^10145^196^10146^196^10147^196^10148^196^10149^196^10150^196 | H100: 10400^99^10401^99^10402^99^10403^99^10404^98^10405^98^10406^98^10407^98^10408^98^10409^98^10410^98^10411^98^10412^98^10413^98^10414^98^10415^98^10416^98^10417^98^10418^98^10419^98^10420^98^10421^98^10422^98^10423^98^10424^98^10425^98^10426^98^10427^98^10428^98^10429^98^10430^98^10431^98^10432^98^10433^98^10434^98^10435^98^10436^98^10437^98^10438^98^10439^98^10440^98^10441^98^10442^98^10443^98^10444^98^10445^98^10446^98^10447^98^10448^98^10449^98^10450^98^10500^98^10501^98^10502^98^10503^98^10504^98^10505^98^10506^98^10507^98^10508^98^10509^98^10510^98^10511^98^10512^98^10513^98^10514^98^10515^98^10516^98^10517^98^10518^98^10519^98^10520^98^10521^98^10522^98^10523^98^10524^98^10525^98^10526^98^10527^98^10528^98^10529^98^10530^98^10531^98^10532^98^10533^98^10534^98^10535^98^10536^98^10537^98^10538^98^10539^98^10540^98^10541^98^10542^98^10543^98^10544^98^10545^98^10546^98^10547^98^10548^98^10549^98^10550^98 | I100: 0 | J100: 110006^20|110005^5 | K100: 80003
A101: 30211 | B101: 11 | C101: 3 | D101: 3 | E101: 7 | F101: 10200^99^10201^99^10202^99^10203^99^10204^98^10205^98^10206^98^10207^98^10208^98^10209^98^10210^98^10211^98^10212^98^10213^98^10214^98^10215^98^10216^98^10217^98^10218^98^10219^98^10220^98^10221^98^10222^98^10223^98^10224^98^10225^98^10226^98^10227^98^10228^98^10229^98^10230^98^10231^98^10232^98^10233^98^10234^98^10235^98^10236^98^10237^98^10238^98^10239^98^10240^98^10241^98^10242^98^10243^98^10244^98^10245^98^10246^98^10247^98^10248^98^10249^98^10250^98^10300^98^10301^98^10302^98^10303^98^10304^98^10305^98^10306^98^10307^98^10308^98^10309^98^10310^98^10311^98^10312^98^10313^98^10314^98^10315^98^10316^98^10317^98^10318^98^10319^98^10320^98^10321^98^10322^98^10323^98^10324^98^10325^98^10326^98^10327^98^10328^98^10329^98^10330^98^10331^98^10332^98^10333^98^10334^98^10335^98^10336^98^10337^98^10338^98^10339^98^10340^98^10341^98^10342^98^10343^98^10344^98^10345^98^10346^98^10347^98^10348^98^10349^98^10350^98 | G101: 10100^197^10101^197^10102^197^10103^197^10104^196^10105^196^10106^196^10107^196^10108^196^10109^196^10110^196^10111^196^10112^196^10113^196^10114^196^10115^196^10116^196^10117^196^10118^196^10119^196^10120^196^10121^196^10122^196^10123^196^10124^196^10125^196^10126^196^10127^196^10128^196^10129^196^10130^196^10131^196^10132^196^10133^196^10134^196^10135^196^10136^196^10137^196^10138^196^10139^196^10140^196^10141^196^10142^196^10143^196^10144^196^10145^196^10146^196^10147^196^10148^196^10149^196^10150^196 | H101: 10400^99^10401^99^10402^99^10403^99^10404^98^10405^98^10406^98^10407^98^10408^98^10409^98^10410^98^10411^98^10412^98^10413^98^10414^98^10415^98^10416^98^10417^98^10418^98^10419^98^10420^98^10421^98^10422^98^10423^98^10424^98^10425^98^10426^98^10427^98^10428^98^10429^98^10430^98^10431^98^10432^98^10433^98^10434^98^10435^98^10436^98^10437^98^10438^98^10439^98^10440^98^10441^98^10442^98^10443^98^10444^98^10445^98^10446^98^10447^98^10448^98^10449^98^10450^98^10500^98^10501^98^10502^98^10503^98^10504^98^10505^98^10506^98^10507^98^10508^98^10509^98^10510^98^10511^98^10512^98^10513^98^10514^98^10515^98^10516^98^10517^98^10518^98^10519^98^10520^98^10521^98^10522^98^10523^98^10524^98^10525^98^10526^98^10527^98^10528^98^10529^98^10530^98^10531^98^10532^98^10533^98^10534^98^10535^98^10536^98^10537^98^10538^98^10539^98^10540^98^10541^98^10542^98^10543^98^10544^98^10545^98^10546^98^10547^98^10548^98^10549^98^10550^98 | I101: 0 | J101: 110006^225|110005^20 | K101: 80009
A102: 40001 | B102: 1 | C102: 4 | D102: 1 | E102: 1 | F102: 10200^99^10201^99^10202^99^10203^99^10204^98^10205^98^10206^98^10207^98^10208^98^10209^98^10210^98^10211^98^10212^98^10213^98^10214^98^10215^98^10216^98^10217^98^10218^98^10219^98^10220^98^10221^98^10222^98^10223^98^10224^98^10225^98^10226^98^10227^98^10228^98^10229^98^10230^98^10231^98^10232^98^10233^98^10234^98^10235^98^10236^98^10237^98^10238^98^10239^98^10240^98^10241^98^10242^98^10243^98^10244^98^10245^98^10246^98^10247^98^10248^98^10249^98^10250^98^10300^98^10301^98^10302^98^10303^98^10304^98^10305^98^10306^98^10307^98^10308^98^10309^98^10310^98^10311^98^10312^98^10313^98^10314^98^10315^98^10316^98^10317^98^10318^98^10319^98^10320^98^10321^98^10322^98^10323^98^10324^98^10325^98^10326^98^10327^98^10328^98^10329^98^10330^98^10331^98^10332^98^10333^98^10334^98^10335^98^10336^98^10337^98^10338^98^10339^98^10340^98^10341^98^10342^98^10343^98^10344^98^10345^98^10346^98^10347^98^10348^98^10349^98^10350^98 | G102: 10100^197^10101^197^10102^197^10103^197^10104^196^10105^196^10106^196^10107^196^10108^196^10109^196^10110^196^10111^196^10112^196^10113^196^10114^196^10115^196^10116^196^10117^196^10118^196^10119^196^10120^196^10121^196^10122^196^10123^196^10124^196^10125^196^10126^196^10127^196^10128^196^10129^196^10130^196^10131^196^10132^196^10133^196^10134^196^10135^196^10136^196^10137^196^10138^196^10139^196^10140^196^10141^196^10142^196^10143^196^10144^196^10145^196^10146^196^10147^196^10148^196^10149^196^10150^196 | H102: 10400^99^10401^99^10402^99^10403^99^10404^98^10405^98^10406^98^10407^98^10408^98^10409^98^10410^98^10411^98^10412^98^10413^98^10414^98^10415^98^10416^98^10417^98^10418^98^10419^98^10420^98^10421^98^10422^98^10423^98^10424^98^10425^98^10426^98^10427^98^10428^98^10429^98^10430^98^10431^98^10432^98^10433^98^10434^98^10435^98^10436^98^10437^98^10438^98^10439^98^10440^98^10441^98^10442^98^10443^98^10444^98^10445^98^10446^98^10447^98^10448^98^10449^98^10450^98^10500^98^10501^98^10502^98^10503^98^10504^98^10505^98^10506^98^10507^98^10508^98^10509^98^10510^98^10511^98^10512^98^10513^98^10514^98^10515^98^10516^98^10517^98^10518^98^10519^98^10520^98^10521^98^10522^98^10523^98^10524^98^10525^98^10526^98^10527^98^10528^98^10529^98^10530^98^10531^98^10532^98^10533^98^10534^98^10535^98^10536^98^10537^98^10538^98^10539^98^10540^98^10541^98^10542^98^10543^98^10544^98^10545^98^10546^98^10547^98^10548^98^10549^98^10550^98 | I102: 0 | J102: 110006^25|110005^5 | K102: 80004
A103: 40002 | B103: 2 | C103: 4 | D103: 1 | E103: 1 | F103: 10200^99^10201^99^10202^99^10203^99^10204^98^10205^98^10206^98^10207^98^10208^98^10209^98^10210^98^10211^98^10212^98^10213^98^10214^98^10215^98^10216^98^10217^98^10218^98^10219^98^10220^98^10221^98^10222^98^10223^98^10224^98^10225^98^10226^98^10227^98^10228^98^10229^98^10230^98^10231^98^10232^98^10233^98^10234^98^10235^98^10236^98^10237^98^10238^98^10239^98^10240^98^10241^98^10242^98^10243^98^10244^98^10245^98^10246^98^10247^98^10248^98^10249^98^10250^98^10300^98^10301^98^10302^98^10303^98^10304^98^10305^98^10306^98^10307^98^10308^98^10309^98^10310^98^10311^98^10312^98^10313^98^10314^98^10315^98^10316^98^10317^98^10318^98^10319^98^10320^98^10321^98^10322^98^10323^98^10324^98^10325^98^10326^98^10327^98^10328^98^10329^98^10330^98^10331^98^10332^98^10333^98^10334^98^10335^98^10336^98^10337^98^10338^98^10339^98^10340^98^10341^98^10342^98^10343^98^10344^98^10345^98^10346^98^10347^98^10348^98^10349^98^10350^98 | G103: 10100^197^10101^197^10102^197^10103^197^10104^196^10105^196^10106^196^10107^196^10108^196^10109^196^10110^196^10111^196^10112^196^10113^196^10114^196^10115^196^10116^196^10117^196^10118^196^10119^196^10120^196^10121^196^10122^196^10123^196^10124^196^10125^196^10126^196^10127^196^10128^196^10129^196^10130^196^10131^196^10132^196^10133^196^10134^196^10135^196^10136^196^10137^196^10138^196^10139^196^10140^196^10141^196^10142^196^10143^196^10144^196^10145^196^10146^196^10147^196^10148^196^10149^196^10150^196 | H103: 10400^99^10401^99^10402^99^10403^99^10404^98^10405^98^10406^98^10407^98^10408^98^10409^98^10410^98^10411^98^10412^98^10413^98^10414^98^10415^98^10416^98^10417^98^10418^98^10419^98^10420^98^10421^98^10422^98^10423^98^10424^98^10425^98^10426^98^10427^98^10428^98^10429^98^10430^98^10431^98^10432^98^10433^98^10434^98^10435^98^10436^98^10437^98^10438^98^10439^98^10440^98^10441^98^10442^98^10443^98^10444^98^10445^98^10446^98^10447^98^10448^98^10449^98^10450^98^10500^98^10501^98^10502^98^10503^98^10504^98^10505^98^10506^98^10507^98^10508^98^10509^98^10510^98^10511^98^10512^98^10513^98^10514^98^10515^98^10516^98^10517^98^10518^98^10519^98^10520^98^10521^98^10522^98^10523^98^10524^98^10525^98^10526^98^10527^98^10528^98^10529^98^10530^98^10531^98^10532^98^10533^98^10534^98^10535^98^10536^98^10537^98^10538^98^10539^98^10540^98^10541^98^10542^98^10543^98^10544^98^10545^98^10546^98^10547^98^10548^98^10549^98^10550^98 | I103: 0 | J103: 110006^25|110005^5 | K103: 80004
A104: 40003 | B104: 3 | C104: 4 | D104: 1 | E104: 2 | F104: 10200^99^10201^99^10202^99^10203^99^10204^98^10205^98^10206^98^10207^98^10208^98^10209^98^10210^98^10211^98^10212^98^10213^98^10214^98^10215^98^10216^98^10217^98^10218^98^10219^98^10220^98^10221^98^10222^98^10223^98^10224^98^10225^98^10226^98^10227^98^10228^98^10229^98^10230^98^10231^98^10232^98^10233^98^10234^98^10235^98^10236^98^10237^98^10238^98^10239^98^10240^98^10241^98^10242^98^10243^98^10244^98^10245^98^10246^98^10247^98^10248^98^10249^98^10250^98^10300^98^10301^98^10302^98^10303^98^10304^98^10305^98^10306^98^10307^98^10308^98^10309^98^10310^98^10311^98^10312^98^10313^98^10314^98^10315^98^10316^98^10317^98^10318^98^10319^98^10320^98^10321^98^10322^98^10323^98^10324^98^10325^98^10326^98^10327^98^10328^98^10329^98^10330^98^10331^98^10332^98^10333^98^10334^98^10335^98^10336^98^10337^98^10338^98^10339^98^10340^98^10341^98^10342^98^10343^98^10344^98^10345^98^10346^98^10347^98^10348^98^10349^98^10350^98 | G104: 10100^197^10101^197^10102^197^10103^197^10104^196^10105^196^10106^196^10107^196^10108^196^10109^196^10110^196^10111^196^10112^196^10113^196^10114^196^10115^196^10116^196^10117^196^10118^196^10119^196^10120^196^10121^196^10122^196^10123^196^10124^196^10125^196^10126^196^10127^196^10128^196^10129^196^10130^196^10131^196^10132^196^10133^196^10134^196^10135^196^10136^196^10137^196^10138^196^10139^196^10140^196^10141^196^10142^196^10143^196^10144^196^10145^196^10146^196^10147^196^10148^196^10149^196^10150^196 | H104: 10400^99^10401^99^10402^99^10403^99^10404^98^10405^98^10406^98^10407^98^10408^98^10409^98^10410^98^10411^98^10412^98^10413^98^10414^98^10415^98^10416^98^10417^98^10418^98^10419^98^10420^98^10421^98^10422^98^10423^98^10424^98^10425^98^10426^98^10427^98^10428^98^10429^98^10430^98^10431^98^10432^98^10433^98^10434^98^10435^98^10436^98^10437^98^10438^98^10439^98^10440^98^10441^98^10442^98^10443^98^10444^98^10445^98^10446^98^10447^98^10448^98^10449^98^10450^98^10500^98^10501^98^10502^98^10503^98^10504^98^10505^98^10506^98^10507^98^10508^98^10509^98^10510^98^10511^98^10512^98^10513^98^10514^98^10515^98^10516^98^10517^98^10518^98^10519^98^10520^98^10521^98^10522^98^10523^98^10524^98^10525^98^10526^98^10527^98^10528^98^10529^98^10530^98^10531^98^10532^98^10533^98^10534^98^10535^98^10536^98^10537^98^10538^98^10539^98^10540^98^10541^98^10542^98^10543^98^10544^98^10545^98^10546^98^10547^98^10548^98^10549^98^10550^98 | I104: 0 | J104: 110006^95|110005^5 | K104: 80004
A105: 40004 | B105: 4 | C105: 4 | D105: 1 | E105: 3 | F105: 0 | G105: 0 | H105: 0 | I105: 110006^110|100001^15000|110005^10 | J105: 110006^110|100001^15000|110005^10 | K105: 0
A106: 40005 | B106: 5 | C106: 4 | D106: 1 | E106: 4 | F106: 0 | G106: 0 | H106: 0 | I106: 0 | J106: 0 | K106: 0
A107: 40006 | B107: 6 | C107: 4 | D107: 1 | E107: 3 | F107: 0 | G107: 0 | H107: 0 | I107: 110006^110|100001^15000|110005^10 | J107: 110006^110|100001^15000|110005^10 | K107: 0
A108: 40007 | B108: 7 | C108: 4 | D108: 1 | E108: 5 | F108: 0 | G108: 0 | H108: 0 | I108: 0 | J108: 130001^140 | K108: 0
A109: 40008 | B109: 8 | C109: 4 | D109: 1 | E109: 6 | F109: 0 | G109: 0 | H109: 0 | I109: 0 | J109: 0 | K109: 80016
A110: 40009 | B110: 9 | C110: 4 | D110: 1 | E110: 2 | F110: 10200^99^10201^99^10202^99^10203^99^10204^98^10205^98^10206^98^10207^98^10208^98^10209^98^10210^98^10211^98^10212^98^10213^98^10214^98^10215^98^10216^98^10217^98^10218^98^10219^98^10220^98^10221^98^10222^98^10223^98^10224^98^10225^98^10226^98^10227^98^10228^98^10229^98^10230^98^10231^98^10232^98^10233^98^10234^98^10235^98^10236^98^10237^98^10238^98^10239^98^10240^98^10241^98^10242^98^10243^98^10244^98^10245^98^10246^98^10247^98^10248^98^10249^98^10250^98^10300^98^10301^98^10302^98^10303^98^10304^98^10305^98^10306^98^10307^98^10308^98^10309^98^10310^98^10311^98^10312^98^10313^98^10314^98^10315^98^10316^98^10317^98^10318^98^10319^98^10320^98^10321^98^10322^98^10323^98^10324^98^10325^98^10326^98^10327^98^10328^98^10329^98^10330^98^10331^98^10332^98^10333^98^10334^98^10335^98^10336^98^10337^98^10338^98^10339^98^10340^98^10341^98^10342^98^10343^98^10344^98^10345^98^10346^98^10347^98^10348^98^10349^98^10350^98 | G110: 10100^197^10101^197^10102^197^10103^197^10104^196^10105^196^10106^196^10107^196^10108^196^10109^196^10110^196^10111^196^10112^196^10113^196^10114^196^10115^196^10116^196^10117^196^10118^196^10119^196^10120^196^10121^196^10122^196^10123^196^10124^196^10125^196^10126^196^10127^196^10128^196^10129^196^10130^196^10131^196^10132^196^10133^196^10134^196^10135^196^10136^196^10137^196^10138^196^10139^196^10140^196^10141^196^10142^196^10143^196^10144^196^10145^196^10146^196^10147^196^10148^196^10149^196^10150^196 | H110: 10400^99^10401^99^10402^99^10403^99^10404^98^10405^98^10406^98^10407^98^10408^98^10409^98^10410^98^10411^98^10412^98^10413^98^10414^98^10415^98^10416^98^10417^98^10418^98^10419^98^10420^98^10421^98^10422^98^10423^98^10424^98^10425^98^10426^98^10427^98^10428^98^10429^98^10430^98^10431^98^10432^98^10433^98^10434^98^10435^98^10436^98^10437^98^10438^98^10439^98^10440^98^10441^98^10442^98^10443^98^10444^98^10445^98^10446^98^10447^98^10448^98^10449^98^10450^98^10500^98^10501^98^10502^98^10503^98^10504^98^10505^98^10506^98^10507^98^10508^98^10509^98^10510^98^10511^98^10512^98^10513^98^10514^98^10515^98^10516^98^10517^98^10518^98^10519^98^10520^98^10521^98^10522^98^10523^98^10524^98^10525^98^10526^98^10527^98^10528^98^10529^98^10530^98^10531^98^10532^98^10533^98^10534^98^10535^98^10536^98^10537^98^10538^98^10539^98^10540^98^10541^98^10542^98^10543^98^10544^98^10545^98^10546^98^10547^98^10548^98^10549^98^10550^98 | I110: 0 | J110: 110006^95|110005^5 | K110: 80004
A111: 40010 | B111: 10 | C111: 4 | D111: 1 | E111: 1 | F111: 10200^99^10201^99^10202^99^10203^99^10204^98^10205^98^10206^98^10207^98^10208^98^10209^98^10210^98^10211^98^10212^98^10213^98^10214^98^10215^98^10216^98^10217^98^10218^98^10219^98^10220^98^10221^98^10222^98^10223^98^10224^98^10225^98^10226^98^10227^98^10228^98^10229^98^10230^98^10231^98^10232^98^10233^98^10234^98^10235^98^10236^98^10237^98^10238^98^10239^98^10240^98^10241^98^10242^98^10243^98^10244^98^10245^98^10246^98^10247^98^10248^98^10249^98^10250^98^10300^98^10301^98^10302^98^10303^98^10304^98^10305^98^10306^98^10307^98^10308^98^10309^98^10310^98^10311^98^10312^98^10313^98^10314^98^10315^98^10316^98^10317^98^10318^98^10319^98^10320^98^10321^98^10322^98^10323^98^10324^98^10325^98^10326^98^10327^98^10328^98^10329^98^10330^98^10331^98^10332^98^10333^98^10334^98^10335^98^10336^98^10337^98^10338^98^10339^98^10340^98^10341^98^10342^98^10343^98^10344^98^10345^98^10346^98^10347^98^10348^98^10349^98^10350^98 | G111: 10100^197^10101^197^10102^197^10103^197^10104^196^10105^196^10106^196^10107^196^10108^196^10109^196^10110^196^10111^196^10112^196^10113^196^10114^196^10115^196^10116^196^10117^196^10118^196^10119^196^10120^196^10121^196^10122^196^10123^196^10124^196^10125^196^10126^196^10127^196^10128^196^10129^196^10130^196^10131^196^10132^196^10133^196^10134^196^10135^196^10136^196^10137^196^10138^196^10139^196^10140^196^10141^196^10142^196^10143^196^10144^196^10145^196^10146^196^10147^196^10148^196^10149^196^10150^196 | H111: 10400^99^10401^99^10402^99^10403^99^10404^98^10405^98^10406^98^10407^98^10408^98^10409^98^10410^98^10411^98^10412^98^10413^98^10414^98^10415^98^10416^98^10417^98^10418^98^10419^98^10420^98^10421^98^10422^98^10423^98^10424^98^10425^98^10426^98^10427^98^10428^98^10429^98^10430^98^10431^98^10432^98^10433^98^10434^98^10435^98^10436^98^10437^98^10438^98^10439^98^10440^98^10441^98^10442^98^10443^98^10444^98^10445^98^10446^98^10447^98^10448^98^10449^98^10450^98^10500^98^10501^98^10502^98^10503^98^10504^98^10505^98^10506^98^10507^98^10508^98^10509^98^10510^98^10511^98^10512^98^10513^98^10514^98^10515^98^10516^98^10517^98^10518^98^10519^98^10520^98^10521^98^10522^98^10523^98^10524^98^10525^98^10526^98^10527^98^10528^98^10529^98^10530^98^10531^98^10532^98^10533^98^10534^98^10535^98^10536^98^10537^98^10538^98^10539^98^10540^98^10541^98^10542^98^10543^98^10544^98^10545^98^10546^98^10547^98^10548^98^10549^98^10550^98 | I111: 0 | J111: 110006^25|110005^5 | K111: 80004
A112: 40011 | B112: 11 | C112: 4 | D112: 1 | E112: 7 | F112: 10200^99^10201^99^10202^99^10203^99^10204^98^10205^98^10206^98^10207^98^10208^98^10209^98^10210^98^10211^98^10212^98^10213^98^10214^98^10215^98^10216^98^10217^98^10218^98^10219^98^10220^98^10221^98^10222^98^10223^98^10224^98^10225^98^10226^98^10227^98^10228^98^10229^98^10230^98^10231^98^10232^98^10233^98^10234^98^10235^98^10236^98^10237^98^10238^98^10239^98^10240^98^10241^98^10242^98^10243^98^10244^98^10245^98^10246^98^10247^98^10248^98^10249^98^10250^98^10300^98^10301^98^10302^98^10303^98^10304^98^10305^98^10306^98^10307^98^10308^98^10309^98^10310^98^10311^98^10312^98^10313^98^10314^98^10315^98^10316^98^10317^98^10318^98^10319^98^10320^98^10321^98^10322^98^10323^98^10324^98^10325^98^10326^98^10327^98^10328^98^10329^98^10330^98^10331^98^10332^98^10333^98^10334^98^10335^98^10336^98^10337^98^10338^98^10339^98^10340^98^10341^98^10342^98^10343^98^10344^98^10345^98^10346^98^10347^98^10348^98^10349^98^10350^98 | G112: 10100^197^10101^197^10102^197^10103^197^10104^196^10105^196^10106^196^10107^196^10108^196^10109^196^10110^196^10111^196^10112^196^10113^196^10114^196^10115^196^10116^196^10117^196^10118^196^10119^196^10120^196^10121^196^10122^196^10123^196^10124^196^10125^196^10126^196^10127^196^10128^196^10129^196^10130^196^10131^196^10132^196^10133^196^10134^196^10135^196^10136^196^10137^196^10138^196^10139^196^10140^196^10141^196^10142^196^10143^196^10144^196^10145^196^10146^196^10147^196^10148^196^10149^196^10150^196 | H112: 10400^99^10401^99^10402^99^10403^99^10404^98^10405^98^10406^98^10407^98^10408^98^10409^98^10410^98^10411^98^10412^98^10413^98^10414^98^10415^98^10416^98^10417^98^10418^98^10419^98^10420^98^10421^98^10422^98^10423^98^10424^98^10425^98^10426^98^10427^98^10428^98^10429^98^10430^98^10431^98^10432^98^10433^98^10434^98^10435^98^10436^98^10437^98^10438^98^10439^98^10440^98^10441^98^10442^98^10443^98^10444^98^10445^98^10446^98^10447^98^10448^98^10449^98^10450^98^10500^98^10501^98^10502^98^10503^98^10504^98^10505^98^10506^98^10507^98^10508^98^10509^98^10510^98^10511^98^10512^98^10513^98^10514^98^10515^98^10516^98^10517^98^10518^98^10519^98^10520^98^10521^98^10522^98^10523^98^10524^98^10525^98^10526^98^10527^98^10528^98^10529^98^10530^98^10531^98^10532^98^10533^98^10534^98^10535^98^10536^98^10537^98^10538^98^10539^98^10540^98^10541^98^10542^98^10543^98^10544^98^10545^98^10546^98^10547^98^10548^98^10549^98^10550^98 | I112: 0 | J112: 110006^330|110005^20 | K112: 80010
A113: 40101 | B113: 1 | C113: 4 | D113: 2 | E113: 1 | F113: 10200^99^10201^99^10202^99^10203^99^10204^98^10205^98^10206^98^10207^98^10208^98^10209^98^10210^98^10211^98^10212^98^10213^98^10214^98^10215^98^10216^98^10217^98^10218^98^10219^98^10220^98^10221^98^10222^98^10223^98^10224^98^10225^98^10226^98^10227^98^10228^98^10229^98^10230^98^10231^98^10232^98^10233^98^10234^98^10235^98^10236^98^10237^98^10238^98^10239^98^10240^98^10241^98^10242^98^10243^98^10244^98^10245^98^10246^98^10247^98^10248^98^10249^98^10250^98^10300^98^10301^98^10302^98^10303^98^10304^98^10305^98^10306^98^10307^98^10308^98^10309^98^10310^98^10311^98^10312^98^10313^98^10314^98^10315^98^10316^98^10317^98^10318^98^10319^98^10320^98^10321^98^10322^98^10323^98^10324^98^10325^98^10326^98^10327^98^10328^98^10329^98^10330^98^10331^98^10332^98^10333^98^10334^98^10335^98^10336^98^10337^98^10338^98^10339^98^10340^98^10341^98^10342^98^10343^98^10344^98^10345^98^10346^98^10347^98^10348^98^10349^98^10350^98 | G113: 10100^197^10101^197^10102^197^10103^197^10104^196^10105^196^10106^196^10107^196^10108^196^10109^196^10110^196^10111^196^10112^196^10113^196^10114^196^10115^196^10116^196^10117^196^10118^196^10119^196^10120^196^10121^196^10122^196^10123^196^10124^196^10125^196^10126^196^10127^196^10128^196^10129^196^10130^196^10131^196^10132^196^10133^196^10134^196^10135^196^10136^196^10137^196^10138^196^10139^196^10140^196^10141^196^10142^196^10143^196^10144^196^10145^196^10146^196^10147^196^10148^196^10149^196^10150^196 | H113: 10400^99^10401^99^10402^99^10403^99^10404^98^10405^98^10406^98^10407^98^10408^98^10409^98^10410^98^10411^98^10412^98^10413^98^10414^98^10415^98^10416^98^10417^98^10418^98^10419^98^10420^98^10421^98^10422^98^10423^98^10424^98^10425^98^10426^98^10427^98^10428^98^10429^98^10430^98^10431^98^10432^98^10433^98^10434^98^10435^98^10436^98^10437^98^10438^98^10439^98^10440^98^10441^98^10442^98^10443^98^10444^98^10445^98^10446^98^10447^98^10448^98^10449^98^10450^98^10500^98^10501^98^10502^98^10503^98^10504^98^10505^98^10506^98^10507^98^10508^98^10509^98^10510^98^10511^98^10512^98^10513^98^10514^98^10515^98^10516^98^10517^98^10518^98^10519^98^10520^98^10521^98^10522^98^10523^98^10524^98^10525^98^10526^98^10527^98^10528^98^10529^98^10530^98^10531^98^10532^98^10533^98^10534^98^10535^98^10536^98^10537^98^10538^98^10539^98^10540^98^10541^98^10542^98^10543^98^10544^98^10545^98^10546^98^10547^98^10548^98^10549^98^10550^98 | I113: 0 | J113: 110006^25|110005^5 | K113: 80004
A114: 40102 | B114: 2 | C114: 4 | D114: 2 | E114: 1 | F114: 10200^99^10201^99^10202^99^10203^99^10204^98^10205^98^10206^98^10207^98^10208^98^10209^98^10210^98^10211^98^10212^98^10213^98^10214^98^10215^98^10216^98^10217^98^10218^98^10219^98^10220^98^10221^98^10222^98^10223^98^10224^98^10225^98^10226^98^10227^98^10228^98^10229^98^10230^98^10231^98^10232^98^10233^98^10234^98^10235^98^10236^98^10237^98^10238^98^10239^98^10240^98^10241^98^10242^98^10243^98^10244^98^10245^98^10246^98^10247^98^10248^98^10249^98^10250^98^10300^98^10301^98^10302^98^10303^98^10304^98^10305^98^10306^98^10307^98^10308^98^10309^98^10310^98^10311^98^10312^98^10313^98^10314^98^10315^98^10316^98^10317^98^10318^98^10319^98^10320^98^10321^98^10322^98^10323^98^10324^98^10325^98^10326^98^10327^98^10328^98^10329^98^10330^98^10331^98^10332^98^10333^98^10334^98^10335^98^10336^98^10337^98^10338^98^10339^98^10340^98^10341^98^10342^98^10343^98^10344^98^10345^98^10346^98^10347^98^10348^98^10349^98^10350^98 | G114: 10100^197^10101^197^10102^197^10103^197^10104^196^10105^196^10106^196^10107^196^10108^196^10109^196^10110^196^10111^196^10112^196^10113^196^10114^196^10115^196^10116^196^10117^196^10118^196^10119^196^10120^196^10121^196^10122^196^10123^196^10124^196^10125^196^10126^196^10127^196^10128^196^10129^196^10130^196^10131^196^10132^196^10133^196^10134^196^10135^196^10136^196^10137^196^10138^196^10139^196^10140^196^10141^196^10142^196^10143^196^10144^196^10145^196^10146^196^10147^196^10148^196^10149^196^10150^196 | H114: 10400^99^10401^99^10402^99^10403^99^10404^98^10405^98^10406^98^10407^98^10408^98^10409^98^10410^98^10411^98^10412^98^10413^98^10414^98^10415^98^10416^98^10417^98^10418^98^10419^98^10420^98^10421^98^10422^98^10423^98^10424^98^10425^98^10426^98^10427^98^10428^98^10429^98^10430^98^10431^98^10432^98^10433^98^10434^98^10435^98^10436^98^10437^98^10438^98^10439^98^10440^98^10441^98^10442^98^10443^98^10444^98^10445^98^10446^98^10447^98^10448^98^10449^98^10450^98^10500^98^10501^98^10502^98^10503^98^10504^98^10505^98^10506^98^10507^98^10508^98^10509^98^10510^98^10511^98^10512^98^10513^98^10514^98^10515^98^10516^98^10517^98^10518^98^10519^98^10520^98^10521^98^10522^98^10523^98^10524^98^10525^98^10526^98^10527^98^10528^98^10529^98^10530^98^10531^98^10532^98^10533^98^10534^98^10535^98^10536^98^10537^98^10538^98^10539^98^10540^98^10541^98^10542^98^10543^98^10544^98^10545^98^10546^98^10547^98^10548^98^10549^98^10550^98 | I114: 0 | J114: 110006^25|110005^5 | K114: 80004
A115: 40103 | B115: 3 | C115: 4 | D115: 2 | E115: 2 | F115: 10200^99^10201^99^10202^99^10203^99^10204^98^10205^98^10206^98^10207^98^10208^98^10209^98^10210^98^10211^98^10212^98^10213^98^10214^98^10215^98^10216^98^10217^98^10218^98^10219^98^10220^98^10221^98^10222^98^10223^98^10224^98^10225^98^10226^98^10227^98^10228^98^10229^98^10230^98^10231^98^10232^98^10233^98^10234^98^10235^98^10236^98^10237^98^10238^98^10239^98^10240^98^10241^98^10242^98^10243^98^10244^98^10245^98^10246^98^10247^98^10248^98^10249^98^10250^98^10300^98^10301^98^10302^98^10303^98^10304^98^10305^98^10306^98^10307^98^10308^98^10309^98^10310^98^10311^98^10312^98^10313^98^10314^98^10315^98^10316^98^10317^98^10318^98^10319^98^10320^98^10321^98^10322^98^10323^98^10324^98^10325^98^10326^98^10327^98^10328^98^10329^98^10330^98^10331^98^10332^98^10333^98^10334^98^10335^98^10336^98^10337^98^10338^98^10339^98^10340^98^10341^98^10342^98^10343^98^10344^98^10345^98^10346^98^10347^98^10348^98^10349^98^10350^98 | G115: 10100^197^10101^197^10102^197^10103^197^10104^196^10105^196^10106^196^10107^196^10108^196^10109^196^10110^196^10111^196^10112^196^10113^196^10114^196^10115^196^10116^196^10117^196^10118^196^10119^196^10120^196^10121^196^10122^196^10123^196^10124^196^10125^196^10126^196^10127^196^10128^196^10129^196^10130^196^10131^196^10132^196^10133^196^10134^196^10135^196^10136^196^10137^196^10138^196^10139^196^10140^196^10141^196^10142^196^10143^196^10144^196^10145^196^10146^196^10147^196^10148^196^10149^196^10150^196 | H115: 10400^99^10401^99^10402^99^10403^99^10404^98^10405^98^10406^98^10407^98^10408^98^10409^98^10410^98^10411^98^10412^98^10413^98^10414^98^10415^98^10416^98^10417^98^10418^98^10419^98^10420^98^10421^98^10422^98^10423^98^10424^98^10425^98^10426^98^10427^98^10428^98^10429^98^10430^98^10431^98^10432^98^10433^98^10434^98^10435^98^10436^98^10437^98^10438^98^10439^98^10440^98^10441^98^10442^98^10443^98^10444^98^10445^98^10446^98^10447^98^10448^98^10449^98^10450^98^10500^98^10501^98^10502^98^10503^98^10504^98^10505^98^10506^98^10507^98^10508^98^10509^98^10510^98^10511^98^10512^98^10513^98^10514^98^10515^98^10516^98^10517^98^10518^98^10519^98^10520^98^10521^98^10522^98^10523^98^10524^98^10525^98^10526^98^10527^98^10528^98^10529^98^10530^98^10531^98^10532^98^10533^98^10534^98^10535^98^10536^98^10537^98^10538^98^10539^98^10540^98^10541^98^10542^98^10543^98^10544^98^10545^98^10546^98^10547^98^10548^98^10549^98^10550^98 | I115: 0 | J115: 110006^95|110005^5 | K115: 80004
A116: 40104 | B116: 4 | C116: 4 | D116: 2 | E116: 3 | F116: 0 | G116: 0 | H116: 0 | I116: 110006^110|100001^15000|110005^10 | J116: 110006^110|100001^15000|110005^10 | K116: 0
A117: 40105 | B117: 5 | C117: 4 | D117: 2 | E117: 4 | F117: 0 | G117: 0 | H117: 0 | I117: 0 | J117: 0 | K117: 0
A118: 40106 | B118: 6 | C118: 4 | D118: 2 | E118: 3 | F118: 0 | G118: 0 | H118: 0 | I118: 110006^110|100001^15000|110005^10 | J118: 110006^110|100001^15000|110005^10 | K118: 0
A119: 40107 | B119: 7 | C119: 4 | D119: 2 | E119: 5 | F119: 0 | G119: 0 | H119: 0 | I119: 0 | J119: 130001^140 | K119: 0
A120: 40108 | B120: 8 | C120: 4 | D120: 2 | E120: 6 | F120: 0 | G120: 0 | H120: 0 | I120: 0 | J120: 0 | K120: 80016
A121: 40109 | B121: 9 | C121: 4 | D121: 2 | E121: 2 | F121: 10200^99^10201^99^10202^99^10203^99^10204^98^10205^98^10206^98^10207^98^10208^98^10209^98^10210^98^10211^98^10212^98^10213^98^10214^98^10215^98^10216^98^10217^98^10218^98^10219^98^10220^98^10221^98^10222^98^10223^98^10224^98^10225^98^10226^98^10227^98^10228^98^10229^98^10230^98^10231^98^10232^98^10233^98^10234^98^10235^98^10236^98^10237^98^10238^98^10239^98^10240^98^10241^98^10242^98^10243^98^10244^98^10245^98^10246^98^10247^98^10248^98^10249^98^10250^98^10300^98^10301^98^10302^98^10303^98^10304^98^10305^98^10306^98^10307^98^10308^98^10309^98^10310^98^10311^98^10312^98^10313^98^10314^98^10315^98^10316^98^10317^98^10318^98^10319^98^10320^98^10321^98^10322^98^10323^98^10324^98^10325^98^10326^98^10327^98^10328^98^10329^98^10330^98^10331^98^10332^98^10333^98^10334^98^10335^98^10336^98^10337^98^10338^98^10339^98^10340^98^10341^98^10342^98^10343^98^10344^98^10345^98^10346^98^10347^98^10348^98^10349^98^10350^98 | G121: 10100^197^10101^197^10102^197^10103^197^10104^196^10105^196^10106^196^10107^196^10108^196^10109^196^10110^196^10111^196^10112^196^10113^196^10114^196^10115^196^10116^196^10117^196^10118^196^10119^196^10120^196^10121^196^10122^196^10123^196^10124^196^10125^196^10126^196^10127^196^10128^196^10129^196^10130^196^10131^196^10132^196^10133^196^10134^196^10135^196^10136^196^10137^196^10138^196^10139^196^10140^196^10141^196^10142^196^10143^196^10144^196^10145^196^10146^196^10147^196^10148^196^10149^196^10150^196 | H121: 10400^99^10401^99^10402^99^10403^99^10404^98^10405^98^10406^98^10407^98^10408^98^10409^98^10410^98^10411^98^10412^98^10413^98^10414^98^10415^98^10416^98^10417^98^10418^98^10419^98^10420^98^10421^98^10422^98^10423^98^10424^98^10425^98^10426^98^10427^98^10428^98^10429^98^10430^98^10431^98^10432^98^10433^98^10434^98^10435^98^10436^98^10437^98^10438^98^10439^98^10440^98^10441^98^10442^98^10443^98^10444^98^10445^98^10446^98^10447^98^10448^98^10449^98^10450^98^10500^98^10501^98^10502^98^10503^98^10504^98^10505^98^10506^98^10507^98^10508^98^10509^98^10510^98^10511^98^10512^98^10513^98^10514^98^10515^98^10516^98^10517^98^10518^98^10519^98^10520^98^10521^98^10522^98^10523^98^10524^98^10525^98^10526^98^10527^98^10528^98^10529^98^10530^98^10531^98^10532^98^10533^98^10534^98^10535^98^10536^98^10537^98^10538^98^10539^98^10540^98^10541^98^10542^98^10543^98^10544^98^10545^98^10546^98^10547^98^10548^98^10549^98^10550^98 | I121: 0 | J121: 110006^95|110005^5 | K121: 80004
A122: 40110 | B122: 10 | C122: 4 | D122: 2 | E122: 1 | F122: 10200^99^10201^99^10202^99^10203^99^10204^98^10205^98^10206^98^10207^98^10208^98^10209^98^10210^98^10211^98^10212^98^10213^98^10214^98^10215^98^10216^98^10217^98^10218^98^10219^98^10220^98^10221^98^10222^98^10223^98^10224^98^10225^98^10226^98^10227^98^10228^98^10229^98^10230^98^10231^98^10232^98^10233^98^10234^98^10235^98^10236^98^10237^98^10238^98^10239^98^10240^98^10241^98^10242^98^10243^98^10244^98^10245^98^10246^98^10247^98^10248^98^10249^98^10250^98^10300^98^10301^98^10302^98^10303^98^10304^98^10305^98^10306^98^10307^98^10308^98^10309^98^10310^98^10311^98^10312^98^10313^98^10314^98^10315^98^10316^98^10317^98^10318^98^10319^98^10320^98^10321^98^10322^98^10323^98^10324^98^10325^98^10326^98^10327^98^10328^98^10329^98^10330^98^10331^98^10332^98^10333^98^10334^98^10335^98^10336^98^10337^98^10338^98^10339^98^10340^98^10341^98^10342^98^10343^98^10344^98^10345^98^10346^98^10347^98^10348^98^10349^98^10350^98 | G122: 10100^197^10101^197^10102^197^10103^197^10104^196^10105^196^10106^196^10107^196^10108^196^10109^196^10110^196^10111^196^10112^196^10113^196^10114^196^10115^196^10116^196^10117^196^10118^196^10119^196^10120^196^10121^196^10122^196^10123^196^10124^196^10125^196^10126^196^10127^196^10128^196^10129^196^10130^196^10131^196^10132^196^10133^196^10134^196^10135^196^10136^196^10137^196^10138^196^10139^196^10140^196^10141^196^10142^196^10143^196^10144^196^10145^196^10146^196^10147^196^10148^196^10149^196^10150^196 | H122: 10400^99^10401^99^10402^99^10403^99^10404^98^10405^98^10406^98^10407^98^10408^98^10409^98^10410^98^10411^98^10412^98^10413^98^10414^98^10415^98^10416^98^10417^98^10418^98^10419^98^10420^98^10421^98^10422^98^10423^98^10424^98^10425^98^10426^98^10427^98^10428^98^10429^98^10430^98^10431^98^10432^98^10433^98^10434^98^10435^98^10436^98^10437^98^10438^98^10439^98^10440^98^10441^98^10442^98^10443^98^10444^98^10445^98^10446^98^10447^98^10448^98^10449^98^10450^98^10500^98^10501^98^10502^98^10503^98^10504^98^10505^98^10506^98^10507^98^10508^98^10509^98^10510^98^10511^98^10512^98^10513^98^10514^98^10515^98^10516^98^10517^98^10518^98^10519^98^10520^98^10521^98^10522^98^10523^98^10524^98^10525^98^10526^98^10527^98^10528^98^10529^98^10530^98^10531^98^10532^98^10533^98^10534^98^10535^98^10536^98^10537^98^10538^98^10539^98^10540^98^10541^98^10542^98^10543^98^10544^98^10545^98^10546^98^10547^98^10548^98^10549^98^10550^98 | I122: 0 | J122: 110006^25|110005^5 | K122: 80004
A123: 40111 | B123: 11 | C123: 4 | D123: 2 | E123: 7 | F123: 10200^99^10201^99^10202^99^10203^99^10204^98^10205^98^10206^98^10207^98^10208^98^10209^98^10210^98^10211^98^10212^98^10213^98^10214^98^10215^98^10216^98^10217^98^10218^98^10219^98^10220^98^10221^98^10222^98^10223^98^10224^98^10225^98^10226^98^10227^98^10228^98^10229^98^10230^98^10231^98^10232^98^10233^98^10234^98^10235^98^10236^98^10237^98^10238^98^10239^98^10240^98^10241^98^10242^98^10243^98^10244^98^10245^98^10246^98^10247^98^10248^98^10249^98^10250^98^10300^98^10301^98^10302^98^10303^98^10304^98^10305^98^10306^98^10307^98^10308^98^10309^98^10310^98^10311^98^10312^98^10313^98^10314^98^10315^98^10316^98^10317^98^10318^98^10319^98^10320^98^10321^98^10322^98^10323^98^10324^98^10325^98^10326^98^10327^98^10328^98^10329^98^10330^98^10331^98^10332^98^10333^98^10334^98^10335^98^10336^98^10337^98^10338^98^10339^98^10340^98^10341^98^10342^98^10343^98^10344^98^10345^98^10346^98^10347^98^10348^98^10349^98^10350^98 | G123: 10100^197^10101^197^10102^197^10103^197^10104^196^10105^196^10106^196^10107^196^10108^196^10109^196^10110^196^10111^196^10112^196^10113^196^10114^196^10115^196^10116^196^10117^196^10118^196^10119^196^10120^196^10121^196^10122^196^10123^196^10124^196^10125^196^10126^196^10127^196^10128^196^10129^196^10130^196^10131^196^10132^196^10133^196^10134^196^10135^196^10136^196^10137^196^10138^196^10139^196^10140^196^10141^196^10142^196^10143^196^10144^196^10145^196^10146^196^10147^196^10148^196^10149^196^10150^196 | H123: 10400^99^10401^99^10402^99^10403^99^10404^98^10405^98^10406^98^10407^98^10408^98^10409^98^10410^98^10411^98^10412^98^10413^98^10414^98^10415^98^10416^98^10417^98^10418^98^10419^98^10420^98^10421^98^10422^98^10423^98^10424^98^10425^98^10426^98^10427^98^10428^98^10429^98^10430^98^10431^98^10432^98^10433^98^10434^98^10435^98^10436^98^10437^98^10438^98^10439^98^10440^98^10441^98^10442^98^10443^98^10444^98^10445^98^10446^98^10447^98^10448^98^10449^98^10450^98^10500^98^10501^98^10502^98^10503^98^10504^98^10505^98^10506^98^10507^98^10508^98^10509^98^10510^98^10511^98^10512^98^10513^98^10514^98^10515^98^10516^98^10517^98^10518^98^10519^98^10520^98^10521^98^10522^98^10523^98^10524^98^10525^98^10526^98^10527^98^10528^98^10529^98^10530^98^10531^98^10532^98^10533^98^10534^98^10535^98^10536^98^10537^98^10538^98^10539^98^10540^98^10541^98^10542^98^10543^98^10544^98^10545^98^10546^98^10547^98^10548^98^10549^98^10550^98 | I123: 0 | J123: 110006^330|110005^20 | K123: 80010
A124: 40201 | B124: 1 | C124: 4 | D124: 3 | E124: 1 | F124: 10200^99^10201^99^10202^99^10203^99^10204^98^10205^98^10206^98^10207^98^10208^98^10209^98^10210^98^10211^98^10212^98^10213^98^10214^98^10215^98^10216^98^10217^98^10218^98^10219^98^10220^98^10221^98^10222^98^10223^98^10224^98^10225^98^10226^98^10227^98^10228^98^10229^98^10230^98^10231^98^10232^98^10233^98^10234^98^10235^98^10236^98^10237^98^10238^98^10239^98^10240^98^10241^98^10242^98^10243^98^10244^98^10245^98^10246^98^10247^98^10248^98^10249^98^10250^98^10300^98^10301^98^10302^98^10303^98^10304^98^10305^98^10306^98^10307^98^10308^98^10309^98^10310^98^10311^98^10312^98^10313^98^10314^98^10315^98^10316^98^10317^98^10318^98^10319^98^10320^98^10321^98^10322^98^10323^98^10324^98^10325^98^10326^98^10327^98^10328^98^10329^98^10330^98^10331^98^10332^98^10333^98^10334^98^10335^98^10336^98^10337^98^10338^98^10339^98^10340^98^10341^98^10342^98^10343^98^10344^98^10345^98^10346^98^10347^98^10348^98^10349^98^10350^98 | G124: 10100^197^10101^197^10102^197^10103^197^10104^196^10105^196^10106^196^10107^196^10108^196^10109^196^10110^196^10111^196^10112^196^10113^196^10114^196^10115^196^10116^196^10117^196^10118^196^10119^196^10120^196^10121^196^10122^196^10123^196^10124^196^10125^196^10126^196^10127^196^10128^196^10129^196^10130^196^10131^196^10132^196^10133^196^10134^196^10135^196^10136^196^10137^196^10138^196^10139^196^10140^196^10141^196^10142^196^10143^196^10144^196^10145^196^10146^196^10147^196^10148^196^10149^196^10150^196 | H124: 10400^99^10401^99^10402^99^10403^99^10404^98^10405^98^10406^98^10407^98^10408^98^10409^98^10410^98^10411^98^10412^98^10413^98^10414^98^10415^98^10416^98^10417^98^10418^98^10419^98^10420^98^10421^98^10422^98^10423^98^10424^98^10425^98^10426^98^10427^98^10428^98^10429^98^10430^98^10431^98^10432^98^10433^98^10434^98^10435^98^10436^98^10437^98^10438^98^10439^98^10440^98^10441^98^10442^98^10443^98^10444^98^10445^98^10446^98^10447^98^10448^98^10449^98^10450^98^10500^98^10501^98^10502^98^10503^98^10504^98^10505^98^10506^98^10507^98^10508^98^10509^98^10510^98^10511^98^10512^98^10513^98^10514^98^10515^98^10516^98^10517^98^10518^98^10519^98^10520^98^10521^98^10522^98^10523^98^10524^98^10525^98^10526^98^10527^98^10528^98^10529^98^10530^98^10531^98^10532^98^10533^98^10534^98^10535^98^10536^98^10537^98^10538^98^10539^98^10540^98^10541^98^10542^98^10543^98^10544^98^10545^98^10546^98^10547^98^10548^98^10549^98^10550^98 | I124: 0 | J124: 110006^25|110005^5 | K124: 80004
A125: 40202 | B125: 2 | C125: 4 | D125: 3 | E125: 1 | F125: 10200^99^10201^99^10202^99^10203^99^10204^98^10205^98^10206^98^10207^98^10208^98^10209^98^10210^98^10211^98^10212^98^10213^98^10214^98^10215^98^10216^98^10217^98^10218^98^10219^98^10220^98^10221^98^10222^98^10223^98^10224^98^10225^98^10226^98^10227^98^10228^98^10229^98^10230^98^10231^98^10232^98^10233^98^10234^98^10235^98^10236^98^10237^98^10238^98^10239^98^10240^98^10241^98^10242^98^10243^98^10244^98^10245^98^10246^98^10247^98^10248^98^10249^98^10250^98^10300^98^10301^98^10302^98^10303^98^10304^98^10305^98^10306^98^10307^98^10308^98^10309^98^10310^98^10311^98^10312^98^10313^98^10314^98^10315^98^10316^98^10317^98^10318^98^10319^98^10320^98^10321^98^10322^98^10323^98^10324^98^10325^98^10326^98^10327^98^10328^98^10329^98^10330^98^10331^98^10332^98^10333^98^10334^98^10335^98^10336^98^10337^98^10338^98^10339^98^10340^98^10341^98^10342^98^10343^98^10344^98^10345^98^10346^98^10347^98^10348^98^10349^98^10350^98 | G125: 10100^197^10101^197^10102^197^10103^197^10104^196^10105^196^10106^196^10107^196^10108^196^10109^196^10110^196^10111^196^10112^196^10113^196^10114^196^10115^196^10116^196^10117^196^10118^196^10119^196^10120^196^10121^196^10122^196^10123^196^10124^196^10125^196^10126^196^10127^196^10128^196^10129^196^10130^196^10131^196^10132^196^10133^196^10134^196^10135^196^10136^196^10137^196^10138^196^10139^196^10140^196^10141^196^10142^196^10143^196^10144^196^10145^196^10146^196^10147^196^10148^196^10149^196^10150^196 | H125: 10400^99^10401^99^10402^99^10403^99^10404^98^10405^98^10406^98^10407^98^10408^98^10409^98^10410^98^10411^98^10412^98^10413^98^10414^98^10415^98^10416^98^10417^98^10418^98^10419^98^10420^98^10421^98^10422^98^10423^98^10424^98^10425^98^10426^98^10427^98^10428^98^10429^98^10430^98^10431^98^10432^98^10433^98^10434^98^10435^98^10436^98^10437^98^10438^98^10439^98^10440^98^10441^98^10442^98^10443^98^10444^98^10445^98^10446^98^10447^98^10448^98^10449^98^10450^98^10500^98^10501^98^10502^98^10503^98^10504^98^10505^98^10506^98^10507^98^10508^98^10509^98^10510^98^10511^98^10512^98^10513^98^10514^98^10515^98^10516^98^10517^98^10518^98^10519^98^10520^98^10521^98^10522^98^10523^98^10524^98^10525^98^10526^98^10527^98^10528^98^10529^98^10530^98^10531^98^10532^98^10533^98^10534^98^10535^98^10536^98^10537^98^10538^98^10539^98^10540^98^10541^98^10542^98^10543^98^10544^98^10545^98^10546^98^10547^98^10548^98^10549^98^10550^98 | I125: 0 | J125: 110006^25|110005^5 | K125: 80004
A126: 40203 | B126: 3 | C126: 4 | D126: 3 | E126: 2 | F126: 10200^99^10201^99^10202^99^10203^99^10204^98^10205^98^10206^98^10207^98^10208^98^10209^98^10210^98^10211^98^10212^98^10213^98^10214^98^10215^98^10216^98^10217^98^10218^98^10219^98^10220^98^10221^98^10222^98^10223^98^10224^98^10225^98^10226^98^10227^98^10228^98^10229^98^10230^98^10231^98^10232^98^10233^98^10234^98^10235^98^10236^98^10237^98^10238^98^10239^98^10240^98^10241^98^10242^98^10243^98^10244^98^10245^98^10246^98^10247^98^10248^98^10249^98^10250^98^10300^98^10301^98^10302^98^10303^98^10304^98^10305^98^10306^98^10307^98^10308^98^10309^98^10310^98^10311^98^10312^98^10313^98^10314^98^10315^98^10316^98^10317^98^10318^98^10319^98^10320^98^10321^98^10322^98^10323^98^10324^98^10325^98^10326^98^10327^98^10328^98^10329^98^10330^98^10331^98^10332^98^10333^98^10334^98^10335^98^10336^98^10337^98^10338^98^10339^98^10340^98^10341^98^10342^98^10343^98^10344^98^10345^98^10346^98^10347^98^10348^98^10349^98^10350^98 | G126: 10100^197^10101^197^10102^197^10103^197^10104^196^10105^196^10106^196^10107^196^10108^196^10109^196^10110^196^10111^196^10112^196^10113^196^10114^196^10115^196^10116^196^10117^196^10118^196^10119^196^10120^196^10121^196^10122^196^10123^196^10124^196^10125^196^10126^196^10127^196^10128^196^10129^196^10130^196^10131^196^10132^196^10133^196^10134^196^10135^196^10136^196^10137^196^10138^196^10139^196^10140^196^10141^196^10142^196^10143^196^10144^196^10145^196^10146^196^10147^196^10148^196^10149^196^10150^196 | H126: 10400^99^10401^99^10402^99^10403^99^10404^98^10405^98^10406^98^10407^98^10408^98^10409^98^10410^98^10411^98^10412^98^10413^98^10414^98^10415^98^10416^98^10417^98^10418^98^10419^98^10420^98^10421^98^10422^98^10423^98^10424^98^10425^98^10426^98^10427^98^10428^98^10429^98^10430^98^10431^98^10432^98^10433^98^10434^98^10435^98^10436^98^10437^98^10438^98^10439^98^10440^98^10441^98^10442^98^10443^98^10444^98^10445^98^10446^98^10447^98^10448^98^10449^98^10450^98^10500^98^10501^98^10502^98^10503^98^10504^98^10505^98^10506^98^10507^98^10508^98^10509^98^10510^98^10511^98^10512^98^10513^98^10514^98^10515^98^10516^98^10517^98^10518^98^10519^98^10520^98^10521^98^10522^98^10523^98^10524^98^10525^98^10526^98^10527^98^10528^98^10529^98^10530^98^10531^98^10532^98^10533^98^10534^98^10535^98^10536^98^10537^98^10538^98^10539^98^10540^98^10541^98^10542^98^10543^98^10544^98^10545^98^10546^98^10547^98^10548^98^10549^98^10550^98 | I126: 0 | J126: 110006^95|110005^5 | K126: 80004
A127: 40204 | B127: 4 | C127: 4 | D127: 3 | E127: 3 | F127: 0 | G127: 0 | H127: 0 | I127: 110006^110|100001^15000|110005^10 | J127: 110006^110|100001^15000|110005^10 | K127: 0
A128: 40205 | B128: 5 | C128: 4 | D128: 3 | E128: 4 | F128: 0 | G128: 0 | H128: 0 | I128: 0 | J128: 0 | K128: 0
A129: 40206 | B129: 6 | C129: 4 | D129: 3 | E129: 3 | F129: 0 | G129: 0 | H129: 0 | I129: 110006^110|100001^15000|110005^10 | J129: 110006^110|100001^15000|110005^10 | K129: 0
A130: 40207 | B130: 7 | C130: 4 | D130: 3 | E130: 5 | F130: 0 | G130: 0 | H130: 0 | I130: 0 | J130: 130001^140 | K130: 0
A131: 40208 | B131: 8 | C131: 4 | D131: 3 | E131: 6 | F131: 0 | G131: 0 | H131: 0 | I131: 0 | J131: 0 | K131: 80016
A132: 40209 | B132: 9 | C132: 4 | D132: 3 | E132: 2 | F132: 10200^99^10201^99^10202^99^10203^99^10204^98^10205^98^10206^98^10207^98^10208^98^10209^98^10210^98^10211^98^10212^98^10213^98^10214^98^10215^98^10216^98^10217^98^10218^98^10219^98^10220^98^10221^98^10222^98^10223^98^10224^98^10225^98^10226^98^10227^98^10228^98^10229^98^10230^98^10231^98^10232^98^10233^98^10234^98^10235^98^10236^98^10237^98^10238^98^10239^98^10240^98^10241^98^10242^98^10243^98^10244^98^10245^98^10246^98^10247^98^10248^98^10249^98^10250^98^10300^98^10301^98^10302^98^10303^98^10304^98^10305^98^10306^98^10307^98^10308^98^10309^98^10310^98^10311^98^10312^98^10313^98^10314^98^10315^98^10316^98^10317^98^10318^98^10319^98^10320^98^10321^98^10322^98^10323^98^10324^98^10325^98^10326^98^10327^98^10328^98^10329^98^10330^98^10331^98^10332^98^10333^98^10334^98^10335^98^10336^98^10337^98^10338^98^10339^98^10340^98^10341^98^10342^98^10343^98^10344^98^10345^98^10346^98^10347^98^10348^98^10349^98^10350^98 | G132: 10100^197^10101^197^10102^197^10103^197^10104^196^10105^196^10106^196^10107^196^10108^196^10109^196^10110^196^10111^196^10112^196^10113^196^10114^196^10115^196^10116^196^10117^196^10118^196^10119^196^10120^196^10121^196^10122^196^10123^196^10124^196^10125^196^10126^196^10127^196^10128^196^10129^196^10130^196^10131^196^10132^196^10133^196^10134^196^10135^196^10136^196^10137^196^10138^196^10139^196^10140^196^10141^196^10142^196^10143^196^10144^196^10145^196^10146^196^10147^196^10148^196^10149^196^10150^196 | H132: 10400^99^10401^99^10402^99^10403^99^10404^98^10405^98^10406^98^10407^98^10408^98^10409^98^10410^98^10411^98^10412^98^10413^98^10414^98^10415^98^10416^98^10417^98^10418^98^10419^98^10420^98^10421^98^10422^98^10423^98^10424^98^10425^98^10426^98^10427^98^10428^98^10429^98^10430^98^10431^98^10432^98^10433^98^10434^98^10435^98^10436^98^10437^98^10438^98^10439^98^10440^98^10441^98^10442^98^10443^98^10444^98^10445^98^10446^98^10447^98^10448^98^10449^98^10450^98^10500^98^10501^98^10502^98^10503^98^10504^98^10505^98^10506^98^10507^98^10508^98^10509^98^10510^98^10511^98^10512^98^10513^98^10514^98^10515^98^10516^98^10517^98^10518^98^10519^98^10520^98^10521^98^10522^98^10523^98^10524^98^10525^98^10526^98^10527^98^10528^98^10529^98^10530^98^10531^98^10532^98^10533^98^10534^98^10535^98^10536^98^10537^98^10538^98^10539^98^10540^98^10541^98^10542^98^10543^98^10544^98^10545^98^10546^98^10547^98^10548^98^10549^98^10550^98 | I132: 0 | J132: 110006^95|110005^5 | K132: 80004
A133: 40210 | B133: 10 | C133: 4 | D133: 3 | E133: 1 | F133: 10200^99^10201^99^10202^99^10203^99^10204^98^10205^98^10206^98^10207^98^10208^98^10209^98^10210^98^10211^98^10212^98^10213^98^10214^98^10215^98^10216^98^10217^98^10218^98^10219^98^10220^98^10221^98^10222^98^10223^98^10224^98^10225^98^10226^98^10227^98^10228^98^10229^98^10230^98^10231^98^10232^98^10233^98^10234^98^10235^98^10236^98^10237^98^10238^98^10239^98^10240^98^10241^98^10242^98^10243^98^10244^98^10245^98^10246^98^10247^98^10248^98^10249^98^10250^98^10300^98^10301^98^10302^98^10303^98^10304^98^10305^98^10306^98^10307^98^10308^98^10309^98^10310^98^10311^98^10312^98^10313^98^10314^98^10315^98^10316^98^10317^98^10318^98^10319^98^10320^98^10321^98^10322^98^10323^98^10324^98^10325^98^10326^98^10327^98^10328^98^10329^98^10330^98^10331^98^10332^98^10333^98^10334^98^10335^98^10336^98^10337^98^10338^98^10339^98^10340^98^10341^98^10342^98^10343^98^10344^98^10345^98^10346^98^10347^98^10348^98^10349^98^10350^98 | G133: 10100^197^10101^197^10102^197^10103^197^10104^196^10105^196^10106^196^10107^196^10108^196^10109^196^10110^196^10111^196^10112^196^10113^196^10114^196^10115^196^10116^196^10117^196^10118^196^10119^196^10120^196^10121^196^10122^196^10123^196^10124^196^10125^196^10126^196^10127^196^10128^196^10129^196^10130^196^10131^196^10132^196^10133^196^10134^196^10135^196^10136^196^10137^196^10138^196^10139^196^10140^196^10141^196^10142^196^10143^196^10144^196^10145^196^10146^196^10147^196^10148^196^10149^196^10150^196 | H133: 10400^99^10401^99^10402^99^10403^99^10404^98^10405^98^10406^98^10407^98^10408^98^10409^98^10410^98^10411^98^10412^98^10413^98^10414^98^10415^98^10416^98^10417^98^10418^98^10419^98^10420^98^10421^98^10422^98^10423^98^10424^98^10425^98^10426^98^10427^98^10428^98^10429^98^10430^98^10431^98^10432^98^10433^98^10434^98^10435^98^10436^98^10437^98^10438^98^10439^98^10440^98^10441^98^10442^98^10443^98^10444^98^10445^98^10446^98^10447^98^10448^98^10449^98^10450^98^10500^98^10501^98^10502^98^10503^98^10504^98^10505^98^10506^98^10507^98^10508^98^10509^98^10510^98^10511^98^10512^98^10513^98^10514^98^10515^98^10516^98^10517^98^10518^98^10519^98^10520^98^10521^98^10522^98^10523^98^10524^98^10525^98^10526^98^10527^98^10528^98^10529^98^10530^98^10531^98^10532^98^10533^98^10534^98^10535^98^10536^98^10537^98^10538^98^10539^98^10540^98^10541^98^10542^98^10543^98^10544^98^10545^98^10546^98^10547^98^10548^98^10549^98^10550^98 | I133: 0 | J133: 110006^25|110005^5 | K133: 80004
A134: 40211 | B134: 11 | C134: 4 | D134: 3 | E134: 7 | F134: 10200^99^10201^99^10202^99^10203^99^10204^98^10205^98^10206^98^10207^98^10208^98^10209^98^10210^98^10211^98^10212^98^10213^98^10214^98^10215^98^10216^98^10217^98^10218^98^10219^98^10220^98^10221^98^10222^98^10223^98^10224^98^10225^98^10226^98^10227^98^10228^98^10229^98^10230^98^10231^98^10232^98^10233^98^10234^98^10235^98^10236^98^10237^98^10238^98^10239^98^10240^98^10241^98^10242^98^10243^98^10244^98^10245^98^10246^98^10247^98^10248^98^10249^98^10250^98^10300^98^10301^98^10302^98^10303^98^10304^98^10305^98^10306^98^10307^98^10308^98^10309^98^10310^98^10311^98^10312^98^10313^98^10314^98^10315^98^10316^98^10317^98^10318^98^10319^98^10320^98^10321^98^10322^98^10323^98^10324^98^10325^98^10326^98^10327^98^10328^98^10329^98^10330^98^10331^98^10332^98^10333^98^10334^98^10335^98^10336^98^10337^98^10338^98^10339^98^10340^98^10341^98^10342^98^10343^98^10344^98^10345^98^10346^98^10347^98^10348^98^10349^98^10350^98 | G134: 10100^197^10101^197^10102^197^10103^197^10104^196^10105^196^10106^196^10107^196^10108^196^10109^196^10110^196^10111^196^10112^196^10113^196^10114^196^10115^196^10116^196^10117^196^10118^196^10119^196^10120^196^10121^196^10122^196^10123^196^10124^196^10125^196^10126^196^10127^196^10128^196^10129^196^10130^196^10131^196^10132^196^10133^196^10134^196^10135^196^10136^196^10137^196^10138^196^10139^196^10140^196^10141^196^10142^196^10143^196^10144^196^10145^196^10146^196^10147^196^10148^196^10149^196^10150^196 | H134: 10400^99^10401^99^10402^99^10403^99^10404^98^10405^98^10406^98^10407^98^10408^98^10409^98^10410^98^10411^98^10412^98^10413^98^10414^98^10415^98^10416^98^10417^98^10418^98^10419^98^10420^98^10421^98^10422^98^10423^98^10424^98^10425^98^10426^98^10427^98^10428^98^10429^98^10430^98^10431^98^10432^98^10433^98^10434^98^10435^98^10436^98^10437^98^10438^98^10439^98^10440^98^10441^98^10442^98^10443^98^10444^98^10445^98^10446^98^10447^98^10448^98^10449^98^10450^98^10500^98^10501^98^10502^98^10503^98^10504^98^10505^98^10506^98^10507^98^10508^98^10509^98^10510^98^10511^98^10512^98^10513^98^10514^98^10515^98^10516^98^10517^98^10518^98^10519^98^10520^98^10521^98^10522^98^10523^98^10524^98^10525^98^10526^98^10527^98^10528^98^10529^98^10530^98^10531^98^10532^98^10533^98^10534^98^10535^98^10536^98^10537^98^10538^98^10539^98^10540^98^10541^98^10542^98^10543^98^10544^98^10545^98^10546^98^10547^98^10548^98^10549^98^10550^98 | I134: 0 | J134: 110006^330|110005^20 | K134: 80010
A135: 50001 | B135: 1 | C135: 5 | D135: 1 | E135: 1 | F135: 10200^99^10201^99^10202^99^10203^99^10204^98^10205^98^10206^98^10207^98^10208^98^10209^98^10210^98^10211^98^10212^98^10213^98^10214^98^10215^98^10216^98^10217^98^10218^98^10219^98^10220^98^10221^98^10222^98^10223^98^10224^98^10225^98^10226^98^10227^98^10228^98^10229^98^10230^98^10231^98^10232^98^10233^98^10234^98^10235^98^10236^98^10237^98^10238^98^10239^98^10240^98^10241^98^10242^98^10243^98^10244^98^10245^98^10246^98^10247^98^10248^98^10249^98^10250^98^10300^98^10301^98^10302^98^10303^98^10304^98^10305^98^10306^98^10307^98^10308^98^10309^98^10310^98^10311^98^10312^98^10313^98^10314^98^10315^98^10316^98^10317^98^10318^98^10319^98^10320^98^10321^98^10322^98^10323^98^10324^98^10325^98^10326^98^10327^98^10328^98^10329^98^10330^98^10331^98^10332^98^10333^98^10334^98^10335^98^10336^98^10337^98^10338^98^10339^98^10340^98^10341^98^10342^98^10343^98^10344^98^10345^98^10346^98^10347^98^10348^98^10349^98^10350^98 | G135: 10100^197^10101^197^10102^197^10103^197^10104^196^10105^196^10106^196^10107^196^10108^196^10109^196^10110^196^10111^196^10112^196^10113^196^10114^196^10115^196^10116^196^10117^196^10118^196^10119^196^10120^196^10121^196^10122^196^10123^196^10124^196^10125^196^10126^196^10127^196^10128^196^10129^196^10130^196^10131^196^10132^196^10133^196^10134^196^10135^196^10136^196^10137^196^10138^196^10139^196^10140^196^10141^196^10142^196^10143^196^10144^196^10145^196^10146^196^10147^196^10148^196^10149^196^10150^196 | H135: 10400^99^10401^99^10402^99^10403^99^10404^98^10405^98^10406^98^10407^98^10408^98^10409^98^10410^98^10411^98^10412^98^10413^98^10414^98^10415^98^10416^98^10417^98^10418^98^10419^98^10420^98^10421^98^10422^98^10423^98^10424^98^10425^98^10426^98^10427^98^10428^98^10429^98^10430^98^10431^98^10432^98^10433^98^10434^98^10435^98^10436^98^10437^98^10438^98^10439^98^10440^98^10441^98^10442^98^10443^98^10444^98^10445^98^10446^98^10447^98^10448^98^10449^98^10450^98^10500^98^10501^98^10502^98^10503^98^10504^98^10505^98^10506^98^10507^98^10508^98^10509^98^10510^98^10511^98^10512^98^10513^98^10514^98^10515^98^10516^98^10517^98^10518^98^10519^98^10520^98^10521^98^10522^98^10523^98^10524^98^10525^98^10526^98^10527^98^10528^98^10529^98^10530^98^10531^98^10532^98^10533^98^10534^98^10535^98^10536^98^10537^98^10538^98^10539^98^10540^98^10541^98^10542^98^10543^98^10544^98^10545^98^10546^98^10547^98^10548^98^10549^98^10550^98 | I135: 0 | J135: 110006^30|110005^5 | K135: 80005
A136: 50002 | B136: 2 | C136: 5 | D136: 1 | E136: 1 | F136: 10200^99^10201^99^10202^99^10203^99^10204^98^10205^98^10206^98^10207^98^10208^98^10209^98^10210^98^10211^98^10212^98^10213^98^10214^98^10215^98^10216^98^10217^98^10218^98^10219^98^10220^98^10221^98^10222^98^10223^98^10224^98^10225^98^10226^98^10227^98^10228^98^10229^98^10230^98^10231^98^10232^98^10233^98^10234^98^10235^98^10236^98^10237^98^10238^98^10239^98^10240^98^10241^98^10242^98^10243^98^10244^98^10245^98^10246^98^10247^98^10248^98^10249^98^10250^98^10300^98^10301^98^10302^98^10303^98^10304^98^10305^98^10306^98^10307^98^10308^98^10309^98^10310^98^10311^98^10312^98^10313^98^10314^98^10315^98^10316^98^10317^98^10318^98^10319^98^10320^98^10321^98^10322^98^10323^98^10324^98^10325^98^10326^98^10327^98^10328^98^10329^98^10330^98^10331^98^10332^98^10333^98^10334^98^10335^98^10336^98^10337^98^10338^98^10339^98^10340^98^10341^98^10342^98^10343^98^10344^98^10345^98^10346^98^10347^98^10348^98^10349^98^10350^98 | G136: 10100^197^10101^197^10102^197^10103^197^10104^196^10105^196^10106^196^10107^196^10108^196^10109^196^10110^196^10111^196^10112^196^10113^196^10114^196^10115^196^10116^196^10117^196^10118^196^10119^196^10120^196^10121^196^10122^196^10123^196^10124^196^10125^196^10126^196^10127^196^10128^196^10129^196^10130^196^10131^196^10132^196^10133^196^10134^196^10135^196^10136^196^10137^196^10138^196^10139^196^10140^196^10141^196^10142^196^10143^196^10144^196^10145^196^10146^196^10147^196^10148^196^10149^196^10150^196 | H136: 10400^99^10401^99^10402^99^10403^99^10404^98^10405^98^10406^98^10407^98^10408^98^10409^98^10410^98^10411^98^10412^98^10413^98^10414^98^10415^98^10416^98^10417^98^10418^98^10419^98^10420^98^10421^98^10422^98^10423^98^10424^98^10425^98^10426^98^10427^98^10428^98^10429^98^10430^98^10431^98^10432^98^10433^98^10434^98^10435^98^10436^98^10437^98^10438^98^10439^98^10440^98^10441^98^10442^98^10443^98^10444^98^10445^98^10446^98^10447^98^10448^98^10449^98^10450^98^10500^98^10501^98^10502^98^10503^98^10504^98^10505^98^10506^98^10507^98^10508^98^10509^98^10510^98^10511^98^10512^98^10513^98^10514^98^10515^98^10516^98^10517^98^10518^98^10519^98^10520^98^10521^98^10522^98^10523^98^10524^98^10525^98^10526^98^10527^98^10528^98^10529^98^10530^98^10531^98^10532^98^10533^98^10534^98^10535^98^10536^98^10537^98^10538^98^10539^98^10540^98^10541^98^10542^98^10543^98^10544^98^10545^98^10546^98^10547^98^10548^98^10549^98^10550^98 | I136: 0 | J136: 110006^30|110005^5 | K136: 80005
A137: 50003 | B137: 3 | C137: 5 | D137: 1 | E137: 2 | F137: 10200^99^10201^99^10202^99^10203^99^10204^98^10205^98^10206^98^10207^98^10208^98^10209^98^10210^98^10211^98^10212^98^10213^98^10214^98^10215^98^10216^98^10217^98^10218^98^10219^98^10220^98^10221^98^10222^98^10223^98^10224^98^10225^98^10226^98^10227^98^10228^98^10229^98^10230^98^10231^98^10232^98^10233^98^10234^98^10235^98^10236^98^10237^98^10238^98^10239^98^10240^98^10241^98^10242^98^10243^98^10244^98^10245^98^10246^98^10247^98^10248^98^10249^98^10250^98^10300^98^10301^98^10302^98^10303^98^10304^98^10305^98^10306^98^10307^98^10308^98^10309^98^10310^98^10311^98^10312^98^10313^98^10314^98^10315^98^10316^98^10317^98^10318^98^10319^98^10320^98^10321^98^10322^98^10323^98^10324^98^10325^98^10326^98^10327^98^10328^98^10329^98^10330^98^10331^98^10332^98^10333^98^10334^98^10335^98^10336^98^10337^98^10338^98^10339^98^10340^98^10341^98^10342^98^10343^98^10344^98^10345^98^10346^98^10347^98^10348^98^10349^98^10350^98 | G137: 10100^197^10101^197^10102^197^10103^197^10104^196^10105^196^10106^196^10107^196^10108^196^10109^196^10110^196^10111^196^10112^196^10113^196^10114^196^10115^196^10116^196^10117^196^10118^196^10119^196^10120^196^10121^196^10122^196^10123^196^10124^196^10125^196^10126^196^10127^196^10128^196^10129^196^10130^196^10131^196^10132^196^10133^196^10134^196^10135^196^10136^196^10137^196^10138^196^10139^196^10140^196^10141^196^10142^196^10143^196^10144^196^10145^196^10146^196^10147^196^10148^196^10149^196^10150^196 | H137: 10400^99^10401^99^10402^99^10403^99^10404^98^10405^98^10406^98^10407^98^10408^98^10409^98^10410^98^10411^98^10412^98^10413^98^10414^98^10415^98^10416^98^10417^98^10418^98^10419^98^10420^98^10421^98^10422^98^10423^98^10424^98^10425^98^10426^98^10427^98^10428^98^10429^98^10430^98^10431^98^10432^98^10433^98^10434^98^10435^98^10436^98^10437^98^10438^98^10439^98^10440^98^10441^98^10442^98^10443^98^10444^98^10445^98^10446^98^10447^98^10448^98^10449^98^10450^98^10500^98^10501^98^10502^98^10503^98^10504^98^10505^98^10506^98^10507^98^10508^98^10509^98^10510^98^10511^98^10512^98^10513^98^10514^98^10515^98^10516^98^10517^98^10518^98^10519^98^10520^98^10521^98^10522^98^10523^98^10524^98^10525^98^10526^98^10527^98^10528^98^10529^98^10530^98^10531^98^10532^98^10533^98^10534^98^10535^98^10536^98^10537^98^10538^98^10539^98^10540^98^10541^98^10542^98^10543^98^10544^98^10545^98^10546^98^10547^98^10548^98^10549^98^10550^98 | I137: 0 | J137: 110006^110|110005^5 | K137: 80005
A138: 50004 | B138: 4 | C138: 5 | D138: 1 | E138: 3 | F138: 0 | G138: 0 | H138: 0 | I138: 110006^130|100001^20000|110005^10 | J138: 110006^130|100001^20000|110005^10 | K138: 0
A139: 50005 | B139: 5 | C139: 5 | D139: 1 | E139: 4 | F139: 0 | G139: 0 | H139: 0 | I139: 0 | J139: 0 | K139: 0
A140: 50006 | B140: 6 | C140: 5 | D140: 1 | E140: 3 | F140: 0 | G140: 0 | H140: 0 | I140: 110006^130|100001^20000|110005^10 | J140: 110006^130|100001^20000|110005^10 | K140: 0
A141: 50007 | B141: 7 | C141: 5 | D141: 1 | E141: 5 | F141: 0 | G141: 0 | H141: 0 | I141: 0 | J141: 130001^170 | K141: 0
A142: 50008 | B142: 8 | C142: 5 | D142: 1 | E142: 6 | F142: 0 | G142: 0 | H142: 0 | I142: 0 | J142: 0 | K142: 80017
A143: 50009 | B143: 9 | C143: 5 | D143: 1 | E143: 2 | F143: 10200^99^10201^99^10202^99^10203^99^10204^98^10205^98^10206^98^10207^98^10208^98^10209^98^10210^98^10211^98^10212^98^10213^98^10214^98^10215^98^10216^98^10217^98^10218^98^10219^98^10220^98^10221^98^10222^98^10223^98^10224^98^10225^98^10226^98^10227^98^10228^98^10229^98^10230^98^10231^98^10232^98^10233^98^10234^98^10235^98^10236^98^10237^98^10238^98^10239^98^10240^98^10241^98^10242^98^10243^98^10244^98^10245^98^10246^98^10247^98^10248^98^10249^98^10250^98^10300^98^10301^98^10302^98^10303^98^10304^98^10305^98^10306^98^10307^98^10308^98^10309^98^10310^98^10311^98^10312^98^10313^98^10314^98^10315^98^10316^98^10317^98^10318^98^10319^98^10320^98^10321^98^10322^98^10323^98^10324^98^10325^98^10326^98^10327^98^10328^98^10329^98^10330^98^10331^98^10332^98^10333^98^10334^98^10335^98^10336^98^10337^98^10338^98^10339^98^10340^98^10341^98^10342^98^10343^98^10344^98^10345^98^10346^98^10347^98^10348^98^10349^98^10350^98 | G143: 10100^197^10101^197^10102^197^10103^197^10104^196^10105^196^10106^196^10107^196^10108^196^10109^196^10110^196^10111^196^10112^196^10113^196^10114^196^10115^196^10116^196^10117^196^10118^196^10119^196^10120^196^10121^196^10122^196^10123^196^10124^196^10125^196^10126^196^10127^196^10128^196^10129^196^10130^196^10131^196^10132^196^10133^196^10134^196^10135^196^10136^196^10137^196^10138^196^10139^196^10140^196^10141^196^10142^196^10143^196^10144^196^10145^196^10146^196^10147^196^10148^196^10149^196^10150^196 | H143: 10400^99^10401^99^10402^99^10403^99^10404^98^10405^98^10406^98^10407^98^10408^98^10409^98^10410^98^10411^98^10412^98^10413^98^10414^98^10415^98^10416^98^10417^98^10418^98^10419^98^10420^98^10421^98^10422^98^10423^98^10424^98^10425^98^10426^98^10427^98^10428^98^10429^98^10430^98^10431^98^10432^98^10433^98^10434^98^10435^98^10436^98^10437^98^10438^98^10439^98^10440^98^10441^98^10442^98^10443^98^10444^98^10445^98^10446^98^10447^98^10448^98^10449^98^10450^98^10500^98^10501^98^10502^98^10503^98^10504^98^10505^98^10506^98^10507^98^10508^98^10509^98^10510^98^10511^98^10512^98^10513^98^10514^98^10515^98^10516^98^10517^98^10518^98^10519^98^10520^98^10521^98^10522^98^10523^98^10524^98^10525^98^10526^98^10527^98^10528^98^10529^98^10530^98^10531^98^10532^98^10533^98^10534^98^10535^98^10536^98^10537^98^10538^98^10539^98^10540^98^10541^98^10542^98^10543^98^10544^98^10545^98^10546^98^10547^98^10548^98^10549^98^10550^98 | I143: 0 | J143: 110006^110|110005^5 | K143: 80005
A144: 50010 | B144: 10 | C144: 5 | D144: 1 | E144: 1 | F144: 10200^99^10201^99^10202^99^10203^99^10204^98^10205^98^10206^98^10207^98^10208^98^10209^98^10210^98^10211^98^10212^98^10213^98^10214^98^10215^98^10216^98^10217^98^10218^98^10219^98^10220^98^10221^98^10222^98^10223^98^10224^98^10225^98^10226^98^10227^98^10228^98^10229^98^10230^98^10231^98^10232^98^10233^98^10234^98^10235^98^10236^98^10237^98^10238^98^10239^98^10240^98^10241^98^10242^98^10243^98^10244^98^10245^98^10246^98^10247^98^10248^98^10249^98^10250^98^10300^98^10301^98^10302^98^10303^98^10304^98^10305^98^10306^98^10307^98^10308^98^10309^98^10310^98^10311^98^10312^98^10313^98^10314^98^10315^98^10316^98^10317^98^10318^98^10319^98^10320^98^10321^98^10322^98^10323^98^10324^98^10325^98^10326^98^10327^98^10328^98^10329^98^10330^98^10331^98^10332^98^10333^98^10334^98^10335^98^10336^98^10337^98^10338^98^10339^98^10340^98^10341^98^10342^98^10343^98^10344^98^10345^98^10346^98^10347^98^10348^98^10349^98^10350^98 | G144: 10100^197^10101^197^10102^197^10103^197^10104^196^10105^196^10106^196^10107^196^10108^196^10109^196^10110^196^10111^196^10112^196^10113^196^10114^196^10115^196^10116^196^10117^196^10118^196^10119^196^10120^196^10121^196^10122^196^10123^196^10124^196^10125^196^10126^196^10127^196^10128^196^10129^196^10130^196^10131^196^10132^196^10133^196^10134^196^10135^196^10136^196^10137^196^10138^196^10139^196^10140^196^10141^196^10142^196^10143^196^10144^196^10145^196^10146^196^10147^196^10148^196^10149^196^10150^196 | H144: 10400^99^10401^99^10402^99^10403^99^10404^98^10405^98^10406^98^10407^98^10408^98^10409^98^10410^98^10411^98^10412^98^10413^98^10414^98^10415^98^10416^98^10417^98^10418^98^10419^98^10420^98^10421^98^10422^98^10423^98^10424^98^10425^98^10426^98^10427^98^10428^98^10429^98^10430^98^10431^98^10432^98^10433^98^10434^98^10435^98^10436^98^10437^98^10438^98^10439^98^10440^98^10441^98^10442^98^10443^98^10444^98^10445^98^10446^98^10447^98^10448^98^10449^98^10450^98^10500^98^10501^98^10502^98^10503^98^10504^98^10505^98^10506^98^10507^98^10508^98^10509^98^10510^98^10511^98^10512^98^10513^98^10514^98^10515^98^10516^98^10517^98^10518^98^10519^98^10520^98^10521^98^10522^98^10523^98^10524^98^10525^98^10526^98^10527^98^10528^98^10529^98^10530^98^10531^98^10532^98^10533^98^10534^98^10535^98^10536^98^10537^98^10538^98^10539^98^10540^98^10541^98^10542^98^10543^98^10544^98^10545^98^10546^98^10547^98^10548^98^10549^98^10550^98 | I144: 0 | J144: 110006^30|110005^5 | K144: 80005
A145: 50011 | B145: 11 | C145: 5 | D145: 1 | E145: 7 | F145: 10200^99^10201^99^10202^99^10203^99^10204^98^10205^98^10206^98^10207^98^10208^98^10209^98^10210^98^10211^98^10212^98^10213^98^10214^98^10215^98^10216^98^10217^98^10218^98^10219^98^10220^98^10221^98^10222^98^10223^98^10224^98^10225^98^10226^98^10227^98^10228^98^10229^98^10230^98^10231^98^10232^98^10233^98^10234^98^10235^98^10236^98^10237^98^10238^98^10239^98^10240^98^10241^98^10242^98^10243^98^10244^98^10245^98^10246^98^10247^98^10248^98^10249^98^10250^98^10300^98^10301^98^10302^98^10303^98^10304^98^10305^98^10306^98^10307^98^10308^98^10309^98^10310^98^10311^98^10312^98^10313^98^10314^98^10315^98^10316^98^10317^98^10318^98^10319^98^10320^98^10321^98^10322^98^10323^98^10324^98^10325^98^10326^98^10327^98^10328^98^10329^98^10330^98^10331^98^10332^98^10333^98^10334^98^10335^98^10336^98^10337^98^10338^98^10339^98^10340^98^10341^98^10342^98^10343^98^10344^98^10345^98^10346^98^10347^98^10348^98^10349^98^10350^98 | G145: 10100^197^10101^197^10102^197^10103^197^10104^196^10105^196^10106^196^10107^196^10108^196^10109^196^10110^196^10111^196^10112^196^10113^196^10114^196^10115^196^10116^196^10117^196^10118^196^10119^196^10120^196^10121^196^10122^196^10123^196^10124^196^10125^196^10126^196^10127^196^10128^196^10129^196^10130^196^10131^196^10132^196^10133^196^10134^196^10135^196^10136^196^10137^196^10138^196^10139^196^10140^196^10141^196^10142^196^10143^196^10144^196^10145^196^10146^196^10147^196^10148^196^10149^196^10150^196 | H145: 10400^99^10401^99^10402^99^10403^99^10404^98^10405^98^10406^98^10407^98^10408^98^10409^98^10410^98^10411^98^10412^98^10413^98^10414^98^10415^98^10416^98^10417^98^10418^98^10419^98^10420^98^10421^98^10422^98^10423^98^10424^98^10425^98^10426^98^10427^98^10428^98^10429^98^10430^98^10431^98^10432^98^10433^98^10434^98^10435^98^10436^98^10437^98^10438^98^10439^98^10440^98^10441^98^10442^98^10443^98^10444^98^10445^98^10446^98^10447^98^10448^98^10449^98^10450^98^10500^98^10501^98^10502^98^10503^98^10504^98^10505^98^10506^98^10507^98^10508^98^10509^98^10510^98^10511^98^10512^98^10513^98^10514^98^10515^98^10516^98^10517^98^10518^98^10519^98^10520^98^10521^98^10522^98^10523^98^10524^98^10525^98^10526^98^10527^98^10528^98^10529^98^10530^98^10531^98^10532^98^10533^98^10534^98^10535^98^10536^98^10537^98^10538^98^10539^98^10540^98^10541^98^10542^98^10543^98^10544^98^10545^98^10546^98^10547^98^10548^98^10549^98^10550^98 | I145: 0 | J145: 110006^460|110005^20 | K145: 80011
A146: 50101 | B146: 1 | C146: 5 | D146: 2 | E146: 1 | F146: 10200^99^10201^99^10202^99^10203^99^10204^98^10205^98^10206^98^10207^98^10208^98^10209^98^10210^98^10211^98^10212^98^10213^98^10214^98^10215^98^10216^98^10217^98^10218^98^10219^98^10220^98^10221^98^10222^98^10223^98^10224^98^10225^98^10226^98^10227^98^10228^98^10229^98^10230^98^10231^98^10232^98^10233^98^10234^98^10235^98^10236^98^10237^98^10238^98^10239^98^10240^98^10241^98^10242^98^10243^98^10244^98^10245^98^10246^98^10247^98^10248^98^10249^98^10250^98^10300^98^10301^98^10302^98^10303^98^10304^98^10305^98^10306^98^10307^98^10308^98^10309^98^10310^98^10311^98^10312^98^10313^98^10314^98^10315^98^10316^98^10317^98^10318^98^10319^98^10320^98^10321^98^10322^98^10323^98^10324^98^10325^98^10326^98^10327^98^10328^98^10329^98^10330^98^10331^98^10332^98^10333^98^10334^98^10335^98^10336^98^10337^98^10338^98^10339^98^10340^98^10341^98^10342^98^10343^98^10344^98^10345^98^10346^98^10347^98^10348^98^10349^98^10350^98 | G146: 10100^197^10101^197^10102^197^10103^197^10104^196^10105^196^10106^196^10107^196^10108^196^10109^196^10110^196^10111^196^10112^196^10113^196^10114^196^10115^196^10116^196^10117^196^10118^196^10119^196^10120^196^10121^196^10122^196^10123^196^10124^196^10125^196^10126^196^10127^196^10128^196^10129^196^10130^196^10131^196^10132^196^10133^196^10134^196^10135^196^10136^196^10137^196^10138^196^10139^196^10140^196^10141^196^10142^196^10143^196^10144^196^10145^196^10146^196^10147^196^10148^196^10149^196^10150^196 | H146: 10400^99^10401^99^10402^99^10403^99^10404^98^10405^98^10406^98^10407^98^10408^98^10409^98^10410^98^10411^98^10412^98^10413^98^10414^98^10415^98^10416^98^10417^98^10418^98^10419^98^10420^98^10421^98^10422^98^10423^98^10424^98^10425^98^10426^98^10427^98^10428^98^10429^98^10430^98^10431^98^10432^98^10433^98^10434^98^10435^98^10436^98^10437^98^10438^98^10439^98^10440^98^10441^98^10442^98^10443^98^10444^98^10445^98^10446^98^10447^98^10448^98^10449^98^10450^98^10500^98^10501^98^10502^98^10503^98^10504^98^10505^98^10506^98^10507^98^10508^98^10509^98^10510^98^10511^98^10512^98^10513^98^10514^98^10515^98^10516^98^10517^98^10518^98^10519^98^10520^98^10521^98^10522^98^10523^98^10524^98^10525^98^10526^98^10527^98^10528^98^10529^98^10530^98^10531^98^10532^98^10533^98^10534^98^10535^98^10536^98^10537^98^10538^98^10539^98^10540^98^10541^98^10542^98^10543^98^10544^98^10545^98^10546^98^10547^98^10548^98^10549^98^10550^98 | I146: 0 | J146: 110006^30|110005^5 | K146: 80005
A147: 50102 | B147: 2 | C147: 5 | D147: 2 | E147: 1 | F147: 10200^99^10201^99^10202^99^10203^99^10204^98^10205^98^10206^98^10207^98^10208^98^10209^98^10210^98^10211^98^10212^98^10213^98^10214^98^10215^98^10216^98^10217^98^10218^98^10219^98^10220^98^10221^98^10222^98^10223^98^10224^98^10225^98^10226^98^10227^98^10228^98^10229^98^10230^98^10231^98^10232^98^10233^98^10234^98^10235^98^10236^98^10237^98^10238^98^10239^98^10240^98^10241^98^10242^98^10243^98^10244^98^10245^98^10246^98^10247^98^10248^98^10249^98^10250^98^10300^98^10301^98^10302^98^10303^98^10304^98^10305^98^10306^98^10307^98^10308^98^10309^98^10310^98^10311^98^10312^98^10313^98^10314^98^10315^98^10316^98^10317^98^10318^98^10319^98^10320^98^10321^98^10322^98^10323^98^10324^98^10325^98^10326^98^10327^98^10328^98^10329^98^10330^98^10331^98^10332^98^10333^98^10334^98^10335^98^10336^98^10337^98^10338^98^10339^98^10340^98^10341^98^10342^98^10343^98^10344^98^10345^98^10346^98^10347^98^10348^98^10349^98^10350^98 | G147: 10100^197^10101^197^10102^197^10103^197^10104^196^10105^196^10106^196^10107^196^10108^196^10109^196^10110^196^10111^196^10112^196^10113^196^10114^196^10115^196^10116^196^10117^196^10118^196^10119^196^10120^196^10121^196^10122^196^10123^196^10124^196^10125^196^10126^196^10127^196^10128^196^10129^196^10130^196^10131^196^10132^196^10133^196^10134^196^10135^196^10136^196^10137^196^10138^196^10139^196^10140^196^10141^196^10142^196^10143^196^10144^196^10145^196^10146^196^10147^196^10148^196^10149^196^10150^196 | H147: 10400^99^10401^99^10402^99^10403^99^10404^98^10405^98^10406^98^10407^98^10408^98^10409^98^10410^98^10411^98^10412^98^10413^98^10414^98^10415^98^10416^98^10417^98^10418^98^10419^98^10420^98^10421^98^10422^98^10423^98^10424^98^10425^98^10426^98^10427^98^10428^98^10429^98^10430^98^10431^98^10432^98^10433^98^10434^98^10435^98^10436^98^10437^98^10438^98^10439^98^10440^98^10441^98^10442^98^10443^98^10444^98^10445^98^10446^98^10447^98^10448^98^10449^98^10450^98^10500^98^10501^98^10502^98^10503^98^10504^98^10505^98^10506^98^10507^98^10508^98^10509^98^10510^98^10511^98^10512^98^10513^98^10514^98^10515^98^10516^98^10517^98^10518^98^10519^98^10520^98^10521^98^10522^98^10523^98^10524^98^10525^98^10526^98^10527^98^10528^98^10529^98^10530^98^10531^98^10532^98^10533^98^10534^98^10535^98^10536^98^10537^98^10538^98^10539^98^10540^98^10541^98^10542^98^10543^98^10544^98^10545^98^10546^98^10547^98^10548^98^10549^98^10550^98 | I147: 0 | J147: 110006^30|110005^5 | K147: 80005
A148: 50103 | B148: 3 | C148: 5 | D148: 2 | E148: 2 | F148: 10200^99^10201^99^10202^99^10203^99^10204^98^10205^98^10206^98^10207^98^10208^98^10209^98^10210^98^10211^98^10212^98^10213^98^10214^98^10215^98^10216^98^10217^98^10218^98^10219^98^10220^98^10221^98^10222^98^10223^98^10224^98^10225^98^10226^98^10227^98^10228^98^10229^98^10230^98^10231^98^10232^98^10233^98^10234^98^10235^98^10236^98^10237^98^10238^98^10239^98^10240^98^10241^98^10242^98^10243^98^10244^98^10245^98^10246^98^10247^98^10248^98^10249^98^10250^98^10300^98^10301^98^10302^98^10303^98^10304^98^10305^98^10306^98^10307^98^10308^98^10309^98^10310^98^10311^98^10312^98^10313^98^10314^98^10315^98^10316^98^10317^98^10318^98^10319^98^10320^98^10321^98^10322^98^10323^98^10324^98^10325^98^10326^98^10327^98^10328^98^10329^98^10330^98^10331^98^10332^98^10333^98^10334^98^10335^98^10336^98^10337^98^10338^98^10339^98^10340^98^10341^98^10342^98^10343^98^10344^98^10345^98^10346^98^10347^98^10348^98^10349^98^10350^98 | G148: 10100^197^10101^197^10102^197^10103^197^10104^196^10105^196^10106^196^10107^196^10108^196^10109^196^10110^196^10111^196^10112^196^10113^196^10114^196^10115^196^10116^196^10117^196^10118^196^10119^196^10120^196^10121^196^10122^196^10123^196^10124^196^10125^196^10126^196^10127^196^10128^196^10129^196^10130^196^10131^196^10132^196^10133^196^10134^196^10135^196^10136^196^10137^196^10138^196^10139^196^10140^196^10141^196^10142^196^10143^196^10144^196^10145^196^10146^196^10147^196^10148^196^10149^196^10150^196 | H148: 10400^99^10401^99^10402^99^10403^99^10404^98^10405^98^10406^98^10407^98^10408^98^10409^98^10410^98^10411^98^10412^98^10413^98^10414^98^10415^98^10416^98^10417^98^10418^98^10419^98^10420^98^10421^98^10422^98^10423^98^10424^98^10425^98^10426^98^10427^98^10428^98^10429^98^10430^98^10431^98^10432^98^10433^98^10434^98^10435^98^10436^98^10437^98^10438^98^10439^98^10440^98^10441^98^10442^98^10443^98^10444^98^10445^98^10446^98^10447^98^10448^98^10449^98^10450^98^10500^98^10501^98^10502^98^10503^98^10504^98^10505^98^10506^98^10507^98^10508^98^10509^98^10510^98^10511^98^10512^98^10513^98^10514^98^10515^98^10516^98^10517^98^10518^98^10519^98^10520^98^10521^98^10522^98^10523^98^10524^98^10525^98^10526^98^10527^98^10528^98^10529^98^10530^98^10531^98^10532^98^10533^98^10534^98^10535^98^10536^98^10537^98^10538^98^10539^98^10540^98^10541^98^10542^98^10543^98^10544^98^10545^98^10546^98^10547^98^10548^98^10549^98^10550^98 | I148: 0 | J148: 110006^110|110005^5 | K148: 80005
A149: 50104 | B149: 4 | C149: 5 | D149: 2 | E149: 3 | F149: 0 | G149: 0 | H149: 0 | I149: 110006^130|100001^20000|110005^10 | J149: 110006^130|100001^20000|110005^10 | K149: 0
A150: 50105 | B150: 5 | C150: 5 | D150: 2 | E150: 4 | F150: 0 | G150: 0 | H150: 0 | I150: 0 | J150: 0 | K150: 0
A151: 50106 | B151: 6 | C151: 5 | D151: 2 | E151: 3 | F151: 0 | G151: 0 | H151: 0 | I151: 110006^130|100001^20000|110005^10 | J151: 110006^130|100001^20000|110005^10 | K151: 0
A152: 50107 | B152: 7 | C152: 5 | D152: 2 | E152: 5 | F152: 0 | G152: 0 | H152: 0 | I152: 0 | J152: 130001^170 | K152: 0
A153: 50108 | B153: 8 | C153: 5 | D153: 2 | E153: 6 | F153: 0 | G153: 0 | H153: 0 | I153: 0 | J153: 0 | K153: 80017
A154: 50109 | B154: 9 | C154: 5 | D154: 2 | E154: 2 | F154: 10200^99^10201^99^10202^99^10203^99^10204^98^10205^98^10206^98^10207^98^10208^98^10209^98^10210^98^10211^98^10212^98^10213^98^10214^98^10215^98^10216^98^10217^98^10218^98^10219^98^10220^98^10221^98^10222^98^10223^98^10224^98^10225^98^10226^98^10227^98^10228^98^10229^98^10230^98^10231^98^10232^98^10233^98^10234^98^10235^98^10236^98^10237^98^10238^98^10239^98^10240^98^10241^98^10242^98^10243^98^10244^98^10245^98^10246^98^10247^98^10248^98^10249^98^10250^98^10300^98^10301^98^10302^98^10303^98^10304^98^10305^98^10306^98^10307^98^10308^98^10309^98^10310^98^10311^98^10312^98^10313^98^10314^98^10315^98^10316^98^10317^98^10318^98^10319^98^10320^98^10321^98^10322^98^10323^98^10324^98^10325^98^10326^98^10327^98^10328^98^10329^98^10330^98^10331^98^10332^98^10333^98^10334^98^10335^98^10336^98^10337^98^10338^98^10339^98^10340^98^10341^98^10342^98^10343^98^10344^98^10345^98^10346^98^10347^98^10348^98^10349^98^10350^98 | G154: 10100^197^10101^197^10102^197^10103^197^10104^196^10105^196^10106^196^10107^196^10108^196^10109^196^10110^196^10111^196^10112^196^10113^196^10114^196^10115^196^10116^196^10117^196^10118^196^10119^196^10120^196^10121^196^10122^196^10123^196^10124^196^10125^196^10126^196^10127^196^10128^196^10129^196^10130^196^10131^196^10132^196^10133^196^10134^196^10135^196^10136^196^10137^196^10138^196^10139^196^10140^196^10141^196^10142^196^10143^196^10144^196^10145^196^10146^196^10147^196^10148^196^10149^196^10150^196 | H154: 10400^99^10401^99^10402^99^10403^99^10404^98^10405^98^10406^98^10407^98^10408^98^10409^98^10410^98^10411^98^10412^98^10413^98^10414^98^10415^98^10416^98^10417^98^10418^98^10419^98^10420^98^10421^98^10422^98^10423^98^10424^98^10425^98^10426^98^10427^98^10428^98^10429^98^10430^98^10431^98^10432^98^10433^98^10434^98^10435^98^10436^98^10437^98^10438^98^10439^98^10440^98^10441^98^10442^98^10443^98^10444^98^10445^98^10446^98^10447^98^10448^98^10449^98^10450^98^10500^98^10501^98^10502^98^10503^98^10504^98^10505^98^10506^98^10507^98^10508^98^10509^98^10510^98^10511^98^10512^98^10513^98^10514^98^10515^98^10516^98^10517^98^10518^98^10519^98^10520^98^10521^98^10522^98^10523^98^10524^98^10525^98^10526^98^10527^98^10528^98^10529^98^10530^98^10531^98^10532^98^10533^98^10534^98^10535^98^10536^98^10537^98^10538^98^10539^98^10540^98^10541^98^10542^98^10543^98^10544^98^10545^98^10546^98^10547^98^10548^98^10549^98^10550^98 | I154: 0 | J154: 110006^110|110005^5 | K154: 80005
A155: 50110 | B155: 10 | C155: 5 | D155: 2 | E155: 1 | F155: 10200^99^10201^99^10202^99^10203^99^10204^98^10205^98^10206^98^10207^98^10208^98^10209^98^10210^98^10211^98^10212^98^10213^98^10214^98^10215^98^10216^98^10217^98^10218^98^10219^98^10220^98^10221^98^10222^98^10223^98^10224^98^10225^98^10226^98^10227^98^10228^98^10229^98^10230^98^10231^98^10232^98^10233^98^10234^98^10235^98^10236^98^10237^98^10238^98^10239^98^10240^98^10241^98^10242^98^10243^98^10244^98^10245^98^10246^98^10247^98^10248^98^10249^98^10250^98^10300^98^10301^98^10302^98^10303^98^10304^98^10305^98^10306^98^10307^98^10308^98^10309^98^10310^98^10311^98^10312^98^10313^98^10314^98^10315^98^10316^98^10317^98^10318^98^10319^98^10320^98^10321^98^10322^98^10323^98^10324^98^10325^98^10326^98^10327^98^10328^98^10329^98^10330^98^10331^98^10332^98^10333^98^10334^98^10335^98^10336^98^10337^98^10338^98^10339^98^10340^98^10341^98^10342^98^10343^98^10344^98^10345^98^10346^98^10347^98^10348^98^10349^98^10350^98 | G155: 10100^197^10101^197^10102^197^10103^197^10104^196^10105^196^10106^196^10107^196^10108^196^10109^196^10110^196^10111^196^10112^196^10113^196^10114^196^10115^196^10116^196^10117^196^10118^196^10119^196^10120^196^10121^196^10122^196^10123^196^10124^196^10125^196^10126^196^10127^196^10128^196^10129^196^10130^196^10131^196^10132^196^10133^196^10134^196^10135^196^10136^196^10137^196^10138^196^10139^196^10140^196^10141^196^10142^196^10143^196^10144^196^10145^196^10146^196^10147^196^10148^196^10149^196^10150^196 | H155: 10400^99^10401^99^10402^99^10403^99^10404^98^10405^98^10406^98^10407^98^10408^98^10409^98^10410^98^10411^98^10412^98^10413^98^10414^98^10415^98^10416^98^10417^98^10418^98^10419^98^10420^98^10421^98^10422^98^10423^98^10424^98^10425^98^10426^98^10427^98^10428^98^10429^98^10430^98^10431^98^10432^98^10433^98^10434^98^10435^98^10436^98^10437^98^10438^98^10439^98^10440^98^10441^98^10442^98^10443^98^10444^98^10445^98^10446^98^10447^98^10448^98^10449^98^10450^98^10500^98^10501^98^10502^98^10503^98^10504^98^10505^98^10506^98^10507^98^10508^98^10509^98^10510^98^10511^98^10512^98^10513^98^10514^98^10515^98^10516^98^10517^98^10518^98^10519^98^10520^98^10521^98^10522^98^10523^98^10524^98^10525^98^10526^98^10527^98^10528^98^10529^98^10530^98^10531^98^10532^98^10533^98^10534^98^10535^98^10536^98^10537^98^10538^98^10539^98^10540^98^10541^98^10542^98^10543^98^10544^98^10545^98^10546^98^10547^98^10548^98^10549^98^10550^98 | I155: 0 | J155: 110006^30|110005^5 | K155: 80005
A156: 50111 | B156: 11 | C156: 5 | D156: 2 | E156: 7 | F156: 10200^99^10201^99^10202^99^10203^99^10204^98^10205^98^10206^98^10207^98^10208^98^10209^98^10210^98^10211^98^10212^98^10213^98^10214^98^10215^98^10216^98^10217^98^10218^98^10219^98^10220^98^10221^98^10222^98^10223^98^10224^98^10225^98^10226^98^10227^98^10228^98^10229^98^10230^98^10231^98^10232^98^10233^98^10234^98^10235^98^10236^98^10237^98^10238^98^10239^98^10240^98^10241^98^10242^98^10243^98^10244^98^10245^98^10246^98^10247^98^10248^98^10249^98^10250^98^10300^98^10301^98^10302^98^10303^98^10304^98^10305^98^10306^98^10307^98^10308^98^10309^98^10310^98^10311^98^10312^98^10313^98^10314^98^10315^98^10316^98^10317^98^10318^98^10319^98^10320^98^10321^98^10322^98^10323^98^10324^98^10325^98^10326^98^10327^98^10328^98^10329^98^10330^98^10331^98^10332^98^10333^98^10334^98^10335^98^10336^98^10337^98^10338^98^10339^98^10340^98^10341^98^10342^98^10343^98^10344^98^10345^98^10346^98^10347^98^10348^98^10349^98^10350^98 | G156: 10100^197^10101^197^10102^197^10103^197^10104^196^10105^196^10106^196^10107^196^10108^196^10109^196^10110^196^10111^196^10112^196^10113^196^10114^196^10115^196^10116^196^10117^196^10118^196^10119^196^10120^196^10121^196^10122^196^10123^196^10124^196^10125^196^10126^196^10127^196^10128^196^10129^196^10130^196^10131^196^10132^196^10133^196^10134^196^10135^196^10136^196^10137^196^10138^196^10139^196^10140^196^10141^196^10142^196^10143^196^10144^196^10145^196^10146^196^10147^196^10148^196^10149^196^10150^196 | H156: 10400^99^10401^99^10402^99^10403^99^10404^98^10405^98^10406^98^10407^98^10408^98^10409^98^10410^98^10411^98^10412^98^10413^98^10414^98^10415^98^10416^98^10417^98^10418^98^10419^98^10420^98^10421^98^10422^98^10423^98^10424^98^10425^98^10426^98^10427^98^10428^98^10429^98^10430^98^10431^98^10432^98^10433^98^10434^98^10435^98^10436^98^10437^98^10438^98^10439^98^10440^98^10441^98^10442^98^10443^98^10444^98^10445^98^10446^98^10447^98^10448^98^10449^98^10450^98^10500^98^10501^98^10502^98^10503^98^10504^98^10505^98^10506^98^10507^98^10508^98^10509^98^10510^98^10511^98^10512^98^10513^98^10514^98^10515^98^10516^98^10517^98^10518^98^10519^98^10520^98^10521^98^10522^98^10523^98^10524^98^10525^98^10526^98^10527^98^10528^98^10529^98^10530^98^10531^98^10532^98^10533^98^10534^98^10535^98^10536^98^10537^98^10538^98^10539^98^10540^98^10541^98^10542^98^10543^98^10544^98^10545^98^10546^98^10547^98^10548^98^10549^98^10550^98 | I156: 0 | J156: 110006^460|110005^20 | K156: 80011
A157: 50201 | B157: 1 | C157: 5 | D157: 3 | E157: 1 | F157: 10200^99^10201^99^10202^99^10203^99^10204^98^10205^98^10206^98^10207^98^10208^98^10209^98^10210^98^10211^98^10212^98^10213^98^10214^98^10215^98^10216^98^10217^98^10218^98^10219^98^10220^98^10221^98^10222^98^10223^98^10224^98^10225^98^10226^98^10227^98^10228^98^10229^98^10230^98^10231^98^10232^98^10233^98^10234^98^10235^98^10236^98^10237^98^10238^98^10239^98^10240^98^10241^98^10242^98^10243^98^10244^98^10245^98^10246^98^10247^98^10248^98^10249^98^10250^98^10300^98^10301^98^10302^98^10303^98^10304^98^10305^98^10306^98^10307^98^10308^98^10309^98^10310^98^10311^98^10312^98^10313^98^10314^98^10315^98^10316^98^10317^98^10318^98^10319^98^10320^98^10321^98^10322^98^10323^98^10324^98^10325^98^10326^98^10327^98^10328^98^10329^98^10330^98^10331^98^10332^98^10333^98^10334^98^10335^98^10336^98^10337^98^10338^98^10339^98^10340^98^10341^98^10342^98^10343^98^10344^98^10345^98^10346^98^10347^98^10348^98^10349^98^10350^98 | G157: 10100^197^10101^197^10102^197^10103^197^10104^196^10105^196^10106^196^10107^196^10108^196^10109^196^10110^196^10111^196^10112^196^10113^196^10114^196^10115^196^10116^196^10117^196^10118^196^10119^196^10120^196^10121^196^10122^196^10123^196^10124^196^10125^196^10126^196^10127^196^10128^196^10129^196^10130^196^10131^196^10132^196^10133^196^10134^196^10135^196^10136^196^10137^196^10138^196^10139^196^10140^196^10141^196^10142^196^10143^196^10144^196^10145^196^10146^196^10147^196^10148^196^10149^196^10150^196 | H157: 10400^99^10401^99^10402^99^10403^99^10404^98^10405^98^10406^98^10407^98^10408^98^10409^98^10410^98^10411^98^10412^98^10413^98^10414^98^10415^98^10416^98^10417^98^10418^98^10419^98^10420^98^10421^98^10422^98^10423^98^10424^98^10425^98^10426^98^10427^98^10428^98^10429^98^10430^98^10431^98^10432^98^10433^98^10434^98^10435^98^10436^98^10437^98^10438^98^10439^98^10440^98^10441^98^10442^98^10443^98^10444^98^10445^98^10446^98^10447^98^10448^98^10449^98^10450^98^10500^98^10501^98^10502^98^10503^98^10504^98^10505^98^10506^98^10507^98^10508^98^10509^98^10510^98^10511^98^10512^98^10513^98^10514^98^10515^98^10516^98^10517^98^10518^98^10519^98^10520^98^10521^98^10522^98^10523^98^10524^98^10525^98^10526^98^10527^98^10528^98^10529^98^10530^98^10531^98^10532^98^10533^98^10534^98^10535^98^10536^98^10537^98^10538^98^10539^98^10540^98^10541^98^10542^98^10543^98^10544^98^10545^98^10546^98^10547^98^10548^98^10549^98^10550^98 | I157: 0 | J157: 110006^30|110005^5 | K157: 80005
A158: 50202 | B158: 2 | C158: 5 | D158: 3 | E158: 1 | F158: 10200^99^10201^99^10202^99^10203^99^10204^98^10205^98^10206^98^10207^98^10208^98^10209^98^10210^98^10211^98^10212^98^10213^98^10214^98^10215^98^10216^98^10217^98^10218^98^10219^98^10220^98^10221^98^10222^98^10223^98^10224^98^10225^98^10226^98^10227^98^10228^98^10229^98^10230^98^10231^98^10232^98^10233^98^10234^98^10235^98^10236^98^10237^98^10238^98^10239^98^10240^98^10241^98^10242^98^10243^98^10244^98^10245^98^10246^98^10247^98^10248^98^10249^98^10250^98^10300^98^10301^98^10302^98^10303^98^10304^98^10305^98^10306^98^10307^98^10308^98^10309^98^10310^98^10311^98^10312^98^10313^98^10314^98^10315^98^10316^98^10317^98^10318^98^10319^98^10320^98^10321^98^10322^98^10323^98^10324^98^10325^98^10326^98^10327^98^10328^98^10329^98^10330^98^10331^98^10332^98^10333^98^10334^98^10335^98^10336^98^10337^98^10338^98^10339^98^10340^98^10341^98^10342^98^10343^98^10344^98^10345^98^10346^98^10347^98^10348^98^10349^98^10350^98 | G158: 10100^197^10101^197^10102^197^10103^197^10104^196^10105^196^10106^196^10107^196^10108^196^10109^196^10110^196^10111^196^10112^196^10113^196^10114^196^10115^196^10116^196^10117^196^10118^196^10119^196^10120^196^10121^196^10122^196^10123^196^10124^196^10125^196^10126^196^10127^196^10128^196^10129^196^10130^196^10131^196^10132^196^10133^196^10134^196^10135^196^10136^196^10137^196^10138^196^10139^196^10140^196^10141^196^10142^196^10143^196^10144^196^10145^196^10146^196^10147^196^10148^196^10149^196^10150^196 | H158: 10400^99^10401^99^10402^99^10403^99^10404^98^10405^98^10406^98^10407^98^10408^98^10409^98^10410^98^10411^98^10412^98^10413^98^10414^98^10415^98^10416^98^10417^98^10418^98^10419^98^10420^98^10421^98^10422^98^10423^98^10424^98^10425^98^10426^98^10427^98^10428^98^10429^98^10430^98^10431^98^10432^98^10433^98^10434^98^10435^98^10436^98^10437^98^10438^98^10439^98^10440^98^10441^98^10442^98^10443^98^10444^98^10445^98^10446^98^10447^98^10448^98^10449^98^10450^98^10500^98^10501^98^10502^98^10503^98^10504^98^10505^98^10506^98^10507^98^10508^98^10509^98^10510^98^10511^98^10512^98^10513^98^10514^98^10515^98^10516^98^10517^98^10518^98^10519^98^10520^98^10521^98^10522^98^10523^98^10524^98^10525^98^10526^98^10527^98^10528^98^10529^98^10530^98^10531^98^10532^98^10533^98^10534^98^10535^98^10536^98^10537^98^10538^98^10539^98^10540^98^10541^98^10542^98^10543^98^10544^98^10545^98^10546^98^10547^98^10548^98^10549^98^10550^98 | I158: 0 | J158: 110006^30|110005^5 | K158: 80005
A159: 50203 | B159: 3 | C159: 5 | D159: 3 | E159: 2 | F159: 10200^99^10201^99^10202^99^10203^99^10204^98^10205^98^10206^98^10207^98^10208^98^10209^98^10210^98^10211^98^10212^98^10213^98^10214^98^10215^98^10216^98^10217^98^10218^98^10219^98^10220^98^10221^98^10222^98^10223^98^10224^98^10225^98^10226^98^10227^98^10228^98^10229^98^10230^98^10231^98^10232^98^10233^98^10234^98^10235^98^10236^98^10237^98^10238^98^10239^98^10240^98^10241^98^10242^98^10243^98^10244^98^10245^98^10246^98^10247^98^10248^98^10249^98^10250^98^10300^98^10301^98^10302^98^10303^98^10304^98^10305^98^10306^98^10307^98^10308^98^10309^98^10310^98^10311^98^10312^98^10313^98^10314^98^10315^98^10316^98^10317^98^10318^98^10319^98^10320^98^10321^98^10322^98^10323^98^10324^98^10325^98^10326^98^10327^98^10328^98^10329^98^10330^98^10331^98^10332^98^10333^98^10334^98^10335^98^10336^98^10337^98^10338^98^10339^98^10340^98^10341^98^10342^98^10343^98^10344^98^10345^98^10346^98^10347^98^10348^98^10349^98^10350^98 | G159: 10100^197^10101^197^10102^197^10103^197^10104^196^10105^196^10106^196^10107^196^10108^196^10109^196^10110^196^10111^196^10112^196^10113^196^10114^196^10115^196^10116^196^10117^196^10118^196^10119^196^10120^196^10121^196^10122^196^10123^196^10124^196^10125^196^10126^196^10127^196^10128^196^10129^196^10130^196^10131^196^10132^196^10133^196^10134^196^10135^196^10136^196^10137^196^10138^196^10139^196^10140^196^10141^196^10142^196^10143^196^10144^196^10145^196^10146^196^10147^196^10148^196^10149^196^10150^196 | H159: 10400^99^10401^99^10402^99^10403^99^10404^98^10405^98^10406^98^10407^98^10408^98^10409^98^10410^98^10411^98^10412^98^10413^98^10414^98^10415^98^10416^98^10417^98^10418^98^10419^98^10420^98^10421^98^10422^98^10423^98^10424^98^10425^98^10426^98^10427^98^10428^98^10429^98^10430^98^10431^98^10432^98^10433^98^10434^98^10435^98^10436^98^10437^98^10438^98^10439^98^10440^98^10441^98^10442^98^10443^98^10444^98^10445^98^10446^98^10447^98^10448^98^10449^98^10450^98^10500^98^10501^98^10502^98^10503^98^10504^98^10505^98^10506^98^10507^98^10508^98^10509^98^10510^98^10511^98^10512^98^10513^98^10514^98^10515^98^10516^98^10517^98^10518^98^10519^98^10520^98^10521^98^10522^98^10523^98^10524^98^10525^98^10526^98^10527^98^10528^98^10529^98^10530^98^10531^98^10532^98^10533^98^10534^98^10535^98^10536^98^10537^98^10538^98^10539^98^10540^98^10541^98^10542^98^10543^98^10544^98^10545^98^10546^98^10547^98^10548^98^10549^98^10550^98 | I159: 0 | J159: 110006^110|110005^5 | K159: 80005
A160: 50204 | B160: 4 | C160: 5 | D160: 3 | E160: 3 | F160: 0 | G160: 0 | H160: 0 | I160: 110006^130|100001^20000|110005^10 | J160: 110006^130|100001^20000|110005^10 | K160: 0
A161: 50205 | B161: 5 | C161: 5 | D161: 3 | E161: 4 | F161: 0 | G161: 0 | H161: 0 | I161: 0 | J161: 0 | K161: 0
A162: 50206 | B162: 6 | C162: 5 | D162: 3 | E162: 3 | F162: 0 | G162: 0 | H162: 0 | I162: 110006^130|100001^20000|110005^10 | J162: 110006^130|100001^20000|110005^10 | K162: 0
A163: 50207 | B163: 7 | C163: 5 | D163: 3 | E163: 5 | F163: 0 | G163: 0 | H163: 0 | I163: 0 | J163: 130001^170 | K163: 0
A164: 50208 | B164: 8 | C164: 5 | D164: 3 | E164: 6 | F164: 0 | G164: 0 | H164: 0 | I164: 0 | J164: 0 | K164: 80017
A165: 50209 | B165: 9 | C165: 5 | D165: 3 | E165: 2 | F165: 10200^99^10201^99^10202^99^10203^99^10204^98^10205^98^10206^98^10207^98^10208^98^10209^98^10210^98^10211^98^10212^98^10213^98^10214^98^10215^98^10216^98^10217^98^10218^98^10219^98^10220^98^10221^98^10222^98^10223^98^10224^98^10225^98^10226^98^10227^98^10228^98^10229^98^10230^98^10231^98^10232^98^10233^98^10234^98^10235^98^10236^98^10237^98^10238^98^10239^98^10240^98^10241^98^10242^98^10243^98^10244^98^10245^98^10246^98^10247^98^10248^98^10249^98^10250^98^10300^98^10301^98^10302^98^10303^98^10304^98^10305^98^10306^98^10307^98^10308^98^10309^98^10310^98^10311^98^10312^98^10313^98^10314^98^10315^98^10316^98^10317^98^10318^98^10319^98^10320^98^10321^98^10322^98^10323^98^10324^98^10325^98^10326^98^10327^98^10328^98^10329^98^10330^98^10331^98^10332^98^10333^98^10334^98^10335^98^10336^98^10337^98^10338^98^10339^98^10340^98^10341^98^10342^98^10343^98^10344^98^10345^98^10346^98^10347^98^10348^98^10349^98^10350^98 | G165: 10100^197^10101^197^10102^197^10103^197^10104^196^10105^196^10106^196^10107^196^10108^196^10109^196^10110^196^10111^196^10112^196^10113^196^10114^196^10115^196^10116^196^10117^196^10118^196^10119^196^10120^196^10121^196^10122^196^10123^196^10124^196^10125^196^10126^196^10127^196^10128^196^10129^196^10130^196^10131^196^10132^196^10133^196^10134^196^10135^196^10136^196^10137^196^10138^196^10139^196^10140^196^10141^196^10142^196^10143^196^10144^196^10145^196^10146^196^10147^196^10148^196^10149^196^10150^196 | H165: 10400^99^10401^99^10402^99^10403^99^10404^98^10405^98^10406^98^10407^98^10408^98^10409^98^10410^98^10411^98^10412^98^10413^98^10414^98^10415^98^10416^98^10417^98^10418^98^10419^98^10420^98^10421^98^10422^98^10423^98^10424^98^10425^98^10426^98^10427^98^10428^98^10429^98^10430^98^10431^98^10432^98^10433^98^10434^98^10435^98^10436^98^10437^98^10438^98^10439^98^10440^98^10441^98^10442^98^10443^98^10444^98^10445^98^10446^98^10447^98^10448^98^10449^98^10450^98^10500^98^10501^98^10502^98^10503^98^10504^98^10505^98^10506^98^10507^98^10508^98^10509^98^10510^98^10511^98^10512^98^10513^98^10514^98^10515^98^10516^98^10517^98^10518^98^10519^98^10520^98^10521^98^10522^98^10523^98^10524^98^10525^98^10526^98^10527^98^10528^98^10529^98^10530^98^10531^98^10532^98^10533^98^10534^98^10535^98^10536^98^10537^98^10538^98^10539^98^10540^98^10541^98^10542^98^10543^98^10544^98^10545^98^10546^98^10547^98^10548^98^10549^98^10550^98 | I165: 0 | J165: 110006^110|110005^5 | K165: 80005
A166: 50210 | B166: 10 | C166: 5 | D166: 3 | E166: 1 | F166: 10200^99^10201^99^10202^99^10203^99^10204^98^10205^98^10206^98^10207^98^10208^98^10209^98^10210^98^10211^98^10212^98^10213^98^10214^98^10215^98^10216^98^10217^98^10218^98^10219^98^10220^98^10221^98^10222^98^10223^98^10224^98^10225^98^10226^98^10227^98^10228^98^10229^98^10230^98^10231^98^10232^98^10233^98^10234^98^10235^98^10236^98^10237^98^10238^98^10239^98^10240^98^10241^98^10242^98^10243^98^10244^98^10245^98^10246^98^10247^98^10248^98^10249^98^10250^98^10300^98^10301^98^10302^98^10303^98^10304^98^10305^98^10306^98^10307^98^10308^98^10309^98^10310^98^10311^98^10312^98^10313^98^10314^98^10315^98^10316^98^10317^98^10318^98^10319^98^10320^98^10321^98^10322^98^10323^98^10324^98^10325^98^10326^98^10327^98^10328^98^10329^98^10330^98^10331^98^10332^98^10333^98^10334^98^10335^98^10336^98^10337^98^10338^98^10339^98^10340^98^10341^98^10342^98^10343^98^10344^98^10345^98^10346^98^10347^98^10348^98^10349^98^10350^98 | G166: 10100^197^10101^197^10102^197^10103^197^10104^196^10105^196^10106^196^10107^196^10108^196^10109^196^10110^196^10111^196^10112^196^10113^196^10114^196^10115^196^10116^196^10117^196^10118^196^10119^196^10120^196^10121^196^10122^196^10123^196^10124^196^10125^196^10126^196^10127^196^10128^196^10129^196^10130^196^10131^196^10132^196^10133^196^10134^196^10135^196^10136^196^10137^196^10138^196^10139^196^10140^196^10141^196^10142^196^10143^196^10144^196^10145^196^10146^196^10147^196^10148^196^10149^196^10150^196 | H166: 10400^99^10401^99^10402^99^10403^99^10404^98^10405^98^10406^98^10407^98^10408^98^10409^98^10410^98^10411^98^10412^98^10413^98^10414^98^10415^98^10416^98^10417^98^10418^98^10419^98^10420^98^10421^98^10422^98^10423^98^10424^98^10425^98^10426^98^10427^98^10428^98^10429^98^10430^98^10431^98^10432^98^10433^98^10434^98^10435^98^10436^98^10437^98^10438^98^10439^98^10440^98^10441^98^10442^98^10443^98^10444^98^10445^98^10446^98^10447^98^10448^98^10449^98^10450^98^10500^98^10501^98^10502^98^10503^98^10504^98^10505^98^10506^98^10507^98^10508^98^10509^98^10510^98^10511^98^10512^98^10513^98^10514^98^10515^98^10516^98^10517^98^10518^98^10519^98^10520^98^10521^98^10522^98^10523^98^10524^98^10525^98^10526^98^10527^98^10528^98^10529^98^10530^98^10531^98^10532^98^10533^98^10534^98^10535^98^10536^98^10537^98^10538^98^10539^98^10540^98^10541^98^10542^98^10543^98^10544^98^10545^98^10546^98^10547^98^10548^98^10549^98^10550^98 | I166: 0 | J166: 110006^30|110005^5 | K166: 80005
A167: 50211 | B167: 11 | C167: 5 | D167: 3 | E167: 7 | F167: 10200^99^10201^99^10202^99^10203^99^10204^98^10205^98^10206^98^10207^98^10208^98^10209^98^10210^98^10211^98^10212^98^10213^98^10214^98^10215^98^10216^98^10217^98^10218^98^10219^98^10220^98^10221^98^10222^98^10223^98^10224^98^10225^98^10226^98^10227^98^10228^98^10229^98^10230^98^10231^98^10232^98^10233^98^10234^98^10235^98^10236^98^10237^98^10238^98^10239^98^10240^98^10241^98^10242^98^10243^98^10244^98^10245^98^10246^98^10247^98^10248^98^10249^98^10250^98^10300^98^10301^98^10302^98^10303^98^10304^98^10305^98^10306^98^10307^98^10308^98^10309^98^10310^98^10311^98^10312^98^10313^98^10314^98^10315^98^10316^98^10317^98^10318^98^10319^98^10320^98^10321^98^10322^98^10323^98^10324^98^10325^98^10326^98^10327^98^10328^98^10329^98^10330^98^10331^98^10332^98^10333^98^10334^98^10335^98^10336^98^10337^98^10338^98^10339^98^10340^98^10341^98^10342^98^10343^98^10344^98^10345^98^10346^98^10347^98^10348^98^10349^98^10350^98 | G167: 10100^197^10101^197^10102^197^10103^197^10104^196^10105^196^10106^196^10107^196^10108^196^10109^196^10110^196^10111^196^10112^196^10113^196^10114^196^10115^196^10116^196^10117^196^10118^196^10119^196^10120^196^10121^196^10122^196^10123^196^10124^196^10125^196^10126^196^10127^196^10128^196^10129^196^10130^196^10131^196^10132^196^10133^196^10134^196^10135^196^10136^196^10137^196^10138^196^10139^196^10140^196^10141^196^10142^196^10143^196^10144^196^10145^196^10146^196^10147^196^10148^196^10149^196^10150^196 | H167: 10400^99^10401^99^10402^99^10403^99^10404^98^10405^98^10406^98^10407^98^10408^98^10409^98^10410^98^10411^98^10412^98^10413^98^10414^98^10415^98^10416^98^10417^98^10418^98^10419^98^10420^98^10421^98^10422^98^10423^98^10424^98^10425^98^10426^98^10427^98^10428^98^10429^98^10430^98^10431^98^10432^98^10433^98^10434^98^10435^98^10436^98^10437^98^10438^98^10439^98^10440^98^10441^98^10442^98^10443^98^10444^98^10445^98^10446^98^10447^98^10448^98^10449^98^10450^98^10500^98^10501^98^10502^98^10503^98^10504^98^10505^98^10506^98^10507^98^10508^98^10509^98^10510^98^10511^98^10512^98^10513^98^10514^98^10515^98^10516^98^10517^98^10518^98^10519^98^10520^98^10521^98^10522^98^10523^98^10524^98^10525^98^10526^98^10527^98^10528^98^10529^98^10530^98^10531^98^10532^98^10533^98^10534^98^10535^98^10536^98^10537^98^10538^98^10539^98^10540^98^10541^98^10542^98^10543^98^10544^98^10545^98^10546^98^10547^98^10548^98^10549^98^10550^98 | I167: 0 | J167: 110006^460|110005^20 | K167: 80011
A168: 60001 | B168: 1 | C168: 6 | D168: 1 | E168: 1 | F168: 10200^99^10201^99^10202^99^10203^99^10204^98^10205^98^10206^98^10207^98^10208^98^10209^98^10210^98^10211^98^10212^98^10213^98^10214^98^10215^98^10216^98^10217^98^10218^98^10219^98^10220^98^10221^98^10222^98^10223^98^10224^98^10225^98^10226^98^10227^98^10228^98^10229^98^10230^98^10231^98^10232^98^10233^98^10234^98^10235^98^10236^98^10237^98^10238^98^10239^98^10240^98^10241^98^10242^98^10243^98^10244^98^10245^98^10246^98^10247^98^10248^98^10249^98^10250^98^10300^98^10301^98^10302^98^10303^98^10304^98^10305^98^10306^98^10307^98^10308^98^10309^98^10310^98^10311^98^10312^98^10313^98^10314^98^10315^98^10316^98^10317^98^10318^98^10319^98^10320^98^10321^98^10322^98^10323^98^10324^98^10325^98^10326^98^10327^98^10328^98^10329^98^10330^98^10331^98^10332^98^10333^98^10334^98^10335^98^10336^98^10337^98^10338^98^10339^98^10340^98^10341^98^10342^98^10343^98^10344^98^10345^98^10346^98^10347^98^10348^98^10349^98^10350^98 | G168: 10100^197^10101^197^10102^197^10103^197^10104^196^10105^196^10106^196^10107^196^10108^196^10109^196^10110^196^10111^196^10112^196^10113^196^10114^196^10115^196^10116^196^10117^196^10118^196^10119^196^10120^196^10121^196^10122^196^10123^196^10124^196^10125^196^10126^196^10127^196^10128^196^10129^196^10130^196^10131^196^10132^196^10133^196^10134^196^10135^196^10136^196^10137^196^10138^196^10139^196^10140^196^10141^196^10142^196^10143^196^10144^196^10145^196^10146^196^10147^196^10148^196^10149^196^10150^196 | H168: 10400^99^10401^99^10402^99^10403^99^10404^98^10405^98^10406^98^10407^98^10408^98^10409^98^10410^98^10411^98^10412^98^10413^98^10414^98^10415^98^10416^98^10417^98^10418^98^10419^98^10420^98^10421^98^10422^98^10423^98^10424^98^10425^98^10426^98^10427^98^10428^98^10429^98^10430^98^10431^98^10432^98^10433^98^10434^98^10435^98^10436^98^10437^98^10438^98^10439^98^10440^98^10441^98^10442^98^10443^98^10444^98^10445^98^10446^98^10447^98^10448^98^10449^98^10450^98^10500^98^10501^98^10502^98^10503^98^10504^98^10505^98^10506^98^10507^98^10508^98^10509^98^10510^98^10511^98^10512^98^10513^98^10514^98^10515^98^10516^98^10517^98^10518^98^10519^98^10520^98^10521^98^10522^98^10523^98^10524^98^10525^98^10526^98^10527^98^10528^98^10529^98^10530^98^10531^98^10532^98^10533^98^10534^98^10535^98^10536^98^10537^98^10538^98^10539^98^10540^98^10541^98^10542^98^10543^98^10544^98^10545^98^10546^98^10547^98^10548^98^10549^98^10550^98 | I168: 0 | J168: 110006^35|110005^5 | K168: 80006
A169: 60002 | B169: 2 | C169: 6 | D169: 1 | E169: 1 | F169: 10200^99^10201^99^10202^99^10203^99^10204^98^10205^98^10206^98^10207^98^10208^98^10209^98^10210^98^10211^98^10212^98^10213^98^10214^98^10215^98^10216^98^10217^98^10218^98^10219^98^10220^98^10221^98^10222^98^10223^98^10224^98^10225^98^10226^98^10227^98^10228^98^10229^98^10230^98^10231^98^10232^98^10233^98^10234^98^10235^98^10236^98^10237^98^10238^98^10239^98^10240^98^10241^98^10242^98^10243^98^10244^98^10245^98^10246^98^10247^98^10248^98^10249^98^10250^98^10300^98^10301^98^10302^98^10303^98^10304^98^10305^98^10306^98^10307^98^10308^98^10309^98^10310^98^10311^98^10312^98^10313^98^10314^98^10315^98^10316^98^10317^98^10318^98^10319^98^10320^98^10321^98^10322^98^10323^98^10324^98^10325^98^10326^98^10327^98^10328^98^10329^98^10330^98^10331^98^10332^98^10333^98^10334^98^10335^98^10336^98^10337^98^10338^98^10339^98^10340^98^10341^98^10342^98^10343^98^10344^98^10345^98^10346^98^10347^98^10348^98^10349^98^10350^98 | G169: 10100^197^10101^197^10102^197^10103^197^10104^196^10105^196^10106^196^10107^196^10108^196^10109^196^10110^196^10111^196^10112^196^10113^196^10114^196^10115^196^10116^196^10117^196^10118^196^10119^196^10120^196^10121^196^10122^196^10123^196^10124^196^10125^196^10126^196^10127^196^10128^196^10129^196^10130^196^10131^196^10132^196^10133^196^10134^196^10135^196^10136^196^10137^196^10138^196^10139^196^10140^196^10141^196^10142^196^10143^196^10144^196^10145^196^10146^196^10147^196^10148^196^10149^196^10150^196 | H169: 10400^99^10401^99^10402^99^10403^99^10404^98^10405^98^10406^98^10407^98^10408^98^10409^98^10410^98^10411^98^10412^98^10413^98^10414^98^10415^98^10416^98^10417^98^10418^98^10419^98^10420^98^10421^98^10422^98^10423^98^10424^98^10425^98^10426^98^10427^98^10428^98^10429^98^10430^98^10431^98^10432^98^10433^98^10434^98^10435^98^10436^98^10437^98^10438^98^10439^98^10440^98^10441^98^10442^98^10443^98^10444^98^10445^98^10446^98^10447^98^10448^98^10449^98^10450^98^10500^98^10501^98^10502^98^10503^98^10504^98^10505^98^10506^98^10507^98^10508^98^10509^98^10510^98^10511^98^10512^98^10513^98^10514^98^10515^98^10516^98^10517^98^10518^98^10519^98^10520^98^10521^98^10522^98^10523^98^10524^98^10525^98^10526^98^10527^98^10528^98^10529^98^10530^98^10531^98^10532^98^10533^98^10534^98^10535^98^10536^98^10537^98^10538^98^10539^98^10540^98^10541^98^10542^98^10543^98^10544^98^10545^98^10546^98^10547^98^10548^98^10549^98^10550^98 | I169: 0 | J169: 110006^35|110005^5 | K169: 80006
A170: 60003 | B170: 3 | C170: 6 | D170: 1 | E170: 2 | F170: 10200^99^10201^99^10202^99^10203^99^10204^98^10205^98^10206^98^10207^98^10208^98^10209^98^10210^98^10211^98^10212^98^10213^98^10214^98^10215^98^10216^98^10217^98^10218^98^10219^98^10220^98^10221^98^10222^98^10223^98^10224^98^10225^98^10226^98^10227^98^10228^98^10229^98^10230^98^10231^98^10232^98^10233^98^10234^98^10235^98^10236^98^10237^98^10238^98^10239^98^10240^98^10241^98^10242^98^10243^98^10244^98^10245^98^10246^98^10247^98^10248^98^10249^98^10250^98^10300^98^10301^98^10302^98^10303^98^10304^98^10305^98^10306^98^10307^98^10308^98^10309^98^10310^98^10311^98^10312^98^10313^98^10314^98^10315^98^10316^98^10317^98^10318^98^10319^98^10320^98^10321^98^10322^98^10323^98^10324^98^10325^98^10326^98^10327^98^10328^98^10329^98^10330^98^10331^98^10332^98^10333^98^10334^98^10335^98^10336^98^10337^98^10338^98^10339^98^10340^98^10341^98^10342^98^10343^98^10344^98^10345^98^10346^98^10347^98^10348^98^10349^98^10350^98 | G170: 10100^197^10101^197^10102^197^10103^197^10104^196^10105^196^10106^196^10107^196^10108^196^10109^196^10110^196^10111^196^10112^196^10113^196^10114^196^10115^196^10116^196^10117^196^10118^196^10119^196^10120^196^10121^196^10122^196^10123^196^10124^196^10125^196^10126^196^10127^196^10128^196^10129^196^10130^196^10131^196^10132^196^10133^196^10134^196^10135^196^10136^196^10137^196^10138^196^10139^196^10140^196^10141^196^10142^196^10143^196^10144^196^10145^196^10146^196^10147^196^10148^196^10149^196^10150^196 | H170: 10400^99^10401^99^10402^99^10403^99^10404^98^10405^98^10406^98^10407^98^10408^98^10409^98^10410^98^10411^98^10412^98^10413^98^10414^98^10415^98^10416^98^10417^98^10418^98^10419^98^10420^98^10421^98^10422^98^10423^98^10424^98^10425^98^10426^98^10427^98^10428^98^10429^98^10430^98^10431^98^10432^98^10433^98^10434^98^10435^98^10436^98^10437^98^10438^98^10439^98^10440^98^10441^98^10442^98^10443^98^10444^98^10445^98^10446^98^10447^98^10448^98^10449^98^10450^98^10500^98^10501^98^10502^98^10503^98^10504^98^10505^98^10506^98^10507^98^10508^98^10509^98^10510^98^10511^98^10512^98^10513^98^10514^98^10515^98^10516^98^10517^98^10518^98^10519^98^10520^98^10521^98^10522^98^10523^98^10524^98^10525^98^10526^98^10527^98^10528^98^10529^98^10530^98^10531^98^10532^98^10533^98^10534^98^10535^98^10536^98^10537^98^10538^98^10539^98^10540^98^10541^98^10542^98^10543^98^10544^98^10545^98^10546^98^10547^98^10548^98^10549^98^10550^98 | I170: 0 | J170: 110006^125|110005^5 | K170: 80006
A171: 60004 | B171: 4 | C171: 6 | D171: 1 | E171: 3 | F171: 0 | G171: 0 | H171: 0 | I171: 110006^150|100001^30000|110005^10 | J171: 110006^150|100001^30000|110005^10 | K171: 0
A172: 60005 | B172: 5 | C172: 6 | D172: 1 | E172: 4 | F172: 0 | G172: 0 | H172: 0 | I172: 0 | J172: 0 | K172: 0
A173: 60006 | B173: 6 | C173: 6 | D173: 1 | E173: 3 | F173: 0 | G173: 0 | H173: 0 | I173: 110006^150|100001^30000|110005^10 | J173: 110006^150|100001^30000|110005^10 | K173: 0
A174: 60007 | B174: 7 | C174: 6 | D174: 1 | E174: 5 | F174: 0 | G174: 0 | H174: 0 | I174: 0 | J174: 130001^200 | K174: 0
A175: 60008 | B175: 8 | C175: 6 | D175: 1 | E175: 6 | F175: 0 | G175: 0 | H175: 0 | I175: 0 | J175: 0 | K175: 80018
A176: 60009 | B176: 9 | C176: 6 | D176: 1 | E176: 2 | F176: 10200^99^10201^99^10202^99^10203^99^10204^98^10205^98^10206^98^10207^98^10208^98^10209^98^10210^98^10211^98^10212^98^10213^98^10214^98^10215^98^10216^98^10217^98^10218^98^10219^98^10220^98^10221^98^10222^98^10223^98^10224^98^10225^98^10226^98^10227^98^10228^98^10229^98^10230^98^10231^98^10232^98^10233^98^10234^98^10235^98^10236^98^10237^98^10238^98^10239^98^10240^98^10241^98^10242^98^10243^98^10244^98^10245^98^10246^98^10247^98^10248^98^10249^98^10250^98^10300^98^10301^98^10302^98^10303^98^10304^98^10305^98^10306^98^10307^98^10308^98^10309^98^10310^98^10311^98^10312^98^10313^98^10314^98^10315^98^10316^98^10317^98^10318^98^10319^98^10320^98^10321^98^10322^98^10323^98^10324^98^10325^98^10326^98^10327^98^10328^98^10329^98^10330^98^10331^98^10332^98^10333^98^10334^98^10335^98^10336^98^10337^98^10338^98^10339^98^10340^98^10341^98^10342^98^10343^98^10344^98^10345^98^10346^98^10347^98^10348^98^10349^98^10350^98 | G176: 10100^197^10101^197^10102^197^10103^197^10104^196^10105^196^10106^196^10107^196^10108^196^10109^196^10110^196^10111^196^10112^196^10113^196^10114^196^10115^196^10116^196^10117^196^10118^196^10119^196^10120^196^10121^196^10122^196^10123^196^10124^196^10125^196^10126^196^10127^196^10128^196^10129^196^10130^196^10131^196^10132^196^10133^196^10134^196^10135^196^10136^196^10137^196^10138^196^10139^196^10140^196^10141^196^10142^196^10143^196^10144^196^10145^196^10146^196^10147^196^10148^196^10149^196^10150^196 | H176: 10400^99^10401^99^10402^99^10403^99^10404^98^10405^98^10406^98^10407^98^10408^98^10409^98^10410^98^10411^98^10412^98^10413^98^10414^98^10415^98^10416^98^10417^98^10418^98^10419^98^10420^98^10421^98^10422^98^10423^98^10424^98^10425^98^10426^98^10427^98^10428^98^10429^98^10430^98^10431^98^10432^98^10433^98^10434^98^10435^98^10436^98^10437^98^10438^98^10439^98^10440^98^10441^98^10442^98^10443^98^10444^98^10445^98^10446^98^10447^98^10448^98^10449^98^10450^98^10500^98^10501^98^10502^98^10503^98^10504^98^10505^98^10506^98^10507^98^10508^98^10509^98^10510^98^10511^98^10512^98^10513^98^10514^98^10515^98^10516^98^10517^98^10518^98^10519^98^10520^98^10521^98^10522^98^10523^98^10524^98^10525^98^10526^98^10527^98^10528^98^10529^98^10530^98^10531^98^10532^98^10533^98^10534^98^10535^98^10536^98^10537^98^10538^98^10539^98^10540^98^10541^98^10542^98^10543^98^10544^98^10545^98^10546^98^10547^98^10548^98^10549^98^10550^98 | I176: 0 | J176: 110006^125|110005^5 | K176: 80006
A177: 60010 | B177: 10 | C177: 6 | D177: 1 | E177: 1 | F177: 10200^99^10201^99^10202^99^10203^99^10204^98^10205^98^10206^98^10207^98^10208^98^10209^98^10210^98^10211^98^10212^98^10213^98^10214^98^10215^98^10216^98^10217^98^10218^98^10219^98^10220^98^10221^98^10222^98^10223^98^10224^98^10225^98^10226^98^10227^98^10228^98^10229^98^10230^98^10231^98^10232^98^10233^98^10234^98^10235^98^10236^98^10237^98^10238^98^10239^98^10240^98^10241^98^10242^98^10243^98^10244^98^10245^98^10246^98^10247^98^10248^98^10249^98^10250^98^10300^98^10301^98^10302^98^10303^98^10304^98^10305^98^10306^98^10307^98^10308^98^10309^98^10310^98^10311^98^10312^98^10313^98^10314^98^10315^98^10316^98^10317^98^10318^98^10319^98^10320^98^10321^98^10322^98^10323^98^10324^98^10325^98^10326^98^10327^98^10328^98^10329^98^10330^98^10331^98^10332^98^10333^98^10334^98^10335^98^10336^98^10337^98^10338^98^10339^98^10340^98^10341^98^10342^98^10343^98^10344^98^10345^98^10346^98^10347^98^10348^98^10349^98^10350^98 | G177: 10100^197^10101^197^10102^197^10103^197^10104^196^10105^196^10106^196^10107^196^10108^196^10109^196^10110^196^10111^196^10112^196^10113^196^10114^196^10115^196^10116^196^10117^196^10118^196^10119^196^10120^196^10121^196^10122^196^10123^196^10124^196^10125^196^10126^196^10127^196^10128^196^10129^196^10130^196^10131^196^10132^196^10133^196^10134^196^10135^196^10136^196^10137^196^10138^196^10139^196^10140^196^10141^196^10142^196^10143^196^10144^196^10145^196^10146^196^10147^196^10148^196^10149^196^10150^196 | H177: 10400^99^10401^99^10402^99^10403^99^10404^98^10405^98^10406^98^10407^98^10408^98^10409^98^10410^98^10411^98^10412^98^10413^98^10414^98^10415^98^10416^98^10417^98^10418^98^10419^98^10420^98^10421^98^10422^98^10423^98^10424^98^10425^98^10426^98^10427^98^10428^98^10429^98^10430^98^10431^98^10432^98^10433^98^10434^98^10435^98^10436^98^10437^98^10438^98^10439^98^10440^98^10441^98^10442^98^10443^98^10444^98^10445^98^10446^98^10447^98^10448^98^10449^98^10450^98^10500^98^10501^98^10502^98^10503^98^10504^98^10505^98^10506^98^10507^98^10508^98^10509^98^10510^98^10511^98^10512^98^10513^98^10514^98^10515^98^10516^98^10517^98^10518^98^10519^98^10520^98^10521^98^10522^98^10523^98^10524^98^10525^98^10526^98^10527^98^10528^98^10529^98^10530^98^10531^98^10532^98^10533^98^10534^98^10535^98^10536^98^10537^98^10538^98^10539^98^10540^98^10541^98^10542^98^10543^98^10544^98^10545^98^10546^98^10547^98^10548^98^10549^98^10550^98 | I177: 0 | J177: 110006^35|110005^5 | K177: 80006
A178: 60011 | B178: 11 | C178: 6 | D178: 1 | E178: 7 | F178: 10200^99^10201^99^10202^99^10203^99^10204^98^10205^98^10206^98^10207^98^10208^98^10209^98^10210^98^10211^98^10212^98^10213^98^10214^98^10215^98^10216^98^10217^98^10218^98^10219^98^10220^98^10221^98^10222^98^10223^98^10224^98^10225^98^10226^98^10227^98^10228^98^10229^98^10230^98^10231^98^10232^98^10233^98^10234^98^10235^98^10236^98^10237^98^10238^98^10239^98^10240^98^10241^98^10242^98^10243^98^10244^98^10245^98^10246^98^10247^98^10248^98^10249^98^10250^98^10300^98^10301^98^10302^98^10303^98^10304^98^10305^98^10306^98^10307^98^10308^98^10309^98^10310^98^10311^98^10312^98^10313^98^10314^98^10315^98^10316^98^10317^98^10318^98^10319^98^10320^98^10321^98^10322^98^10323^98^10324^98^10325^98^10326^98^10327^98^10328^98^10329^98^10330^98^10331^98^10332^98^10333^98^10334^98^10335^98^10336^98^10337^98^10338^98^10339^98^10340^98^10341^98^10342^98^10343^98^10344^98^10345^98^10346^98^10347^98^10348^98^10349^98^10350^98 | G178: 10100^197^10101^197^10102^197^10103^197^10104^196^10105^196^10106^196^10107^196^10108^196^10109^196^10110^196^10111^196^10112^196^10113^196^10114^196^10115^196^10116^196^10117^196^10118^196^10119^196^10120^196^10121^196^10122^196^10123^196^10124^196^10125^196^10126^196^10127^196^10128^196^10129^196^10130^196^10131^196^10132^196^10133^196^10134^196^10135^196^10136^196^10137^196^10138^196^10139^196^10140^196^10141^196^10142^196^10143^196^10144^196^10145^196^10146^196^10147^196^10148^196^10149^196^10150^196 | H178: 10400^99^10401^99^10402^99^10403^99^10404^98^10405^98^10406^98^10407^98^10408^98^10409^98^10410^98^10411^98^10412^98^10413^98^10414^98^10415^98^10416^98^10417^98^10418^98^10419^98^10420^98^10421^98^10422^98^10423^98^10424^98^10425^98^10426^98^10427^98^10428^98^10429^98^10430^98^10431^98^10432^98^10433^98^10434^98^10435^98^10436^98^10437^98^10438^98^10439^98^10440^98^10441^98^10442^98^10443^98^10444^98^10445^98^10446^98^10447^98^10448^98^10449^98^10450^98^10500^98^10501^98^10502^98^10503^98^10504^98^10505^98^10506^98^10507^98^10508^98^10509^98^10510^98^10511^98^10512^98^10513^98^10514^98^10515^98^10516^98^10517^98^10518^98^10519^98^10520^98^10521^98^10522^98^10523^98^10524^98^10525^98^10526^98^10527^98^10528^98^10529^98^10530^98^10531^98^10532^98^10533^98^10534^98^10535^98^10536^98^10537^98^10538^98^10539^98^10540^98^10541^98^10542^98^10543^98^10544^98^10545^98^10546^98^10547^98^10548^98^10549^98^10550^98 | I178: 0 | J178: 110006^615|110005^20 | K178: 80012
A179: 60101 | B179: 1 | C179: 6 | D179: 2 | E179: 1 | F179: 10200^99^10201^99^10202^99^10203^99^10204^98^10205^98^10206^98^10207^98^10208^98^10209^98^10210^98^10211^98^10212^98^10213^98^10214^98^10215^98^10216^98^10217^98^10218^98^10219^98^10220^98^10221^98^10222^98^10223^98^10224^98^10225^98^10226^98^10227^98^10228^98^10229^98^10230^98^10231^98^10232^98^10233^98^10234^98^10235^98^10236^98^10237^98^10238^98^10239^98^10240^98^10241^98^10242^98^10243^98^10244^98^10245^98^10246^98^10247^98^10248^98^10249^98^10250^98^10300^98^10301^98^10302^98^10303^98^10304^98^10305^98^10306^98^10307^98^10308^98^10309^98^10310^98^10311^98^10312^98^10313^98^10314^98^10315^98^10316^98^10317^98^10318^98^10319^98^10320^98^10321^98^10322^98^10323^98^10324^98^10325^98^10326^98^10327^98^10328^98^10329^98^10330^98^10331^98^10332^98^10333^98^10334^98^10335^98^10336^98^10337^98^10338^98^10339^98^10340^98^10341^98^10342^98^10343^98^10344^98^10345^98^10346^98^10347^98^10348^98^10349^98^10350^98 | G179: 10100^197^10101^197^10102^197^10103^197^10104^196^10105^196^10106^196^10107^196^10108^196^10109^196^10110^196^10111^196^10112^196^10113^196^10114^196^10115^196^10116^196^10117^196^10118^196^10119^196^10120^196^10121^196^10122^196^10123^196^10124^196^10125^196^10126^196^10127^196^10128^196^10129^196^10130^196^10131^196^10132^196^10133^196^10134^196^10135^196^10136^196^10137^196^10138^196^10139^196^10140^196^10141^196^10142^196^10143^196^10144^196^10145^196^10146^196^10147^196^10148^196^10149^196^10150^196 | H179: 10400^99^10401^99^10402^99^10403^99^10404^98^10405^98^10406^98^10407^98^10408^98^10409^98^10410^98^10411^98^10412^98^10413^98^10414^98^10415^98^10416^98^10417^98^10418^98^10419^98^10420^98^10421^98^10422^98^10423^98^10424^98^10425^98^10426^98^10427^98^10428^98^10429^98^10430^98^10431^98^10432^98^10433^98^10434^98^10435^98^10436^98^10437^98^10438^98^10439^98^10440^98^10441^98^10442^98^10443^98^10444^98^10445^98^10446^98^10447^98^10448^98^10449^98^10450^98^10500^98^10501^98^10502^98^10503^98^10504^98^10505^98^10506^98^10507^98^10508^98^10509^98^10510^98^10511^98^10512^98^10513^98^10514^98^10515^98^10516^98^10517^98^10518^98^10519^98^10520^98^10521^98^10522^98^10523^98^10524^98^10525^98^10526^98^10527^98^10528^98^10529^98^10530^98^10531^98^10532^98^10533^98^10534^98^10535^98^10536^98^10537^98^10538^98^10539^98^10540^98^10541^98^10542^98^10543^98^10544^98^10545^98^10546^98^10547^98^10548^98^10549^98^10550^98 | I179: 0 | J179: 110006^35|110005^5 | K179: 80006
A180: 60102 | B180: 2 | C180: 6 | D180: 2 | E180: 1 | F180: 10200^99^10201^99^10202^99^10203^99^10204^98^10205^98^10206^98^10207^98^10208^98^10209^98^10210^98^10211^98^10212^98^10213^98^10214^98^10215^98^10216^98^10217^98^10218^98^10219^98^10220^98^10221^98^10222^98^10223^98^10224^98^10225^98^10226^98^10227^98^10228^98^10229^98^10230^98^10231^98^10232^98^10233^98^10234^98^10235^98^10236^98^10237^98^10238^98^10239^98^10240^98^10241^98^10242^98^10243^98^10244^98^10245^98^10246^98^10247^98^10248^98^10249^98^10250^98^10300^98^10301^98^10302^98^10303^98^10304^98^10305^98^10306^98^10307^98^10308^98^10309^98^10310^98^10311^98^10312^98^10313^98^10314^98^10315^98^10316^98^10317^98^10318^98^10319^98^10320^98^10321^98^10322^98^10323^98^10324^98^10325^98^10326^98^10327^98^10328^98^10329^98^10330^98^10331^98^10332^98^10333^98^10334^98^10335^98^10336^98^10337^98^10338^98^10339^98^10340^98^10341^98^10342^98^10343^98^10344^98^10345^98^10346^98^10347^98^10348^98^10349^98^10350^98 | G180: 10100^197^10101^197^10102^197^10103^197^10104^196^10105^196^10106^196^10107^196^10108^196^10109^196^10110^196^10111^196^10112^196^10113^196^10114^196^10115^196^10116^196^10117^196^10118^196^10119^196^10120^196^10121^196^10122^196^10123^196^10124^196^10125^196^10126^196^10127^196^10128^196^10129^196^10130^196^10131^196^10132^196^10133^196^10134^196^10135^196^10136^196^10137^196^10138^196^10139^196^10140^196^10141^196^10142^196^10143^196^10144^196^10145^196^10146^196^10147^196^10148^196^10149^196^10150^196 | H180: 10400^99^10401^99^10402^99^10403^99^10404^98^10405^98^10406^98^10407^98^10408^98^10409^98^10410^98^10411^98^10412^98^10413^98^10414^98^10415^98^10416^98^10417^98^10418^98^10419^98^10420^98^10421^98^10422^98^10423^98^10424^98^10425^98^10426^98^10427^98^10428^98^10429^98^10430^98^10431^98^10432^98^10433^98^10434^98^10435^98^10436^98^10437^98^10438^98^10439^98^10440^98^10441^98^10442^98^10443^98^10444^98^10445^98^10446^98^10447^98^10448^98^10449^98^10450^98^10500^98^10501^98^10502^98^10503^98^10504^98^10505^98^10506^98^10507^98^10508^98^10509^98^10510^98^10511^98^10512^98^10513^98^10514^98^10515^98^10516^98^10517^98^10518^98^10519^98^10520^98^10521^98^10522^98^10523^98^10524^98^10525^98^10526^98^10527^98^10528^98^10529^98^10530^98^10531^98^10532^98^10533^98^10534^98^10535^98^10536^98^10537^98^10538^98^10539^98^10540^98^10541^98^10542^98^10543^98^10544^98^10545^98^10546^98^10547^98^10548^98^10549^98^10550^98 | I180: 0 | J180: 110006^35|110005^5 | K180: 80006
A181: 60103 | B181: 3 | C181: 6 | D181: 2 | E181: 2 | F181: 10200^99^10201^99^10202^99^10203^99^10204^98^10205^98^10206^98^10207^98^10208^98^10209^98^10210^98^10211^98^10212^98^10213^98^10214^98^10215^98^10216^98^10217^98^10218^98^10219^98^10220^98^10221^98^10222^98^10223^98^10224^98^10225^98^10226^98^10227^98^10228^98^10229^98^10230^98^10231^98^10232^98^10233^98^10234^98^10235^98^10236^98^10237^98^10238^98^10239^98^10240^98^10241^98^10242^98^10243^98^10244^98^10245^98^10246^98^10247^98^10248^98^10249^98^10250^98^10300^98^10301^98^10302^98^10303^98^10304^98^10305^98^10306^98^10307^98^10308^98^10309^98^10310^98^10311^98^10312^98^10313^98^10314^98^10315^98^10316^98^10317^98^10318^98^10319^98^10320^98^10321^98^10322^98^10323^98^10324^98^10325^98^10326^98^10327^98^10328^98^10329^98^10330^98^10331^98^10332^98^10333^98^10334^98^10335^98^10336^98^10337^98^10338^98^10339^98^10340^98^10341^98^10342^98^10343^98^10344^98^10345^98^10346^98^10347^98^10348^98^10349^98^10350^98 | G181: 10100^197^10101^197^10102^197^10103^197^10104^196^10105^196^10106^196^10107^196^10108^196^10109^196^10110^196^10111^196^10112^196^10113^196^10114^196^10115^196^10116^196^10117^196^10118^196^10119^196^10120^196^10121^196^10122^196^10123^196^10124^196^10125^196^10126^196^10127^196^10128^196^10129^196^10130^196^10131^196^10132^196^10133^196^10134^196^10135^196^10136^196^10137^196^10138^196^10139^196^10140^196^10141^196^10142^196^10143^196^10144^196^10145^196^10146^196^10147^196^10148^196^10149^196^10150^196 | H181: 10400^99^10401^99^10402^99^10403^99^10404^98^10405^98^10406^98^10407^98^10408^98^10409^98^10410^98^10411^98^10412^98^10413^98^10414^98^10415^98^10416^98^10417^98^10418^98^10419^98^10420^98^10421^98^10422^98^10423^98^10424^98^10425^98^10426^98^10427^98^10428^98^10429^98^10430^98^10431^98^10432^98^10433^98^10434^98^10435^98^10436^98^10437^98^10438^98^10439^98^10440^98^10441^98^10442^98^10443^98^10444^98^10445^98^10446^98^10447^98^10448^98^10449^98^10450^98^10500^98^10501^98^10502^98^10503^98^10504^98^10505^98^10506^98^10507^98^10508^98^10509^98^10510^98^10511^98^10512^98^10513^98^10514^98^10515^98^10516^98^10517^98^10518^98^10519^98^10520^98^10521^98^10522^98^10523^98^10524^98^10525^98^10526^98^10527^98^10528^98^10529^98^10530^98^10531^98^10532^98^10533^98^10534^98^10535^98^10536^98^10537^98^10538^98^10539^98^10540^98^10541^98^10542^98^10543^98^10544^98^10545^98^10546^98^10547^98^10548^98^10549^98^10550^98 | I181: 0 | J181: 110006^125|110005^5 | K181: 80006
A182: 60104 | B182: 4 | C182: 6 | D182: 2 | E182: 3 | F182: 0 | G182: 0 | H182: 0 | I182: 110006^150|100001^30000|110005^10 | J182: 110006^150|100001^30000|110005^10 | K182: 0
A183: 60105 | B183: 5 | C183: 6 | D183: 2 | E183: 4 | F183: 0 | G183: 0 | H183: 0 | I183: 0 | J183: 0 | K183: 0
A184: 60106 | B184: 6 | C184: 6 | D184: 2 | E184: 3 | F184: 0 | G184: 0 | H184: 0 | I184: 110006^150|100001^30000|110005^10 | J184: 110006^150|100001^30000|110005^10 | K184: 0
A185: 60107 | B185: 7 | C185: 6 | D185: 2 | E185: 5 | F185: 0 | G185: 0 | H185: 0 | I185: 0 | J185: 130001^200 | K185: 0
A186: 60108 | B186: 8 | C186: 6 | D186: 2 | E186: 6 | F186: 0 | G186: 0 | H186: 0 | I186: 0 | J186: 0 | K186: 80018
A187: 60109 | B187: 9 | C187: 6 | D187: 2 | E187: 2 | F187: 10200^99^10201^99^10202^99^10203^99^10204^98^10205^98^10206^98^10207^98^10208^98^10209^98^10210^98^10211^98^10212^98^10213^98^10214^98^10215^98^10216^98^10217^98^10218^98^10219^98^10220^98^10221^98^10222^98^10223^98^10224^98^10225^98^10226^98^10227^98^10228^98^10229^98^10230^98^10231^98^10232^98^10233^98^10234^98^10235^98^10236^98^10237^98^10238^98^10239^98^10240^98^10241^98^10242^98^10243^98^10244^98^10245^98^10246^98^10247^98^10248^98^10249^98^10250^98^10300^98^10301^98^10302^98^10303^98^10304^98^10305^98^10306^98^10307^98^10308^98^10309^98^10310^98^10311^98^10312^98^10313^98^10314^98^10315^98^10316^98^10317^98^10318^98^10319^98^10320^98^10321^98^10322^98^10323^98^10324^98^10325^98^10326^98^10327^98^10328^98^10329^98^10330^98^10331^98^10332^98^10333^98^10334^98^10335^98^10336^98^10337^98^10338^98^10339^98^10340^98^10341^98^10342^98^10343^98^10344^98^10345^98^10346^98^10347^98^10348^98^10349^98^10350^98 | G187: 10100^197^10101^197^10102^197^10103^197^10104^196^10105^196^10106^196^10107^196^10108^196^10109^196^10110^196^10111^196^10112^196^10113^196^10114^196^10115^196^10116^196^10117^196^10118^196^10119^196^10120^196^10121^196^10122^196^10123^196^10124^196^10125^196^10126^196^10127^196^10128^196^10129^196^10130^196^10131^196^10132^196^10133^196^10134^196^10135^196^10136^196^10137^196^10138^196^10139^196^10140^196^10141^196^10142^196^10143^196^10144^196^10145^196^10146^196^10147^196^10148^196^10149^196^10150^196 | H187: 10400^99^10401^99^10402^99^10403^99^10404^98^10405^98^10406^98^10407^98^10408^98^10409^98^10410^98^10411^98^10412^98^10413^98^10414^98^10415^98^10416^98^10417^98^10418^98^10419^98^10420^98^10421^98^10422^98^10423^98^10424^98^10425^98^10426^98^10427^98^10428^98^10429^98^10430^98^10431^98^10432^98^10433^98^10434^98^10435^98^10436^98^10437^98^10438^98^10439^98^10440^98^10441^98^10442^98^10443^98^10444^98^10445^98^10446^98^10447^98^10448^98^10449^98^10450^98^10500^98^10501^98^10502^98^10503^98^10504^98^10505^98^10506^98^10507^98^10508^98^10509^98^10510^98^10511^98^10512^98^10513^98^10514^98^10515^98^10516^98^10517^98^10518^98^10519^98^10520^98^10521^98^10522^98^10523^98^10524^98^10525^98^10526^98^10527^98^10528^98^10529^98^10530^98^10531^98^10532^98^10533^98^10534^98^10535^98^10536^98^10537^98^10538^98^10539^98^10540^98^10541^98^10542^98^10543^98^10544^98^10545^98^10546^98^10547^98^10548^98^10549^98^10550^98 | I187: 0 | J187: 110006^125|110005^5 | K187: 80006
A188: 60110 | B188: 10 | C188: 6 | D188: 2 | E188: 1 | F188: 10200^99^10201^99^10202^99^10203^99^10204^98^10205^98^10206^98^10207^98^10208^98^10209^98^10210^98^10211^98^10212^98^10213^98^10214^98^10215^98^10216^98^10217^98^10218^98^10219^98^10220^98^10221^98^10222^98^10223^98^10224^98^10225^98^10226^98^10227^98^10228^98^10229^98^10230^98^10231^98^10232^98^10233^98^10234^98^10235^98^10236^98^10237^98^10238^98^10239^98^10240^98^10241^98^10242^98^10243^98^10244^98^10245^98^10246^98^10247^98^10248^98^10249^98^10250^98^10300^98^10301^98^10302^98^10303^98^10304^98^10305^98^10306^98^10307^98^10308^98^10309^98^10310^98^10311^98^10312^98^10313^98^10314^98^10315^98^10316^98^10317^98^10318^98^10319^98^10320^98^10321^98^10322^98^10323^98^10324^98^10325^98^10326^98^10327^98^10328^98^10329^98^10330^98^10331^98^10332^98^10333^98^10334^98^10335^98^10336^98^10337^98^10338^98^10339^98^10340^98^10341^98^10342^98^10343^98^10344^98^10345^98^10346^98^10347^98^10348^98^10349^98^10350^98 | G188: 10100^197^10101^197^10102^197^10103^197^10104^196^10105^196^10106^196^10107^196^10108^196^10109^196^10110^196^10111^196^10112^196^10113^196^10114^196^10115^196^10116^196^10117^196^10118^196^10119^196^10120^196^10121^196^10122^196^10123^196^10124^196^10125^196^10126^196^10127^196^10128^196^10129^196^10130^196^10131^196^10132^196^10133^196^10134^196^10135^196^10136^196^10137^196^10138^196^10139^196^10140^196^10141^196^10142^196^10143^196^10144^196^10145^196^10146^196^10147^196^10148^196^10149^196^10150^196 | H188: 10400^99^10401^99^10402^99^10403^99^10404^98^10405^98^10406^98^10407^98^10408^98^10409^98^10410^98^10411^98^10412^98^10413^98^10414^98^10415^98^10416^98^10417^98^10418^98^10419^98^10420^98^10421^98^10422^98^10423^98^10424^98^10425^98^10426^98^10427^98^10428^98^10429^98^10430^98^10431^98^10432^98^10433^98^10434^98^10435^98^10436^98^10437^98^10438^98^10439^98^10440^98^10441^98^10442^98^10443^98^10444^98^10445^98^10446^98^10447^98^10448^98^10449^98^10450^98^10500^98^10501^98^10502^98^10503^98^10504^98^10505^98^10506^98^10507^98^10508^98^10509^98^10510^98^10511^98^10512^98^10513^98^10514^98^10515^98^10516^98^10517^98^10518^98^10519^98^10520^98^10521^98^10522^98^10523^98^10524^98^10525^98^10526^98^10527^98^10528^98^10529^98^10530^98^10531^98^10532^98^10533^98^10534^98^10535^98^10536^98^10537^98^10538^98^10539^98^10540^98^10541^98^10542^98^10543^98^10544^98^10545^98^10546^98^10547^98^10548^98^10549^98^10550^98 | I188: 0 | J188: 110006^35|110005^5 | K188: 80006
A189: 60111 | B189: 11 | C189: 6 | D189: 2 | E189: 7 | F189: 10200^99^10201^99^10202^99^10203^99^10204^98^10205^98^10206^98^10207^98^10208^98^10209^98^10210^98^10211^98^10212^98^10213^98^10214^98^10215^98^10216^98^10217^98^10218^98^10219^98^10220^98^10221^98^10222^98^10223^98^10224^98^10225^98^10226^98^10227^98^10228^98^10229^98^10230^98^10231^98^10232^98^10233^98^10234^98^10235^98^10236^98^10237^98^10238^98^10239^98^10240^98^10241^98^10242^98^10243^98^10244^98^10245^98^10246^98^10247^98^10248^98^10249^98^10250^98^10300^98^10301^98^10302^98^10303^98^10304^98^10305^98^10306^98^10307^98^10308^98^10309^98^10310^98^10311^98^10312^98^10313^98^10314^98^10315^98^10316^98^10317^98^10318^98^10319^98^10320^98^10321^98^10322^98^10323^98^10324^98^10325^98^10326^98^10327^98^10328^98^10329^98^10330^98^10331^98^10332^98^10333^98^10334^98^10335^98^10336^98^10337^98^10338^98^10339^98^10340^98^10341^98^10342^98^10343^98^10344^98^10345^98^10346^98^10347^98^10348^98^10349^98^10350^98 | G189: 10100^197^10101^197^10102^197^10103^197^10104^196^10105^196^10106^196^10107^196^10108^196^10109^196^10110^196^10111^196^10112^196^10113^196^10114^196^10115^196^10116^196^10117^196^10118^196^10119^196^10120^196^10121^196^10122^196^10123^196^10124^196^10125^196^10126^196^10127^196^10128^196^10129^196^10130^196^10131^196^10132^196^10133^196^10134^196^10135^196^10136^196^10137^196^10138^196^10139^196^10140^196^10141^196^10142^196^10143^196^10144^196^10145^196^10146^196^10147^196^10148^196^10149^196^10150^196 | H189: 10400^99^10401^99^10402^99^10403^99^10404^98^10405^98^10406^98^10407^98^10408^98^10409^98^10410^98^10411^98^10412^98^10413^98^10414^98^10415^98^10416^98^10417^98^10418^98^10419^98^10420^98^10421^98^10422^98^10423^98^10424^98^10425^98^10426^98^10427^98^10428^98^10429^98^10430^98^10431^98^10432^98^10433^98^10434^98^10435^98^10436^98^10437^98^10438^98^10439^98^10440^98^10441^98^10442^98^10443^98^10444^98^10445^98^10446^98^10447^98^10448^98^10449^98^10450^98^10500^98^10501^98^10502^98^10503^98^10504^98^10505^98^10506^98^10507^98^10508^98^10509^98^10510^98^10511^98^10512^98^10513^98^10514^98^10515^98^10516^98^10517^98^10518^98^10519^98^10520^98^10521^98^10522^98^10523^98^10524^98^10525^98^10526^98^10527^98^10528^98^10529^98^10530^98^10531^98^10532^98^10533^98^10534^98^10535^98^10536^98^10537^98^10538^98^10539^98^10540^98^10541^98^10542^98^10543^98^10544^98^10545^98^10546^98^10547^98^10548^98^10549^98^10550^98 | I189: 0 | J189: 110006^615|110005^20 | K189: 80012
A190: 60201 | B190: 1 | C190: 6 | D190: 3 | E190: 1 | F190: 10200^99^10201^99^10202^99^10203^99^10204^98^10205^98^10206^98^10207^98^10208^98^10209^98^10210^98^10211^98^10212^98^10213^98^10214^98^10215^98^10216^98^10217^98^10218^98^10219^98^10220^98^10221^98^10222^98^10223^98^10224^98^10225^98^10226^98^10227^98^10228^98^10229^98^10230^98^10231^98^10232^98^10233^98^10234^98^10235^98^10236^98^10237^98^10238^98^10239^98^10240^98^10241^98^10242^98^10243^98^10244^98^10245^98^10246^98^10247^98^10248^98^10249^98^10250^98^10300^98^10301^98^10302^98^10303^98^10304^98^10305^98^10306^98^10307^98^10308^98^10309^98^10310^98^10311^98^10312^98^10313^98^10314^98^10315^98^10316^98^10317^98^10318^98^10319^98^10320^98^10321^98^10322^98^10323^98^10324^98^10325^98^10326^98^10327^98^10328^98^10329^98^10330^98^10331^98^10332^98^10333^98^10334^98^10335^98^10336^98^10337^98^10338^98^10339^98^10340^98^10341^98^10342^98^10343^98^10344^98^10345^98^10346^98^10347^98^10348^98^10349^98^10350^98 | G190: 10100^197^10101^197^10102^197^10103^197^10104^196^10105^196^10106^196^10107^196^10108^196^10109^196^10110^196^10111^196^10112^196^10113^196^10114^196^10115^196^10116^196^10117^196^10118^196^10119^196^10120^196^10121^196^10122^196^10123^196^10124^196^10125^196^10126^196^10127^196^10128^196^10129^196^10130^196^10131^196^10132^196^10133^196^10134^196^10135^196^10136^196^10137^196^10138^196^10139^196^10140^196^10141^196^10142^196^10143^196^10144^196^10145^196^10146^196^10147^196^10148^196^10149^196^10150^196 | H190: 10400^99^10401^99^10402^99^10403^99^10404^98^10405^98^10406^98^10407^98^10408^98^10409^98^10410^98^10411^98^10412^98^10413^98^10414^98^10415^98^10416^98^10417^98^10418^98^10419^98^10420^98^10421^98^10422^98^10423^98^10424^98^10425^98^10426^98^10427^98^10428^98^10429^98^10430^98^10431^98^10432^98^10433^98^10434^98^10435^98^10436^98^10437^98^10438^98^10439^98^10440^98^10441^98^10442^98^10443^98^10444^98^10445^98^10446^98^10447^98^10448^98^10449^98^10450^98^10500^98^10501^98^10502^98^10503^98^10504^98^10505^98^10506^98^10507^98^10508^98^10509^98^10510^98^10511^98^10512^98^10513^98^10514^98^10515^98^10516^98^10517^98^10518^98^10519^98^10520^98^10521^98^10522^98^10523^98^10524^98^10525^98^10526^98^10527^98^10528^98^10529^98^10530^98^10531^98^10532^98^10533^98^10534^98^10535^98^10536^98^10537^98^10538^98^10539^98^10540^98^10541^98^10542^98^10543^98^10544^98^10545^98^10546^98^10547^98^10548^98^10549^98^10550^98 | I190: 0 | J190: 110006^35|110005^5 | K190: 80006
A191: 60202 | B191: 2 | C191: 6 | D191: 3 | E191: 1 | F191: 10200^99^10201^99^10202^99^10203^99^10204^98^10205^98^10206^98^10207^98^10208^98^10209^98^10210^98^10211^98^10212^98^10213^98^10214^98^10215^98^10216^98^10217^98^10218^98^10219^98^10220^98^10221^98^10222^98^10223^98^10224^98^10225^98^10226^98^10227^98^10228^98^10229^98^10230^98^10231^98^10232^98^10233^98^10234^98^10235^98^10236^98^10237^98^10238^98^10239^98^10240^98^10241^98^10242^98^10243^98^10244^98^10245^98^10246^98^10247^98^10248^98^10249^98^10250^98^10300^98^10301^98^10302^98^10303^98^10304^98^10305^98^10306^98^10307^98^10308^98^10309^98^10310^98^10311^98^10312^98^10313^98^10314^98^10315^98^10316^98^10317^98^10318^98^10319^98^10320^98^10321^98^10322^98^10323^98^10324^98^10325^98^10326^98^10327^98^10328^98^10329^98^10330^98^10331^98^10332^98^10333^98^10334^98^10335^98^10336^98^10337^98^10338^98^10339^98^10340^98^10341^98^10342^98^10343^98^10344^98^10345^98^10346^98^10347^98^10348^98^10349^98^10350^98 | G191: 10100^197^10101^197^10102^197^10103^197^10104^196^10105^196^10106^196^10107^196^10108^196^10109^196^10110^196^10111^196^10112^196^10113^196^10114^196^10115^196^10116^196^10117^196^10118^196^10119^196^10120^196^10121^196^10122^196^10123^196^10124^196^10125^196^10126^196^10127^196^10128^196^10129^196^10130^196^10131^196^10132^196^10133^196^10134^196^10135^196^10136^196^10137^196^10138^196^10139^196^10140^196^10141^196^10142^196^10143^196^10144^196^10145^196^10146^196^10147^196^10148^196^10149^196^10150^196 | H191: 10400^99^10401^99^10402^99^10403^99^10404^98^10405^98^10406^98^10407^98^10408^98^10409^98^10410^98^10411^98^10412^98^10413^98^10414^98^10415^98^10416^98^10417^98^10418^98^10419^98^10420^98^10421^98^10422^98^10423^98^10424^98^10425^98^10426^98^10427^98^10428^98^10429^98^10430^98^10431^98^10432^98^10433^98^10434^98^10435^98^10436^98^10437^98^10438^98^10439^98^10440^98^10441^98^10442^98^10443^98^10444^98^10445^98^10446^98^10447^98^10448^98^10449^98^10450^98^10500^98^10501^98^10502^98^10503^98^10504^98^10505^98^10506^98^10507^98^10508^98^10509^98^10510^98^10511^98^10512^98^10513^98^10514^98^10515^98^10516^98^10517^98^10518^98^10519^98^10520^98^10521^98^10522^98^10523^98^10524^98^10525^98^10526^98^10527^98^10528^98^10529^98^10530^98^10531^98^10532^98^10533^98^10534^98^10535^98^10536^98^10537^98^10538^98^10539^98^10540^98^10541^98^10542^98^10543^98^10544^98^10545^98^10546^98^10547^98^10548^98^10549^98^10550^98 | I191: 0 | J191: 110006^35|110005^5 | K191: 80006
A192: 60203 | B192: 3 | C192: 6 | D192: 3 | E192: 2 | F192: 10200^99^10201^99^10202^99^10203^99^10204^98^10205^98^10206^98^10207^98^10208^98^10209^98^10210^98^10211^98^10212^98^10213^98^10214^98^10215^98^10216^98^10217^98^10218^98^10219^98^10220^98^10221^98^10222^98^10223^98^10224^98^10225^98^10226^98^10227^98^10228^98^10229^98^10230^98^10231^98^10232^98^10233^98^10234^98^10235^98^10236^98^10237^98^10238^98^10239^98^10240^98^10241^98^10242^98^10243^98^10244^98^10245^98^10246^98^10247^98^10248^98^10249^98^10250^98^10300^98^10301^98^10302^98^10303^98^10304^98^10305^98^10306^98^10307^98^10308^98^10309^98^10310^98^10311^98^10312^98^10313^98^10314^98^10315^98^10316^98^10317^98^10318^98^10319^98^10320^98^10321^98^10322^98^10323^98^10324^98^10325^98^10326^98^10327^98^10328^98^10329^98^10330^98^10331^98^10332^98^10333^98^10334^98^10335^98^10336^98^10337^98^10338^98^10339^98^10340^98^10341^98^10342^98^10343^98^10344^98^10345^98^10346^98^10347^98^10348^98^10349^98^10350^98 | G192: 10100^197^10101^197^10102^197^10103^197^10104^196^10105^196^10106^196^10107^196^10108^196^10109^196^10110^196^10111^196^10112^196^10113^196^10114^196^10115^196^10116^196^10117^196^10118^196^10119^196^10120^196^10121^196^10122^196^10123^196^10124^196^10125^196^10126^196^10127^196^10128^196^10129^196^10130^196^10131^196^10132^196^10133^196^10134^196^10135^196^10136^196^10137^196^10138^196^10139^196^10140^196^10141^196^10142^196^10143^196^10144^196^10145^196^10146^196^10147^196^10148^196^10149^196^10150^196 | H192: 10400^99^10401^99^10402^99^10403^99^10404^98^10405^98^10406^98^10407^98^10408^98^10409^98^10410^98^10411^98^10412^98^10413^98^10414^98^10415^98^10416^98^10417^98^10418^98^10419^98^10420^98^10421^98^10422^98^10423^98^10424^98^10425^98^10426^98^10427^98^10428^98^10429^98^10430^98^10431^98^10432^98^10433^98^10434^98^10435^98^10436^98^10437^98^10438^98^10439^98^10440^98^10441^98^10442^98^10443^98^10444^98^10445^98^10446^98^10447^98^10448^98^10449^98^10450^98^10500^98^10501^98^10502^98^10503^98^10504^98^10505^98^10506^98^10507^98^10508^98^10509^98^10510^98^10511^98^10512^98^10513^98^10514^98^10515^98^10516^98^10517^98^10518^98^10519^98^10520^98^10521^98^10522^98^10523^98^10524^98^10525^98^10526^98^10527^98^10528^98^10529^98^10530^98^10531^98^10532^98^10533^98^10534^98^10535^98^10536^98^10537^98^10538^98^10539^98^10540^98^10541^98^10542^98^10543^98^10544^98^10545^98^10546^98^10547^98^10548^98^10549^98^10550^98 | I192: 0 | J192: 110006^125|110005^5 | K192: 80006
A193: 60204 | B193: 4 | C193: 6 | D193: 3 | E193: 3 | F193: 0 | G193: 0 | H193: 0 | I193: 110006^150|100001^30000|110005^10 | J193: 110006^150|100001^30000|110005^10 | K193: 0
A194: 60205 | B194: 5 | C194: 6 | D194: 3 | E194: 4 | F194: 0 | G194: 0 | H194: 0 | I194: 0 | J194: 0 | K194: 0
A195: 60206 | B195: 6 | C195: 6 | D195: 3 | E195: 3 | F195: 0 | G195: 0 | H195: 0 | I195: 110006^150|100001^30000|110005^10 | J195: 110006^150|100001^30000|110005^10 | K195: 0
A196: 60207 | B196: 7 | C196: 6 | D196: 3 | E196: 5 | F196: 0 | G196: 0 | H196: 0 | I196: 0 | J196: 130001^200 | K196: 0
A197: 60208 | B197: 8 | C197: 6 | D197: 3 | E197: 6 | F197: 0 | G197: 0 | H197: 0 | I197: 0 | J197: 0 | K197: 80018
A198: 60209 | B198: 9 | C198: 6 | D198: 3 | E198: 2 | F198: 10200^99^10201^99^10202^99^10203^99^10204^98^10205^98^10206^98^10207^98^10208^98^10209^98^10210^98^10211^98^10212^98^10213^98^10214^98^10215^98^10216^98^10217^98^10218^98^10219^98^10220^98^10221^98^10222^98^10223^98^10224^98^10225^98^10226^98^10227^98^10228^98^10229^98^10230^98^10231^98^10232^98^10233^98^10234^98^10235^98^10236^98^10237^98^10238^98^10239^98^10240^98^10241^98^10242^98^10243^98^10244^98^10245^98^10246^98^10247^98^10248^98^10249^98^10250^98^10300^98^10301^98^10302^98^10303^98^10304^98^10305^98^10306^98^10307^98^10308^98^10309^98^10310^98^10311^98^10312^98^10313^98^10314^98^10315^98^10316^98^10317^98^10318^98^10319^98^10320^98^10321^98^10322^98^10323^98^10324^98^10325^98^10326^98^10327^98^10328^98^10329^98^10330^98^10331^98^10332^98^10333^98^10334^98^10335^98^10336^98^10337^98^10338^98^10339^98^10340^98^10341^98^10342^98^10343^98^10344^98^10345^98^10346^98^10347^98^10348^98^10349^98^10350^98 | G198: 10100^197^10101^197^10102^197^10103^197^10104^196^10105^196^10106^196^10107^196^10108^196^10109^196^10110^196^10111^196^10112^196^10113^196^10114^196^10115^196^10116^196^10117^196^10118^196^10119^196^10120^196^10121^196^10122^196^10123^196^10124^196^10125^196^10126^196^10127^196^10128^196^10129^196^10130^196^10131^196^10132^196^10133^196^10134^196^10135^196^10136^196^10137^196^10138^196^10139^196^10140^196^10141^196^10142^196^10143^196^10144^196^10145^196^10146^196^10147^196^10148^196^10149^196^10150^196 | H198: 10400^99^10401^99^10402^99^10403^99^10404^98^10405^98^10406^98^10407^98^10408^98^10409^98^10410^98^10411^98^10412^98^10413^98^10414^98^10415^98^10416^98^10417^98^10418^98^10419^98^10420^98^10421^98^10422^98^10423^98^10424^98^10425^98^10426^98^10427^98^10428^98^10429^98^10430^98^10431^98^10432^98^10433^98^10434^98^10435^98^10436^98^10437^98^10438^98^10439^98^10440^98^10441^98^10442^98^10443^98^10444^98^10445^98^10446^98^10447^98^10448^98^10449^98^10450^98^10500^98^10501^98^10502^98^10503^98^10504^98^10505^98^10506^98^10507^98^10508^98^10509^98^10510^98^10511^98^10512^98^10513^98^10514^98^10515^98^10516^98^10517^98^10518^98^10519^98^10520^98^10521^98^10522^98^10523^98^10524^98^10525^98^10526^98^10527^98^10528^98^10529^98^10530^98^10531^98^10532^98^10533^98^10534^98^10535^98^10536^98^10537^98^10538^98^10539^98^10540^98^10541^98^10542^98^10543^98^10544^98^10545^98^10546^98^10547^98^10548^98^10549^98^10550^98 | I198: 0 | J198: 110006^125|110005^5 | K198: 80006
A199: 60210 | B199: 10 | C199: 6 | D199: 3 | E199: 1 | F199: 10200^99^10201^99^10202^99^10203^99^10204^98^10205^98^10206^98^10207^98^10208^98^10209^98^10210^98^10211^98^10212^98^10213^98^10214^98^10215^98^10216^98^10217^98^10218^98^10219^98^10220^98^10221^98^10222^98^10223^98^10224^98^10225^98^10226^98^10227^98^10228^98^10229^98^10230^98^10231^98^10232^98^10233^98^10234^98^10235^98^10236^98^10237^98^10238^98^10239^98^10240^98^10241^98^10242^98^10243^98^10244^98^10245^98^10246^98^10247^98^10248^98^10249^98^10250^98^10300^98^10301^98^10302^98^10303^98^10304^98^10305^98^10306^98^10307^98^10308^98^10309^98^10310^98^10311^98^10312^98^10313^98^10314^98^10315^98^10316^98^10317^98^10318^98^10319^98^10320^98^10321^98^10322^98^10323^98^10324^98^10325^98^10326^98^10327^98^10328^98^10329^98^10330^98^10331^98^10332^98^10333^98^10334^98^10335^98^10336^98^10337^98^10338^98^10339^98^10340^98^10341^98^10342^98^10343^98^10344^98^10345^98^10346^98^10347^98^10348^98^10349^98^10350^98 | G199: 10100^197^10101^197^10102^197^10103^197^10104^196^10105^196^10106^196^10107^196^10108^196^10109^196^10110^196^10111^196^10112^196^10113^196^10114^196^10115^196^10116^196^10117^196^10118^196^10119^196^10120^196^10121^196^10122^196^10123^196^10124^196^10125^196^10126^196^10127^196^10128^196^10129^196^10130^196^10131^196^10132^196^10133^196^10134^196^10135^196^10136^196^10137^196^10138^196^10139^196^10140^196^10141^196^10142^196^10143^196^10144^196^10145^196^10146^196^10147^196^10148^196^10149^196^10150^196 | H199: 10400^99^10401^99^10402^99^10403^99^10404^98^10405^98^10406^98^10407^98^10408^98^10409^98^10410^98^10411^98^10412^98^10413^98^10414^98^10415^98^10416^98^10417^98^10418^98^10419^98^10420^98^10421^98^10422^98^10423^98^10424^98^10425^98^10426^98^10427^98^10428^98^10429^98^10430^98^10431^98^10432^98^10433^98^10434^98^10435^98^10436^98^10437^98^10438^98^10439^98^10440^98^10441^98^10442^98^10443^98^10444^98^10445^98^10446^98^10447^98^10448^98^10449^98^10450^98^10500^98^10501^98^10502^98^10503^98^10504^98^10505^98^10506^98^10507^98^10508^98^10509^98^10510^98^10511^98^10512^98^10513^98^10514^98^10515^98^10516^98^10517^98^10518^98^10519^98^10520^98^10521^98^10522^98^10523^98^10524^98^10525^98^10526^98^10527^98^10528^98^10529^98^10530^98^10531^98^10532^98^10533^98^10534^98^10535^98^10536^98^10537^98^10538^98^10539^98^10540^98^10541^98^10542^98^10543^98^10544^98^10545^98^10546^98^10547^98^10548^98^10549^98^10550^98 | I199: 0 | J199: 110006^35|110005^5 | K199: 80006
A200: 60211 | B200: 11 | C200: 6 | D200: 3 | E200: 7 | F200: 10200^99^10201^99^10202^99^10203^99^10204^98^10205^98^10206^98^10207^98^10208^98^10209^98^10210^98^10211^98^10212^98^10213^98^10214^98^10215^98^10216^98^10217^98^10218^98^10219^98^10220^98^10221^98^10222^98^10223^98^10224^98^10225^98^10226^98^10227^98^10228^98^10229^98^10230^98^10231^98^10232^98^10233^98^10234^98^10235^98^10236^98^10237^98^10238^98^10239^98^10240^98^10241^98^10242^98^10243^98^10244^98^10245^98^10246^98^10247^98^10248^98^10249^98^10250^98^10300^98^10301^98^10302^98^10303^98^10304^98^10305^98^10306^98^10307^98^10308^98^10309^98^10310^98^10311^98^10312^98^10313^98^10314^98^10315^98^10316^98^10317^98^10318^98^10319^98^10320^98^10321^98^10322^98^10323^98^10324^98^10325^98^10326^98^10327^98^10328^98^10329^98^10330^98^10331^98^10332^98^10333^98^10334^98^10335^98^10336^98^10337^98^10338^98^10339^98^10340^98^10341^98^10342^98^10343^98^10344^98^10345^98^10346^98^10347^98^10348^98^10349^98^10350^98 | G200: 10100^197^10101^197^10102^197^10103^197^10104^196^10105^196^10106^196^10107^196^10108^196^10109^196^10110^196^10111^196^10112^196^10113^196^10114^196^10115^196^10116^196^10117^196^10118^196^10119^196^10120^196^10121^196^10122^196^10123^196^10124^196^10125^196^10126^196^10127^196^10128^196^10129^196^10130^196^10131^196^10132^196^10133^196^10134^196^10135^196^10136^196^10137^196^10138^196^10139^196^10140^196^10141^196^10142^196^10143^196^10144^196^10145^196^10146^196^10147^196^10148^196^10149^196^10150^196 | H200: 10400^99^10401^99^10402^99^10403^99^10404^98^10405^98^10406^98^10407^98^10408^98^10409^98^10410^98^10411^98^10412^98^10413^98^10414^98^10415^98^10416^98^10417^98^10418^98^10419^98^10420^98^10421^98^10422^98^10423^98^10424^98^10425^98^10426^98^10427^98^10428^98^10429^98^10430^98^10431^98^10432^98^10433^98^10434^98^10435^98^10436^98^10437^98^10438^98^10439^98^10440^98^10441^98^10442^98^10443^98^10444^98^10445^98^10446^98^10447^98^10448^98^10449^98^10450^98^10500^98^10501^98^10502^98^10503^98^10504^98^10505^98^10506^98^10507^98^10508^98^10509^98^10510^98^10511^98^10512^98^10513^98^10514^98^10515^98^10516^98^10517^98^10518^98^10519^98^10520^98^10521^98^10522^98^10523^98^10524^98^10525^98^10526^98^10527^98^10528^98^10529^98^10530^98^10531^98^10532^98^10533^98^10534^98^10535^98^10536^98^10537^98^10538^98^10539^98^10540^98^10541^98^10542^98^10543^98^10544^98^10545^98^10546^98^10547^98^10548^98^10549^98^10550^98 | I200: 0 | J200: 110006^615|110005^20 | K200: 80012

Sheet 符文库
B3: 符文库1 | C3: （战士+刺客随机） | E3: ^ | G3: 符文库2 | H3: （全职业词条随机） | L3: 符文库3 | M3: （射手+法师随机）
B4: 10200 | C4: 战士英雄攻击+10% | D4: =ROUND(10000/102,0)+1 -> 99 | E4: =B4&$E$3&D4&$E$3&B5&$E$3&D5&$E$3&B6&$E$3&D6&$E$3&B7&$E$3&D7&$E$3&B8&$E$3&D8&$E$3&B9&$E$3&D9&$E$3&B10&$E$3&D10&$E$3&B11&$E$3&D11&$E$3&B12&$E$3&D12&$E$3&B13&$E$3&D13&$E$3&B14&$E$3&D14&$E$3&B15&$E$3&D15&$E$3&B16&$E$3&D16&$E$3&B17&$E$3&D17&$E$3&B18&$E$3&D18&$E$3&B19&$E$3&D19&$E$3&B20&$E$3&D20&$E$3&B21&$E$3&D21&$E$3&B22&$E$3&D22&$E$3&B23&$E$3&D23&$E$3&B24&$E$3&D24&$E$3&B25&$E$3&D25&$E$3&B26&$E$3&D26&$E$3&B27&$E$3&D27&$E$3&B28&$E$3&D28&$E$3&B29&$E$3&D29&$E$3&B30&$E$3&D30&$E$3&B31&$E$3&D31&$E$3&B32&$E$3&D32&$E$3&B33&$E$3&D33&$E$3&B34&$E$3&D34&$E$3&B35&$E$3&D35&$E$3&B36&$E$3&D36&$E$3&B37&$E$3&D37&$E$3&B38&$E$3&D38&$E$3&B39&$E$3&D39&$E$3&B40&$E$3&D40&$E$3&B41&$E$3&D41&$E$3&B42&$E$3&D42&$E$3&B43&$E$3&D43&$E$3&B44&$E$3&D44&$E$3&B45&$E$3&D45&$E$3&B46&$E$3&D46&$E$3&B47&$E$3&D47&$E$3&B48&$E$3&D48&$E$3&B49&$E$3&D49&$E$3&B50&$E$3&D50&$E$3&B51&$E$3&D51&$E$3&B52&$E$3&D52&$E$3&B53&$E$3&D53&$E$3&B54&$E$3&D54&$E$3&B55&$E$3&D55&$E$3&B56&$E$3&D56&$E$3&B57&$E$3&D57&$E$3&B58&$E$3&D58&$E$3&B59&$E$3&D59&$E$3&B60&$E$3&D60&$E$3&B61&$E$3&D61&$E$3&B62&$E$3&D62&$E$3&B63&$E$3&D63&$E$3&B64&$E$3&D64&$E$3&B65&$E$3&D65&$E$3&B66&$E$3&D66&$E$3&B67&$E$3&D67&$E$3&B68&$E$3&D68&$E$3&B69&$E$3&D69&$E$3&B70&$E$3&D70&$E$3&B71&$E$3&D71&$E$3&B72&$E$3&D72&$E$3&B73&$E$3&D73&$E$3&B74&$E$3&D74&$E$3&B75&$E$3&D75&$E$3&B76&$E$3&D76&$E$3&B77&$E$3&D77&$E$3&B78&$E$3&D78&$E$3&B79&$E$3&D79&$E$3&B80&$E$3&D80&$E$3&B81&$E$3&D81&$E$3&B82&$E$3&D82&$E$3&B83&$E$3&D83&$E$3&B84&$E$3&D84&$E$3&B85&$E$3&D85&$E$3&B86&$E$3&D86&$E$3&B87&$E$3&D87&$E$3&B88&$E$3&D88&$E$3&B89&$E$3&D89&$E$3&B90&$E$3&D90&$E$3&B91&$E$3&D91&$E$3&B92&$E$3&D92&$E$3&B93&$E$3&D93&$E$3&B94&$E$3&D94&$E$3&B95&$E$3&D95&$E$3&B96&$E$3&D96&$E$3&B97&$E$3&D97&$E$3&B98&$E$3&D98&$E$3&B99&$E$3&D99&$E$3&B100&$E$3&D100&$E$3&B101&$E$3&D101&$E$3&B102&$E$3&D102&$E$3&B103&$E$3&D103&$E$3&B104&$E$3&D104&$E$3&B105&$E$3&D105 -> 10200^99^10201^99^10202^99^10203^99^10204^98^10205^98^10206^98^10207^98^10208^98^10209^98^10210^98^10211^98^10212^98^10213^98^10214^98^10215^98^10216^98^10217^98^10218^98^10219^98^10220^98^10221^98^10222^98^10223^98^10224^98^10225^98^10226^98^10227^98^10228^98^10229^98^10230^98^10231^98^10232^98^10233^98^10234^98^10235^98^10236^98^10237^98^10238^98^10239^98^10240^98^10241^98^10242^98^10243^98^10244^98^10245^98^10246^98^10247^98^10248^98^10249^98^10250^98^10300^98^10301^98^10302^98^10303^98^10304^98^10305^98^10306^98^10307^98^10308^98^10309^98^10310^98^10311^98^10312^98^10313^98^10314^98^10315^98^10316^98^10317^98^10318^98^10319^98^10320^98^10321^98^10322^98^10323^98^10324^98^10325^98^10326^98^10327^98^10328^98^10329^98^10330^98^10331^98^10332^98^10333^98^10334^98^10335^98^10336^98^10337^98^10338^98^10339^98^10340^98^10341^98^10342^98^10343^98^10344^98^10345^98^10346^98^10347^98^10348^98^10349^98^10350^98 | G4: 10100 | H4: 所有英雄攻击+5% | I4: =ROUND(10000/51,0)+1 -> 197 | J4: =G4&$E$3&I4&$E$3&G5&$E$3&I5&$E$3&G6&$E$3&I6&$E$3&G7&$E$3&I7&$E$3&G8&$E$3&I8&$E$3&G9&$E$3&I9&$E$3&G10&$E$3&I10&$E$3&G11&$E$3&I11&$E$3&G12&$E$3&I12&$E$3&G13&$E$3&I13&$E$3&G14&$E$3&I14&$E$3&G15&$E$3&I15&$E$3&G16&$E$3&I16&$E$3&G17&$E$3&I17&$E$3&G18&$E$3&I18&$E$3&G19&$E$3&I19&$E$3&G20&$E$3&I20&$E$3&G21&$E$3&I21&$E$3&G22&$E$3&I22&$E$3&G23&$E$3&I23&$E$3&G24&$E$3&I24&$E$3&G25&$E$3&I25&$E$3&G26&$E$3&I26&$E$3&G27&$E$3&I27&$E$3&G28&$E$3&I28&$E$3&G29&$E$3&I29&$E$3&G30&$E$3&I30&$E$3&G31&$E$3&I31&$E$3&G32&$E$3&I32&$E$3&G33&$E$3&I33&$E$3&G34&$E$3&I34&$E$3&G35&$E$3&I35&$E$3&G36&$E$3&I36&$E$3&G37&$E$3&I37&$E$3&G38&$E$3&I38&$E$3&G39&$E$3&I39&$E$3&G40&$E$3&I40&$E$3&G41&$E$3&I41&$E$3&G42&$E$3&I42&$E$3&G43&$E$3&I43&$E$3&G44&$E$3&I44&$E$3&G45&$E$3&I45&$E$3&G46&$E$3&I46&$E$3&G47&$E$3&I47&$E$3&G48&$E$3&I48&$E$3&G49&$E$3&I49&$E$3&G50&$E$3&I50&$E$3&G51&$E$3&I51&$E$3&G52&$E$3&I52&$E$3&G53&$E$3&I53&$E$3&G54&$E$3&I54 -> 10100^197^10101^197^10102^197^10103^197^10104^196^10105^196^10106^196^10107^196^10108^196^10109^196^10110^196^10111^196^10112^196^10113^196^10114^196^10115^196^10116^196^10117^196^10118^196^10119^196^10120^196^10121^196^10122^196^10123^196^10124^196^10125^196^10126^196^10127^196^10128^196^10129^196^10130^196^10131^196^10132^196^10133^196^10134^196^10135^196^10136^196^10137^196^10138^196^10139^196^10140^196^10141^196^10142^196^10143^196^10144^196^10145^196^10146^196^10147^196^10148^196^10149^196^10150^196 | L4: 10400 | M4: 射手英雄攻击+10% | N4: =ROUND(10000/102,0)+1 -> 99 | O4: =L4&$E$3&N4&$E$3&L5&$E$3&N5&$E$3&L6&$E$3&N6&$E$3&L7&$E$3&N7&$E$3&L8&$E$3&N8&$E$3&L9&$E$3&N9&$E$3&L10&$E$3&N10&$E$3&L11&$E$3&N11&$E$3&L12&$E$3&N12&$E$3&L13&$E$3&N13&$E$3&L14&$E$3&N14&$E$3&L15&$E$3&N15&$E$3&L16&$E$3&N16&$E$3&L17&$E$3&N17&$E$3&L18&$E$3&N18&$E$3&L19&$E$3&N19&$E$3&L20&$E$3&N20&$E$3&L21&$E$3&N21&$E$3&L22&$E$3&N22&$E$3&L23&$E$3&N23&$E$3&L24&$E$3&N24&$E$3&L25&$E$3&N25&$E$3&L26&$E$3&N26&$E$3&L27&$E$3&N27&$E$3&L28&$E$3&N28&$E$3&L29&$E$3&N29&$E$3&L30&$E$3&N30&$E$3&L31&$E$3&N31&$E$3&L32&$E$3&N32&$E$3&L33&$E$3&N33&$E$3&L34&$E$3&N34&$E$3&L35&$E$3&N35&$E$3&L36&$E$3&N36&$E$3&L37&$E$3&N37&$E$3&L38&$E$3&N38&$E$3&L39&$E$3&N39&$E$3&L40&$E$3&N40&$E$3&L41&$E$3&N41&$E$3&L42&$E$3&N42&$E$3&L43&$E$3&N43&$E$3&L44&$E$3&N44&$E$3&L45&$E$3&N45&$E$3&L46&$E$3&N46&$E$3&L47&$E$3&N47&$E$3&L48&$E$3&N48&$E$3&L49&$E$3&N49&$E$3&L50&$E$3&N50&$E$3&L51&$E$3&N51&$E$3&L52&$E$3&N52&$E$3&L53&$E$3&N53&$E$3&L54&$E$3&N54&$E$3&L55&$E$3&N55&$E$3&L56&$E$3&N56&$E$3&L57&$E$3&N57&$E$3&L58&$E$3&N58&$E$3&L59&$E$3&N59&$E$3&L60&$E$3&N60&$E$3&L61&$E$3&N61&$E$3&L62&$E$3&N62&$E$3&L63&$E$3&N63&$E$3&L64&$E$3&N64&$E$3&L65&$E$3&N65&$E$3&L66&$E$3&N66&$E$3&L67&$E$3&N67&$E$3&L68&$E$3&N68&$E$3&L69&$E$3&N69&$E$3&L70&$E$3&N70&$E$3&L71&$E$3&N71&$E$3&L72&$E$3&N72&$E$3&L73&$E$3&N73&$E$3&L74&$E$3&N74&$E$3&L75&$E$3&N75&$E$3&L76&$E$3&N76&$E$3&L77&$E$3&N77&$E$3&L78&$E$3&N78&$E$3&L79&$E$3&N79&$E$3&L80&$E$3&N80&$E$3&L81&$E$3&N81&$E$3&L82&$E$3&N82&$E$3&L83&$E$3&N83&$E$3&L84&$E$3&N84&$E$3&L85&$E$3&N85&$E$3&L86&$E$3&N86&$E$3&L87&$E$3&N87&$E$3&L88&$E$3&N88&$E$3&L89&$E$3&N89&$E$3&L90&$E$3&N90&$E$3&L91&$E$3&N91&$E$3&L92&$E$3&N92&$E$3&L93&$E$3&N93&$E$3&L94&$E$3&N94&$E$3&L95&$E$3&N95&$E$3&L96&$E$3&N96&$E$3&L97&$E$3&N97&$E$3&L98&$E$3&N98&$E$3&L99&$E$3&N99&$E$3&L100&$E$3&N100&$E$3&L101&$E$3&N101&$E$3&L102&$E$3&N102&$E$3&L103&$E$3&N103&$E$3&L104&$E$3&N104&$E$3&L105&$E$3&N105 -> 10400^99^10401^99^10402^99^10403^99^10404^98^10405^98^10406^98^10407^98^10408^98^10409^98^10410^98^10411^98^10412^98^10413^98^10414^98^10415^98^10416^98^10417^98^10418^98^10419^98^10420^98^10421^98^10422^98^10423^98^10424^98^10425^98^10426^98^10427^98^10428^98^10429^98^10430^98^10431^98^10432^98^10433^98^10434^98^10435^98^10436^98^10437^98^10438^98^10439^98^10440^98^10441^98^10442^98^10443^98^10444^98^10445^98^10446^98^10447^98^10448^98^10449^98^10450^98^10500^98^10501^98^10502^98^10503^98^10504^98^10505^98^10506^98^10507^98^10508^98^10509^98^10510^98^10511^98^10512^98^10513^98^10514^98^10515^98^10516^98^10517^98^10518^98^10519^98^10520^98^10521^98^10522^98^10523^98^10524^98^10525^98^10526^98^10527^98^10528^98^10529^98^10530^98^10531^98^10532^98^10533^98^10534^98^10535^98^10536^98^10537^98^10538^98^10539^98^10540^98^10541^98^10542^98^10543^98^10544^98^10545^98^10546^98^10547^98^10548^98^10549^98^10550^98
B5: 10201 | C5: 战士英雄攻击+15% | D5: =ROUND(10000/102,0)+1 -> 99 | G5: 10101 | H5: 所有英雄攻击+10% | I5: =ROUND(10000/51,0)+1 -> 197 | L5: 10401 | M5: 射手英雄攻击+15% | N5: =ROUND(10000/102,0)+1 -> 99
B6: 10202 | C6: 战士英雄攻击+20% | D6: =ROUND(10000/102,0)+1 -> 99 | G6: 10102 | H6: 所有英雄攻击+15% | I6: =ROUND(10000/51,0)+1 -> 197 | L6: 10402 | M6: 射手英雄攻击+20% | N6: =ROUND(10000/102,0)+1 -> 99
B7: 10203 | C7: 战士英雄受到普攻反弹1%伤害 | D7: =ROUND(10000/102,0)+1 -> 99 | G7: 10103 | H7: 所有英雄法术攻击+10% | I7: =ROUND(10000/51,0)+1 -> 197 | L7: 10403 | M7: 射手英雄技能伤害+5% | N7: =ROUND(10000/102,0)+1 -> 99
B8: 10204 | C8: 战士英雄受到普攻反弹2%伤害 | D8: =ROUND(10000/102,0) -> 98 | G8: 10104 | H8: 所有英雄法术攻击+15% | I8: =ROUND(10000/51,0) -> 196 | L8: 10404 | M8: 射手英雄技能伤害+10% | N8: =ROUND(10000/102,0) -> 98
B9: 10205 | C9: 战士英雄受到普攻反弹3%伤害 | D9: 98 | G9: 10105 | H9: 所有英雄法术攻击+20% | I9: 196 | L9: 10405 | M9: 射手英雄技能伤害+15% | N9: 98
B10: 10206 | C10: 战士英雄生命+20% | D10: 98 | G10: 10106 | H10: 所有英雄生命+15% | I10: 196 | L10: 10406 | M10: 射手英雄生命+20% | N10: 98
B11: 10207 | C11: 战士英雄生命+25% | D11: 98 | G11: 10107 | H11: 所有英雄生命+20% | I11: 196 | L11: 10407 | M11: 射手英雄生命+25% | N11: 98
B12: 10208 | C12: 战士英雄生命+30% | D12: 98 | G12: 10108 | H12: 所有英雄生命+25% | I12: 196 | L12: 10408 | M12: 射手英雄生命+30% | N12: 98
B13: 10209 | C13: 战士英雄攻速+2% | D13: 98 | G13: 10109 | H13: 所有英雄攻速+1% | I13: 196 | L13: 10409 | M13: 射手英雄攻速+2% | N13: 98
B14: 10210 | C14: 战士英雄攻速+4% | D14: 98 | G14: 10110 | H14: 所有英雄攻速+2% | I14: 196 | L14: 10410 | M14: 射手英雄攻速+4% | N14: 98
B15: 10211 | C15: 战士英雄攻速+6% | D15: 98 | G15: 10111 | H15: 所有英雄攻速+3% | I15: 196 | L15: 10411 | M15: 射手英雄攻速+6% | N15: 98
B16: 10212 | C16: 战士英雄暴击+3% | D16: 98 | G16: 10112 | H16: 所有英雄暴击+1% | I16: 196 | L16: 10412 | M16: 射手英雄暴击+3% | N16: 98
B17: 10213 | C17: 战士英雄暴击+6% | D17: 98 | G17: 10113 | H17: 所有英雄暴击+2% | I17: 196 | L17: 10413 | M17: 射手英雄暴击+6% | N17: 98
B18: 10214 | C18: 战士英雄暴击+9% | D18: 98 | G18: 10114 | H18: 所有英雄暴击+3% | I18: 196 | L18: 10414 | M18: 射手英雄暴击+9% | N18: 98
B19: 10215 | C19: 战士英雄暴击伤害+10% | D19: 98 | G19: 10115 | H19: 所有英雄暴击伤害+5% | I19: 196 | L19: 10415 | M19: 射手英雄暴击伤害+10% | N19: 98
B20: 10216 | C20: 战士英雄暴击伤害+15% | D20: 98 | G20: 10116 | H20: 所有英雄暴击伤害+10% | I20: 196 | L20: 10416 | M20: 射手英雄暴击伤害+15% | N20: 98
B21: 10217 | C21: 战士英雄暴击伤害+20% | D21: 98 | G21: 10117 | H21: 所有英雄暴击伤害+15% | I21: 196 | L21: 10417 | M21: 射手英雄暴击伤害+20% | N21: 98
B22: 10218 | C22: 战士英雄防御+10% | D22: 98 | G22: 10118 | H22: 所有英雄防御+5% | I22: 196 | L22: 10418 | M22: 射手英雄防御+10% | N22: 98
B23: 10219 | C23: 战士英雄防御+15% | D23: 98 | G23: 10119 | H23: 所有英雄防御+10% | I23: 196 | L23: 10419 | M23: 射手英雄防御+15% | N23: 98
B24: 10220 | C24: 战士英雄防御+20% | D24: 98 | G24: 10120 | H24: 所有英雄防御+15% | I24: 196 | L24: 10420 | M24: 射手英雄防御+20% | N24: 98
B25: 10221 | C25: 战士英雄法术防御+6% | D25: 98 | G25: 10121 | H25: 所有英雄法术防御+3% | I25: 196 | L25: 10421 | M25: 射手英雄法术防御+6% | N25: 98
B26: 10222 | C26: 战士英雄法术防御+9% | D26: 98 | G26: 10122 | H26: 所有英雄法术防御+6% | I26: 196 | L26: 10422 | M26: 射手英雄法术防御+9% | N26: 98
B27: 10223 | C27: 战士英雄法术防御+12% | D27: 98 | G27: 10123 | H27: 所有英雄法术防御+9% | I27: 196 | L27: 10423 | M27: 射手英雄法术防御+12% | N27: 98
B28: 10224 | C28: 战士英雄命中+4% | D28: 98 | G28: 10124 | H28: 所有英雄命中+2% | I28: 196 | L28: 10424 | M28: 射手英雄命中+4% | N28: 98
B29: 10225 | C29: 战士英雄命中+6% | D29: 98 | G29: 10125 | H29: 所有英雄命中+4% | I29: 196 | L29: 10425 | M29: 射手英雄命中+6% | N29: 98
B30: 10226 | C30: 战士英雄命中+8% | D30: 98 | G30: 10126 | H30: 所有英雄命中+6% | I30: 196 | L30: 10426 | M30: 射手英雄命中+8% | N30: 98
B31: 10227 | C31: 战士英雄闪避+3% | D31: 98 | G31: 10127 | H31: 所有英雄闪避+1% | I31: 196 | L31: 10427 | M31: 射手英雄闪避+3% | N31: 98
B32: 10228 | C32: 战士英雄闪避+6% | D32: 98 | G32: 10128 | H32: 所有英雄闪避+2% | I32: 196 | L32: 10428 | M32: 射手英雄闪避+6% | N32: 98
B33: 10229 | C33: 战士英雄闪避+9% | D33: 98 | G33: 10129 | H33: 所有英雄闪避+3% | I33: 196 | L33: 10429 | M33: 射手英雄闪避+9% | N33: 98
B34: 10230 | C34: 战士英雄受到治疗效果15% | D34: 98 | G34: 10130 | H34: 所有英雄受到治疗效果+10% | I34: 196 | L34: 10430 | M34: 射手英雄受到治疗效果15% | N34: 98
B35: 10231 | C35: 战士英雄受到治疗效果20% | D35: 98 | G35: 10131 | H35: 所有英雄受到治疗效果+15% | I35: 196 | L35: 10431 | M35: 射手英雄受到治疗效果20% | N35: 98
B36: 10232 | C36: 战士英雄受到治疗效果25% | D36: 98 | G36: 10132 | H36: 所有英雄受到治疗效果+20% | I36: 196 | L36: 10432 | M36: 射手英雄受到治疗效果25% | N36: 98
B37: 10233 | C37: 战士英雄受控时间减少10% | D37: 98 | G37: 10133 | H37: 所有英雄受到控制时间减少5% | I37: 196 | L37: 10433 | M37: 射手英雄受控时间减少10% | N37: 98
B38: 10234 | C38: 战士英雄受控时间减少15% | D38: 98 | G38: 10134 | H38: 所有英雄受到控制时间减少10% | I38: 196 | L38: 10434 | M38: 射手英雄受控时间减少15% | N38: 98
B39: 10235 | C39: 战士英雄受控时间减少20% | D39: 98 | G39: 10135 | H39: 所有英雄受到控制时间减少15% | I39: 196 | L39: 10435 | M39: 射手英雄受控时间减少20% | N39: 98
B40: 10236 | C40: 战士英雄控制时间增加10% | D40: 98 | G40: 10136 | H40: 所有英雄控制时间增加5% | I40: 196 | L40: 10436 | M40: 射手英雄控制时间增加10% | N40: 98
B41: 10237 | C41: 战士英雄控制时间增加15% | D41: 98 | G41: 10137 | H41: 所有英雄控制时间增加10% | I41: 196 | L41: 10437 | M41: 射手英雄控制时间增加15% | N41: 98
B42: 10238 | C42: 战士英雄控制时间增加20% | D42: 98 | G42: 10138 | H42: 所有英雄控制时间增加15% | I42: 196 | L42: 10438 | M42: 射手英雄控制时间增加20% | N42: 98
B43: 10239 | C43: 战士英雄攻击忽略4%防御 | D43: 98 | G43: 10139 | H43: 所有英雄攻击忽略2%防御 | I43: 196 | L43: 10439 | M43: 射手英雄攻击忽略4%防御 | N43: 98
B44: 10240 | C44: 战士英雄攻击忽略6%防御 | D44: 98 | G44: 10140 | H44: 所有英雄攻击忽略4%防御 | I44: 196 | L44: 10440 | M44: 射手英雄攻击忽略6%防御 | N44: 98
B45: 10241 | C45: 战士英雄攻击忽略8%防御 | D45: 98 | G45: 10141 | H45: 所有英雄攻击忽略6%防御 | I45: 196 | L45: 10441 | M45: 射手英雄攻击忽略8%防御 | N45: 98
B46: 10242 | C46: 战士英雄受到伤害减少10点 | D46: 98 | G46: 10142 | H46: 所有英雄受到伤害减少5点 | I46: 196 | L46: 10442 | M46: 射手英雄受到伤害减少10点 | N46: 98
B47: 10243 | C47: 战士英雄受到伤害减少15点 | D47: 98 | G47: 10143 | H47: 所有英雄受到伤害减少10点 | I47: 196 | L47: 10443 | M47: 射手英雄受到伤害减少15点 | N47: 98
B48: 10244 | C48: 战士英雄受到伤害减少20点 | D48: 98 | G48: 10144 | H48: 所有英雄受到伤害减少15点 | I48: 196 | L48: 10444 | M48: 射手英雄受到伤害减少20点 | N48: 98
B49: 10245 | C49: 战士英雄生命低于30%，防御增加20% | D49: 98 | G49: 10145 | H49: 所有召唤生物生命提高10% | I49: 196 | L49: 10445 | M49: 射手英雄生命低于30%，暴击增加10% | N49: 98
B50: 10246 | C50: 战士英雄生命低于30%，防御增加25% | D50: 98 | G50: 10146 | H50: 所有召唤生物生命提高15% | I50: 196 | L50: 10446 | M50: 射手英雄生命低于30%，暴击增加15% | N50: 98
B51: 10247 | C51: 战士英雄生命低于30%，防御增加30% | D51: 98 | G51: 10147 | H51: 所有召唤生物生命提高20% | I51: 196 | L51: 10447 | M51: 射手英雄生命低于30%，暴击增加20% | N51: 98
B52: 10248 | C52: 战士英雄生命高于70%，攻击增加20% | D52: 98 | G52: 10148 | H52: 所有召唤生物攻击提高5% | I52: 196 | L52: 10448 | M52: 射手英雄生命高于30%，法术防御增加10% | N52: 98
B53: 10249 | C53: 战士英雄生命高于70%，攻击增加25% | D53: 98 | G53: 10149 | H53: 所有召唤生物攻击提高10% | I53: 196 | L53: 10449 | M53: 射手英雄生命高于30%，法术防御增加15% | N53: 98
B54: 10250 | C54: 战士英雄生命高于70%，攻击增加30% | D54: 98 | G54: 10150 | H54: 所有召唤生物攻击提高15% | I54: 196 | L54: 10450 | M54: 射手英雄生命高于30%，法术防御增加20% | N54: 98
B55: 10300 | C55: 刺客英雄攻击+10% | D55: 98 | L55: 10500 | M55: 法师英雄法师攻击+10% | N55: 98
B56: 10301 | C56: 刺客英雄攻击+15% | D56: 98 | L56: 10501 | M56: 法师英雄法师攻击+15% | N56: 98
B57: 10302 | C57: 刺客英雄攻击+20% | D57: 98 | L57: 10502 | M57: 法师英雄法师攻击+20% | N57: 98
B58: 10303 | C58: 刺客英雄造成伤害2%转化自身生命 | D58: 98 | L58: 10503 | M58: 法师英雄释放技能时回复1%生命 | N58: 98
B59: 10304 | C59: 刺客英雄造成伤害4%转化自身生命 | D59: 98 | L59: 10504 | M59: 法师英雄释放技能时回复2%生命 | N59: 98
B60: 10305 | C60: 刺客英雄造成伤害6%转化自身生命 | D60: 98 | L60: 10505 | M60: 法师英雄释放技能时回复3%生命 | N60: 98
B61: 10306 | C61: 刺客英雄生命+20% | D61: 98 | L61: 10506 | M61: 法师英雄生命+20% | N61: 98
B62: 10307 | C62: 刺客英雄生命+25% | D62: 98 | L62: 10507 | M62: 法师英雄生命+25% | N62: 98
B63: 10308 | C63: 刺客英雄生命+30% | D63: 98 | L63: 10508 | M63: 法师英雄生命+30% | N63: 98
B64: 10309 | C64: 刺客英雄攻速+2% | D64: 98 | L64: 10509 | M64: 法师英雄攻速+2% | N64: 98
B65: 10310 | C65: 刺客英雄攻速+4% | D65: 98 | L65: 10510 | M65: 法师英雄攻速+4% | N65: 98
B66: 10311 | C66: 刺客英雄攻速+6% | D66: 98 | L66: 10511 | M66: 法师英雄攻速+6% | N66: 98
B67: 10312 | C67: 刺客英雄暴击+3% | D67: 98 | L67: 10512 | M67: 法师英雄暴击+3% | N67: 98
B68: 10313 | C68: 刺客英雄暴击+6% | D68: 98 | L68: 10513 | M68: 法师英雄暴击+6% | N68: 98
B69: 10314 | C69: 刺客英雄暴击+9% | D69: =ROUND(10000/102,0) -> 98 | L69: 10514 | M69: 法师英雄暴击+9% | N69: 98
B70: 10315 | C70: 刺客英雄暴击伤害+10% | D70: 98 | L70: 10515 | M70: 法师英雄暴击伤害+10% | N70: 98
B71: 10316 | C71: 刺客英雄暴击伤害+15% | D71: 98 | L71: 10516 | M71: 法师英雄暴击伤害+15% | N71: 98
B72: 10317 | C72: 刺客英雄暴击伤害+20% | D72: 98 | L72: 10517 | M72: 法师英雄暴击伤害+20% | N72: =ROUND(10000/102,0) -> 98
B73: 10318 | C73: 刺客英雄防御+10% | D73: 98 | L73: 10518 | M73: 法师英雄防御+10% | N73: 98
B74: 10319 | C74: 刺客英雄防御+15% | D74: 98 | L74: 10519 | M74: 法师英雄防御+15% | N74: 98
B75: 10320 | C75: 刺客英雄防御+20% | D75: 98 | L75: 10520 | M75: 法师英雄防御+20% | N75: 98
B76: 10321 | C76: 刺客英雄法术防御+6% | D76: 98 | L76: 10521 | M76: 法师英雄法术防御+6% | N76: 98
B77: 10322 | C77: 刺客英雄法术防御+9% | D77: 98 | L77: 10522 | M77: 法师英雄法术防御+9% | N77: 98
B78: 10323 | C78: 刺客英雄法术防御+12% | D78: 98 | L78: 10523 | M78: 法师英雄法术防御+12% | N78: 98
B79: 10324 | C79: 刺客英雄命中+4% | D79: 98 | L79: 10524 | M79: 法师英雄命中+4% | N79: 98
B80: 10325 | C80: 刺客英雄命中+6% | D80: 98 | L80: 10525 | M80: 法师英雄命中+6% | N80: 98
B81: 10326 | C81: 刺客英雄命中+8% | D81: 98 | L81: 10526 | M81: 法师英雄命中+8% | N81: 98
B82: 10327 | C82: 刺客英雄闪避+3% | D82: 98 | L82: 10527 | M82: 法师英雄闪避+3% | N82: 98
B83: 10328 | C83: 刺客英雄闪避+6% | D83: 98 | L83: 10528 | M83: 法师英雄闪避+6% | N83: 98
B84: 10329 | C84: 刺客英雄闪避+9% | D84: 98 | L84: 10529 | M84: 法师英雄闪避+9% | N84: 98
B85: 10330 | C85: 刺客英雄受到治疗效果15% | D85: 98 | L85: 10530 | M85: 法师英雄受到治疗效果15% | N85: 98
B86: 10331 | C86: 刺客英雄受到治疗效果20% | D86: 98 | L86: 10531 | M86: 法师英雄受到治疗效果20% | N86: 98
B87: 10332 | C87: 刺客英雄受到治疗效果25% | D87: 98 | L87: 10532 | M87: 法师英雄受到治疗效果25% | N87: 98
B88: 10333 | C88: 刺客英雄受控时间减少10% | D88: 98 | L88: 10533 | M88: 法师英雄受控时间减少10% | N88: 98
B89: 10334 | C89: 刺客英雄受控时间减少15% | D89: 98 | L89: 10534 | M89: 法师英雄受控时间减少15% | N89: 98
B90: 10335 | C90: 刺客英雄受控时间减少20% | D90: 98 | L90: 10535 | M90: 法师英雄受控时间减少20% | N90: 98
B91: 10336 | C91: 刺客英雄控制时间增加10% | D91: 98 | L91: 10536 | M91: 法师英雄控制时间增加10% | N91: 98
B92: 10337 | C92: 刺客英雄控制时间增加15% | D92: 98 | L92: 10537 | M92: 法师英雄控制时间增加15% | N92: 98
B93: 10338 | C93: 刺客英雄控制时间增加20% | D93: 98 | L93: 10538 | M93: 法师英雄控制时间增加20% | N93: 98
B94: 10339 | C94: 刺客英雄攻击忽略4%防御 | D94: 98 | L94: 10539 | M94: 法师英雄攻击忽略4%防御 | N94: 98
B95: 10340 | C95: 刺客英雄攻击忽略6%防御 | D95: 98 | L95: 10540 | M95: 法师英雄攻击忽略6%防御 | N95: 98
B96: 10341 | C96: 刺客英雄攻击忽略8%防御 | D96: 98 | L96: 10541 | M96: 法师英雄攻击忽略8%防御 | N96: 98
B97: 10342 | C97: 刺客英雄受到伤害减少10点 | D97: 98 | L97: 10542 | M97: 法师英雄受到伤害减少10点 | N97: 98
B98: 10343 | C98: 刺客英雄受到伤害减少15点 | D98: =ROUND(10000/102,0) -> 98 | L98: 10543 | M98: 法师英雄受到伤害减少15点 | N98: 98
B99: 10344 | C99: 刺客英雄受到伤害减少20点 | D99: 98 | L99: 10544 | M99: 法师英雄受到伤害减少20点 | N99: 98
B100: 10345 | C100: 刺客英雄生命低于30%，闪避增加10% | D100: 98 | L100: 10545 | M100: 法师英雄生命低于30%，法术攻击增加15% | N100: 98
B101: 10346 | C101: 刺客英雄生命低于30%，闪避增加15% | D101: 98 | L101: 10546 | M101: 法师英雄生命低于30%，法术攻击增加20% | N101: 98
B102: 10347 | C102: 刺客英雄生命低于30%，闪避增加20% | D102: 98 | L102: 10547 | M102: 法师英雄生命低于30%，法术攻击增加25% | N102: 98
B103: 10348 | C103: 刺客英雄生命高于70%，命中增加15% | D103: 98 | L103: 10548 | M103: 法师英雄生命高于70%，防御增加10% | N103: 98
B104: 10349 | C104: 刺客英雄生命高于70%，命中增加20% | D104: 98 | L104: 10549 | M104: 法师英雄生命高于70%，防御增加15% | N104: 98
B105: 10350 | C105: 刺客英雄生命高于70%，命中增加25% | D105: 98 | L105: 10550 | M105: 法师英雄生命高于70%，防御增加20% | N105: 98

Sheet 关卡掉落
B2: 驻军关卡掉落【需要展示】，其他关卡事件奖励不需要展示 | N2: 挑战普通关卡奖励 | X2: 挑战精英关卡 | AH2: BOSS关卡
B3: 驻军关卡事件只有玩家放弃恢复能量才可以挑战，奖励相对丰厚 | N3: 必掉【遗迹积分】（给通行证涨经验的）
C4: 建议奖励：高级抽奖卷、钻石、遗迹币、装备箱等 | N4: a.遗迹币（不同难度下遗迹币掉落产出逐步增加，每个难度下1/2/3层掉落也有一定差异）
N5: b.随机掉落装备
D6: 难度1 | E6: 驻军关卡掉落： | O6: 难度1_普通 | P6: 白色品阶-装备随机1件
A7: 100001 | B7: 金币 | D7: 普通 | E7: 110006 | F7: 50 | G7: 遗迹币*30 | H7: =_xlfn.TEXTJOIN("^",,E7:F7) -> 110006^50 | I7: =_xlfn.TEXTJOIN("|",,H7:H9) -> 110006^50|100001^5000|110005^10 | O7: 难度2_困难 | P7: 白色品阶-装备随机2件
A8: 110004 | B8: 周积分 | E8: 100001 | F8: 5000 | G8: 金币*5000 | H8: =_xlfn.TEXTJOIN("^",,E8:F8) -> 100001^5000 | O8: 难度3_精英 | P8: 白色/绿色品阶-装备随机1件
A9: 110005 | B9: 遗迹积分 | E9: 110005 | F9: 10 | G9: 遗迹积分 | H9: =_xlfn.TEXTJOIN("^",,E9:F9) -> 110005^10 | O9: 难度4_大师 | P9: 白色/绿色品阶-装备随机2件
A10: 110006 | B10: 遗迹币 | O10: 难度5_史诗 | P10: 白色/绿色/蓝色品阶-装备随机1件
A11: 130001 | B11: 钻石 | O11: 难度6_噩梦 | P11: 白色/绿色/蓝色品阶-装备随机2件
A12: 140003 | B12: 队伍经验 | D12: 难度2 | E12: 驻军关卡掉落： | N12: C.遗迹积分（必掉，固定数值，根据通行证30天一轮或20天一轮，每轮能打几次遗迹探险，每次最多可挑战x个挑战关卡换算）
A13: 140050 | B13: 召唤卷 | D13: 困难 | E13: 110006 | F13: 70 | G13: 遗迹币*40 | H13: =_xlfn.TEXTJOIN("^",,E13:F13) -> 110006^70 | I13: =_xlfn.TEXTJOIN("|",,H13:H15) -> 110006^70|100001^8000|110005^10 | AM13: 平民1层 | AP13: 平民2层 | AR13: 平民3层 | AU13: 只过1层 | AW13: 只过2层 | AY13: 全过总产出
A14: 140051 | B14: 高级召唤卷 | E14: 100001 | F14: 8000 | G14: 金币*8000 | H14: =_xlfn.TEXTJOIN("^",,E14:F14) -> 100001^8000
A15: 140052 | B15: 卷轴随机箱 | E15: 110005 | F15: 10 | H15: =_xlfn.TEXTJOIN("^",,E15:F15) -> 110005^10 | N15: 难度1 | O15: 第1层-普通关 | Q15: 遗迹币*10 | T15: 110006 | U15: 10 | V15: =_xlfn.TEXTJOIN("^",,T15:U15) -> 110006^10 | W15: =_xlfn.TEXTJOIN("|",,V15:V17) -> 110006^10|110005^5 | X15: 第1层-精英关 | Z15: 遗迹币*50 | AC15: 110006 | AD15: 50 | AE15: =_xlfn.TEXTJOIN("^",,AC15:AD15) -> 110006^50 | AF15: =_xlfn.TEXTJOIN("|",,AE15:AE17) -> 110006^50|110005^5 | AH15: 遗迹币*90 | AI15: 110006 | AJ15: 90 | AK15: =_xlfn.TEXTJOIN("^",,AI15:AJ15) -> 110006^90 | AL15: =_xlfn.TEXTJOIN("|",,AK15:AK17) -> 110006^90|110005^20 | AM15: 遗迹币 | AN15: =$AJ$15*1+U15*3 -> 120 | AP15: 遗迹币 | AQ15: =AN15*2 -> 240 | AR15: 遗迹币 | AS15: =AN15*3 -> 360 | AU15: 遗迹币 | AV15: =$AJ$15*1+$AD$15*2+$U$15*1+$F$7*1 -> 250 | AW15: 遗迹币 | AX15: =$AJ$15*2+$AD$15*4+$U$15*2+$F$7*2 -> 500 | AY15: 遗迹币 | AZ15: =$AJ$15*3+$AD$15*6+$U$15*3+$F$7*3 -> 750
